Workbook

Sheet Flow
A1: Equivalent hydraulic conductivity calculation (for the deposited restoration materials)
J2: Key | L2: INPUT CELL (other cells are calculated)
A3: Equivalent hydraulic conductivity perpendicular to the stratification (Domenico & Schwartz, 1998):
D5: Where: | E5: Kx is the equiavalent hydraulic conductivity for the layered system (m/s)
E6: mi is the thickness if the layer (m)
E7: Ki is the homogeneous conductivity for individual layers (m/s)
A9: Parameter | D9: Symbol | E9: Value | F9: Units | G9: Comments
A10: Layer 1: attenuation layer | D10: K1 | E10: 1e-07 | F10: m/s | G10: K = hydraulic conductivity
A11: Layer 1: attenuation layer | D11: m1 | E11: 1 | F11: m | G11: Attenuation layer thickness
A12: Layer 2: attenuation layer | D12: K2 | E12: 1e-07 | F12: m/s
A13: Layer 2: attenuation layer | D13: m2 | E13: 388 | F13: m | G13: It is assumed that the bulk K of the deposited waste is similar to the K of the attenuation layer.
A14: Layer 3: attenuation layer | D14: K3 | E14: 1e-07 | F14: m/s
A15: Layer 3: attenuation layer | D15: m3 | E15: =E11 -> 1 | F15: m
A16: Equivalent horizontal conductivity | D16: Kx | E16: =(E11+E13+E15)/((E11/E10)+(E13/E12)+(E15/E14)) -> 1e-07 | F16: m/s | G16: Based on the method in Domenico & Schwartz (1998).
A19: Discharge at the DOWN hydraulic gradient edge of the deposited restoration materials
A21: Based on the modified form of the Dupuit equation for steady unsaturated flow subject to infiltration or evaporation (Fetter, 2001):
E23: Where: | F23: q'x is the flow per unit width at x (m2/s)
F24: x is the distance from the origin (the up hydraulic gradient edge of the deposit) (m)
F25: K is the hydraulic conductivity (m/s)
F26: h1 is the head at the origin (m)
F27: h2 is the head at L (m)
F28: L is the distance from the origin at the point where h2 is measured (m)
F29: ω is the recharge rate (m/s)
A44: It is assumed that:
B45: 1. the hydraulic gradient is equal to the slope of the water table
B46: 2. the streamlines are horizontal and the equipotential lines are vertical
A48: Parameter | D48: Symbol | E48: Value | F48: Units | G48: Comments
A49: Distance from origin | D49: x | E49: =E53 -> 390 | F49: m | G49: Origin is assumed as the up hydraulic edge of the deposited restoration material (external to attenuation layer).
A50: Hydraulic conductivity | D50: Kx | E50: =E16 -> 1e-07 | F50: m/s | G50: Equivalent horizontal hydraulic conductivity through restoration materials and any attenuation layers.
A51: Head at the origin | D51: h1 | E51: 3 | F51: m | G51: Head at up hydraulic gradient edge of deposited restoration material relative to base of deposited restoration material.
A52: Head at L | D52: h2 | E52: 1.5 | F52: m | G52: Head at down hydraulic gradient edge of deposited restoration material.
A53: Distance from origin to h2 | D53: L | E53: =E11+E13+E15 -> 390 | F53: m | G53: If x = L the flow calculated is that at the down hydraulic gradient boundary.
A54: Recharge rate CALCULATED | E54: =(51.8/1000)/(60*60*24*365) -> 1.642567225e-09 | F54: m/s
A55: Recharge rate ADJUSTED | E55: =E128 -> 2.654289923e-11 | F55: m/s | G55: See under the heading Location of the water table divide (used to calibrate infiltration) below.
A56: Recharge to use? | E56: ADJUSTED | G56: Specify which recharge rate to use in the calculations.
A57: Recharge rate | D57: ω | E57: =IF(E56="CALCULATED",E54,IF(E56="ADJUSTED",E55,"ERROR")) -> 2.654289923e-11 | F57: m/s | G57: Calculated recharge converted to m/s.
A58: Recharge rate | D58: ω | E58: =(E57*1*1)*(60*60*24*365) -> 0.0008370568701 | F58: m3/m2/year
A59: Recharge rate | D59: ω | E59: =E58*1000 -> 0.8370568701 | F59: mm/year
A60: Recharge | D60: Q | E60: =E58*E49 -> 0.3264521794 | F60: m3/year | G60: Calculated for comparative purposes assuming unit width and a length parallel to flow of L.
A61: Discharge per unit width | D61: q'x | E61: =((E50*(E51^2-E52^2))/(2*E53))-(E57*((E53/2)-E49)) -> 6.041249965e-09 | F61: m2/s | G61: Based on the method presented in Fetter (2001). | AC61: CALCULATED
A62: Width | D62: y | E62: 1 | F62: m | AC62: ADJUSTED
A63: Flow | D63: Q | E63: =E61*E62 -> 6.041249965e-09 | F63: m3/s
A64: Flow | D64: Q | E64: =E63*60*60*24 -> 0.000521963997 | F64: m3/day
A65: Flow | D65: Q | E65: =E64*365.25 -> 0.1906473499 | F65: m3/year | G65: Positive value denotes flow in the x-direction. Negative value denotes flow in the x-direction is reversed.
A66: Flow | D66: Q | E66: =E65*1000 -> 190.6473499 | F66: l/year
A68: Discharge at the UP hydraulic gradient edge of the deposited restoration materials
A70: Parameter | D70: Symbol | E70: Value | F70: Units | G70: Comments
A71: Distance from origin | D71: x | E71: 0 | F71: m | G71: Origin is assumed as the up hydraulic edge of the deposited restoration material (external to attenuation layer). X=0 is the up hydraulic gradient edge of the deposit of restoration materials.
A72: Hydraulic conductivity | D72: Kx | E72: =E50 -> 1e-07 | F72: m/s | G72: Average horizontal hydraulic conductivity through restoration materials and any attenuation layers.
A73: Head at the origin | D73: h1 | E73: =E51 -> 3 | F73: m | G73: Head at up hydraulic gradient edge of deposited restoration material relative to base of deposited restoration material.
A74: Head at L | D74: h2 | E74: =E52 -> 1.5 | F74: m | G74: Head at down hydraulic gradient edge of deposited restoration material relative to base of deposited restoration material.
A75: Distance from origin to h2 | D75: L | E75: =E53 -> 390 | F75: m | G75: If x = 0 the flow calculated is that at the up hydraulic gradient boundary.
A76: Recharge rate in use | D76: ω | E76: =E57 -> 2.654289923e-11 | F76: m/s
A77: Recharge rate | D77: ω | E77: =(E76*1)*(60*60*24*365) -> 0.0008370568701 | F77: m3/m2/year
A78: Recharge rate | D78: ω | E78: =E77*1000 -> 0.8370568701 | F78: mm/year
A79: Flow per unit width | D79: q'x | E79: =((E72*(E73^2-E74^2))/(2*E75))-(E76*((E75/2)-E71)) -> -4.310480735e-09 | F79: m2/s | G79: Based on the method presented in Fetter (2001).
A80: Width | D80: y | E80: 1 | F80: m
A81: Flow | D81: Q | E81: =E79*E80 -> -4.310480735e-09 | F81: m3/s
A82: Flow | D82: Q | E82: =E81*60*60*24 -> -0.0003724255355 | F82: m3/day
A83: Flow | D83: Q | E83: =E82*365.25 -> -0.1360284268 | F83: m3/year | G83: Positive value denotes flow in the x-direction. Negative value denotes flow in the x-direction is reversed.
A84: Flow | D84: Q | E84: =E83*1000 -> -136.0284268 | F84: l/year
A87: Location of the water table divide and maximum elevation of the water table using the CALCULATED infiltration scenario
A89: If the water table is subject to infiltration there may be a water divide. q'x will be zero at the water table divide. Consistent with Fetter (2001):
E91: Where: | F91: d is the distance from the origin to the water table divide (m)
F92: K is the hydraulic conductivity (m/s)
F93: h1 is the head at the origin (m)
F94: h2 is the head at L (m)
F95: L is the distance from the origin at the point where h2 is measured (m)
F96: ω is the recharge rate (m/s)
A98: The elevation of the water table at the divide may be found with (Fetter, 2001):
F100: Where: | G100: hmax is the maximum elevation which is the elevation at the water table divide
A107: Parameter | D107: Symbol | E107: Value | F107: Units | G107: Comments
A108: Hydraulic conductivity | D108: Kx | E108: =E72 -> 1e-07 | F108: m/s
A109: Head at the origin | D109: h1 | E109: =E51 -> 3 | F109: m
A110: Head at L | D110: h2 | E110: =E52 -> 1.5 | F110: m
A111: Distance from origin to h2 | D111: L | E111: =E53 -> 390 | F111: m
A112: Recharge rate | D112: ω | E112: =E54 -> 1.642567225e-09 | F112: m/s
A113: Distance from origin to divide | D113: d | E113: =(E111/2)-((E108/E112)*((E109^2-E110^2)/(2*E111))) -> 194.4731512 | F113: m
A114: Elevation at water table divide | D114: hmax | E114: =((E109^2)-(((E109^2-E110^2)*E113)/E111)+((E112/E108)*(E111-E113)*E113))^0.5 -> 25.1040982 | F114: m
A115: Maximum possible head at divide | E115: 4 | F115: m
A117: Location of the water table divide (used to calibrate infiltration)
A119: For the ADJUSTED infiltration calculation it is recognised that hmax cannot exceed the restored land profile.
A120: On this basis the maximum head at the water table divide is restricted by geometry and values of ω are varied iteratively until hmax is no greater than
A121: the maximum possible elevation of the water table divide based on the restored landform.
A123: Parameter | D123: Symbol | E123: Value | F123: Units | G123: Comments
A124: Hydraulic conductivity | D124: Kx | E124: =E108 -> 1e-07 | F124: m/s
A125: Head at the origin | D125: h1 | E125: =E51 -> 3 | F125: m
A126: Head at L | D126: h2 | E126: =E52 -> 1.5 | F126: m
A127: Distance from origin to h2 | D127: L | E127: =E53 -> 390 | F127: m
A128: Recharge rate | D128: ω | E128: 2.654289923e-11 | F128: m/s | G128: Vary the recharge rate so that hmax is approximately equal to the maximum possible water level divide elevation.
A129: Distance from origin to divide | D129: d | E129: =(E127/2)-((E124/E128)*((E125^2-E126^2)/(2*E127))) -> 162.3967562 | F129: m
A130: Elevation at water table divide | D130: hmax | E130: =((E125^2)-(((E125^2-E126^2)*E129)/E127)+((E128/E124)*(E127-E129)*E129))^0.5 -> 4.000010111 | F130: m | G130: If the elevation of water table divide exceeds the restoration profile hmax cannot be maintained. Rainfall which otherwise could have infiltrated will run off.
A131: Maximum possible head at divide | E131: =E115 -> 4 | F131: m | G131: The rate of elevation is varied so that the hmax is similar to the maximum possible recharge mound elevation based on the restoration profile.
A133: Flow in the aquifer
A135: Flow in the aquifer is calculated using Darcy's law and assuming unit width.
D137: Where: | E137: Q is the flow in the aquifer (m3/s)
E138: i is the hydraulic gradient (no units)
E139: A is the cross sectional area perpendicular to flow (m2)
A141: Parameter | D141: Symbol | E141: Value | F141: Units | G141: Comments
A142: Aquifer hydraulic conductivity | D142: Kaq | E142: 2.31e-05 | F142: m/s
A143: Hydraulic gradient in aquifer | D143: i | E143: 0.0064 | F143: -
A144: Saturated thickness | D144: t | E144: =E51 -> 3 | F144: m
A145: Cross sectional area | D145: A | E145: =E144*1 -> 3 | F145: m2 | G145: Assuming unit width
A146: Flow | D146: Q | E146: =E142*E143*E145 -> 4.4352e-07 | F146: m3/s | G146: Using Darcy's law
A147: Flow | D147: Q | E147: =E146*(60*60*24*365) -> 13.98684672 | F147: m3/year
A149: References
A150: Domenico, P.A. & Schwartz F.W. 1998. Physical and Chemical Hydrogeology. Second Edition. John Wiley & Sons Inc. Page 42.
A151: Fetter, C.W. 2001. Applied Hydrogeology, 4th Edition. Pages 140 to 144.

Sheet WaterBalance
A1: Water balance (unit width perpendicular to groundwater flow in the aquifer)
A3: Recharge | E3: =Flow!E60 -> 0.3264521794 | F3: m3/year | G3: Postive value = INPUT
A4: Flow: down hydraulic gradient edge | E4: =Flow!E65 -> 0.1906473499 | F4: m3/year | G4: Positive value = OUTPUT flow at down hydraulic gradient edge.
A5: Flow: up hydraulic gradient edge | E5: =-Flow!E83 -> 0.1360284268 | F5: m3/year | G5: Positive value = OUTPUT flow at up hydraulic gradient edge. Negative value = INPUT flow at up hydraulic gradient edge.
A6: TOTAL | E6: =E3-E4-E5 -> -0.0002235973831 | F6: m3/year | G6: Total flow should be zero if INPUTs balance OUTPUTs.
A8: Aquifer flow | E8: =Flow!E147 -> 13.98684672 | F8: m3/year
A9: Flow across up hydraulic gradient boundary | E9: =Flow!E83 -> -0.1360284268 | F9: m3/year | G9: Positive value = aquifer flow into deposited restoration materials
A10: Aquifer flow not flowing into deposit | E10: =MIN(E8,E8-E9) -> 13.98684672 | F10: m3/year | G10: Flow assumed to bypass round deposited restoration materials and be available for dilution down hydraulic gradient.
A11: Aquifer flow not flowing into deposit | E11: =E10/(60*60*24*365) -> 4.4352e-07 | F11: m3/s
A13: Flow through restoration materials | E13: =Flow!E65+IF(Flow!E83<0,-Flow!E83,0) -> 0.3266757767 | F13: m3/year
A14: Flow through restoration materials | E14: =E13/(60*60*24*365) -> 1.035882093e-08 | F14: m3/s
A15: Flow through restoration materials | E15: =E13*1000 -> 326.6757767 | F15: l/year
A16: Flow through restoration materials | E16: =QsrcLitres/365 -> 0.895002128 | F16: l/day
A18: aquifer flow + recharge | E18: =E8+E3 -> 14.3132989 | F18: m3/year
A19: flow out of deposit + flow round | E19: =E10+Flow!E65+IF(Flow!E83<0,-Flow!E83,0) -> 14.3135225 | F19: m3/year
A20: FLOW CHECK | E20: =IF(E18-E19<ABS(0.1),"OK","ERROR") -> OK | G20: Is the tolerance within 0.1m3/year?
A22: Notes:
A23: Items in bold are used in the GenericAssessment worksheet

Sheet SourceInputs
A1: Source inputs
D2: Key | F2: INPUT CELL (other cells are calculated)
D4: Initial concentration | E4: Initial concentration
A5: Parameter | B5: Parameter name | C5: Category
D6: mg/l | E6: µg/l
A7: P1 | B7: Arsenic | C7: Hazardous | D7: 0.05 | E7: =D7*1000 -> 50
A8: P2 | B8: Mercury | C8: Hazardous | D8: 0.001 | E8: =D8*1000 -> 1
A9: P3 | B9: Toluene | C9: Hazardous | D9: 0.8695 | E9: 869.5
A10: P4 | B10: Cadmium | C10: Non hazardous | D10: 0.004 | E10: 4 | Q10: Non hazardous
A11: P5 | B11: Zinc | C11: Non hazardous | D11: 0.4 | E11: 400 | Q11: Hazardous
A12: P6 | B12: Copper | C12: Non hazardous | D12: 0.2 | E12: 200
A13: P7 | B13: Lead | C13: Hazardous | D13: 0.05 | E13: 50

Sheet GenericAssessment
A1: Calculated concentrations in the aquifer following immediate dilution
D3: Where: | E3: Caq is the estimated concentration in the aquifer (mg/l) | I3: Key | K3: INPUT CELL (other cells are calculated)
E4: Csrc is the concentration in the source (mg/l).
E5: Qsrc is the discharge from the imported restoration materials (m3/s)
E6: Cbg is the background concentration in the aquifer (mg/l)
E7: Qaq is the flow in the aquifer not including the flow through the restoration materials (m3/s)
A10: =SourceInputsAttenuation!A12 -> Parameter | B10: =SourceInputsAttenuation!B12 -> Parameter name | C10: Source concentration | D10: Environmental assessment limit (EAL) (mg/l) | E10: Assumed background concentrations (mg/l) | F10: Concentration following immediate dilution in groundwater (mg/l) | G10: Ratio of predicted concentrations to EAL
A11: =SourceInputsAttenuation!A14 -> P1 | B11: =SourceInputsAttenuation!B14 -> Arsenic | C11: =SourceInputsAttenuation!E14 -> 0.05 | D11: 0.0034 | E11: 0.0012 | F11: =((C11*Qsrc)+($E11*Qaq))/(Qsrc+Qaq) -> 0.002313756443 | G11: =F11/D11 -> 0.6805166009
A12: =SourceInputsAttenuation!A15 -> P2 | B12: =SourceInputsAttenuation!B15 -> Mercury | C12: =SourceInputsAttenuation!E15 -> 0.001 | D12: 1e-05 | E12: 0 | F12: =((C12*Qsrc)+($E12*Qaq))/(Qsrc+Qaq) -> 2.282287793e-05 | G12: =F12/D12 -> 2.282287793
A13: =SourceInputsAttenuation!A16 -> P3 | B13: =SourceInputsAttenuation!B16 -> Toluene | C13: =SourceInputsAttenuation!E16 -> 0.8695 | D13: 0.004 | E13: 0 | F13: =((C13*Qsrc)+($E13*Qaq))/(Qsrc+Qaq) -> 0.01984449236 | G13: 4.961123091
A14: =SourceInputsAttenuation!A17 -> P4 | B14: =SourceInputsAttenuation!B17 -> Cadmium | C14: =SourceInputsAttenuation!E17 -> 0.004 | D14: 0.012 | E14: 0.0005 | F14: =((C14*Qsrc)+($E14*Qaq))/(Qsrc+Qaq) -> 0.0005798800728 | G14: 0.0483233394
A15: =SourceInputsAttenuation!A18 -> P5 | B15: =SourceInputsAttenuation!B18 -> Zinc | C15: =SourceInputsAttenuation!E18 -> 0.4 | D15: 0.09 | E15: 0.011 | F15: =((C15*Qsrc)+($E15*Qaq))/(Qsrc+Qaq) -> 0.01987809952 | G15: 0.2208677724
A16: =SourceInputsAttenuation!A19 -> P6 | B16: =SourceInputsAttenuation!B19 -> Copper | C16: =SourceInputsAttenuation!E19 -> 0.2 | D16: 0.011 | E16: 0.0049 | F16: 0.009352743485 | G16: 0.8502494077
A17: =SourceInputsAttenuation!A20 -> P7 | B17: =SourceInputsAttenuation!B20 -> Lead | C17: =SourceInputsAttenuation!E20 -> 0.05 | D17: 0.0002 | E17: 0 | F17: 0.001141143897 | G17: 5.705719483

Sheet SourceInputsAttenuation
A1: Source inputs (with attenuation and source decline where specified)
A3: Consistent with the LandSim manual (Environment Agency, 1996) the concentration of a species in the source at time t can be calculated based on the kappa constant for the species and the liquid to solid ratio at time t:
I5: Key | K5: INPUT CELL (other cells are calculated)
C6: Where: | D6: Ct is the concentration of the species in the source at any time t (mg/l)
D7: C0 is the initial concentration of the species in leachate (mg/l)
D8: κ (kappa) is a species and waste-specific constant (kg/l)
D9: LS is the liquid to solid ratio at time t (l/kg) calculated as the aqueous losses from the source to time t divided by the mass of the source.
E11: Initial concentration | F11: Initial concentration | G11: Calculation of kappa (κ) constant
A12: Parameter | B12: Parameter name | C12: Source type | D12: Category | G12: m (slope) | H12: c (intercept) | I12: κ
E13: mg/l | F13: µg/l | G13: kg/l | H13: kg/l | I13: kg/l | M13: Graph titles | O13: Stem | P13: Variation in | R13: Stem2 | S13: concentrations with time
A14: P1 | B14: =SourceInputs!B7 -> Arsenic | C14: Decline | D14: =SourceInputs!C7 -> Hazardous | E14: =SourceInputs!D7 -> 0.05 | F14: =E14*1000 -> 50 | G14: 0.0415 | H14: -0.0862 | I14: =IF(C14="DECLINE",G14*LN(F14)+H14,0) -> 0.07614895473 | M14: =$P$13&LOWER(B14)&$S$13 -> Variation in arsenic concentrations with time | W14: Decline
A15: P2 | B15: =SourceInputs!B8 -> Mercury | C15: Decline | D15: =SourceInputs!C8 -> Hazardous | E15: =SourceInputs!D8 -> 0.001 | F15: =E15*1000 -> 1 | G15: 0.0767 | H15: 0.1643 | I15: =IF(C15="DECLINE",G15*LN(F15)+H15,0) -> 0.1643 | M15: =$P$13&LOWER(B15)&$S$13 -> Variation in mercury concentrations with time | W15: Constant
A16: P3 | B16: =SourceInputs!B9 -> Toluene | C16: Decline | D16: =SourceInputs!C9 -> Hazardous | E16: =SourceInputs!D9 -> 0.8695 | F16: 869.5 | G16: 0.0298 | H16: 0.2919 | I16: 0.4935839663 | M16: Variation in toluene concentrations with time
A17: P4 | B17: =SourceInputs!B10 -> Cadmium | C17: Decline | D17: =SourceInputs!C10 -> Non hazardous | E17: =SourceInputs!D10 -> 0.004 | F17: 4 | G17: 0.0823 | H17: 0.1589 | I17: 0.2729920259 | M17: Variation in cadmium concentrations with time | W17: Non hazardous
A18: P5 | B18: =SourceInputs!B11 -> Zinc | C18: Decline | D18: =SourceInputs!C11 -> Non hazardous | E18: =SourceInputs!D11 -> 0.4 | F18: 400 | G18: 0.0403 | H18: 0.0561 | I18: 0.2975560212 | M18: Variation in zinc concentrations with time | W18: Hazardous
A19: P6 | B19: =SourceInputs!B12 -> Copper | C19: Decline | D19: =SourceInputs!C12 -> Non hazardous | E19: =SourceInputs!D12 -> 0.2 | F19: 200 | G19: 0.0664 | H19: -0.0488 | I19: 0.3030082731 | M19: Variation in copper concentrations with time
A20: P7 | B20: =SourceInputs!B13 -> Lead | C20: Decline | D20: =SourceInputs!C13 -> Hazardous | E20: =SourceInputs!D13 -> 0.05 | F20: 50 | G20: 0.0443 | H20: 0.0171 | I20: 0.1904026191 | M20: Variation in lead concentrations with time
A22: Source geometry and physical properties
A24: Parameter | B24: Unit | C24: Value | D24: Comments
A25: Length | B25: m | C25: =Flow!E53-2 -> 388
A26: Thickness | B26: m | C26: 3 | D26: Thickness of the deposited waste used in the calculation of waste mass.
A27: Width of source | B27: m | C27: 1000000000 | D27: This only changes the transverse dispersion. If set to a high value ngligible transverse dispersion will be assumed to occur.
A28: Volume | B28: m3 | C28: =1*C25*C26 -> 1164 | D28: Unit width is assumed.
A29: Volume | B29: l | C29: =C28*1000 -> 1164000
A30: Source porosity | B30: Fraction | C30: 0.3
A31: Source bulk density | B31: kg/l | C31: 1.7
A32: Source dry density | B32: kg/l | C32: =(1.7-(0.3*1))/1 -> 1.4
A33: Source mass | B33: kg | C33: =C31*C29 -> 1978800
A34: Fraction of organic carbon | B34: Fraction | C34: =(0.01+0.1)/2 -> 0.055
A36: Reference
A37: Environment Agency 1996. LandSim. Landfill performance assessment: Simulation by Monte Carlo method. R&D Publication 120. Release 2. (LandSim version 2)

Sheet AttenuationInputs
A1: Calculation input parameters relevant to attenuation in the attenuation layer
A3: Note: See NumericalSoln and AnalyticalSoln worksheets for details on the calculation methods. | J3: Key | L3: INPUT CELL (other cells are calculated)
A5: Conservatively it is assumed that discharge from the attenuation layer up hydraulic gradient and down hydraulic gradient emanates from the down hydraulic gradient face which increases the assumed rate of contaminant migration in the attenuation layer.
A7: Input parameter | F7: Symbol | G7: Value | H7: Unit | I7: Comment
A8: Distance along the pathway in the direction of flow | F8: x | G8: 1 | H8: m | I8: It is assumed that the source is located adjacent to the attenuation layer and that the attenuation layer is 1m thick.
A9: Saturated thickness in the outflow region | F9: h | G9: =Flow!E52 -> 1.5 | H9: m
A10: Specific discharge | F10: q | G10: =(WaterBalance!E14)/G9 -> 6.905880618e-09 | H10: m/s | I10: Calculated as the flow per unit width divided by the head at the down hydraulic boundary.
A11: Effective porosity | F11: n | G11: =SourceInputsAttenuation!C30 -> 0.3 | H11: -
A12: Mean groundwater velocity | F12: νw | G12: =G10/G11 -> 2.301960206e-08 | H12: m/s
A13: Tortuosity | F13: τ | G13: 5 | H13: -
A14: Dispersivity in the x direction (longitudinal) | F14: αL | G14: =G8*0.1 -> 0.1 | H14: m
A15: Dispersivity (transverse) | F15: αT | G15: 0.03 | H15: m
A17: Parameter | B17: Parameter name | C17: Free water diffusion coefficient | D17: Coefficient of molecular diffusion | E17: Longitudinal dispersion coefficient | F17: Transverse dispersion coefficient | G17: Organic carbon partition coefficient | H17: Distribution coefficient | I17: Retardation factor | J17: Retarded velocity | K17: Degradation half life | L17: Degradation half life | M17: Decay constant | N17: Comments
C18: Dw | D18: Dm | E18: DL | F18: DT | G18: Koc | H18: Kd | I18: Rf | J18: ν = vw/Rf | K18: t½ | L18: t½ | M18: γ
A19: Units | C19: m2/s | D19: m2/s | E19: m2/s | F19: m2/s | G19: l/kg | H19: l/kg | I19: - | J19: m/s | K19: years | L19: s | M19: 1/s
A20: P1 | B20: =SourceInputsAttenuation!B14 -> Arsenic | C20: 5.94e-10 | D20: =IF(C20="",0.000000000001,C20/τ) -> 1.188e-10 | E20: =(α*νw)+D20 -> 2.420760206e-09 | F20: =(αT*νw)+D20 -> 8.093880618e-10 | H20: 25 | I20: =1+((SourceInputsAttenuation!$C$31/n)*H20) -> 142.6666667 | J20: =νw/$I20 -> 1.613523509e-10 | M20: =IF(L20="",0,(LN(2)/L20)) -> 0
A21: P2 | B21: =SourceInputsAttenuation!B15 -> Mercury | C21: 5.94e-10 | D21: =IF(C21="",0.000000000001,C21/τ) -> 1.188e-10 | E21: =(α*νw)+D21 -> 2.420760206e-09 | F21: =(αT*νw)+D21 -> 8.093880618e-10 | H21: 3835.4 | I21: =1+((SourceInputsAttenuation!$C$31/n)*H21) -> 21734.93333 | J21: =νw/$I21 -> 1.059106173e-12 | M21: =IF(L21="",0,(LN(2)/L21)) -> 0
A22: P3 | B22: =SourceInputsAttenuation!B16 -> Toluene | C22: =((0.413+0.847+0.6)/3)*0.000000001 -> 6.2e-10 | D22: 1.24e-10 | E22: 2.425960206e-09 | F22: 8.145880618e-10 | G22: =(131+242)/2 -> 186.5 | H22: =G22*SourceInputsAttenuation!$C$34 -> 10.2575 | I22: =1+((SourceInputsAttenuation!$C$31/n)*H22) -> 59.12583333 | J22: 3.89332391e-10 | K22: 0.822 | L22: =K22*(60*60*24*365.25) -> 25940347.2 | M22: =IF(L22="",0,(LN(2)/L22)) -> 2.672081353e-08
A23: P4 | B23: =SourceInputsAttenuation!B17 -> Cadmium | C23: 5.94e-10 | D23: 1.188e-10 | E23: 2.420760206e-09 | F23: 8.093880618e-10 | H23: 222.2 | I23: =1+((SourceInputsAttenuation!$C$31/n)*H23) -> 1260.133333 | J23: 1.826759236e-11 | M23: 0
A24: P5 | B24: =SourceInputsAttenuation!B18 -> Zinc | C24: 5.94e-10 | D24: 1.188e-10 | E24: 2.420760206e-09 | F24: 8.093880618e-10 | H24: 25 | I24: =1+((SourceInputsAttenuation!$C$31/n)*H24) -> 142.6666667 | J24: 1.613523509e-10 | M24: 0
A25: P6 | B25: =SourceInputsAttenuation!B19 -> Copper | C25: 5.94e-10 | D25: 1.188e-10 | E25: 2.420760206e-09 | F25: 8.093880618e-10 | H25: 126.8 | I25: =1+((SourceInputsAttenuation!$C$31/n)*H25) -> 719.5333333 | J25: 3.199240534e-11 | M25: 0
A26: P7 | B26: =SourceInputsAttenuation!B20 -> Lead | C26: 5.94e-10 | D26: =IF(C26="",0.000000000001,C26/τ) -> 1.188e-10 | E26: 2.420760206e-09 | F26: 8.093880618e-10 | H26: 434.5 | I26: =1+((SourceInputsAttenuation!$C$31/n)*H26) -> 2463.166667 | J26: 9.345531657e-12 | M26: 0
B28: Rf = 1 + (ρ/η).Kd | E28: Equation 6.31 in the LandSim manual | H28: Rf | I28: retardation factor for specific contaminant (-)
H29: ρ | I29: bulk density of material (kg/l)
H30: Kd | I30: distribution coefficient for specific contaminant (l/kg)
H31: η | I31: effective porosity of material (-)
A33: Reference
A34: Environment Agency 1996. LandSim. Landfill performance assessment: Simulation by Monte Carlo method. R&D Publication 120. Release 2. (LandSim version 2)

Sheet WithAttenuation
A1: Calculated concentrations in the aquifer following immediate dilution and taking into account attenuation in the attenuation layer
D3: Where: | E3: Caq is the estimated concentration in the aquifer (mg/l)
E4: Csrc is the concentration in the source (mg/l).
E5: Qsrc is the discharge from the imported restoration materials (m3/s)
E6: Cbg is the background concentration in the aquifer (mg/l)
E7: Qaq is the flow in the aquifer not including the flow through the restoration materials (m3/s)
A10: Where attenuation is taken into account in the attenuation layer it is assumed that that Qsrc is the concentration at the outer edge of the attenuation layer.
A11: For the calculation of attenuation in the attenuation layer it is assumed that the calculated flow from both the up hydraulic gradient and down hydraulic gradient edges of the attenuation layer flow through the down hydraulic gradient boundary.
A12: Breakthrough may therefore occur sooner than would otherwise be the case.
F15: Maximum concentration predicted at the edge of the imported materials [DOWN hydraulcic gradient] (mg/l) | H15: Concentration predicted in the aquifer following immediate dilution (mg/l)
A16: =SourceInputsAttenuation!A12 -> Parameter | B16: =SourceInputsAttenuation!B12 -> Parameter name | C16: Source concentration | D16: Environmental assessment limit (EAL) (mg/l) | E16: Assumed background concentrations (mg/l) | F16: With attenuation (and source decline for inorganics) (numeric) | G16: With attenuation (and source decline for inorganics) (analytical) | H16: Immediate dilution in groundwater only | I16: With attenuation (and source decline for inorganics) (numeric) | J16: With attenuation (and source decline for inorganics) (analytical) | K16: Ratio of predicted concentrations to EAL
A17: =SourceInputsAttenuation!A14 -> P1 | B17: =SourceInputsAttenuation!B14 -> Arsenic | C17: =SourceInputsAttenuation!E14 -> 0.05 | D17: =GenericAssessment!D11 -> 0.0034 | E17: =GenericAssessment!E11 -> 0.0012 | F17: =MAX('P1'!D4:D1903) -> 0.04964528591 | G17: =IFERROR(MAX(P1an!J4:J1903),"NOT SOLVED") -> 0.04965717513 | H17: =((C17*Qsrc)+($E17*Qaq))/(Qsrc+Qaq) -> 0.002313756443 | I17: =MAX('P1'!G4:G1903) -> 0.002305660847 | J17: =IFERROR(MAX(P1an!K4:K1903),"NOT SOLVED") -> 0.002305932193 | K17: =I17/D17 -> 0.6781355432
A18: =SourceInputsAttenuation!A15 -> P2 | B18: =SourceInputsAttenuation!B15 -> Mercury | C18: =SourceInputsAttenuation!E15 -> 0.001 | D18: =GenericAssessment!D12 -> 1e-05 | E18: =GenericAssessment!E12 -> 0 | F18: =MAX('P2'!D5:D1904) -> 8.863975624e-06 | G18: =IFERROR(MAX(P2an!J4:J1903),"NOT SOLVED") -> 9.006308082e-06 | H18: =((C18*Qsrc)+($E18*Qaq))/(Qsrc+Qaq) -> 2.282287793e-05 | I18: =MAX('P2'!G5:G1904) -> 2.023014337e-07 | J18: =IFERROR(MAX(P2an!K4:K1903),"NOT SOLVED") -> 2.0554987e-07 | K18: =I18/D18 -> 0.02023014337
A19: =SourceInputsAttenuation!A16 -> P3 | B19: =SourceInputsAttenuation!B16 -> Toluene | C19: =SourceInputsAttenuation!E16 -> 0.8695 | D19: =GenericAssessment!D13 -> 0.004 | E19: =GenericAssessment!E13 -> 0 | F19: =MAX('P3'!D6:D1905) -> 5.395895373e-10 | G19: =IFERROR(MAX(P3an!J4:J1903),"NOT SOLVED") -> 5.324804434e-10 | H19: 0.01984449236 | I19: =MAX('P3'!G6:G1905) -> 1.231498614e-11 | J19: =IFERROR(MAX(P3an!K4:K1903),"NOT SOLVED") -> 1.215273616e-11 | K19: 3.078746536e-09
A20: =SourceInputsAttenuation!A17 -> P4 | B20: =SourceInputsAttenuation!B17 -> Cadmium | C20: =SourceInputsAttenuation!E17 -> 0.004 | D20: =GenericAssessment!D14 -> 0.012 | E20: =GenericAssessment!E14 -> 0.0005 | F20: =MAX('P4'!D7:D1906) -> 0.003558731021 | G20: =IFERROR(MAX(P4an!J4:J1903),"NOT SOLVED") -> 0.003557044989 | H20: =((C20*Qsrc)+($E20*Qaq))/(Qsrc+Qaq) -> 0.0005798800728 | I20: =MAX('P4'!G7:G1906) -> 0.0005698090447 | J20: =IFERROR(MAX(P4an!K4:K1903),"NOTSOLVED") -> 0.0005697705646 | K20: 0.04748408706
A21: =SourceInputsAttenuation!A18 -> P5 | B21: =SourceInputsAttenuation!B18 -> Zinc | C21: =SourceInputsAttenuation!E18 -> 0.4 | D21: =GenericAssessment!D15 -> 0.09 | E21: =GenericAssessment!E15 -> 0.011 | F21: =MAX('P5'!D8:D1907) -> 0.391321672 | G21: =IFERROR(MAX(P5an!J4:J1903),"NOT SOLVED") -> 0.391335331 | H21: =((C21*Qsrc)+($E21*Qaq))/(Qsrc+Qaq) -> 0.01987809952 | I21: =MAX('P5'!G8:G1907) -> 0.01968003509 | J21: =IFERROR(MAX(P5an!K4:K1903),"NOT SOLVED") -> 0.01968034683 | K21: 0.2186670566
A22: =SourceInputsAttenuation!A19 -> P6 | B22: =SourceInputsAttenuation!B19 -> Copper | C22: =SourceInputsAttenuation!E19 -> 0.2 | D22: =GenericAssessment!D16 -> 0.011 | E22: =GenericAssessment!E16 -> 0.0049 | F22: =MAX('P6'!D9:D1908) -> 0.1842374939 | G22: =IFERROR(MAX(P6an!J4:J1903),"NOT SOLVED") -> 0.1841671682 | H22: 0.009352743485 | I22: =MAX('P6'!G9:G1908) -> 0.008992997733 | J22: =IFERROR(MAX(P6an!K4:K1903),"NOT SOLVED") -> 0.008991392698 | K22: 0.8175452484
A23: =SourceInputsAttenuation!A20 -> P7 | B23: =SourceInputsAttenuation!B20 -> Lead | C23: =SourceInputsAttenuation!E20 -> 0.05 | D23: =GenericAssessment!D17 -> 0.0002 | E23: =GenericAssessment!E17 -> 0 | F23: =MAX('P7'!D10:D1909) -> 0.04312612321 | G23: =IFERROR(MAX(P7an!J4:J1903),"NOT SOLVED") -> 0.04310420747 | H23: 0.001141143897 | I23: =MAX('P7'!G10:G1909) -> 0.0009842622458 | J23: =IFERROR(MAX(P7an!K4:K1903),"NOT SOLVED") -> 0.0009837620654 | K23: 4.921311229
A25: Notes: | B25: For the analytical solution to the advection dispersion equation a value of "NOT SOLVED" denotes that the value of µ is negative number which is the case for certain combinations of inputs. This means that √µ becomes an imaginary number.
B26: The LandSim manual provides an alternative solution to advection dispersion equation when µ is negative but the solution is not implemented here and the numerical results should be used instead.
B32: Information used for plotting EALs on the graph
B33: Year | C33: =B17 -> Arsenic | E33: =B18 -> Mercury | F33: =B19 -> Toluene | H33: =B20 -> Cadmium | I33: =B21 -> Zinc | J33: =B22 -> Copper | K33: =B23 -> Lead
B34: 1 | C34: =$D$17 -> 0.0034 | E34: =$D$18 -> 1e-05 | F34: =$D$19 -> 0.004 | H34: =$D$20 -> 0.012 | I34: =$D$21 -> 0.09 | J34: =$D$22 -> 0.011 | K34: =$D$23 -> 0.0002
B35: 10000 | C35: =$D$17 -> 0.0034 | E35: =$D$18 -> 1e-05 | F35: =$D$19 -> 0.004 | H35: =$D$20 -> 0.012 | I35: =$D$21 -> 0.09 | J35: =$D$22 -> 0.011 | K35: =$D$23 -> 0.0002

Sheet SrcDecline
A1: P1 | B1: =SourceInputsAttenuation!B14 -> Arsenic | C1: =SourceInputsAttenuation!C14 -> Decline | D1: P2 | E1: =SourceInputsAttenuation!B15 -> Mercury | F1: =SourceInputsAttenuation!C15 -> Decline | G1: P3 | H1: =SourceInputsAttenuation!B16 -> Toluene | I1: =SourceInputsAttenuation!C16 -> Decline | J1: P4 | K1: =SourceInputsAttenuation!B17 -> Cadmium | L1: =SourceInputsAttenuation!C17 -> Decline | M1: P5 | N1: =SourceInputsAttenuation!B18 -> Zinc | O1: =SourceInputsAttenuation!C18 -> Decline | P1: P6 | Q1: =SourceInputsAttenuation!B19 -> Copper | R1: =SourceInputsAttenuation!C19 -> Decline | S1: P7 | T1: =SourceInputsAttenuation!B20 -> Lead | U1: =SourceInputsAttenuation!C20 -> Decline | X1: References
A2: Years of leaching | B2: Liquid to solid ratio at time t LS (l/kg) | C2: Source concentration Ct (mg/l) | D2: Years of leaching | E2: Liquid to solid ratio at time t LS (l/kg) | F2: Source concentration Ct (mg/l) | G2: Years of leaching | H2: Liquid to solid ratio at time t LS (l/kg) | I2: Source concentration Ct (mg/l) | J2: Years of leaching | K2: Liquid to solid ratio at time t LS (l/kg) | L2: Source concentration Ct (mg/l) | M2: Years of leaching | N2: Liquid to solid ratio at time t LS (l/kg) | O2: Source concentration Ct (mg/l) | P2: Years of leaching | Q2: Liquid to solid ratio at time t LS (l/kg) | R2: Source concentration Ct (mg/l) | S2: Years of leaching | T2: Liquid to solid ratio at time t LS (l/kg) | U2: Source concentration Ct (mg/l) | X2: Golder Associates. 2003. Addendum to LandSim 2 manual relevant to LandSim 2.5.
A3: 0 | B3: =IF(C$1="Decline",(A3*QsrcLitres)/(SourceInputsAttenuation!$C$33),"") -> 0 | C3: =IF(C$1="Decline",SourceInputsAttenuation!$E$14*EXP(-1*((SourceInputsAttenuation!$I$14)*SrcDecline!B3)),SourceInputsAttenuation!$E$14) -> 0.05 | D3: 0 | E3: =IF(F$1="Decline",(D3*QsrcLitres)/SourceInputsAttenuation!$C$33,"") -> 0 | F3: =IF(F$1="Decline",SourceInputsAttenuation!$E$15*EXP(-1*(SourceInputsAttenuation!$I$15*SrcDecline!E3)),SourceInputsAttenuation!$E$15) -> 0.001 | G3: 0 | H3: =IF(I$1="Decline",(G3*QsrcLitres)/SourceInputsAttenuation!$C$33,"") -> 0 | I3: =IF(I$1="Decline",SourceInputsAttenuation!$E$16*EXP(-1*(SourceInputsAttenuation!$I$16*SrcDecline!E3)),SourceInputsAttenuation!$E$16) -> 0.8695 | J3: 0 | K3: =IF(L$1="Decline",(J3*QsrcLitres)/SourceInputsAttenuation!$C$33,"") -> 0 | L3: =IF(L$1="Decline",SourceInputsAttenuation!$E$17*EXP(-1*(SourceInputsAttenuation!$I$17*SrcDecline!K3)),SourceInputsAttenuation!$E$17) -> 0.004 | M3: 0 | N3: =IF(O$1="Decline",(M3*QsrcLitres)/SourceInputsAttenuation!$C$33,"") -> 0 | O3: =IF(O$1="Decline",SourceInputsAttenuation!$E$18*EXP(-1*(SourceInputsAttenuation!$I$18*SrcDecline!N3)),SourceInputsAttenuation!$E$18) -> 0.4 | P3: 0 | Q3: =IF(R$1="Decline",(P3*QsrcLitres)/SourceInputsAttenuation!$C$33,"") -> 0 | R3: =IF(R$1="Decline",SourceInputsAttenuation!$E$19*EXP(-1*(SourceInputsAttenuation!$I$19*SrcDecline!Q3)),SourceInputsAttenuation!$E$19) -> 0.2 | S3: 0 | T3: =IF(U$1="Decline",(S3*QsrcLitres)/SourceInputsAttenuation!$C$33,"") -> 0 | U3: =IF(U$1="Decline",SourceInputsAttenuation!$E$20*EXP(-1*(SourceInputsAttenuation!$I$20*SrcDecline!T3)),SourceInputsAttenuation!$E$20) -> 0.05
A4: =IF(A3<1000,A3+1,A3+10) -> 1 | B4: =IF(C$1="Decline",(A4*QsrcLitres)/(SourceInputsAttenuation!$C$33),"") -> 0.0001650878193 | C4: =IF(C$1="Decline",SourceInputsAttenuation!$E$14*EXP(-1*((SourceInputsAttenuation!$I$14)*SrcDecline!B4)),SourceInputsAttenuation!$E$14) -> 0.04999937144 | D4: =IF(D3<1000,D3+1,D3+10) -> 1 | E4: =IF(F$1="Decline",(D4*QsrcLitres)/SourceInputsAttenuation!$C$33,"") -> 0.0001650878193 | F4: =IF(F$1="Decline",SourceInputsAttenuation!$E$15*EXP(-1*(SourceInputsAttenuation!$I$15*SrcDecline!E4)),SourceInputsAttenuation!$E$15) -> 0.0009999728764 | G4: =IF(G3<1000,G3+1,G3+10) -> 1 | H4: =IF(I$1="Decline",(G4*QsrcLitres)/SourceInputsAttenuation!$C$33,"") -> 0.0001650878193 | I4: =IF(I$1="Decline",SourceInputsAttenuation!$E$16*EXP(-1*(SourceInputsAttenuation!$I$16*SrcDecline!E4)),SourceInputsAttenuation!$E$16) -> 0.8694291519 | J4: =IF(J3<1000,J3+1,J3+10) -> 1 | K4: =IF(L$1="Decline",(J4*QsrcLitres)/SourceInputsAttenuation!$C$33,"") -> 0.0001650878193 | L4: =IF(L$1="Decline",SourceInputsAttenuation!$E$17*EXP(-1*(SourceInputsAttenuation!$I$17*SrcDecline!K4)),SourceInputsAttenuation!$E$17) -> 0.003999819733 | M4: =IF(M3<1000,M3+1,M3+10) -> 1 | N4: =IF(O$1="Decline",(M4*QsrcLitres)/SourceInputsAttenuation!$C$33,"") -> 0.0001650878193 | O4: =IF(O$1="Decline",SourceInputsAttenuation!$E$18*EXP(-1*(SourceInputsAttenuation!$I$18*SrcDecline!N4)),SourceInputsAttenuation!$E$18) -> 0.3999803513 | P4: =IF(P3<1000,P3+1,P3+10) -> 1 | Q4: =IF(R$1="Decline",(P4*QsrcLitres)/SourceInputsAttenuation!$C$33,"") -> 0.0001650878193 | R4: =IF(R$1="Decline",SourceInputsAttenuation!$E$19*EXP(-1*(SourceInputsAttenuation!$I$19*SrcDecline!Q4)),SourceInputsAttenuation!$E$19) -> 0.1999899957 | S4: =IF(S3<1000,S3+1,S3+10) -> 1 | T4: =IF(U$1="Decline",(S4*QsrcLitres)/SourceInputsAttenuation!$C$33,"") -> 0.0001650878193 | U4: =IF(U$1="Decline",SourceInputsAttenuation!$E$20*EXP(-1*(SourceInputsAttenuation!$I$20*SrcDecline!T4)),SourceInputsAttenuation!$E$20) -> 0.04999842837
A5: =IF(A4<1000,A4+1,A4+10) -> 2 | B5: =IF(C$1="Decline",(A5*QsrcLitres)/(SourceInputsAttenuation!$C$33),"") -> 0.0003301756385 | C5: =IF(C$1="Decline",SourceInputsAttenuation!$E$14*EXP(-1*((SourceInputsAttenuation!$I$14)*SrcDecline!B5)),SourceInputsAttenuation!$E$14) -> 0.04999874289 | D5: =IF(D4<1000,D4+1,D4+10) -> 2 | E5: =IF(F$1="Decline",(D5*QsrcLitres)/SourceInputsAttenuation!$C$33,"") -> 0.0003301756385 | F5: =IF(F$1="Decline",SourceInputsAttenuation!$E$15*EXP(-1*(SourceInputsAttenuation!$I$15*SrcDecline!E5)),SourceInputsAttenuation!$E$15) -> 0.0009999457536 | G5: =IF(G4<1000,G4+1,G4+10) -> 2 | H5: =IF(I$1="Decline",(G5*QsrcLitres)/SourceInputsAttenuation!$C$33,"") -> 0.0003301756385 | I5: =IF(I$1="Decline",SourceInputsAttenuation!$E$16*EXP(-1*(SourceInputsAttenuation!$I$16*SrcDecline!E5)),SourceInputsAttenuation!$E$16) -> 0.8693583097 | J5: =IF(J4<1000,J4+1,J4+10) -> 2 | K5: =IF(L$1="Decline",(J5*QsrcLitres)/SourceInputsAttenuation!$C$33,"") -> 0.0003301756385 | L5: =IF(L$1="Decline",SourceInputsAttenuation!$E$17*EXP(-1*(SourceInputsAttenuation!$I$17*SrcDecline!K5)),SourceInputsAttenuation!$E$17) -> 0.003999639475 | M5: =IF(M4<1000,M4+1,M4+10) -> 2 | N5: =IF(O$1="Decline",(M5*QsrcLitres)/SourceInputsAttenuation!$C$33,"") -> 0.0003301756385 | O5: =IF(O$1="Decline",SourceInputsAttenuation!$E$18*EXP(-1*(SourceInputsAttenuation!$I$18*SrcDecline!N5)),SourceInputsAttenuation!$E$18) -> 0.3999607036 | P5: =IF(P4<1000,P4+1,P4+10) -> 2 | Q5: =IF(R$1="Decline",(P5*QsrcLitres)/SourceInputsAttenuation!$C$33,"") -> 0.0003301756385 | R5: =IF(R$1="Decline",SourceInputsAttenuation!$E$19*EXP(-1*(SourceInputsAttenuation!$I$19*SrcDecline!Q5)),SourceInputsAttenuation!$E$19) -> 0.1999799918 | S5: =IF(S4<1000,S4+1,S4+10) -> 2 | T5: =IF(U$1="Decline",(S5*QsrcLitres)/SourceInputsAttenuation!$C$33,"") -> 0.0003301756385 | U5: =IF(U$1="Decline",SourceInputsAttenuation!$E$20*EXP(-1*(SourceInputsAttenuation!$I$20*SrcDecline!T5)),SourceInputsAttenuation!$E$20) -> 0.04999685678
A6: 3 | B6: =IF(C$1="Decline",(A6*QsrcLitres)/(SourceInputsAttenuation!$C$33),"") -> 0.0004952634578 | C6: =IF(C$1="Decline",SourceInputsAttenuation!$E$14*EXP(-1*((SourceInputsAttenuation!$I$14)*SrcDecline!B6)),SourceInputsAttenuation!$E$14) -> 0.04999811435 | D6: 3 | E6: =IF(F$1="Decline",(D6*QsrcLitres)/SourceInputsAttenuation!$C$33,"") -> 0.0004952634578 | F6: =IF(F$1="Decline",SourceInputsAttenuation!$E$15*EXP(-1*(SourceInputsAttenuation!$I$15*SrcDecline!E6)),SourceInputsAttenuation!$E$15) -> 0.0009999186315 | G6: 3 | H6: =IF(I$1="Decline",(G6*QsrcLitres)/SourceInputsAttenuation!$C$33,"") -> 0.0004952634578 | I6: =IF(I$1="Decline",SourceInputsAttenuation!$E$16*EXP(-1*(SourceInputsAttenuation!$I$16*SrcDecline!E6)),SourceInputsAttenuation!$E$16) -> 0.8692874731 | J6: 3 | K6: =IF(L$1="Decline",(J6*QsrcLitres)/SourceInputsAttenuation!$C$33,"") -> 0.0004952634578 | L6: =IF(L$1="Decline",SourceInputsAttenuation!$E$17*EXP(-1*(SourceInputsAttenuation!$I$17*SrcDecline!K6)),SourceInputsAttenuation!$E$17) -> 0.003999459225 | M6: 3 | N6: =IF(O$1="Decline",(M6*QsrcLitres)/SourceInputsAttenuation!$C$33,"") -> 0.0004952634578 | O6: =IF(O$1="Decline",SourceInputsAttenuation!$E$18*EXP(-1*(SourceInputsAttenuation!$I$18*SrcDecline!N6)),SourceInputsAttenuation!$E$18) -> 0.3999410569 | P6: 3 | Q6: =IF(R$1="Decline",(P6*QsrcLitres)/SourceInputsAttenuation!$C$33,"") -> 0.0004952634578 | R6: =IF(R$1="Decline",SourceInputsAttenuation!$E$19*EXP(-1*(SourceInputsAttenuation!$I$19*SrcDecline!Q6)),SourceInputsAttenuation!$E$19) -> 0.1999699885 | S6: 3 | T6: =IF(U$1="Decline",(S6*QsrcLitres)/SourceInputsAttenuation!$C$33,"") -> 0.0004952634578 | U6: =IF(U$1="Decline",SourceInputsAttenuation!$E$20*EXP(-1*(SourceInputsAttenuation!$I$20*SrcDecline!T6)),SourceInputsAttenuation!$E$20) -> 0.04999528525
A7: 4 | B7: =IF(C$1="Decline",(A7*QsrcLitres)/(SourceInputsAttenuation!$C$33),"") -> 0.000660351277 | C7: =IF(C$1="Decline",SourceInputsAttenuation!$E$14*EXP(-1*((SourceInputsAttenuation!$I$14)*SrcDecline!B7)),SourceInputsAttenuation!$E$14) -> 0.04999748581 | D7: 4 | E7: =IF(F$1="Decline",(D7*QsrcLitres)/SourceInputsAttenuation!$C$33,"") -> 0.000660351277 | F7: =IF(F$1="Decline",SourceInputsAttenuation!$E$15*EXP(-1*(SourceInputsAttenuation!$I$15*SrcDecline!E7)),SourceInputsAttenuation!$E$15) -> 0.0009998915102 | G7: 4 | H7: =IF(I$1="Decline",(G7*QsrcLitres)/SourceInputsAttenuation!$C$33,"") -> 0.000660351277 | I7: =IF(I$1="Decline",SourceInputsAttenuation!$E$16*EXP(-1*(SourceInputsAttenuation!$I$16*SrcDecline!E7)),SourceInputsAttenuation!$E$16) -> 0.8692166424 | J7: 4 | K7: =IF(L$1="Decline",(J7*QsrcLitres)/SourceInputsAttenuation!$C$33,"") -> 0.000660351277 | L7: =IF(L$1="Decline",SourceInputsAttenuation!$E$17*EXP(-1*(SourceInputsAttenuation!$I$17*SrcDecline!K7)),SourceInputsAttenuation!$E$17) -> 0.003999278982 | M7: 4 | N7: =IF(O$1="Decline",(M7*QsrcLitres)/SourceInputsAttenuation!$C$33,"") -> 0.000660351277 | O7: =IF(O$1="Decline",SourceInputsAttenuation!$E$18*EXP(-1*(SourceInputsAttenuation!$I$18*SrcDecline!N7)),SourceInputsAttenuation!$E$18) -> 0.3999214111 | P7: 4 | Q7: =IF(R$1="Decline",(P7*QsrcLitres)/SourceInputsAttenuation!$C$33,"") -> 0.000660351277 | R7: =IF(R$1="Decline",SourceInputsAttenuation!$E$19*EXP(-1*(SourceInputsAttenuation!$I$19*SrcDecline!Q7)),SourceInputsAttenuation!$E$19) -> 0.1999599856 | S7: 4 | T7: =IF(U$1="Decline",(S7*QsrcLitres)/SourceInputsAttenuation!$C$33,"") -> 0.000660351277 | U7: =IF(U$1="Decline",SourceInputsAttenuation!$E$20*EXP(-1*(SourceInputsAttenuation!$I$20*SrcDecline!T7)),SourceInputsAttenuation!$E$20) -> 0.04999371376
A8: 5 | B8: =IF(C$1="Decline",(A8*QsrcLitres)/(SourceInputsAttenuation!$C$33),"") -> 0.0008254390963 | C8: =IF(C$1="Decline",SourceInputsAttenuation!$E$14*EXP(-1*((SourceInputsAttenuation!$I$14)*SrcDecline!B8)),SourceInputsAttenuation!$E$14) -> 0.04999685728 | D8: 5 | E8: =IF(F$1="Decline",(D8*QsrcLitres)/SourceInputsAttenuation!$C$33,"") -> 0.0008254390963 | F8: =IF(F$1="Decline",SourceInputsAttenuation!$E$15*EXP(-1*(SourceInputsAttenuation!$I$15*SrcDecline!E8)),SourceInputsAttenuation!$E$15) -> 0.0009998643896 | G8: 5 | H8: =IF(I$1="Decline",(G8*QsrcLitres)/SourceInputsAttenuation!$C$33,"") -> 0.0008254390963 | I8: =IF(I$1="Decline",SourceInputsAttenuation!$E$16*EXP(-1*(SourceInputsAttenuation!$I$16*SrcDecline!E8)),SourceInputsAttenuation!$E$16) -> 0.8691458174 | J8: 5 | K8: =IF(L$1="Decline",(J8*QsrcLitres)/SourceInputsAttenuation!$C$33,"") -> 0.0008254390963 | L8: =IF(L$1="Decline",SourceInputsAttenuation!$E$17*EXP(-1*(SourceInputsAttenuation!$I$17*SrcDecline!K8)),SourceInputsAttenuation!$E$17) -> 0.003999098748 | M8: 5 | N8: =IF(O$1="Decline",(M8*QsrcLitres)/SourceInputsAttenuation!$C$33,"") -> 0.0008254390963 | O8: =IF(O$1="Decline",SourceInputsAttenuation!$E$18*EXP(-1*(SourceInputsAttenuation!$I$18*SrcDecline!N8)),SourceInputsAttenuation!$E$18) -> 0.3999017663 | P8: 5 | Q8: =IF(R$1="Decline",(P8*QsrcLitres)/SourceInputsAttenuation!$C$33,"") -> 0.0008254390963 | R8: =IF(R$1="Decline",SourceInputsAttenuation!$E$19*EXP(-1*(SourceInputsAttenuation!$I$19*SrcDecline!Q8)),SourceInputsAttenuation!$E$19) -> 0.1999499833 | S8: 5 | T8: =IF(U$1="Decline",(S8*QsrcLitres)/SourceInputsAttenuation!$C$33,"") -> 0.0008254390963 | U8: =IF(U$1="Decline",SourceInputsAttenuation!$E$20*EXP(-1*(SourceInputsAttenuation!$I$20*SrcDecline!T8)),SourceInputsAttenuation!$E$20) -> 0.04999214233
A9: 6 | B9: =IF(C$1="Decline",(A9*QsrcLitres)/(SourceInputsAttenuation!$C$33),"") -> 0.0009905269155 | C9: =IF(C$1="Decline",SourceInputsAttenuation!$E$14*EXP(-1*((SourceInputsAttenuation!$I$14)*SrcDecline!B9)),SourceInputsAttenuation!$E$14) -> 0.04999622876 | D9: 6 | E9: =IF(F$1="Decline",(D9*QsrcLitres)/SourceInputsAttenuation!$C$33,"") -> 0.0009905269155 | F9: =IF(F$1="Decline",SourceInputsAttenuation!$E$15*EXP(-1*(SourceInputsAttenuation!$I$15*SrcDecline!E9)),SourceInputsAttenuation!$E$15) -> 0.0009998372697 | G9: 6 | H9: =IF(I$1="Decline",(G9*QsrcLitres)/SourceInputsAttenuation!$C$33,"") -> 0.0009905269155 | I9: =IF(I$1="Decline",SourceInputsAttenuation!$E$16*EXP(-1*(SourceInputsAttenuation!$I$16*SrcDecline!E9)),SourceInputsAttenuation!$E$16) -> 0.8690749982 | J9: 6 | K9: =IF(L$1="Decline",(J9*QsrcLitres)/SourceInputsAttenuation!$C$33,"") -> 0.0009905269155 | L9: =IF(L$1="Decline",SourceInputsAttenuation!$E$17*EXP(-1*(SourceInputsAttenuation!$I$17*SrcDecline!K9)),SourceInputsAttenuation!$E$17) -> 0.003998918522 | M9: 6 | N9: =IF(O$1="Decline",(M9*QsrcLitres)/SourceInputsAttenuation!$C$33,"") -> 0.0009905269155 | O9: =IF(O$1="Decline",SourceInputsAttenuation!$E$18*EXP(-1*(SourceInputsAttenuation!$I$18*SrcDecline!N9)),SourceInputsAttenuation!$E$18) -> 0.3998821225 | P9: 6 | Q9: =IF(R$1="Decline",(P9*QsrcLitres)/SourceInputsAttenuation!$C$33,"") -> 0.0009905269155 | R9: =IF(R$1="Decline",SourceInputsAttenuation!$E$19*EXP(-1*(SourceInputsAttenuation!$I$19*SrcDecline!Q9)),SourceInputsAttenuation!$E$19) -> 0.1999399814 | S9: 6 | T9: =IF(U$1="Decline",(S9*QsrcLitres)/SourceInputsAttenuation!$C$33,"") -> 0.0009905269155 | U9: =IF(U$1="Decline",SourceInputsAttenuation!$E$20*EXP(-1*(SourceInputsAttenuation!$I$20*SrcDecline!T9)),SourceInputsAttenuation!$E$20) -> 0.04999057094
A10: 7 | B10: =IF(C$1="Decline",(A10*QsrcLitres)/(SourceInputsAttenuation!$C$33),"") -> 0.001155614735 | C10: =IF(C$1="Decline",SourceInputsAttenuation!$E$14*EXP(-1*((SourceInputsAttenuation!$I$14)*SrcDecline!B10)),SourceInputsAttenuation!$E$14) -> 0.04999560025 | D10: 7 | E10: =IF(F$1="Decline",(D10*QsrcLitres)/SourceInputsAttenuation!$C$33,"") -> 0.001155614735 | F10: =IF(F$1="Decline",SourceInputsAttenuation!$E$15*EXP(-1*(SourceInputsAttenuation!$I$15*SrcDecline!E10)),SourceInputsAttenuation!$E$15) -> 0.0009998101505 | G10: 7 | H10: =IF(I$1="Decline",(G10*QsrcLitres)/SourceInputsAttenuation!$C$33,"") -> 0.001155614735 | I10: =IF(I$1="Decline",SourceInputsAttenuation!$E$16*EXP(-1*(SourceInputsAttenuation!$I$16*SrcDecline!E10)),SourceInputsAttenuation!$E$16) -> 0.8690041848 | J10: 7 | K10: =IF(L$1="Decline",(J10*QsrcLitres)/SourceInputsAttenuation!$C$33,"") -> 0.001155614735 | L10: =IF(L$1="Decline",SourceInputsAttenuation!$E$17*EXP(-1*(SourceInputsAttenuation!$I$17*SrcDecline!K10)),SourceInputsAttenuation!$E$17) -> 0.003998738305 | M10: 7 | N10: =IF(O$1="Decline",(M10*QsrcLitres)/SourceInputsAttenuation!$C$33,"") -> 0.001155614735 | O10: =IF(O$1="Decline",SourceInputsAttenuation!$E$18*EXP(-1*(SourceInputsAttenuation!$I$18*SrcDecline!N10)),SourceInputsAttenuation!$E$18) -> 0.3998624796 | P10: 7 | Q10: =IF(R$1="Decline",(P10*QsrcLitres)/SourceInputsAttenuation!$C$33,"") -> 0.001155614735 | R10: =IF(R$1="Decline",SourceInputsAttenuation!$E$19*EXP(-1*(SourceInputsAttenuation!$I$19*SrcDecline!Q10)),SourceInputsAttenuation!$E$19) -> 0.1999299801 | S10: 7 | T10: =IF(U$1="Decline",(S10*QsrcLitres)/SourceInputsAttenuation!$C$33,"") -> 0.001155614735 | U10: =IF(U$1="Decline",SourceInputsAttenuation!$E$20*EXP(-1*(SourceInputsAttenuation!$I$20*SrcDecline!T10)),SourceInputsAttenuation!$E$20) -> 0.04998899961
A11: 8 | B11: =IF(C$1="Decline",(A11*QsrcLitres)/(SourceInputsAttenuation!$C$33),"") -> 0.001320702554 | C11: =IF(C$1="Decline",SourceInputsAttenuation!$E$14*EXP(-1*((SourceInputsAttenuation!$I$14)*SrcDecline!B11)),SourceInputsAttenuation!$E$14) -> 0.04999497175 | D11: 8 | E11: =IF(F$1="Decline",(D11*QsrcLitres)/SourceInputsAttenuation!$C$33,"") -> 0.001320702554 | F11: =IF(F$1="Decline",SourceInputsAttenuation!$E$15*EXP(-1*(SourceInputsAttenuation!$I$15*SrcDecline!E11)),SourceInputsAttenuation!$E$15) -> 0.0009997830321 | G11: 8 | H11: =IF(I$1="Decline",(G11*QsrcLitres)/SourceInputsAttenuation!$C$33,"") -> 0.001320702554 | I11: =IF(I$1="Decline",SourceInputsAttenuation!$E$16*EXP(-1*(SourceInputsAttenuation!$I$16*SrcDecline!E11)),SourceInputsAttenuation!$E$16) -> 0.8689333771 | J11: 8 | K11: =IF(L$1="Decline",(J11*QsrcLitres)/SourceInputsAttenuation!$C$33,"") -> 0.001320702554 | L11: =IF(L$1="Decline",SourceInputsAttenuation!$E$17*EXP(-1*(SourceInputsAttenuation!$I$17*SrcDecline!K11)),SourceInputsAttenuation!$E$17) -> 0.003998558095 | M11: 8 | N11: =IF(O$1="Decline",(M11*QsrcLitres)/SourceInputsAttenuation!$C$33,"") -> 0.001320702554 | O11: =IF(O$1="Decline",SourceInputsAttenuation!$E$18*EXP(-1*(SourceInputsAttenuation!$I$18*SrcDecline!N11)),SourceInputsAttenuation!$E$18) -> 0.3998428377 | P11: 8 | Q11: =IF(R$1="Decline",(P11*QsrcLitres)/SourceInputsAttenuation!$C$33,"") -> 0.001320702554 | R11: =IF(R$1="Decline",SourceInputsAttenuation!$E$19*EXP(-1*(SourceInputsAttenuation!$I$19*SrcDecline!Q11)),SourceInputsAttenuation!$E$19) -> 0.1999199793 | S11: 8 | T11: =IF(U$1="Decline",(S11*QsrcLitres)/SourceInputsAttenuation!$C$33,"") -> 0.001320702554 | U11: =IF(U$1="Decline",SourceInputsAttenuation!$E$20*EXP(-1*(SourceInputsAttenuation!$I$20*SrcDecline!T11)),SourceInputsAttenuation!$E$20) -> 0.04998742832
A12: 9 | B12: =IF(C$1="Decline",(A12*QsrcLitres)/(SourceInputsAttenuation!$C$33),"") -> 0.001485790373 | C12: =IF(C$1="Decline",SourceInputsAttenuation!$E$14*EXP(-1*((SourceInputsAttenuation!$I$14)*SrcDecline!B12)),SourceInputsAttenuation!$E$14) -> 0.04999434325 | D12: 9 | E12: =IF(F$1="Decline",(D12*QsrcLitres)/SourceInputsAttenuation!$C$33,"") -> 0.001485790373 | F12: =IF(F$1="Decline",SourceInputsAttenuation!$E$15*EXP(-1*(SourceInputsAttenuation!$I$15*SrcDecline!E12)),SourceInputsAttenuation!$E$15) -> 0.0009997559144 | G12: 9 | H12: =IF(I$1="Decline",(G12*QsrcLitres)/SourceInputsAttenuation!$C$33,"") -> 0.001485790373 | I12: =IF(I$1="Decline",SourceInputsAttenuation!$E$16*EXP(-1*(SourceInputsAttenuation!$I$16*SrcDecline!E12)),SourceInputsAttenuation!$E$16) -> 0.8688625752 | J12: 9 | K12: =IF(L$1="Decline",(J12*QsrcLitres)/SourceInputsAttenuation!$C$33,"") -> 0.001485790373 | L12: =IF(L$1="Decline",SourceInputsAttenuation!$E$17*EXP(-1*(SourceInputsAttenuation!$I$17*SrcDecline!K12)),SourceInputsAttenuation!$E$17) -> 0.003998377893 | M12: 9 | N12: =IF(O$1="Decline",(M12*QsrcLitres)/SourceInputsAttenuation!$C$33,"") -> 0.001485790373 | O12: =IF(O$1="Decline",SourceInputsAttenuation!$E$18*EXP(-1*(SourceInputsAttenuation!$I$18*SrcDecline!N12)),SourceInputsAttenuation!$E$18) -> 0.3998231967 | P12: 9 | Q12: =IF(R$1="Decline",(P12*QsrcLitres)/SourceInputsAttenuation!$C$33,"") -> 0.001485790373 | R12: =IF(R$1="Decline",SourceInputsAttenuation!$E$19*EXP(-1*(SourceInputsAttenuation!$I$19*SrcDecline!Q12)),SourceInputsAttenuation!$E$19) -> 0.1999099789 | S12: 9 | T12: =IF(U$1="Decline",(S12*QsrcLitres)/SourceInputsAttenuation!$C$33,"") -> 0.001485790373 | U12: =IF(U$1="Decline",SourceInputsAttenuation!$E$20*EXP(-1*(SourceInputsAttenuation!$I$20*SrcDecline!T12)),SourceInputsAttenuation!$E$20) -> 0.04998585708
A13: 10 | B13: =IF(C$1="Decline",(A13*QsrcLitres)/(SourceInputsAttenuation!$C$33),"") -> 0.001650878193 | C13: =IF(C$1="Decline",SourceInputsAttenuation!$E$14*EXP(-1*((SourceInputsAttenuation!$I$14)*SrcDecline!B13)),SourceInputsAttenuation!$E$14) -> 0.04999371476 | D13: 10 | E13: =IF(F$1="Decline",(D13*QsrcLitres)/SourceInputsAttenuation!$C$33,"") -> 0.001650878193 | F13: =IF(F$1="Decline",SourceInputsAttenuation!$E$15*EXP(-1*(SourceInputsAttenuation!$I$15*SrcDecline!E13)),SourceInputsAttenuation!$E$15) -> 0.0009997287975 | G13: 10 | H13: =IF(I$1="Decline",(G13*QsrcLitres)/SourceInputsAttenuation!$C$33,"") -> 0.001650878193 | I13: =IF(I$1="Decline",SourceInputsAttenuation!$E$16*EXP(-1*(SourceInputsAttenuation!$I$16*SrcDecline!E13)),SourceInputsAttenuation!$E$16) -> 0.8687917791 | J13: 10 | K13: =IF(L$1="Decline",(J13*QsrcLitres)/SourceInputsAttenuation!$C$33,"") -> 0.001650878193 | L13: =IF(L$1="Decline",SourceInputsAttenuation!$E$17*EXP(-1*(SourceInputsAttenuation!$I$17*SrcDecline!K13)),SourceInputsAttenuation!$E$17) -> 0.0039981977 | M13: 10 | N13: =IF(O$1="Decline",(M13*QsrcLitres)/SourceInputsAttenuation!$C$33,"") -> 0.001650878193 | O13: =IF(O$1="Decline",SourceInputsAttenuation!$E$18*EXP(-1*(SourceInputsAttenuation!$I$18*SrcDecline!N13)),SourceInputsAttenuation!$E$18) -> 0.3998035568 | P13: 10 | Q13: =IF(R$1="Decline",(P13*QsrcLitres)/SourceInputsAttenuation!$C$33,"") -> 0.001650878193 | R13: =IF(R$1="Decline",SourceInputsAttenuation!$E$19*EXP(-1*(SourceInputsAttenuation!$I$19*SrcDecline!Q13)),SourceInputsAttenuation!$E$19) -> 0.1998999791 | S13: 10 | T13: =IF(U$1="Decline",(S13*QsrcLitres)/SourceInputsAttenuation!$C$33,"") -> 0.001650878193 | U13: =IF(U$1="Decline",SourceInputsAttenuation!$E$20*EXP(-1*(SourceInputsAttenuation!$I$20*SrcDecline!T13)),SourceInputsAttenuation!$E$20) -> 0.04998428589
A14: 11 | B14: =IF(C$1="Decline",(A14*QsrcLitres)/(SourceInputsAttenuation!$C$33),"") -> 0.001815966012 | C14: =IF(C$1="Decline",SourceInputsAttenuation!$E$14*EXP(-1*((SourceInputsAttenuation!$I$14)*SrcDecline!B14)),SourceInputsAttenuation!$E$14) -> 0.04999308628 | D14: 11 | E14: =IF(F$1="Decline",(D14*QsrcLitres)/SourceInputsAttenuation!$C$33,"") -> 0.001815966012 | F14: =IF(F$1="Decline",SourceInputsAttenuation!$E$15*EXP(-1*(SourceInputsAttenuation!$I$15*SrcDecline!E14)),SourceInputsAttenuation!$E$15) -> 0.0009997016813 | G14: 11 | H14: =IF(I$1="Decline",(G14*QsrcLitres)/SourceInputsAttenuation!$C$33,"") -> 0.001815966012 | I14: =IF(I$1="Decline",SourceInputsAttenuation!$E$16*EXP(-1*(SourceInputsAttenuation!$I$16*SrcDecline!E14)),SourceInputsAttenuation!$E$16) -> 0.8687209888 | J14: 11 | K14: =IF(L$1="Decline",(J14*QsrcLitres)/SourceInputsAttenuation!$C$33,"") -> 0.001815966012 | L14: =IF(L$1="Decline",SourceInputsAttenuation!$E$17*EXP(-1*(SourceInputsAttenuation!$I$17*SrcDecline!K14)),SourceInputsAttenuation!$E$17) -> 0.003998017514 | M14: 11 | N14: =IF(O$1="Decline",(M14*QsrcLitres)/SourceInputsAttenuation!$C$33,"") -> 0.001815966012 | O14: =IF(O$1="Decline",SourceInputsAttenuation!$E$18*EXP(-1*(SourceInputsAttenuation!$I$18*SrcDecline!N14)),SourceInputsAttenuation!$E$18) -> 0.3997839177 | P14: 11 | Q14: =IF(R$1="Decline",(P14*QsrcLitres)/SourceInputsAttenuation!$C$33,"") -> 0.001815966012 | R14: =IF(R$1="Decline",SourceInputsAttenuation!$E$19*EXP(-1*(SourceInputsAttenuation!$I$19*SrcDecline!Q14)),SourceInputsAttenuation!$E$19) -> 0.1998899797 | S14: 11 | T14: =IF(U$1="Decline",(S14*QsrcLitres)/SourceInputsAttenuation!$C$33,"") -> 0.001815966012 | U14: =IF(U$1="Decline",SourceInputsAttenuation!$E$20*EXP(-1*(SourceInputsAttenuation!$I$20*SrcDecline!T14)),SourceInputsAttenuation!$E$20) -> 0.04998271475
A15: 12 | B15: =IF(C$1="Decline",(A15*QsrcLitres)/(SourceInputsAttenuation!$C$33),"") -> 0.001981053831 | C15: =IF(C$1="Decline",SourceInputsAttenuation!$E$14*EXP(-1*((SourceInputsAttenuation!$I$14)*SrcDecline!B15)),SourceInputsAttenuation!$E$14) -> 0.04999245781 | D15: 12 | E15: =IF(F$1="Decline",(D15*QsrcLitres)/SourceInputsAttenuation!$C$33,"") -> 0.001981053831 | F15: =IF(F$1="Decline",SourceInputsAttenuation!$E$15*EXP(-1*(SourceInputsAttenuation!$I$15*SrcDecline!E15)),SourceInputsAttenuation!$E$15) -> 0.0009996745658 | G15: 12 | H15: =IF(I$1="Decline",(G15*QsrcLitres)/SourceInputsAttenuation!$C$33,"") -> 0.001981053831 | I15: =IF(I$1="Decline",SourceInputsAttenuation!$E$16*EXP(-1*(SourceInputsAttenuation!$I$16*SrcDecline!E15)),SourceInputsAttenuation!$E$16) -> 0.8686502042 | J15: 12 | K15: =IF(L$1="Decline",(J15*QsrcLitres)/SourceInputsAttenuation!$C$33,"") -> 0.001981053831 | L15: =IF(L$1="Decline",SourceInputsAttenuation!$E$17*EXP(-1*(SourceInputsAttenuation!$I$17*SrcDecline!K15)),SourceInputsAttenuation!$E$17) -> 0.003997837337 | M15: 12 | N15: =IF(O$1="Decline",(M15*QsrcLitres)/SourceInputsAttenuation!$C$33,"") -> 0.001981053831 | O15: =IF(O$1="Decline",SourceInputsAttenuation!$E$18*EXP(-1*(SourceInputsAttenuation!$I$18*SrcDecline!N15)),SourceInputsAttenuation!$E$18) -> 0.3997642797 | P15: 12 | Q15: =IF(R$1="Decline",(P15*QsrcLitres)/SourceInputsAttenuation!$C$33,"") -> 0.001981053831 | R15: =IF(R$1="Decline",SourceInputsAttenuation!$E$19*EXP(-1*(SourceInputsAttenuation!$I$19*SrcDecline!Q15)),SourceInputsAttenuation!$E$19) -> 0.1998799809 | S15: 12 | T15: =IF(U$1="Decline",(S15*QsrcLitres)/SourceInputsAttenuation!$C$33,"") -> 0.001981053831 | U15: =IF(U$1="Decline",SourceInputsAttenuation!$E$20*EXP(-1*(SourceInputsAttenuation!$I$20*SrcDecline!T15)),SourceInputsAttenuation!$E$20) -> 0.04998114366
A16: 13 | B16: =IF(C$1="Decline",(A16*QsrcLitres)/(SourceInputsAttenuation!$C$33),"") -> 0.00214614165 | C16: =IF(C$1="Decline",SourceInputsAttenuation!$E$14*EXP(-1*((SourceInputsAttenuation!$I$14)*SrcDecline!B16)),SourceInputsAttenuation!$E$14) -> 0.04999182935 | D16: 13 | E16: =IF(F$1="Decline",(D16*QsrcLitres)/SourceInputsAttenuation!$C$33,"") -> 0.00214614165 | F16: =IF(F$1="Decline",SourceInputsAttenuation!$E$15*EXP(-1*(SourceInputsAttenuation!$I$15*SrcDecline!E16)),SourceInputsAttenuation!$E$15) -> 0.0009996474511 | G16: 13 | H16: =IF(I$1="Decline",(G16*QsrcLitres)/SourceInputsAttenuation!$C$33,"") -> 0.00214614165 | I16: =IF(I$1="Decline",SourceInputsAttenuation!$E$16*EXP(-1*(SourceInputsAttenuation!$I$16*SrcDecline!E16)),SourceInputsAttenuation!$E$16) -> 0.8685794254 | J16: 13 | K16: =IF(L$1="Decline",(J16*QsrcLitres)/SourceInputsAttenuation!$C$33,"") -> 0.00214614165 | L16: =IF(L$1="Decline",SourceInputsAttenuation!$E$17*EXP(-1*(SourceInputsAttenuation!$I$17*SrcDecline!K16)),SourceInputsAttenuation!$E$17) -> 0.003997657168 | M16: 13 | N16: =IF(O$1="Decline",(M16*QsrcLitres)/SourceInputsAttenuation!$C$33,"") -> 0.00214614165 | O16: =IF(O$1="Decline",SourceInputsAttenuation!$E$18*EXP(-1*(SourceInputsAttenuation!$I$18*SrcDecline!N16)),SourceInputsAttenuation!$E$18) -> 0.3997446426 | P16: 13 | Q16: =IF(R$1="Decline",(P16*QsrcLitres)/SourceInputsAttenuation!$C$33,"") -> 0.00214614165 | R16: =IF(R$1="Decline",SourceInputsAttenuation!$E$19*EXP(-1*(SourceInputsAttenuation!$I$19*SrcDecline!Q16)),SourceInputsAttenuation!$E$19) -> 0.1998699825 | S16: 13 | T16: =IF(U$1="Decline",(S16*QsrcLitres)/SourceInputsAttenuation!$C$33,"") -> 0.00214614165 | U16: =IF(U$1="Decline",SourceInputsAttenuation!$E$20*EXP(-1*(SourceInputsAttenuation!$I$20*SrcDecline!T16)),SourceInputsAttenuation!$E$20) -> 0.04997957262
A17: 14 | B17: =IF(C$1="Decline",(A17*QsrcLitres)/(SourceInputsAttenuation!$C$33),"") -> 0.00231122947 | C17: =IF(C$1="Decline",SourceInputsAttenuation!$E$14*EXP(-1*((SourceInputsAttenuation!$I$14)*SrcDecline!B17)),SourceInputsAttenuation!$E$14) -> 0.04999120089 | D17: 14 | E17: =IF(F$1="Decline",(D17*QsrcLitres)/SourceInputsAttenuation!$C$33,"") -> 0.00231122947 | F17: =IF(F$1="Decline",SourceInputsAttenuation!$E$15*EXP(-1*(SourceInputsAttenuation!$I$15*SrcDecline!E17)),SourceInputsAttenuation!$E$15) -> 0.0009996203371 | G17: 14 | H17: =IF(I$1="Decline",(G17*QsrcLitres)/SourceInputsAttenuation!$C$33,"") -> 0.00231122947 | I17: =IF(I$1="Decline",SourceInputsAttenuation!$E$16*EXP(-1*(SourceInputsAttenuation!$I$16*SrcDecline!E17)),SourceInputsAttenuation!$E$16) -> 0.8685086523 | J17: 14 | K17: =IF(L$1="Decline",(J17*QsrcLitres)/SourceInputsAttenuation!$C$33,"") -> 0.00231122947 | L17: =IF(L$1="Decline",SourceInputsAttenuation!$E$17*EXP(-1*(SourceInputsAttenuation!$I$17*SrcDecline!K17)),SourceInputsAttenuation!$E$17) -> 0.003997477007 | M17: 14 | N17: =IF(O$1="Decline",(M17*QsrcLitres)/SourceInputsAttenuation!$C$33,"") -> 0.00231122947 | O17: =IF(O$1="Decline",SourceInputsAttenuation!$E$18*EXP(-1*(SourceInputsAttenuation!$I$18*SrcDecline!N17)),SourceInputsAttenuation!$E$18) -> 0.3997250065 | P17: 14 | Q17: =IF(R$1="Decline",(P17*QsrcLitres)/SourceInputsAttenuation!$C$33,"") -> 0.00231122947 | R17: =IF(R$1="Decline",SourceInputsAttenuation!$E$19*EXP(-1*(SourceInputsAttenuation!$I$19*SrcDecline!Q17)),SourceInputsAttenuation!$E$19) -> 0.1998599847 | S17: 14 | T17: =IF(U$1="Decline",(S17*QsrcLitres)/SourceInputsAttenuation!$C$33,"") -> 0.00231122947 | U17: =IF(U$1="Decline",SourceInputsAttenuation!$E$20*EXP(-1*(SourceInputsAttenuation!$I$20*SrcDecline!T17)),SourceInputsAttenuation!$E$20) -> 0.04997800163
A18: 15 | B18: =IF(C$1="Decline",(A18*QsrcLitres)/(SourceInputsAttenuation!$C$33),"") -> 0.002476317289 | C18: =IF(C$1="Decline",SourceInputsAttenuation!$E$14*EXP(-1*((SourceInputsAttenuation!$I$14)*SrcDecline!B18)),SourceInputsAttenuation!$E$14) -> 0.04999057244 | D18: 15 | E18: =IF(F$1="Decline",(D18*QsrcLitres)/SourceInputsAttenuation!$C$33,"") -> 0.002476317289 | F18: =IF(F$1="Decline",SourceInputsAttenuation!$E$15*EXP(-1*(SourceInputsAttenuation!$I$15*SrcDecline!E18)),SourceInputsAttenuation!$E$15) -> 0.0009995932238 | G18: 15 | H18: =IF(I$1="Decline",(G18*QsrcLitres)/SourceInputsAttenuation!$C$33,"") -> 0.002476317289 | I18: =IF(I$1="Decline",SourceInputsAttenuation!$E$16*EXP(-1*(SourceInputsAttenuation!$I$16*SrcDecline!E18)),SourceInputsAttenuation!$E$16) -> 0.868437885 | J18: 15 | K18: =IF(L$1="Decline",(J18*QsrcLitres)/SourceInputsAttenuation!$C$33,"") -> 0.002476317289 | L18: =IF(L$1="Decline",SourceInputsAttenuation!$E$17*EXP(-1*(SourceInputsAttenuation!$I$17*SrcDecline!K18)),SourceInputsAttenuation!$E$17) -> 0.003997296854 | M18: 15 | N18: =IF(O$1="Decline",(M18*QsrcLitres)/SourceInputsAttenuation!$C$33,"") -> 0.002476317289 | O18: =IF(O$1="Decline",SourceInputsAttenuation!$E$18*EXP(-1*(SourceInputsAttenuation!$I$18*SrcDecline!N18)),SourceInputsAttenuation!$E$18) -> 0.3997053713 | P18: 15 | Q18: =IF(R$1="Decline",(P18*QsrcLitres)/SourceInputsAttenuation!$C$33,"") -> 0.002476317289 | R18: =IF(R$1="Decline",SourceInputsAttenuation!$E$19*EXP(-1*(SourceInputsAttenuation!$I$19*SrcDecline!Q18)),SourceInputsAttenuation!$E$19) -> 0.1998499874 | S18: 15 | T18: =IF(U$1="Decline",(S18*QsrcLitres)/SourceInputsAttenuation!$C$33,"") -> 0.002476317289 | U18: =IF(U$1="Decline",SourceInputsAttenuation!$E$20*EXP(-1*(SourceInputsAttenuation!$I$20*SrcDecline!T18)),SourceInputsAttenuation!$E$20) -> 0.04997643069
A19: 16 | B19: =IF(C$1="Decline",(A19*QsrcLitres)/(SourceInputsAttenuation!$C$33),"") -> 0.002641405108 | C19: =IF(C$1="Decline",SourceInputsAttenuation!$E$14*EXP(-1*((SourceInputsAttenuation!$I$14)*SrcDecline!B19)),SourceInputsAttenuation!$E$14) -> 0.049989944 | D19: 16 | E19: =IF(F$1="Decline",(D19*QsrcLitres)/SourceInputsAttenuation!$C$33,"") -> 0.002641405108 | F19: =IF(F$1="Decline",SourceInputsAttenuation!$E$15*EXP(-1*(SourceInputsAttenuation!$I$15*SrcDecline!E19)),SourceInputsAttenuation!$E$15) -> 0.0009995661113 | G19: 16 | H19: =IF(I$1="Decline",(G19*QsrcLitres)/SourceInputsAttenuation!$C$33,"") -> 0.002641405108 | I19: =IF(I$1="Decline",SourceInputsAttenuation!$E$16*EXP(-1*(SourceInputsAttenuation!$I$16*SrcDecline!E19)),SourceInputsAttenuation!$E$16) -> 0.8683671235 | J19: 16 | K19: =IF(L$1="Decline",(J19*QsrcLitres)/SourceInputsAttenuation!$C$33,"") -> 0.002641405108 | L19: =IF(L$1="Decline",SourceInputsAttenuation!$E$17*EXP(-1*(SourceInputsAttenuation!$I$17*SrcDecline!K19)),SourceInputsAttenuation!$E$17) -> 0.00399711671 | M19: 16 | N19: =IF(O$1="Decline",(M19*QsrcLitres)/SourceInputsAttenuation!$C$33,"") -> 0.002641405108 | O19: =IF(O$1="Decline",SourceInputsAttenuation!$E$18*EXP(-1*(SourceInputsAttenuation!$I$18*SrcDecline!N19)),SourceInputsAttenuation!$E$18) -> 0.3996857371 | P19: 16 | Q19: =IF(R$1="Decline",(P19*QsrcLitres)/SourceInputsAttenuation!$C$33,"") -> 0.002641405108 | R19: =IF(R$1="Decline",SourceInputsAttenuation!$E$19*EXP(-1*(SourceInputsAttenuation!$I$19*SrcDecline!Q19)),SourceInputsAttenuation!$E$19) -> 0.1998399905 | S19: 16 | T19: =IF(U$1="Decline",(S19*QsrcLitres)/SourceInputsAttenuation!$C$33,"") -> 0.002641405108 | U19: =IF(U$1="Decline",SourceInputsAttenuation!$E$20*EXP(-1*(SourceInputsAttenuation!$I$20*SrcDecline!T19)),SourceInputsAttenuation!$E$20) -> 0.0499748598
A20: 17 | B20: =IF(C$1="Decline",(A20*QsrcLitres)/(SourceInputsAttenuation!$C$33),"") -> 0.002806492927 | C20: =IF(C$1="Decline",SourceInputsAttenuation!$E$14*EXP(-1*((SourceInputsAttenuation!$I$14)*SrcDecline!B20)),SourceInputsAttenuation!$E$14) -> 0.04998931557 | D20: 17 | E20: =IF(F$1="Decline",(D20*QsrcLitres)/SourceInputsAttenuation!$C$33,"") -> 0.002806492927 | F20: =IF(F$1="Decline",SourceInputsAttenuation!$E$15*EXP(-1*(SourceInputsAttenuation!$I$15*SrcDecline!E20)),SourceInputsAttenuation!$E$15) -> 0.0009995389995 | G20: 17 | H20: =IF(I$1="Decline",(G20*QsrcLitres)/SourceInputsAttenuation!$C$33,"") -> 0.002806492927 | I20: =IF(I$1="Decline",SourceInputsAttenuation!$E$16*EXP(-1*(SourceInputsAttenuation!$I$16*SrcDecline!E20)),SourceInputsAttenuation!$E$16) -> 0.8682963677 | J20: 17 | K20: =IF(L$1="Decline",(J20*QsrcLitres)/SourceInputsAttenuation!$C$33,"") -> 0.002806492927 | L20: =IF(L$1="Decline",SourceInputsAttenuation!$E$17*EXP(-1*(SourceInputsAttenuation!$I$17*SrcDecline!K20)),SourceInputsAttenuation!$E$17) -> 0.003996936573 | M20: 17 | N20: =IF(O$1="Decline",(M20*QsrcLitres)/SourceInputsAttenuation!$C$33,"") -> 0.002806492927 | O20: =IF(O$1="Decline",SourceInputsAttenuation!$E$18*EXP(-1*(SourceInputsAttenuation!$I$18*SrcDecline!N20)),SourceInputsAttenuation!$E$18) -> 0.3996661039 | P20: 17 | Q20: =IF(R$1="Decline",(P20*QsrcLitres)/SourceInputsAttenuation!$C$33,"") -> 0.002806492927 | R20: =IF(R$1="Decline",SourceInputsAttenuation!$E$19*EXP(-1*(SourceInputsAttenuation!$I$19*SrcDecline!Q20)),SourceInputsAttenuation!$E$19) -> 0.1998299942 | S20: 17 | T20: =IF(U$1="Decline",(S20*QsrcLitres)/SourceInputsAttenuation!$C$33,"") -> 0.002806492927 | U20: =IF(U$1="Decline",SourceInputsAttenuation!$E$20*EXP(-1*(SourceInputsAttenuation!$I$20*SrcDecline!T20)),SourceInputsAttenuation!$E$20) -> 0.04997328896
A21: 18 | B21: =IF(C$1="Decline",(A21*QsrcLitres)/(SourceInputsAttenuation!$C$33),"") -> 0.002971580747 | C21: =IF(C$1="Decline",SourceInputsAttenuation!$E$14*EXP(-1*((SourceInputsAttenuation!$I$14)*SrcDecline!B21)),SourceInputsAttenuation!$E$14) -> 0.04998868714 | D21: 18 | E21: =IF(F$1="Decline",(D21*QsrcLitres)/SourceInputsAttenuation!$C$33,"") -> 0.002971580747 | F21: =IF(F$1="Decline",SourceInputsAttenuation!$E$15*EXP(-1*(SourceInputsAttenuation!$I$15*SrcDecline!E21)),SourceInputsAttenuation!$E$15) -> 0.0009995118884 | G21: 18 | H21: =IF(I$1="Decline",(G21*QsrcLitres)/SourceInputsAttenuation!$C$33,"") -> 0.002971580747 | I21: =IF(I$1="Decline",SourceInputsAttenuation!$E$16*EXP(-1*(SourceInputsAttenuation!$I$16*SrcDecline!E21)),SourceInputsAttenuation!$E$16) -> 0.8682256178 | J21: 18 | K21: =IF(L$1="Decline",(J21*QsrcLitres)/SourceInputsAttenuation!$C$33,"") -> 0.002971580747 | L21: =IF(L$1="Decline",SourceInputsAttenuation!$E$17*EXP(-1*(SourceInputsAttenuation!$I$17*SrcDecline!K21)),SourceInputsAttenuation!$E$17) -> 0.003996756444 | M21: 18 | N21: =IF(O$1="Decline",(M21*QsrcLitres)/SourceInputsAttenuation!$C$33,"") -> 0.002971580747 | O21: =IF(O$1="Decline",SourceInputsAttenuation!$E$18*EXP(-1*(SourceInputsAttenuation!$I$18*SrcDecline!N21)),SourceInputsAttenuation!$E$18) -> 0.3996464716 | P21: 18 | Q21: =IF(R$1="Decline",(P21*QsrcLitres)/SourceInputsAttenuation!$C$33,"") -> 0.002971580747 | R21: =IF(R$1="Decline",SourceInputsAttenuation!$E$19*EXP(-1*(SourceInputsAttenuation!$I$19*SrcDecline!Q21)),SourceInputsAttenuation!$E$19) -> 0.1998199983 | S21: 18 | T21: =IF(U$1="Decline",(S21*QsrcLitres)/SourceInputsAttenuation!$C$33,"") -> 0.002971580747 | U21: =IF(U$1="Decline",SourceInputsAttenuation!$E$20*EXP(-1*(SourceInputsAttenuation!$I$20*SrcDecline!T21)),SourceInputsAttenuation!$E$20) -> 0.04997171816
A22: 19 | B22: =IF(C$1="Decline",(A22*QsrcLitres)/(SourceInputsAttenuation!$C$33),"") -> 0.003136668566 | C22: =IF(C$1="Decline",SourceInputsAttenuation!$E$14*EXP(-1*((SourceInputsAttenuation!$I$14)*SrcDecline!B22)),SourceInputsAttenuation!$E$14) -> 0.04998805872 | D22: 19 | E22: =IF(F$1="Decline",(D22*QsrcLitres)/SourceInputsAttenuation!$C$33,"") -> 0.003136668566 | F22: =IF(F$1="Decline",SourceInputsAttenuation!$E$15*EXP(-1*(SourceInputsAttenuation!$I$15*SrcDecline!E22)),SourceInputsAttenuation!$E$15) -> 0.0009994847781 | G22: 19 | H22: =IF(I$1="Decline",(G22*QsrcLitres)/SourceInputsAttenuation!$C$33,"") -> 0.003136668566 | I22: =IF(I$1="Decline",SourceInputsAttenuation!$E$16*EXP(-1*(SourceInputsAttenuation!$I$16*SrcDecline!E22)),SourceInputsAttenuation!$E$16) -> 0.8681548735 | J22: 19 | K22: =IF(L$1="Decline",(J22*QsrcLitres)/SourceInputsAttenuation!$C$33,"") -> 0.003136668566 | L22: =IF(L$1="Decline",SourceInputsAttenuation!$E$17*EXP(-1*(SourceInputsAttenuation!$I$17*SrcDecline!K22)),SourceInputsAttenuation!$E$17) -> 0.003996576324 | M22: 19 | N22: =IF(O$1="Decline",(M22*QsrcLitres)/SourceInputsAttenuation!$C$33,"") -> 0.003136668566 | O22: =IF(O$1="Decline",SourceInputsAttenuation!$E$18*EXP(-1*(SourceInputsAttenuation!$I$18*SrcDecline!N22)),SourceInputsAttenuation!$E$18) -> 0.3996268403 | P22: 19 | Q22: =IF(R$1="Decline",(P22*QsrcLitres)/SourceInputsAttenuation!$C$33,"") -> 0.003136668566 | R22: =IF(R$1="Decline",SourceInputsAttenuation!$E$19*EXP(-1*(SourceInputsAttenuation!$I$19*SrcDecline!Q22)),SourceInputsAttenuation!$E$19) -> 0.199810003 | S22: 19 | T22: =IF(U$1="Decline",(S22*QsrcLitres)/SourceInputsAttenuation!$C$33,"") -> 0.003136668566 | U22: =IF(U$1="Decline",SourceInputsAttenuation!$E$20*EXP(-1*(SourceInputsAttenuation!$I$20*SrcDecline!T22)),SourceInputsAttenuation!$E$20) -> 0.04997014742
A23: 20 | B23: =IF(C$1="Decline",(A23*QsrcLitres)/(SourceInputsAttenuation!$C$33),"") -> 0.003301756385 | C23: =IF(C$1="Decline",SourceInputsAttenuation!$E$14*EXP(-1*((SourceInputsAttenuation!$I$14)*SrcDecline!B23)),SourceInputsAttenuation!$E$14) -> 0.04998743032 | D23: 20 | E23: =IF(F$1="Decline",(D23*QsrcLitres)/SourceInputsAttenuation!$C$33,"") -> 0.003301756385 | F23: =IF(F$1="Decline",SourceInputsAttenuation!$E$15*EXP(-1*(SourceInputsAttenuation!$I$15*SrcDecline!E23)),SourceInputsAttenuation!$E$15) -> 0.0009994576685 | G23: 20 | H23: =IF(I$1="Decline",(G23*QsrcLitres)/SourceInputsAttenuation!$C$33,"") -> 0.003301756385 | I23: =IF(I$1="Decline",SourceInputsAttenuation!$E$16*EXP(-1*(SourceInputsAttenuation!$I$16*SrcDecline!E23)),SourceInputsAttenuation!$E$16) -> 0.8680841351 | J23: 20 | K23: =IF(L$1="Decline",(J23*QsrcLitres)/SourceInputsAttenuation!$C$33,"") -> 0.003301756385 | L23: =IF(L$1="Decline",SourceInputsAttenuation!$E$17*EXP(-1*(SourceInputsAttenuation!$I$17*SrcDecline!K23)),SourceInputsAttenuation!$E$17) -> 0.003996396212 | M23: 20 | N23: =IF(O$1="Decline",(M23*QsrcLitres)/SourceInputsAttenuation!$C$33,"") -> 0.003301756385 | O23: =IF(O$1="Decline",SourceInputsAttenuation!$E$18*EXP(-1*(SourceInputsAttenuation!$I$18*SrcDecline!N23)),SourceInputsAttenuation!$E$18) -> 0.39960721 | P23: 20 | Q23: =IF(R$1="Decline",(P23*QsrcLitres)/SourceInputsAttenuation!$C$33,"") -> 0.003301756385 | R23: =IF(R$1="Decline",SourceInputsAttenuation!$E$19*EXP(-1*(SourceInputsAttenuation!$I$19*SrcDecline!Q23)),SourceInputsAttenuation!$E$19) -> 0.1998000082 | S23: 20 | T23: =IF(U$1="Decline",(S23*QsrcLitres)/SourceInputsAttenuation!$C$33,"") -> 0.003301756385 | U23: =IF(U$1="Decline",SourceInputsAttenuation!$E$20*EXP(-1*(SourceInputsAttenuation!$I$20*SrcDecline!T23)),SourceInputsAttenuation!$E$20) -> 0.04996857673
A24: 21 | B24: =IF(C$1="Decline",(A24*QsrcLitres)/(SourceInputsAttenuation!$C$33),"") -> 0.003466844204 | C24: =IF(C$1="Decline",SourceInputsAttenuation!$E$14*EXP(-1*((SourceInputsAttenuation!$I$14)*SrcDecline!B24)),SourceInputsAttenuation!$E$14) -> 0.04998680191 | D24: 21 | E24: =IF(F$1="Decline",(D24*QsrcLitres)/SourceInputsAttenuation!$C$33,"") -> 0.003466844204 | F24: =IF(F$1="Decline",SourceInputsAttenuation!$E$15*EXP(-1*(SourceInputsAttenuation!$I$15*SrcDecline!E24)),SourceInputsAttenuation!$E$15) -> 0.0009994305597 | G24: 21 | H24: =IF(I$1="Decline",(G24*QsrcLitres)/SourceInputsAttenuation!$C$33,"") -> 0.003466844204 | I24: =IF(I$1="Decline",SourceInputsAttenuation!$E$16*EXP(-1*(SourceInputsAttenuation!$I$16*SrcDecline!E24)),SourceInputsAttenuation!$E$16) -> 0.8680134024 | J24: 21 | K24: =IF(L$1="Decline",(J24*QsrcLitres)/SourceInputsAttenuation!$C$33,"") -> 0.003466844204 | L24: =IF(L$1="Decline",SourceInputsAttenuation!$E$17*EXP(-1*(SourceInputsAttenuation!$I$17*SrcDecline!K24)),SourceInputsAttenuation!$E$17) -> 0.003996216108 | M24: 21 | N24: =IF(O$1="Decline",(M24*QsrcLitres)/SourceInputsAttenuation!$C$33,"") -> 0.003466844204 | O24: =IF(O$1="Decline",SourceInputsAttenuation!$E$18*EXP(-1*(SourceInputsAttenuation!$I$18*SrcDecline!N24)),SourceInputsAttenuation!$E$18) -> 0.3995875806 | P24: 21 | Q24: =IF(R$1="Decline",(P24*QsrcLitres)/SourceInputsAttenuation!$C$33,"") -> 0.003466844204 | R24: =IF(R$1="Decline",SourceInputsAttenuation!$E$19*EXP(-1*(SourceInputsAttenuation!$I$19*SrcDecline!Q24)),SourceInputsAttenuation!$E$19) -> 0.1997900138 | S24: 21 | T24: =IF(U$1="Decline",(S24*QsrcLitres)/SourceInputsAttenuation!$C$33,"") -> 0.003466844204 | U24: =IF(U$1="Decline",SourceInputsAttenuation!$E$20*EXP(-1*(SourceInputsAttenuation!$I$20*SrcDecline!T24)),SourceInputsAttenuation!$E$20) -> 0.04996700608
A25: 22 | B25: =IF(C$1="Decline",(A25*QsrcLitres)/(SourceInputsAttenuation!$C$33),"") -> 0.003631932024 | C25: =IF(C$1="Decline",SourceInputsAttenuation!$E$14*EXP(-1*((SourceInputsAttenuation!$I$14)*SrcDecline!B25)),SourceInputsAttenuation!$E$14) -> 0.04998617352 | D25: 22 | E25: =IF(F$1="Decline",(D25*QsrcLitres)/SourceInputsAttenuation!$C$33,"") -> 0.003631932024 | F25: =IF(F$1="Decline",SourceInputsAttenuation!$E$15*EXP(-1*(SourceInputsAttenuation!$I$15*SrcDecline!E25)),SourceInputsAttenuation!$E$15) -> 0.0009994034516 | G25: 22 | H25: =IF(I$1="Decline",(G25*QsrcLitres)/SourceInputsAttenuation!$C$33,"") -> 0.003631932024 | I25: =IF(I$1="Decline",SourceInputsAttenuation!$E$16*EXP(-1*(SourceInputsAttenuation!$I$16*SrcDecline!E25)),SourceInputsAttenuation!$E$16) -> 0.8679426755 | J25: 22 | K25: =IF(L$1="Decline",(J25*QsrcLitres)/SourceInputsAttenuation!$C$33,"") -> 0.003631932024 | L25: =IF(L$1="Decline",SourceInputsAttenuation!$E$17*EXP(-1*(SourceInputsAttenuation!$I$17*SrcDecline!K25)),SourceInputsAttenuation!$E$17) -> 0.003996036012 | M25: 22 | N25: =IF(O$1="Decline",(M25*QsrcLitres)/SourceInputsAttenuation!$C$33,"") -> 0.003631932024 | O25: =IF(O$1="Decline",SourceInputsAttenuation!$E$18*EXP(-1*(SourceInputsAttenuation!$I$18*SrcDecline!N25)),SourceInputsAttenuation!$E$18) -> 0.3995679522 | P25: 22 | Q25: =IF(R$1="Decline",(P25*QsrcLitres)/SourceInputsAttenuation!$C$33,"") -> 0.003631932024 | R25: =IF(R$1="Decline",SourceInputsAttenuation!$E$19*EXP(-1*(SourceInputsAttenuation!$I$19*SrcDecline!Q25)),SourceInputsAttenuation!$E$19) -> 0.19978002 | S25: 22 | T25: =IF(U$1="Decline",(S25*QsrcLitres)/SourceInputsAttenuation!$C$33,"") -> 0.003631932024 | U25: =IF(U$1="Decline",SourceInputsAttenuation!$E$20*EXP(-1*(SourceInputsAttenuation!$I$20*SrcDecline!T25)),SourceInputsAttenuation!$E$20) -> 0.04996543548
A26: 23 | B26: =IF(C$1="Decline",(A26*QsrcLitres)/(SourceInputsAttenuation!$C$33),"") -> 0.003797019843 | C26: =IF(C$1="Decline",SourceInputsAttenuation!$E$14*EXP(-1*((SourceInputsAttenuation!$I$14)*SrcDecline!B26)),SourceInputsAttenuation!$E$14) -> 0.04998554514 | D26: 23 | E26: =IF(F$1="Decline",(D26*QsrcLitres)/SourceInputsAttenuation!$C$33,"") -> 0.003797019843 | F26: =IF(F$1="Decline",SourceInputsAttenuation!$E$15*EXP(-1*(SourceInputsAttenuation!$I$15*SrcDecline!E26)),SourceInputsAttenuation!$E$15) -> 0.0009993763442 | G26: 23 | H26: =IF(I$1="Decline",(G26*QsrcLitres)/SourceInputsAttenuation!$C$33,"") -> 0.003797019843 | I26: =IF(I$1="Decline",SourceInputsAttenuation!$E$16*EXP(-1*(SourceInputsAttenuation!$I$16*SrcDecline!E26)),SourceInputsAttenuation!$E$16) -> 0.8678719543 | J26: 23 | K26: =IF(L$1="Decline",(J26*QsrcLitres)/SourceInputsAttenuation!$C$33,"") -> 0.003797019843 | L26: =IF(L$1="Decline",SourceInputsAttenuation!$E$17*EXP(-1*(SourceInputsAttenuation!$I$17*SrcDecline!K26)),SourceInputsAttenuation!$E$17) -> 0.003995855924 | M26: 23 | N26: =IF(O$1="Decline",(M26*QsrcLitres)/SourceInputsAttenuation!$C$33,"") -> 0.003797019843 | O26: =IF(O$1="Decline",SourceInputsAttenuation!$E$18*EXP(-1*(SourceInputsAttenuation!$I$18*SrcDecline!N26)),SourceInputsAttenuation!$E$18) -> 0.3995483248 | P26: 23 | Q26: =IF(R$1="Decline",(P26*QsrcLitres)/SourceInputsAttenuation!$C$33,"") -> 0.003797019843 | R26: =IF(R$1="Decline",SourceInputsAttenuation!$E$19*EXP(-1*(SourceInputsAttenuation!$I$19*SrcDecline!Q26)),SourceInputsAttenuation!$E$19) -> 0.1997700266 | S26: 23 | T26: =IF(U$1="Decline",(S26*QsrcLitres)/SourceInputsAttenuation!$C$33,"") -> 0.003797019843 | U26: =IF(U$1="Decline",SourceInputsAttenuation!$E$20*EXP(-1*(SourceInputsAttenuation!$I$20*SrcDecline!T26)),SourceInputsAttenuation!$E$20) -> 0.04996386494
A27: 24 | B27: =IF(C$1="Decline",(A27*QsrcLitres)/(SourceInputsAttenuation!$C$33),"") -> 0.003962107662 | C27: =IF(C$1="Decline",SourceInputsAttenuation!$E$14*EXP(-1*((SourceInputsAttenuation!$I$14)*SrcDecline!B27)),SourceInputsAttenuation!$E$14) -> 0.04998491676 | D27: 24 | E27: =IF(F$1="Decline",(D27*QsrcLitres)/SourceInputsAttenuation!$C$33,"") -> 0.003962107662 | F27: =IF(F$1="Decline",SourceInputsAttenuation!$E$15*EXP(-1*(SourceInputsAttenuation!$I$15*SrcDecline!E27)),SourceInputsAttenuation!$E$15) -> 0.0009993492375 | G27: 24 | H27: =IF(I$1="Decline",(G27*QsrcLitres)/SourceInputsAttenuation!$C$33,"") -> 0.003962107662 | I27: =IF(I$1="Decline",SourceInputsAttenuation!$E$16*EXP(-1*(SourceInputsAttenuation!$I$16*SrcDecline!E27)),SourceInputsAttenuation!$E$16) -> 0.8678012389 | J27: 24 | K27: =IF(L$1="Decline",(J27*QsrcLitres)/SourceInputsAttenuation!$C$33,"") -> 0.003962107662 | L27: =IF(L$1="Decline",SourceInputsAttenuation!$E$17*EXP(-1*(SourceInputsAttenuation!$I$17*SrcDecline!K27)),SourceInputsAttenuation!$E$17) -> 0.003995675844 | M27: 24 | N27: =IF(O$1="Decline",(M27*QsrcLitres)/SourceInputsAttenuation!$C$33,"") -> 0.003962107662 | O27: =IF(O$1="Decline",SourceInputsAttenuation!$E$18*EXP(-1*(SourceInputsAttenuation!$I$18*SrcDecline!N27)),SourceInputsAttenuation!$E$18) -> 0.3995286983 | P27: 24 | Q27: =IF(R$1="Decline",(P27*QsrcLitres)/SourceInputsAttenuation!$C$33,"") -> 0.003962107662 | R27: =IF(R$1="Decline",SourceInputsAttenuation!$E$19*EXP(-1*(SourceInputsAttenuation!$I$19*SrcDecline!Q27)),SourceInputsAttenuation!$E$19) -> 0.1997600338 | S27: 24 | T27: =IF(U$1="Decline",(S27*QsrcLitres)/SourceInputsAttenuation!$C$33,"") -> 0.003962107662 | U27: =IF(U$1="Decline",SourceInputsAttenuation!$E$20*EXP(-1*(SourceInputsAttenuation!$I$20*SrcDecline!T27)),SourceInputsAttenuation!$E$20) -> 0.04996229444
A28: 25 | B28: =IF(C$1="Decline",(A28*QsrcLitres)/(SourceInputsAttenuation!$C$33),"") -> 0.004127195481 | C28: =IF(C$1="Decline",SourceInputsAttenuation!$E$14*EXP(-1*((SourceInputsAttenuation!$I$14)*SrcDecline!B28)),SourceInputsAttenuation!$E$14) -> 0.04998428839 | D28: 25 | E28: =IF(F$1="Decline",(D28*QsrcLitres)/SourceInputsAttenuation!$C$33,"") -> 0.004127195481 | F28: =IF(F$1="Decline",SourceInputsAttenuation!$E$15*EXP(-1*(SourceInputsAttenuation!$I$15*SrcDecline!E28)),SourceInputsAttenuation!$E$15) -> 0.0009993221316 | G28: 25 | H28: =IF(I$1="Decline",(G28*QsrcLitres)/SourceInputsAttenuation!$C$33,"") -> 0.004127195481 | I28: =IF(I$1="Decline",SourceInputsAttenuation!$E$16*EXP(-1*(SourceInputsAttenuation!$I$16*SrcDecline!E28)),SourceInputsAttenuation!$E$16) -> 0.8677305292 | J28: 25 | K28: =IF(L$1="Decline",(J28*QsrcLitres)/SourceInputsAttenuation!$C$33,"") -> 0.004127195481 | L28: =IF(L$1="Decline",SourceInputsAttenuation!$E$17*EXP(-1*(SourceInputsAttenuation!$I$17*SrcDecline!K28)),SourceInputsAttenuation!$E$17) -> 0.003995495772 | M28: 25 | N28: =IF(O$1="Decline",(M28*QsrcLitres)/SourceInputsAttenuation!$C$33,"") -> 0.004127195481 | O28: =IF(O$1="Decline",SourceInputsAttenuation!$E$18*EXP(-1*(SourceInputsAttenuation!$I$18*SrcDecline!N28)),SourceInputsAttenuation!$E$18) -> 0.3995090728 | P28: 25 | Q28: =IF(R$1="Decline",(P28*QsrcLitres)/SourceInputsAttenuation!$C$33,"") -> 0.004127195481 | R28: =IF(R$1="Decline",SourceInputsAttenuation!$E$19*EXP(-1*(SourceInputsAttenuation!$I$19*SrcDecline!Q28)),SourceInputsAttenuation!$E$19) -> 0.1997500415 | S28: 25 | T28: =IF(U$1="Decline",(S28*QsrcLitres)/SourceInputsAttenuation!$C$33,"") -> 0.004127195481 | U28: =IF(U$1="Decline",SourceInputsAttenuation!$E$20*EXP(-1*(SourceInputsAttenuation!$I$20*SrcDecline!T28)),SourceInputsAttenuation!$E$20) -> 0.04996072399
A29: 26 | B29: =IF(C$1="Decline",(A29*QsrcLitres)/(SourceInputsAttenuation!$C$33),"") -> 0.004292283301 | C29: =IF(C$1="Decline",SourceInputsAttenuation!$E$14*EXP(-1*((SourceInputsAttenuation!$I$14)*SrcDecline!B29)),SourceInputsAttenuation!$E$14) -> 0.04998366003 | D29: 26 | E29: =IF(F$1="Decline",(D29*QsrcLitres)/SourceInputsAttenuation!$C$33,"") -> 0.004292283301 | F29: =IF(F$1="Decline",SourceInputsAttenuation!$E$15*EXP(-1*(SourceInputsAttenuation!$I$15*SrcDecline!E29)),SourceInputsAttenuation!$E$15) -> 0.0009992950265 | G29: 26 | H29: =IF(I$1="Decline",(G29*QsrcLitres)/SourceInputsAttenuation!$C$33,"") -> 0.004292283301 | I29: =IF(I$1="Decline",SourceInputsAttenuation!$E$16*EXP(-1*(SourceInputsAttenuation!$I$16*SrcDecline!E29)),SourceInputsAttenuation!$E$16) -> 0.8676598254 | J29: 26 | K29: =IF(L$1="Decline",(J29*QsrcLitres)/SourceInputsAttenuation!$C$33,"") -> 0.004292283301 | L29: =IF(L$1="Decline",SourceInputsAttenuation!$E$17*EXP(-1*(SourceInputsAttenuation!$I$17*SrcDecline!K29)),SourceInputsAttenuation!$E$17) -> 0.003995315709 | M29: 26 | N29: =IF(O$1="Decline",(M29*QsrcLitres)/SourceInputsAttenuation!$C$33,"") -> 0.004292283301 | O29: =IF(O$1="Decline",SourceInputsAttenuation!$E$18*EXP(-1*(SourceInputsAttenuation!$I$18*SrcDecline!N29)),SourceInputsAttenuation!$E$18) -> 0.3994894482 | P29: 26 | Q29: =IF(R$1="Decline",(P29*QsrcLitres)/SourceInputsAttenuation!$C$33,"") -> 0.004292283301 | R29: =IF(R$1="Decline",SourceInputsAttenuation!$E$19*EXP(-1*(SourceInputsAttenuation!$I$19*SrcDecline!Q29)),SourceInputsAttenuation!$E$19) -> 0.1997400496 | S29: 26 | T29: =IF(U$1="Decline",(S29*QsrcLitres)/SourceInputsAttenuation!$C$33,"") -> 0.004292283301 | U29: =IF(U$1="Decline",SourceInputsAttenuation!$E$20*EXP(-1*(SourceInputsAttenuation!$I$20*SrcDecline!T29)),SourceInputsAttenuation!$E$20) -> 0.04995915359
A30: 27 | B30: =IF(C$1="Decline",(A30*QsrcLitres)/(SourceInputsAttenuation!$C$33),"") -> 0.00445737112 | C30: =IF(C$1="Decline",SourceInputsAttenuation!$E$14*EXP(-1*((SourceInputsAttenuation!$I$14)*SrcDecline!B30)),SourceInputsAttenuation!$E$14) -> 0.04998303167 | D30: 27 | E30: =IF(F$1="Decline",(D30*QsrcLitres)/SourceInputsAttenuation!$C$33,"") -> 0.00445737112 | F30: =IF(F$1="Decline",SourceInputsAttenuation!$E$15*EXP(-1*(SourceInputsAttenuation!$I$15*SrcDecline!E30)),SourceInputsAttenuation!$E$15) -> 0.000999267922 | G30: 27 | H30: =IF(I$1="Decline",(G30*QsrcLitres)/SourceInputsAttenuation!$C$33,"") -> 0.00445737112 | I30: =IF(I$1="Decline",SourceInputsAttenuation!$E$16*EXP(-1*(SourceInputsAttenuation!$I$16*SrcDecline!E30)),SourceInputsAttenuation!$E$16) -> 0.8675891272 | J30: 27 | K30: =IF(L$1="Decline",(J30*QsrcLitres)/SourceInputsAttenuation!$C$33,"") -> 0.00445737112 | L30: =IF(L$1="Decline",SourceInputsAttenuation!$E$17*EXP(-1*(SourceInputsAttenuation!$I$17*SrcDecline!K30)),SourceInputsAttenuation!$E$17) -> 0.003995135653 | M30: 27 | N30: =IF(O$1="Decline",(M30*QsrcLitres)/SourceInputsAttenuation!$C$33,"") -> 0.00445737112 | O30: =IF(O$1="Decline",SourceInputsAttenuation!$E$18*EXP(-1*(SourceInputsAttenuation!$I$18*SrcDecline!N30)),SourceInputsAttenuation!$E$18) -> 0.3994698246 | P30: 27 | Q30: =IF(R$1="Decline",(P30*QsrcLitres)/SourceInputsAttenuation!$C$33,"") -> 0.00445737112 | R30: =IF(R$1="Decline",SourceInputsAttenuation!$E$19*EXP(-1*(SourceInputsAttenuation!$I$19*SrcDecline!Q30)),SourceInputsAttenuation!$E$19) -> 0.1997300583 | S30: 27 | T30: =IF(U$1="Decline",(S30*QsrcLitres)/SourceInputsAttenuation!$C$33,"") -> 0.00445737112 | U30: =IF(U$1="Decline",SourceInputsAttenuation!$E$20*EXP(-1*(SourceInputsAttenuation!$I$20*SrcDecline!T30)),SourceInputsAttenuation!$E$20) -> 0.04995758325
A31: 28 | B31: =IF(C$1="Decline",(A31*QsrcLitres)/(SourceInputsAttenuation!$C$33),"") -> 0.004622458939 | C31: =IF(C$1="Decline",SourceInputsAttenuation!$E$14*EXP(-1*((SourceInputsAttenuation!$I$14)*SrcDecline!B31)),SourceInputsAttenuation!$E$14) -> 0.04998240333 | D31: 28 | E31: =IF(F$1="Decline",(D31*QsrcLitres)/SourceInputsAttenuation!$C$33,"") -> 0.004622458939 | F31: =IF(F$1="Decline",SourceInputsAttenuation!$E$15*EXP(-1*(SourceInputsAttenuation!$I$15*SrcDecline!E31)),SourceInputsAttenuation!$E$15) -> 0.0009992408183 | G31: 28 | H31: =IF(I$1="Decline",(G31*QsrcLitres)/SourceInputsAttenuation!$C$33,"") -> 0.004622458939 | I31: =IF(I$1="Decline",SourceInputsAttenuation!$E$16*EXP(-1*(SourceInputsAttenuation!$I$16*SrcDecline!E31)),SourceInputsAttenuation!$E$16) -> 0.8675184349 | J31: 28 | K31: =IF(L$1="Decline",(J31*QsrcLitres)/SourceInputsAttenuation!$C$33,"") -> 0.004622458939 | L31: =IF(L$1="Decline",SourceInputsAttenuation!$E$17*EXP(-1*(SourceInputsAttenuation!$I$17*SrcDecline!K31)),SourceInputsAttenuation!$E$17) -> 0.003994955606 | M31: 28 | N31: =IF(O$1="Decline",(M31*QsrcLitres)/SourceInputsAttenuation!$C$33,"") -> 0.004622458939 | O31: =IF(O$1="Decline",SourceInputsAttenuation!$E$18*EXP(-1*(SourceInputsAttenuation!$I$18*SrcDecline!N31)),SourceInputsAttenuation!$E$18) -> 0.399450202 | P31: 28 | Q31: =IF(R$1="Decline",(P31*QsrcLitres)/SourceInputsAttenuation!$C$33,"") -> 0.004622458939 | R31: =IF(R$1="Decline",SourceInputsAttenuation!$E$19*EXP(-1*(SourceInputsAttenuation!$I$19*SrcDecline!Q31)),SourceInputsAttenuation!$E$19) -> 0.1997200674 | S31: 28 | T31: =IF(U$1="Decline",(S31*QsrcLitres)/SourceInputsAttenuation!$C$33,"") -> 0.004622458939 | U31: =IF(U$1="Decline",SourceInputsAttenuation!$E$20*EXP(-1*(SourceInputsAttenuation!$I$20*SrcDecline!T31)),SourceInputsAttenuation!$E$20) -> 0.04995601295
A32: 29 | B32: =IF(C$1="Decline",(A32*QsrcLitres)/(SourceInputsAttenuation!$C$33),"") -> 0.004787546758 | C32: =IF(C$1="Decline",SourceInputsAttenuation!$E$14*EXP(-1*((SourceInputsAttenuation!$I$14)*SrcDecline!B32)),SourceInputsAttenuation!$E$14) -> 0.04998177499 | D32: 29 | E32: =IF(F$1="Decline",(D32*QsrcLitres)/SourceInputsAttenuation!$C$33,"") -> 0.004787546758 | F32: =IF(F$1="Decline",SourceInputsAttenuation!$E$15*EXP(-1*(SourceInputsAttenuation!$I$15*SrcDecline!E32)),SourceInputsAttenuation!$E$15) -> 0.0009992137154 | G32: 29 | H32: =IF(I$1="Decline",(G32*QsrcLitres)/SourceInputsAttenuation!$C$33,"") -> 0.004787546758 | I32: =IF(I$1="Decline",SourceInputsAttenuation!$E$16*EXP(-1*(SourceInputsAttenuation!$I$16*SrcDecline!E32)),SourceInputsAttenuation!$E$16) -> 0.8674477483 | J32: 29 | K32: =IF(L$1="Decline",(J32*QsrcLitres)/SourceInputsAttenuation!$C$33,"") -> 0.004787546758 | L32: =IF(L$1="Decline",SourceInputsAttenuation!$E$17*EXP(-1*(SourceInputsAttenuation!$I$17*SrcDecline!K32)),SourceInputsAttenuation!$E$17) -> 0.003994775566 | M32: 29 | N32: =IF(O$1="Decline",(M32*QsrcLitres)/SourceInputsAttenuation!$C$33,"") -> 0.004787546758 | O32: =IF(O$1="Decline",SourceInputsAttenuation!$E$18*EXP(-1*(SourceInputsAttenuation!$I$18*SrcDecline!N32)),SourceInputsAttenuation!$E$18) -> 0.3994305803 | P32: 29 | Q32: =IF(R$1="Decline",(P32*QsrcLitres)/SourceInputsAttenuation!$C$33,"") -> 0.004787546758 | R32: =IF(R$1="Decline",SourceInputsAttenuation!$E$19*EXP(-1*(SourceInputsAttenuation!$I$19*SrcDecline!Q32)),SourceInputsAttenuation!$E$19) -> 0.1997100771 | S32: 29 | T32: =IF(U$1="Decline",(S32*QsrcLitres)/SourceInputsAttenuation!$C$33,"") -> 0.004787546758 | U32: =IF(U$1="Decline",SourceInputsAttenuation!$E$20*EXP(-1*(SourceInputsAttenuation!$I$20*SrcDecline!T32)),SourceInputsAttenuation!$E$20) -> 0.0499544427
A33: 30 | B33: =IF(C$1="Decline",(A33*QsrcLitres)/(SourceInputsAttenuation!$C$33),"") -> 0.004952634578 | C33: =IF(C$1="Decline",SourceInputsAttenuation!$E$14*EXP(-1*((SourceInputsAttenuation!$I$14)*SrcDecline!B33)),SourceInputsAttenuation!$E$14) -> 0.04998114666 | D33: 30 | E33: =IF(F$1="Decline",(D33*QsrcLitres)/SourceInputsAttenuation!$C$33,"") -> 0.004952634578 | F33: =IF(F$1="Decline",SourceInputsAttenuation!$E$15*EXP(-1*(SourceInputsAttenuation!$I$15*SrcDecline!E33)),SourceInputsAttenuation!$E$15) -> 0.0009991866131 | G33: 30 | H33: =IF(I$1="Decline",(G33*QsrcLitres)/SourceInputsAttenuation!$C$33,"") -> 0.004952634578 | I33: =IF(I$1="Decline",SourceInputsAttenuation!$E$16*EXP(-1*(SourceInputsAttenuation!$I$16*SrcDecline!E33)),SourceInputsAttenuation!$E$16) -> 0.8673770674 | J33: 30 | K33: =IF(L$1="Decline",(J33*QsrcLitres)/SourceInputsAttenuation!$C$33,"") -> 0.004952634578 | L33: =IF(L$1="Decline",SourceInputsAttenuation!$E$17*EXP(-1*(SourceInputsAttenuation!$I$17*SrcDecline!K33)),SourceInputsAttenuation!$E$17) -> 0.003994595535 | M33: 30 | N33: =IF(O$1="Decline",(M33*QsrcLitres)/SourceInputsAttenuation!$C$33,"") -> 0.004952634578 | O33: =IF(O$1="Decline",SourceInputsAttenuation!$E$18*EXP(-1*(SourceInputsAttenuation!$I$18*SrcDecline!N33)),SourceInputsAttenuation!$E$18) -> 0.3994109596 | P33: 30 | Q33: =IF(R$1="Decline",(P33*QsrcLitres)/SourceInputsAttenuation!$C$33,"") -> 0.004952634578 | R33: =IF(R$1="Decline",SourceInputsAttenuation!$E$19*EXP(-1*(SourceInputsAttenuation!$I$19*SrcDecline!Q33)),SourceInputsAttenuation!$E$19) -> 0.1997000872 | S33: 30 | T33: =IF(U$1="Decline",(S33*QsrcLitres)/SourceInputsAttenuation!$C$33,"") -> 0.004952634578 | U33: =IF(U$1="Decline",SourceInputsAttenuation!$E$20*EXP(-1*(SourceInputsAttenuation!$I$20*SrcDecline!T33)),SourceInputsAttenuation!$E$20) -> 0.04995287249
A34: 31 | B34: =IF(C$1="Decline",(A34*QsrcLitres)/(SourceInputsAttenuation!$C$33),"") -> 0.005117722397 | C34: =IF(C$1="Decline",SourceInputsAttenuation!$E$14*EXP(-1*((SourceInputsAttenuation!$I$14)*SrcDecline!B34)),SourceInputsAttenuation!$E$14) -> 0.04998051834 | D34: 31 | E34: =IF(F$1="Decline",(D34*QsrcLitres)/SourceInputsAttenuation!$C$33,"") -> 0.005117722397 | F34: =IF(F$1="Decline",SourceInputsAttenuation!$E$15*EXP(-1*(SourceInputsAttenuation!$I$15*SrcDecline!E34)),SourceInputsAttenuation!$E$15) -> 0.0009991595116 | G34: 31 | H34: =IF(I$1="Decline",(G34*QsrcLitres)/SourceInputsAttenuation!$C$33,"") -> 0.005117722397 | I34: =IF(I$1="Decline",SourceInputsAttenuation!$E$16*EXP(-1*(SourceInputsAttenuation!$I$16*SrcDecline!E34)),SourceInputsAttenuation!$E$16) -> 0.8673063924 | J34: 31 | K34: =IF(L$1="Decline",(J34*QsrcLitres)/SourceInputsAttenuation!$C$33,"") -> 0.005117722397 | L34: =IF(L$1="Decline",SourceInputsAttenuation!$E$17*EXP(-1*(SourceInputsAttenuation!$I$17*SrcDecline!K34)),SourceInputsAttenuation!$E$17) -> 0.003994415512 | M34: 31 | N34: =IF(O$1="Decline",(M34*QsrcLitres)/SourceInputsAttenuation!$C$33,"") -> 0.005117722397 | O34: =IF(O$1="Decline",SourceInputsAttenuation!$E$18*EXP(-1*(SourceInputsAttenuation!$I$18*SrcDecline!N34)),SourceInputsAttenuation!$E$18) -> 0.3993913399 | P34: 31 | Q34: =IF(R$1="Decline",(P34*QsrcLitres)/SourceInputsAttenuation!$C$33,"") -> 0.005117722397 | R34: =IF(R$1="Decline",SourceInputsAttenuation!$E$19*EXP(-1*(SourceInputsAttenuation!$I$19*SrcDecline!Q34)),SourceInputsAttenuation!$E$19) -> 0.1996900979 | S34: 31 | T34: =IF(U$1="Decline",(S34*QsrcLitres)/SourceInputsAttenuation!$C$33,"") -> 0.005117722397 | U34: =IF(U$1="Decline",SourceInputsAttenuation!$E$20*EXP(-1*(SourceInputsAttenuation!$I$20*SrcDecline!T34)),SourceInputsAttenuation!$E$20) -> 0.04995130234
A35: 32 | B35: =IF(C$1="Decline",(A35*QsrcLitres)/(SourceInputsAttenuation!$C$33),"") -> 0.005282810216 | C35: =IF(C$1="Decline",SourceInputsAttenuation!$E$14*EXP(-1*((SourceInputsAttenuation!$I$14)*SrcDecline!B35)),SourceInputsAttenuation!$E$14) -> 0.04997989002 | D35: 32 | E35: =IF(F$1="Decline",(D35*QsrcLitres)/SourceInputsAttenuation!$C$33,"") -> 0.005282810216 | F35: =IF(F$1="Decline",SourceInputsAttenuation!$E$15*EXP(-1*(SourceInputsAttenuation!$I$15*SrcDecline!E35)),SourceInputsAttenuation!$E$15) -> 0.0009991324109 | G35: 32 | H35: =IF(I$1="Decline",(G35*QsrcLitres)/SourceInputsAttenuation!$C$33,"") -> 0.005282810216 | I35: =IF(I$1="Decline",SourceInputsAttenuation!$E$16*EXP(-1*(SourceInputsAttenuation!$I$16*SrcDecline!E35)),SourceInputsAttenuation!$E$16) -> 0.867235723 | J35: 32 | K35: =IF(L$1="Decline",(J35*QsrcLitres)/SourceInputsAttenuation!$C$33,"") -> 0.005282810216 | L35: =IF(L$1="Decline",SourceInputsAttenuation!$E$17*EXP(-1*(SourceInputsAttenuation!$I$17*SrcDecline!K35)),SourceInputsAttenuation!$E$17) -> 0.003994235497 | M35: 32 | N35: =IF(O$1="Decline",(M35*QsrcLitres)/SourceInputsAttenuation!$C$33,"") -> 0.005282810216 | O35: =IF(O$1="Decline",SourceInputsAttenuation!$E$18*EXP(-1*(SourceInputsAttenuation!$I$18*SrcDecline!N35)),SourceInputsAttenuation!$E$18) -> 0.3993717211 | P35: 32 | Q35: =IF(R$1="Decline",(P35*QsrcLitres)/SourceInputsAttenuation!$C$33,"") -> 0.005282810216 | R35: =IF(R$1="Decline",SourceInputsAttenuation!$E$19*EXP(-1*(SourceInputsAttenuation!$I$19*SrcDecline!Q35)),SourceInputsAttenuation!$E$19) -> 0.1996801091 | S35: 32 | T35: =IF(U$1="Decline",(S35*QsrcLitres)/SourceInputsAttenuation!$C$33,"") -> 0.005282810216 | U35: =IF(U$1="Decline",SourceInputsAttenuation!$E$20*EXP(-1*(SourceInputsAttenuation!$I$20*SrcDecline!T35)),SourceInputsAttenuation!$E$20) -> 0.04994973224
A36: 33 | B36: =IF(C$1="Decline",(A36*QsrcLitres)/(SourceInputsAttenuation!$C$33),"") -> 0.005447898035 | C36: =IF(C$1="Decline",SourceInputsAttenuation!$E$14*EXP(-1*((SourceInputsAttenuation!$I$14)*SrcDecline!B36)),SourceInputsAttenuation!$E$14) -> 0.04997926171 | D36: 33 | E36: =IF(F$1="Decline",(D36*QsrcLitres)/SourceInputsAttenuation!$C$33,"") -> 0.005447898035 | F36: =IF(F$1="Decline",SourceInputsAttenuation!$E$15*EXP(-1*(SourceInputsAttenuation!$I$15*SrcDecline!E36)),SourceInputsAttenuation!$E$15) -> 0.0009991053108 | G36: 33 | H36: =IF(I$1="Decline",(G36*QsrcLitres)/SourceInputsAttenuation!$C$33,"") -> 0.005447898035 | I36: =IF(I$1="Decline",SourceInputsAttenuation!$E$16*EXP(-1*(SourceInputsAttenuation!$I$16*SrcDecline!E36)),SourceInputsAttenuation!$E$16) -> 0.8671650595 | J36: 33 | K36: =IF(L$1="Decline",(J36*QsrcLitres)/SourceInputsAttenuation!$C$33,"") -> 0.005447898035 | L36: =IF(L$1="Decline",SourceInputsAttenuation!$E$17*EXP(-1*(SourceInputsAttenuation!$I$17*SrcDecline!K36)),SourceInputsAttenuation!$E$17) -> 0.003994055491 | M36: 33 | N36: =IF(O$1="Decline",(M36*QsrcLitres)/SourceInputsAttenuation!$C$33,"") -> 0.005447898035 | O36: =IF(O$1="Decline",SourceInputsAttenuation!$E$18*EXP(-1*(SourceInputsAttenuation!$I$18*SrcDecline!N36)),SourceInputsAttenuation!$E$18) -> 0.3993521033 | P36: 33 | Q36: =IF(R$1="Decline",(P36*QsrcLitres)/SourceInputsAttenuation!$C$33,"") -> 0.005447898035 | R36: =IF(R$1="Decline",SourceInputsAttenuation!$E$19*EXP(-1*(SourceInputsAttenuation!$I$19*SrcDecline!Q36)),SourceInputsAttenuation!$E$19) -> 0.1996701207 | S36: 33 | T36: =IF(U$1="Decline",(S36*QsrcLitres)/SourceInputsAttenuation!$C$33,"") -> 0.005447898035 | U36: =IF(U$1="Decline",SourceInputsAttenuation!$E$20*EXP(-1*(SourceInputsAttenuation!$I$20*SrcDecline!T36)),SourceInputsAttenuation!$E$20) -> 0.04994816219
A37: 34 | B37: =IF(C$1="Decline",(A37*QsrcLitres)/(SourceInputsAttenuation!$C$33),"") -> 0.005612985855 | C37: =IF(C$1="Decline",SourceInputsAttenuation!$E$14*EXP(-1*((SourceInputsAttenuation!$I$14)*SrcDecline!B37)),SourceInputsAttenuation!$E$14) -> 0.04997863342 | D37: 34 | E37: =IF(F$1="Decline",(D37*QsrcLitres)/SourceInputsAttenuation!$C$33,"") -> 0.005612985855 | F37: =IF(F$1="Decline",SourceInputsAttenuation!$E$15*EXP(-1*(SourceInputsAttenuation!$I$15*SrcDecline!E37)),SourceInputsAttenuation!$E$15) -> 0.0009990782115 | G37: 34 | H37: =IF(I$1="Decline",(G37*QsrcLitres)/SourceInputsAttenuation!$C$33,"") -> 0.005612985855 | I37: =IF(I$1="Decline",SourceInputsAttenuation!$E$16*EXP(-1*(SourceInputsAttenuation!$I$16*SrcDecline!E37)),SourceInputsAttenuation!$E$16) -> 0.8670944017 | J37: 34 | K37: =IF(L$1="Decline",(J37*QsrcLitres)/SourceInputsAttenuation!$C$33,"") -> 0.005612985855 | L37: =IF(L$1="Decline",SourceInputsAttenuation!$E$17*EXP(-1*(SourceInputsAttenuation!$I$17*SrcDecline!K37)),SourceInputsAttenuation!$E$17) -> 0.003993875492 | M37: 34 | N37: =IF(O$1="Decline",(M37*QsrcLitres)/SourceInputsAttenuation!$C$33,"") -> 0.005612985855 | O37: =IF(O$1="Decline",SourceInputsAttenuation!$E$18*EXP(-1*(SourceInputsAttenuation!$I$18*SrcDecline!N37)),SourceInputsAttenuation!$E$18) -> 0.3993324865 | P37: 34 | Q37: =IF(R$1="Decline",(P37*QsrcLitres)/SourceInputsAttenuation!$C$33,"") -> 0.005612985855 | R37: =IF(R$1="Decline",SourceInputsAttenuation!$E$19*EXP(-1*(SourceInputsAttenuation!$I$19*SrcDecline!Q37)),SourceInputsAttenuation!$E$19) -> 0.1996601329 | S37: 34 | T37: =IF(U$1="Decline",(S37*QsrcLitres)/SourceInputsAttenuation!$C$33,"") -> 0.005612985855 | U37: =IF(U$1="Decline",SourceInputsAttenuation!$E$20*EXP(-1*(SourceInputsAttenuation!$I$20*SrcDecline!T37)),SourceInputsAttenuation!$E$20) -> 0.04994659218
A38: 35 | B38: =IF(C$1="Decline",(A38*QsrcLitres)/(SourceInputsAttenuation!$C$33),"") -> 0.005778073674 | C38: =IF(C$1="Decline",SourceInputsAttenuation!$E$14*EXP(-1*((SourceInputsAttenuation!$I$14)*SrcDecline!B38)),SourceInputsAttenuation!$E$14) -> 0.04997800513 | D38: 35 | E38: =IF(F$1="Decline",(D38*QsrcLitres)/SourceInputsAttenuation!$C$33,"") -> 0.005778073674 | F38: =IF(F$1="Decline",SourceInputsAttenuation!$E$15*EXP(-1*(SourceInputsAttenuation!$I$15*SrcDecline!E38)),SourceInputsAttenuation!$E$15) -> 0.000999051113 | G38: 35 | H38: =IF(I$1="Decline",(G38*QsrcLitres)/SourceInputsAttenuation!$C$33,"") -> 0.005778073674 | I38: =IF(I$1="Decline",SourceInputsAttenuation!$E$16*EXP(-1*(SourceInputsAttenuation!$I$16*SrcDecline!E38)),SourceInputsAttenuation!$E$16) -> 0.8670237496 | J38: 35 | K38: =IF(L$1="Decline",(J38*QsrcLitres)/SourceInputsAttenuation!$C$33,"") -> 0.005778073674 | L38: =IF(L$1="Decline",SourceInputsAttenuation!$E$17*EXP(-1*(SourceInputsAttenuation!$I$17*SrcDecline!K38)),SourceInputsAttenuation!$E$17) -> 0.003993695501 | M38: 35 | N38: =IF(O$1="Decline",(M38*QsrcLitres)/SourceInputsAttenuation!$C$33,"") -> 0.005778073674 | O38: =IF(O$1="Decline",SourceInputsAttenuation!$E$18*EXP(-1*(SourceInputsAttenuation!$I$18*SrcDecline!N38)),SourceInputsAttenuation!$E$18) -> 0.3993128706 | P38: 35 | Q38: =IF(R$1="Decline",(P38*QsrcLitres)/SourceInputsAttenuation!$C$33,"") -> 0.005778073674 | R38: =IF(R$1="Decline",SourceInputsAttenuation!$E$19*EXP(-1*(SourceInputsAttenuation!$I$19*SrcDecline!Q38)),SourceInputsAttenuation!$E$19) -> 0.1996501455 | S38: 35 | T38: =IF(U$1="Decline",(S38*QsrcLitres)/SourceInputsAttenuation!$C$33,"") -> 0.005778073674 | U38: =IF(U$1="Decline",SourceInputsAttenuation!$E$20*EXP(-1*(SourceInputsAttenuation!$I$20*SrcDecline!T38)),SourceInputsAttenuation!$E$20) -> 0.04994502223
A39: 36 | B39: =IF(C$1="Decline",(A39*QsrcLitres)/(SourceInputsAttenuation!$C$33),"") -> 0.005943161493 | C39: =IF(C$1="Decline",SourceInputsAttenuation!$E$14*EXP(-1*((SourceInputsAttenuation!$I$14)*SrcDecline!B39)),SourceInputsAttenuation!$E$14) -> 0.04997737684 | D39: 36 | E39: =IF(F$1="Decline",(D39*QsrcLitres)/SourceInputsAttenuation!$C$33,"") -> 0.005943161493 | F39: =IF(F$1="Decline",SourceInputsAttenuation!$E$15*EXP(-1*(SourceInputsAttenuation!$I$15*SrcDecline!E39)),SourceInputsAttenuation!$E$15) -> 0.0009990240152 | G39: 36 | H39: =IF(I$1="Decline",(G39*QsrcLitres)/SourceInputsAttenuation!$C$33,"") -> 0.005943161493 | I39: =IF(I$1="Decline",SourceInputsAttenuation!$E$16*EXP(-1*(SourceInputsAttenuation!$I$16*SrcDecline!E39)),SourceInputsAttenuation!$E$16) -> 0.8669531033 | J39: 36 | K39: =IF(L$1="Decline",(J39*QsrcLitres)/SourceInputsAttenuation!$C$33,"") -> 0.005943161493 | L39: =IF(L$1="Decline",SourceInputsAttenuation!$E$17*EXP(-1*(SourceInputsAttenuation!$I$17*SrcDecline!K39)),SourceInputsAttenuation!$E$17) -> 0.003993515519 | M39: 36 | N39: =IF(O$1="Decline",(M39*QsrcLitres)/SourceInputsAttenuation!$C$33,"") -> 0.005943161493 | O39: =IF(O$1="Decline",SourceInputsAttenuation!$E$18*EXP(-1*(SourceInputsAttenuation!$I$18*SrcDecline!N39)),SourceInputsAttenuation!$E$18) -> 0.3992932557 | P39: 36 | Q39: =IF(R$1="Decline",(P39*QsrcLitres)/SourceInputsAttenuation!$C$33,"") -> 0.005943161493 | R39: =IF(R$1="Decline",SourceInputsAttenuation!$E$19*EXP(-1*(SourceInputsAttenuation!$I$19*SrcDecline!Q39)),SourceInputsAttenuation!$E$19) -> 0.1996401587 | S39: 36 | T39: =IF(U$1="Decline",(S39*QsrcLitres)/SourceInputsAttenuation!$C$33,"") -> 0.005943161493 | U39: =IF(U$1="Decline",SourceInputsAttenuation!$E$20*EXP(-1*(SourceInputsAttenuation!$I$20*SrcDecline!T39)),SourceInputsAttenuation!$E$20) -> 0.04994345232
A40: 37 | B40: =IF(C$1="Decline",(A40*QsrcLitres)/(SourceInputsAttenuation!$C$33),"") -> 0.006108249312 | C40: =IF(C$1="Decline",SourceInputsAttenuation!$E$14*EXP(-1*((SourceInputsAttenuation!$I$14)*SrcDecline!B40)),SourceInputsAttenuation!$E$14) -> 0.04997674857 | D40: 37 | E40: =IF(F$1="Decline",(D40*QsrcLitres)/SourceInputsAttenuation!$C$33,"") -> 0.006108249312 | F40: =IF(F$1="Decline",SourceInputsAttenuation!$E$15*EXP(-1*(SourceInputsAttenuation!$I$15*SrcDecline!E40)),SourceInputsAttenuation!$E$15) -> 0.0009989969181 | G40: 37 | H40: =IF(I$1="Decline",(G40*QsrcLitres)/SourceInputsAttenuation!$C$33,"") -> 0.006108249312 | I40: =IF(I$1="Decline",SourceInputsAttenuation!$E$16*EXP(-1*(SourceInputsAttenuation!$I$16*SrcDecline!E40)),SourceInputsAttenuation!$E$16) -> 0.8668824628 | J40: 37 | K40: =IF(L$1="Decline",(J40*QsrcLitres)/SourceInputsAttenuation!$C$33,"") -> 0.006108249312 | L40: =IF(L$1="Decline",SourceInputsAttenuation!$E$17*EXP(-1*(SourceInputsAttenuation!$I$17*SrcDecline!K40)),SourceInputsAttenuation!$E$17) -> 0.003993335545 | M40: 37 | N40: =IF(O$1="Decline",(M40*QsrcLitres)/SourceInputsAttenuation!$C$33,"") -> 0.006108249312 | O40: =IF(O$1="Decline",SourceInputsAttenuation!$E$18*EXP(-1*(SourceInputsAttenuation!$I$18*SrcDecline!N40)),SourceInputsAttenuation!$E$18) -> 0.3992736417 | P40: 37 | Q40: =IF(R$1="Decline",(P40*QsrcLitres)/SourceInputsAttenuation!$C$33,"") -> 0.006108249312 | R40: =IF(R$1="Decline",SourceInputsAttenuation!$E$19*EXP(-1*(SourceInputsAttenuation!$I$19*SrcDecline!Q40)),SourceInputsAttenuation!$E$19) -> 0.1996301723 | S40: 37 | T40: =IF(U$1="Decline",(S40*QsrcLitres)/SourceInputsAttenuation!$C$33,"") -> 0.006108249312 | U40: =IF(U$1="Decline",SourceInputsAttenuation!$E$20*EXP(-1*(SourceInputsAttenuation!$I$20*SrcDecline!T40)),SourceInputsAttenuation!$E$20) -> 0.04994188247
A41: 38 | B41: =IF(C$1="Decline",(A41*QsrcLitres)/(SourceInputsAttenuation!$C$33),"") -> 0.006273337132 | C41: =IF(C$1="Decline",SourceInputsAttenuation!$E$14*EXP(-1*((SourceInputsAttenuation!$I$14)*SrcDecline!B41)),SourceInputsAttenuation!$E$14) -> 0.0499761203 | D41: 38 | E41: =IF(F$1="Decline",(D41*QsrcLitres)/SourceInputsAttenuation!$C$33,"") -> 0.006273337132 | F41: =IF(F$1="Decline",SourceInputsAttenuation!$E$15*EXP(-1*(SourceInputsAttenuation!$I$15*SrcDecline!E41)),SourceInputsAttenuation!$E$15) -> 0.0009989698217 | G41: 38 | H41: =IF(I$1="Decline",(G41*QsrcLitres)/SourceInputsAttenuation!$C$33,"") -> 0.006273337132 | I41: =IF(I$1="Decline",SourceInputsAttenuation!$E$16*EXP(-1*(SourceInputsAttenuation!$I$16*SrcDecline!E41)),SourceInputsAttenuation!$E$16) -> 0.866811828 | J41: 38 | K41: =IF(L$1="Decline",(J41*QsrcLitres)/SourceInputsAttenuation!$C$33,"") -> 0.006273337132 | L41: =IF(L$1="Decline",SourceInputsAttenuation!$E$17*EXP(-1*(SourceInputsAttenuation!$I$17*SrcDecline!K41)),SourceInputsAttenuation!$E$17) -> 0.003993155578 | M41: 38 | N41: =IF(O$1="Decline",(M41*QsrcLitres)/SourceInputsAttenuation!$C$33,"") -> 0.006273337132 | O41: =IF(O$1="Decline",SourceInputsAttenuation!$E$18*EXP(-1*(SourceInputsAttenuation!$I$18*SrcDecline!N41)),SourceInputsAttenuation!$E$18) -> 0.3992540288 | P41: 38 | Q41: =IF(R$1="Decline",(P41*QsrcLitres)/SourceInputsAttenuation!$C$33,"") -> 0.006273337132 | R41: =IF(R$1="Decline",SourceInputsAttenuation!$E$19*EXP(-1*(SourceInputsAttenuation!$I$19*SrcDecline!Q41)),SourceInputsAttenuation!$E$19) -> 0.1996201865 | S41: 38 | T41: =IF(U$1="Decline",(S41*QsrcLitres)/SourceInputsAttenuation!$C$33,"") -> 0.006273337132 | U41: =IF(U$1="Decline",SourceInputsAttenuation!$E$20*EXP(-1*(SourceInputsAttenuation!$I$20*SrcDecline!T41)),SourceInputsAttenuation!$E$20) -> 0.04994031266
A42: 39 | B42: =IF(C$1="Decline",(A42*QsrcLitres)/(SourceInputsAttenuation!$C$33),"") -> 0.006438424951 | C42: =IF(C$1="Decline",SourceInputsAttenuation!$E$14*EXP(-1*((SourceInputsAttenuation!$I$14)*SrcDecline!B42)),SourceInputsAttenuation!$E$14) -> 0.04997549204 | D42: 39 | E42: =IF(F$1="Decline",(D42*QsrcLitres)/SourceInputsAttenuation!$C$33,"") -> 0.006438424951 | F42: =IF(F$1="Decline",SourceInputsAttenuation!$E$15*EXP(-1*(SourceInputsAttenuation!$I$15*SrcDecline!E42)),SourceInputsAttenuation!$E$15) -> 0.0009989427261 | G42: 39 | H42: =IF(I$1="Decline",(G42*QsrcLitres)/SourceInputsAttenuation!$C$33,"") -> 0.006438424951 | I42: =IF(I$1="Decline",SourceInputsAttenuation!$E$16*EXP(-1*(SourceInputsAttenuation!$I$16*SrcDecline!E42)),SourceInputsAttenuation!$E$16) -> 0.866741199 | J42: 39 | K42: =IF(L$1="Decline",(J42*QsrcLitres)/SourceInputsAttenuation!$C$33,"") -> 0.006438424951 | L42: =IF(L$1="Decline",SourceInputsAttenuation!$E$17*EXP(-1*(SourceInputsAttenuation!$I$17*SrcDecline!K42)),SourceInputsAttenuation!$E$17) -> 0.00399297562 | M42: 39 | N42: =IF(O$1="Decline",(M42*QsrcLitres)/SourceInputsAttenuation!$C$33,"") -> 0.006438424951 | O42: =IF(O$1="Decline",SourceInputsAttenuation!$E$18*EXP(-1*(SourceInputsAttenuation!$I$18*SrcDecline!N42)),SourceInputsAttenuation!$E$18) -> 0.3992344167 | P42: 39 | Q42: =IF(R$1="Decline",(P42*QsrcLitres)/SourceInputsAttenuation!$C$33,"") -> 0.006438424951 | R42: =IF(R$1="Decline",SourceInputsAttenuation!$E$19*EXP(-1*(SourceInputsAttenuation!$I$19*SrcDecline!Q42)),SourceInputsAttenuation!$E$19) -> 0.1996102011 | S42: 39 | T42: =IF(U$1="Decline",(S42*QsrcLitres)/SourceInputsAttenuation!$C$33,"") -> 0.006438424951 | U42: =IF(U$1="Decline",SourceInputsAttenuation!$E$20*EXP(-1*(SourceInputsAttenuation!$I$20*SrcDecline!T42)),SourceInputsAttenuation!$E$20) -> 0.04993874291
A43: 40 | B43: =IF(C$1="Decline",(A43*QsrcLitres)/(SourceInputsAttenuation!$C$33),"") -> 0.00660351277 | C43: =IF(C$1="Decline",SourceInputsAttenuation!$E$14*EXP(-1*((SourceInputsAttenuation!$I$14)*SrcDecline!B43)),SourceInputsAttenuation!$E$14) -> 0.04997486379 | D43: 40 | E43: =IF(F$1="Decline",(D43*QsrcLitres)/SourceInputsAttenuation!$C$33,"") -> 0.00660351277 | F43: =IF(F$1="Decline",SourceInputsAttenuation!$E$15*EXP(-1*(SourceInputsAttenuation!$I$15*SrcDecline!E43)),SourceInputsAttenuation!$E$15) -> 0.0009989156312 | G43: 40 | H43: =IF(I$1="Decline",(G43*QsrcLitres)/SourceInputsAttenuation!$C$33,"") -> 0.00660351277 | I43: =IF(I$1="Decline",SourceInputsAttenuation!$E$16*EXP(-1*(SourceInputsAttenuation!$I$16*SrcDecline!E43)),SourceInputsAttenuation!$E$16) -> 0.8666705757 | J43: 40 | K43: =IF(L$1="Decline",(J43*QsrcLitres)/SourceInputsAttenuation!$C$33,"") -> 0.00660351277 | L43: =IF(L$1="Decline",SourceInputsAttenuation!$E$17*EXP(-1*(SourceInputsAttenuation!$I$17*SrcDecline!K43)),SourceInputsAttenuation!$E$17) -> 0.00399279567 | M43: 40 | N43: =IF(O$1="Decline",(M43*QsrcLitres)/SourceInputsAttenuation!$C$33,"") -> 0.00660351277 | O43: =IF(O$1="Decline",SourceInputsAttenuation!$E$18*EXP(-1*(SourceInputsAttenuation!$I$18*SrcDecline!N43)),SourceInputsAttenuation!$E$18) -> 0.3992148057 | P43: 40 | Q43: =IF(R$1="Decline",(P43*QsrcLitres)/SourceInputsAttenuation!$C$33,"") -> 0.00660351277 | R43: =IF(R$1="Decline",SourceInputsAttenuation!$E$19*EXP(-1*(SourceInputsAttenuation!$I$19*SrcDecline!Q43)),SourceInputsAttenuation!$E$19) -> 0.1996002163 | S43: 40 | T43: =IF(U$1="Decline",(S43*QsrcLitres)/SourceInputsAttenuation!$C$33,"") -> 0.00660351277 | U43: =IF(U$1="Decline",SourceInputsAttenuation!$E$20*EXP(-1*(SourceInputsAttenuation!$I$20*SrcDecline!T43)),SourceInputsAttenuation!$E$20) -> 0.0499371732
A44: 41 | B44: =IF(C$1="Decline",(A44*QsrcLitres)/(SourceInputsAttenuation!$C$33),"") -> 0.006768600589 | C44: =IF(C$1="Decline",SourceInputsAttenuation!$E$14*EXP(-1*((SourceInputsAttenuation!$I$14)*SrcDecline!B44)),SourceInputsAttenuation!$E$14) -> 0.04997423555 | D44: 41 | E44: =IF(F$1="Decline",(D44*QsrcLitres)/SourceInputsAttenuation!$C$33,"") -> 0.006768600589 | F44: =IF(F$1="Decline",SourceInputsAttenuation!$E$15*EXP(-1*(SourceInputsAttenuation!$I$15*SrcDecline!E44)),SourceInputsAttenuation!$E$15) -> 0.0009988885371 | G44: 41 | H44: =IF(I$1="Decline",(G44*QsrcLitres)/SourceInputsAttenuation!$C$33,"") -> 0.006768600589 | I44: =IF(I$1="Decline",SourceInputsAttenuation!$E$16*EXP(-1*(SourceInputsAttenuation!$I$16*SrcDecline!E44)),SourceInputsAttenuation!$E$16) -> 0.8665999582 | J44: 41 | K44: =IF(L$1="Decline",(J44*QsrcLitres)/SourceInputsAttenuation!$C$33,"") -> 0.006768600589 | L44: =IF(L$1="Decline",SourceInputsAttenuation!$E$17*EXP(-1*(SourceInputsAttenuation!$I$17*SrcDecline!K44)),SourceInputsAttenuation!$E$17) -> 0.003992615728 | M44: 41 | N44: =IF(O$1="Decline",(M44*QsrcLitres)/SourceInputsAttenuation!$C$33,"") -> 0.006768600589 | O44: =IF(O$1="Decline",SourceInputsAttenuation!$E$18*EXP(-1*(SourceInputsAttenuation!$I$18*SrcDecline!N44)),SourceInputsAttenuation!$E$18) -> 0.3991951956 | P44: 41 | Q44: =IF(R$1="Decline",(P44*QsrcLitres)/SourceInputsAttenuation!$C$33,"") -> 0.006768600589 | R44: =IF(R$1="Decline",SourceInputsAttenuation!$E$19*EXP(-1*(SourceInputsAttenuation!$I$19*SrcDecline!Q44)),SourceInputsAttenuation!$E$19) -> 0.199590232 | S44: 41 | T44: =IF(U$1="Decline",(S44*QsrcLitres)/SourceInputsAttenuation!$C$33,"") -> 0.006768600589 | U44: =IF(U$1="Decline",SourceInputsAttenuation!$E$20*EXP(-1*(SourceInputsAttenuation!$I$20*SrcDecline!T44)),SourceInputsAttenuation!$E$20) -> 0.04993560354
A45: 42 | B45: =IF(C$1="Decline",(A45*QsrcLitres)/(SourceInputsAttenuation!$C$33),"") -> 0.006933688409 | C45: =IF(C$1="Decline",SourceInputsAttenuation!$E$14*EXP(-1*((SourceInputsAttenuation!$I$14)*SrcDecline!B45)),SourceInputsAttenuation!$E$14) -> 0.04997360731 | D45: 42 | E45: =IF(F$1="Decline",(D45*QsrcLitres)/SourceInputsAttenuation!$C$33,"") -> 0.006933688409 | F45: =IF(F$1="Decline",SourceInputsAttenuation!$E$15*EXP(-1*(SourceInputsAttenuation!$I$15*SrcDecline!E45)),SourceInputsAttenuation!$E$15) -> 0.0009988614436 | G45: 42 | H45: =IF(I$1="Decline",(G45*QsrcLitres)/SourceInputsAttenuation!$C$33,"") -> 0.006933688409 | I45: =IF(I$1="Decline",SourceInputsAttenuation!$E$16*EXP(-1*(SourceInputsAttenuation!$I$16*SrcDecline!E45)),SourceInputsAttenuation!$E$16) -> 0.8665293464 | J45: 42 | K45: =IF(L$1="Decline",(J45*QsrcLitres)/SourceInputsAttenuation!$C$33,"") -> 0.006933688409 | L45: =IF(L$1="Decline",SourceInputsAttenuation!$E$17*EXP(-1*(SourceInputsAttenuation!$I$17*SrcDecline!K45)),SourceInputsAttenuation!$E$17) -> 0.003992435795 | M45: 42 | N45: =IF(O$1="Decline",(M45*QsrcLitres)/SourceInputsAttenuation!$C$33,"") -> 0.006933688409 | O45: =IF(O$1="Decline",SourceInputsAttenuation!$E$18*EXP(-1*(SourceInputsAttenuation!$I$18*SrcDecline!N45)),SourceInputsAttenuation!$E$18) -> 0.3991755864 | P45: 42 | Q45: =IF(R$1="Decline",(P45*QsrcLitres)/SourceInputsAttenuation!$C$33,"") -> 0.006933688409 | R45: =IF(R$1="Decline",SourceInputsAttenuation!$E$19*EXP(-1*(SourceInputsAttenuation!$I$19*SrcDecline!Q45)),SourceInputsAttenuation!$E$19) -> 0.1995802481 | S45: 42 | T45: =IF(U$1="Decline",(S45*QsrcLitres)/SourceInputsAttenuation!$C$33,"") -> 0.006933688409 | U45: =IF(U$1="Decline",SourceInputsAttenuation!$E$20*EXP(-1*(SourceInputsAttenuation!$I$20*SrcDecline!T45)),SourceInputsAttenuation!$E$20) -> 0.04993403393
A46: 43 | B46: =IF(C$1="Decline",(A46*QsrcLitres)/(SourceInputsAttenuation!$C$33),"") -> 0.007098776228 | C46: =IF(C$1="Decline",SourceInputsAttenuation!$E$14*EXP(-1*((SourceInputsAttenuation!$I$14)*SrcDecline!B46)),SourceInputsAttenuation!$E$14) -> 0.04997297908 | D46: 43 | E46: =IF(F$1="Decline",(D46*QsrcLitres)/SourceInputsAttenuation!$C$33,"") -> 0.007098776228 | F46: =IF(F$1="Decline",SourceInputsAttenuation!$E$15*EXP(-1*(SourceInputsAttenuation!$I$15*SrcDecline!E46)),SourceInputsAttenuation!$E$15) -> 0.000998834351 | G46: 43 | H46: =IF(I$1="Decline",(G46*QsrcLitres)/SourceInputsAttenuation!$C$33,"") -> 0.007098776228 | I46: =IF(I$1="Decline",SourceInputsAttenuation!$E$16*EXP(-1*(SourceInputsAttenuation!$I$16*SrcDecline!E46)),SourceInputsAttenuation!$E$16) -> 0.8664587404 | J46: 43 | K46: =IF(L$1="Decline",(J46*QsrcLitres)/SourceInputsAttenuation!$C$33,"") -> 0.007098776228 | L46: =IF(L$1="Decline",SourceInputsAttenuation!$E$17*EXP(-1*(SourceInputsAttenuation!$I$17*SrcDecline!K46)),SourceInputsAttenuation!$E$17) -> 0.003992255869 | M46: 43 | N46: =IF(O$1="Decline",(M46*QsrcLitres)/SourceInputsAttenuation!$C$33,"") -> 0.007098776228 | O46: =IF(O$1="Decline",SourceInputsAttenuation!$E$18*EXP(-1*(SourceInputsAttenuation!$I$18*SrcDecline!N46)),SourceInputsAttenuation!$E$18) -> 0.3991559783 | P46: 43 | Q46: =IF(R$1="Decline",(P46*QsrcLitres)/SourceInputsAttenuation!$C$33,"") -> 0.007098776228 | R46: =IF(R$1="Decline",SourceInputsAttenuation!$E$19*EXP(-1*(SourceInputsAttenuation!$I$19*SrcDecline!Q46)),SourceInputsAttenuation!$E$19) -> 0.1995702648 | S46: 43 | T46: =IF(U$1="Decline",(S46*QsrcLitres)/SourceInputsAttenuation!$C$33,"") -> 0.007098776228 | U46: =IF(U$1="Decline",SourceInputsAttenuation!$E$20*EXP(-1*(SourceInputsAttenuation!$I$20*SrcDecline!T46)),SourceInputsAttenuation!$E$20) -> 0.04993246437
A47: 44 | B47: =IF(C$1="Decline",(A47*QsrcLitres)/(SourceInputsAttenuation!$C$33),"") -> 0.007263864047 | C47: =IF(C$1="Decline",SourceInputsAttenuation!$E$14*EXP(-1*((SourceInputsAttenuation!$I$14)*SrcDecline!B47)),SourceInputsAttenuation!$E$14) -> 0.04997235086 | D47: 44 | E47: =IF(F$1="Decline",(D47*QsrcLitres)/SourceInputsAttenuation!$C$33,"") -> 0.007263864047 | F47: =IF(F$1="Decline",SourceInputsAttenuation!$E$15*EXP(-1*(SourceInputsAttenuation!$I$15*SrcDecline!E47)),SourceInputsAttenuation!$E$15) -> 0.000998807259 | G47: 44 | H47: =IF(I$1="Decline",(G47*QsrcLitres)/SourceInputsAttenuation!$C$33,"") -> 0.007263864047 | I47: =IF(I$1="Decline",SourceInputsAttenuation!$E$16*EXP(-1*(SourceInputsAttenuation!$I$16*SrcDecline!E47)),SourceInputsAttenuation!$E$16) -> 0.8663881402 | J47: 44 | K47: =IF(L$1="Decline",(J47*QsrcLitres)/SourceInputsAttenuation!$C$33,"") -> 0.007263864047 | L47: =IF(L$1="Decline",SourceInputsAttenuation!$E$17*EXP(-1*(SourceInputsAttenuation!$I$17*SrcDecline!K47)),SourceInputsAttenuation!$E$17) -> 0.003992075951 | M47: 44 | N47: =IF(O$1="Decline",(M47*QsrcLitres)/SourceInputsAttenuation!$C$33,"") -> 0.007263864047 | O47: =IF(O$1="Decline",SourceInputsAttenuation!$E$18*EXP(-1*(SourceInputsAttenuation!$I$18*SrcDecline!N47)),SourceInputsAttenuation!$E$18) -> 0.3991363711 | P47: 44 | Q47: =IF(R$1="Decline",(P47*QsrcLitres)/SourceInputsAttenuation!$C$33,"") -> 0.007263864047 | R47: =IF(R$1="Decline",SourceInputsAttenuation!$E$19*EXP(-1*(SourceInputsAttenuation!$I$19*SrcDecline!Q47)),SourceInputsAttenuation!$E$19) -> 0.1995602819 | S47: 44 | T47: =IF(U$1="Decline",(S47*QsrcLitres)/SourceInputsAttenuation!$C$33,"") -> 0.007263864047 | U47: =IF(U$1="Decline",SourceInputsAttenuation!$E$20*EXP(-1*(SourceInputsAttenuation!$I$20*SrcDecline!T47)),SourceInputsAttenuation!$E$20) -> 0.04993089486
A48: 45 | B48: =IF(C$1="Decline",(A48*QsrcLitres)/(SourceInputsAttenuation!$C$33),"") -> 0.007428951866 | C48: =IF(C$1="Decline",SourceInputsAttenuation!$E$14*EXP(-1*((SourceInputsAttenuation!$I$14)*SrcDecline!B48)),SourceInputsAttenuation!$E$14) -> 0.04997172265 | D48: 45 | E48: =IF(F$1="Decline",(D48*QsrcLitres)/SourceInputsAttenuation!$C$33,"") -> 0.007428951866 | F48: =IF(F$1="Decline",SourceInputsAttenuation!$E$15*EXP(-1*(SourceInputsAttenuation!$I$15*SrcDecline!E48)),SourceInputsAttenuation!$E$15) -> 0.0009987801678 | G48: 45 | H48: =IF(I$1="Decline",(G48*QsrcLitres)/SourceInputsAttenuation!$C$33,"") -> 0.007428951866 | I48: =IF(I$1="Decline",SourceInputsAttenuation!$E$16*EXP(-1*(SourceInputsAttenuation!$I$16*SrcDecline!E48)),SourceInputsAttenuation!$E$16) -> 0.8663175457 | J48: 45 | K48: =IF(L$1="Decline",(J48*QsrcLitres)/SourceInputsAttenuation!$C$33,"") -> 0.007428951866 | L48: =IF(L$1="Decline",SourceInputsAttenuation!$E$17*EXP(-1*(SourceInputsAttenuation!$I$17*SrcDecline!K48)),SourceInputsAttenuation!$E$17) -> 0.003991896042 | M48: 45 | N48: =IF(O$1="Decline",(M48*QsrcLitres)/SourceInputsAttenuation!$C$33,"") -> 0.007428951866 | O48: =IF(O$1="Decline",SourceInputsAttenuation!$E$18*EXP(-1*(SourceInputsAttenuation!$I$18*SrcDecline!N48)),SourceInputsAttenuation!$E$18) -> 0.3991167648 | P48: 45 | Q48: =IF(R$1="Decline",(P48*QsrcLitres)/SourceInputsAttenuation!$C$33,"") -> 0.007428951866 | R48: =IF(R$1="Decline",SourceInputsAttenuation!$E$19*EXP(-1*(SourceInputsAttenuation!$I$19*SrcDecline!Q48)),SourceInputsAttenuation!$E$19) -> 0.1995502996 | S48: 45 | T48: =IF(U$1="Decline",(S48*QsrcLitres)/SourceInputsAttenuation!$C$33,"") -> 0.007428951866 | U48: =IF(U$1="Decline",SourceInputsAttenuation!$E$20*EXP(-1*(SourceInputsAttenuation!$I$20*SrcDecline!T48)),SourceInputsAttenuation!$E$20) -> 0.0499293254
A49: 46 | B49: =IF(C$1="Decline",(A49*QsrcLitres)/(SourceInputsAttenuation!$C$33),"") -> 0.007594039686 | C49: =IF(C$1="Decline",SourceInputsAttenuation!$E$14*EXP(-1*((SourceInputsAttenuation!$I$14)*SrcDecline!B49)),SourceInputsAttenuation!$E$14) -> 0.04997109445 | D49: 46 | E49: =IF(F$1="Decline",(D49*QsrcLitres)/SourceInputsAttenuation!$C$33,"") -> 0.007594039686 | F49: =IF(F$1="Decline",SourceInputsAttenuation!$E$15*EXP(-1*(SourceInputsAttenuation!$I$15*SrcDecline!E49)),SourceInputsAttenuation!$E$15) -> 0.0009987530773 | G49: 46 | H49: =IF(I$1="Decline",(G49*QsrcLitres)/SourceInputsAttenuation!$C$33,"") -> 0.007594039686 | I49: =IF(I$1="Decline",SourceInputsAttenuation!$E$16*EXP(-1*(SourceInputsAttenuation!$I$16*SrcDecline!E49)),SourceInputsAttenuation!$E$16) -> 0.8662469569 | J49: 46 | K49: =IF(L$1="Decline",(J49*QsrcLitres)/SourceInputsAttenuation!$C$33,"") -> 0.007594039686 | L49: =IF(L$1="Decline",SourceInputsAttenuation!$E$17*EXP(-1*(SourceInputsAttenuation!$I$17*SrcDecline!K49)),SourceInputsAttenuation!$E$17) -> 0.003991716141 | M49: 46 | N49: =IF(O$1="Decline",(M49*QsrcLitres)/SourceInputsAttenuation!$C$33,"") -> 0.007594039686 | O49: =IF(O$1="Decline",SourceInputsAttenuation!$E$18*EXP(-1*(SourceInputsAttenuation!$I$18*SrcDecline!N49)),SourceInputsAttenuation!$E$18) -> 0.3990971595 | P49: 46 | Q49: =IF(R$1="Decline",(P49*QsrcLitres)/SourceInputsAttenuation!$C$33,"") -> 0.007594039686 | R49: =IF(R$1="Decline",SourceInputsAttenuation!$E$19*EXP(-1*(SourceInputsAttenuation!$I$19*SrcDecline!Q49)),SourceInputsAttenuation!$E$19) -> 0.1995403177 | S49: 46 | T49: =IF(U$1="Decline",(S49*QsrcLitres)/SourceInputsAttenuation!$C$33,"") -> 0.007594039686 | U49: =IF(U$1="Decline",SourceInputsAttenuation!$E$20*EXP(-1*(SourceInputsAttenuation!$I$20*SrcDecline!T49)),SourceInputsAttenuation!$E$20) -> 0.04992775599
A50: 47 | B50: =IF(C$1="Decline",(A50*QsrcLitres)/(SourceInputsAttenuation!$C$33),"") -> 0.007759127505 | C50: =IF(C$1="Decline",SourceInputsAttenuation!$E$14*EXP(-1*((SourceInputsAttenuation!$I$14)*SrcDecline!B50)),SourceInputsAttenuation!$E$14) -> 0.04997046625 | D50: 47 | E50: =IF(F$1="Decline",(D50*QsrcLitres)/SourceInputsAttenuation!$C$33,"") -> 0.007759127505 | F50: =IF(F$1="Decline",SourceInputsAttenuation!$E$15*EXP(-1*(SourceInputsAttenuation!$I$15*SrcDecline!E50)),SourceInputsAttenuation!$E$15) -> 0.0009987259876 | G50: 47 | H50: =IF(I$1="Decline",(G50*QsrcLitres)/SourceInputsAttenuation!$C$33,"") -> 0.007759127505 | I50: =IF(I$1="Decline",SourceInputsAttenuation!$E$16*EXP(-1*(SourceInputsAttenuation!$I$16*SrcDecline!E50)),SourceInputsAttenuation!$E$16) -> 0.8661763739 | J50: 47 | K50: =IF(L$1="Decline",(J50*QsrcLitres)/SourceInputsAttenuation!$C$33,"") -> 0.007759127505 | L50: =IF(L$1="Decline",SourceInputsAttenuation!$E$17*EXP(-1*(SourceInputsAttenuation!$I$17*SrcDecline!K50)),SourceInputsAttenuation!$E$17) -> 0.003991536247 | M50: 47 | N50: =IF(O$1="Decline",(M50*QsrcLitres)/SourceInputsAttenuation!$C$33,"") -> 0.007759127505 | O50: =IF(O$1="Decline",SourceInputsAttenuation!$E$18*EXP(-1*(SourceInputsAttenuation!$I$18*SrcDecline!N50)),SourceInputsAttenuation!$E$18) -> 0.3990775552 | P50: 47 | Q50: =IF(R$1="Decline",(P50*QsrcLitres)/SourceInputsAttenuation!$C$33,"") -> 0.007759127505 | R50: =IF(R$1="Decline",SourceInputsAttenuation!$E$19*EXP(-1*(SourceInputsAttenuation!$I$19*SrcDecline!Q50)),SourceInputsAttenuation!$E$19) -> 0.1995303364 | S50: 47 | T50: =IF(U$1="Decline",(S50*QsrcLitres)/SourceInputsAttenuation!$C$33,"") -> 0.007759127505 | U50: =IF(U$1="Decline",SourceInputsAttenuation!$E$20*EXP(-1*(SourceInputsAttenuation!$I$20*SrcDecline!T50)),SourceInputsAttenuation!$E$20) -> 0.04992618663
A51: 48 | B51: =IF(C$1="Decline",(A51*QsrcLitres)/(SourceInputsAttenuation!$C$33),"") -> 0.007924215324 | C51: =IF(C$1="Decline",SourceInputsAttenuation!$E$14*EXP(-1*((SourceInputsAttenuation!$I$14)*SrcDecline!B51)),SourceInputsAttenuation!$E$14) -> 0.04996983807 | D51: 48 | E51: =IF(F$1="Decline",(D51*QsrcLitres)/SourceInputsAttenuation!$C$33,"") -> 0.007924215324 | F51: =IF(F$1="Decline",SourceInputsAttenuation!$E$15*EXP(-1*(SourceInputsAttenuation!$I$15*SrcDecline!E51)),SourceInputsAttenuation!$E$15) -> 0.0009986988986 | G51: 48 | H51: =IF(I$1="Decline",(G51*QsrcLitres)/SourceInputsAttenuation!$C$33,"") -> 0.007924215324 | I51: =IF(I$1="Decline",SourceInputsAttenuation!$E$16*EXP(-1*(SourceInputsAttenuation!$I$16*SrcDecline!E51)),SourceInputsAttenuation!$E$16) -> 0.8661057967 | J51: 48 | K51: =IF(L$1="Decline",(J51*QsrcLitres)/SourceInputsAttenuation!$C$33,"") -> 0.007924215324 | L51: =IF(L$1="Decline",SourceInputsAttenuation!$E$17*EXP(-1*(SourceInputsAttenuation!$I$17*SrcDecline!K51)),SourceInputsAttenuation!$E$17) -> 0.003991356362 | M51: 48 | N51: =IF(O$1="Decline",(M51*QsrcLitres)/SourceInputsAttenuation!$C$33,"") -> 0.007924215324 | O51: =IF(O$1="Decline",SourceInputsAttenuation!$E$18*EXP(-1*(SourceInputsAttenuation!$I$18*SrcDecline!N51)),SourceInputsAttenuation!$E$18) -> 0.3990579519 | P51: 48 | Q51: =IF(R$1="Decline",(P51*QsrcLitres)/SourceInputsAttenuation!$C$33,"") -> 0.007924215324 | R51: =IF(R$1="Decline",SourceInputsAttenuation!$E$19*EXP(-1*(SourceInputsAttenuation!$I$19*SrcDecline!Q51)),SourceInputsAttenuation!$E$19) -> 0.1995203555 | S51: 48 | T51: =IF(U$1="Decline",(S51*QsrcLitres)/SourceInputsAttenuation!$C$33,"") -> 0.007924215324 | U51: =IF(U$1="Decline",SourceInputsAttenuation!$E$20*EXP(-1*(SourceInputsAttenuation!$I$20*SrcDecline!T51)),SourceInputsAttenuation!$E$20) -> 0.04992461732
A52: 49 | B52: =IF(C$1="Decline",(A52*QsrcLitres)/(SourceInputsAttenuation!$C$33),"") -> 0.008089303143 | C52: =IF(C$1="Decline",SourceInputsAttenuation!$E$14*EXP(-1*((SourceInputsAttenuation!$I$14)*SrcDecline!B52)),SourceInputsAttenuation!$E$14) -> 0.04996920989 | D52: 49 | E52: =IF(F$1="Decline",(D52*QsrcLitres)/SourceInputsAttenuation!$C$33,"") -> 0.008089303143 | F52: =IF(F$1="Decline",SourceInputsAttenuation!$E$15*EXP(-1*(SourceInputsAttenuation!$I$15*SrcDecline!E52)),SourceInputsAttenuation!$E$15) -> 0.0009986718103 | G52: 49 | H52: =IF(I$1="Decline",(G52*QsrcLitres)/SourceInputsAttenuation!$C$33,"") -> 0.008089303143 | I52: =IF(I$1="Decline",SourceInputsAttenuation!$E$16*EXP(-1*(SourceInputsAttenuation!$I$16*SrcDecline!E52)),SourceInputsAttenuation!$E$16) -> 0.8660352252 | J52: 49 | K52: =IF(L$1="Decline",(J52*QsrcLitres)/SourceInputsAttenuation!$C$33,"") -> 0.008089303143 | L52: =IF(L$1="Decline",SourceInputsAttenuation!$E$17*EXP(-1*(SourceInputsAttenuation!$I$17*SrcDecline!K52)),SourceInputsAttenuation!$E$17) -> 0.003991176485 | M52: 49 | N52: =IF(O$1="Decline",(M52*QsrcLitres)/SourceInputsAttenuation!$C$33,"") -> 0.008089303143 | O52: =IF(O$1="Decline",SourceInputsAttenuation!$E$18*EXP(-1*(SourceInputsAttenuation!$I$18*SrcDecline!N52)),SourceInputsAttenuation!$E$18) -> 0.3990383495 | P52: 49 | Q52: =IF(R$1="Decline",(P52*QsrcLitres)/SourceInputsAttenuation!$C$33,"") -> 0.008089303143 | R52: =IF(R$1="Decline",SourceInputsAttenuation!$E$19*EXP(-1*(SourceInputsAttenuation!$I$19*SrcDecline!Q52)),SourceInputsAttenuation!$E$19) -> 0.1995103752 | S52: 49 | T52: =IF(U$1="Decline",(S52*QsrcLitres)/SourceInputsAttenuation!$C$33,"") -> 0.008089303143 | U52: =IF(U$1="Decline",SourceInputsAttenuation!$E$20*EXP(-1*(SourceInputsAttenuation!$I$20*SrcDecline!T52)),SourceInputsAttenuation!$E$20) -> 0.04992304805
A53: 50 | B53: =IF(C$1="Decline",(A53*QsrcLitres)/(SourceInputsAttenuation!$C$33),"") -> 0.008254390963 | C53: =IF(C$1="Decline",SourceInputsAttenuation!$E$14*EXP(-1*((SourceInputsAttenuation!$I$14)*SrcDecline!B53)),SourceInputsAttenuation!$E$14) -> 0.04996858171 | D53: 50 | E53: =IF(F$1="Decline",(D53*QsrcLitres)/SourceInputsAttenuation!$C$33,"") -> 0.008254390963 | F53: =IF(F$1="Decline",SourceInputsAttenuation!$E$15*EXP(-1*(SourceInputsAttenuation!$I$15*SrcDecline!E53)),SourceInputsAttenuation!$E$15) -> 0.0009986447228 | G53: 50 | H53: =IF(I$1="Decline",(G53*QsrcLitres)/SourceInputsAttenuation!$C$33,"") -> 0.008254390963 | I53: =IF(I$1="Decline",SourceInputsAttenuation!$E$16*EXP(-1*(SourceInputsAttenuation!$I$16*SrcDecline!E53)),SourceInputsAttenuation!$E$16) -> 0.8659646594 | J53: 50 | K53: =IF(L$1="Decline",(J53*QsrcLitres)/SourceInputsAttenuation!$C$33,"") -> 0.008254390963 | L53: =IF(L$1="Decline",SourceInputsAttenuation!$E$17*EXP(-1*(SourceInputsAttenuation!$I$17*SrcDecline!K53)),SourceInputsAttenuation!$E$17) -> 0.003990996616 | M53: 50 | N53: =IF(O$1="Decline",(M53*QsrcLitres)/SourceInputsAttenuation!$C$33,"") -> 0.008254390963 | O53: =IF(O$1="Decline",SourceInputsAttenuation!$E$18*EXP(-1*(SourceInputsAttenuation!$I$18*SrcDecline!N53)),SourceInputsAttenuation!$E$18) -> 0.399018748 | P53: 50 | Q53: =IF(R$1="Decline",(P53*QsrcLitres)/SourceInputsAttenuation!$C$33,"") -> 0.008254390963 | R53: =IF(R$1="Decline",SourceInputsAttenuation!$E$19*EXP(-1*(SourceInputsAttenuation!$I$19*SrcDecline!Q53)),SourceInputsAttenuation!$E$19) -> 0.1995003953 | S53: 50 | T53: =IF(U$1="Decline",(S53*QsrcLitres)/SourceInputsAttenuation!$C$33,"") -> 0.008254390963 | U53: =IF(U$1="Decline",SourceInputsAttenuation!$E$20*EXP(-1*(SourceInputsAttenuation!$I$20*SrcDecline!T53)),SourceInputsAttenuation!$E$20) -> 0.04992147884
A54: 51 | B54: =IF(C$1="Decline",(A54*QsrcLitres)/(SourceInputsAttenuation!$C$33),"") -> 0.008419478782 | C54: =IF(C$1="Decline",SourceInputsAttenuation!$E$14*EXP(-1*((SourceInputsAttenuation!$I$14)*SrcDecline!B54)),SourceInputsAttenuation!$E$14) -> 0.04996795355 | D54: 51 | E54: =IF(F$1="Decline",(D54*QsrcLitres)/SourceInputsAttenuation!$C$33,"") -> 0.008419478782 | F54: =IF(F$1="Decline",SourceInputsAttenuation!$E$15*EXP(-1*(SourceInputsAttenuation!$I$15*SrcDecline!E54)),SourceInputsAttenuation!$E$15) -> 0.000998617636 | G54: 51 | H54: =IF(I$1="Decline",(G54*QsrcLitres)/SourceInputsAttenuation!$C$33,"") -> 0.008419478782 | I54: =IF(I$1="Decline",SourceInputsAttenuation!$E$16*EXP(-1*(SourceInputsAttenuation!$I$16*SrcDecline!E54)),SourceInputsAttenuation!$E$16) -> 0.8658940994 | J54: 51 | K54: =IF(L$1="Decline",(J54*QsrcLitres)/SourceInputsAttenuation!$C$33,"") -> 0.008419478782 | L54: =IF(L$1="Decline",SourceInputsAttenuation!$E$17*EXP(-1*(SourceInputsAttenuation!$I$17*SrcDecline!K54)),SourceInputsAttenuation!$E$17) -> 0.003990816755 | M54: 51 | N54: =IF(O$1="Decline",(M54*QsrcLitres)/SourceInputsAttenuation!$C$33,"") -> 0.008419478782 | O54: =IF(O$1="Decline",SourceInputsAttenuation!$E$18*EXP(-1*(SourceInputsAttenuation!$I$18*SrcDecline!N54)),SourceInputsAttenuation!$E$18) -> 0.3989991476 | P54: 51 | Q54: =IF(R$1="Decline",(P54*QsrcLitres)/SourceInputsAttenuation!$C$33,"") -> 0.008419478782 | R54: =IF(R$1="Decline",SourceInputsAttenuation!$E$19*EXP(-1*(SourceInputsAttenuation!$I$19*SrcDecline!Q54)),SourceInputsAttenuation!$E$19) -> 0.1994904159 | S54: 51 | T54: =IF(U$1="Decline",(S54*QsrcLitres)/SourceInputsAttenuation!$C$33,"") -> 0.008419478782 | U54: =IF(U$1="Decline",SourceInputsAttenuation!$E$20*EXP(-1*(SourceInputsAttenuation!$I$20*SrcDecline!T54)),SourceInputsAttenuation!$E$20) -> 0.04991990967
A55: 52 | B55: =IF(C$1="Decline",(A55*QsrcLitres)/(SourceInputsAttenuation!$C$33),"") -> 0.008584566601 | C55: =IF(C$1="Decline",SourceInputsAttenuation!$E$14*EXP(-1*((SourceInputsAttenuation!$I$14)*SrcDecline!B55)),SourceInputsAttenuation!$E$14) -> 0.04996732539 | D55: 52 | E55: =IF(F$1="Decline",(D55*QsrcLitres)/SourceInputsAttenuation!$C$33,"") -> 0.008584566601 | F55: =IF(F$1="Decline",SourceInputsAttenuation!$E$15*EXP(-1*(SourceInputsAttenuation!$I$15*SrcDecline!E55)),SourceInputsAttenuation!$E$15) -> 0.0009985905499 | G55: 52 | H55: =IF(I$1="Decline",(G55*QsrcLitres)/SourceInputsAttenuation!$C$33,"") -> 0.008584566601 | I55: =IF(I$1="Decline",SourceInputsAttenuation!$E$16*EXP(-1*(SourceInputsAttenuation!$I$16*SrcDecline!E55)),SourceInputsAttenuation!$E$16) -> 0.8658235452 | J55: 52 | K55: =IF(L$1="Decline",(J55*QsrcLitres)/SourceInputsAttenuation!$C$33,"") -> 0.008584566601 | L55: =IF(L$1="Decline",SourceInputsAttenuation!$E$17*EXP(-1*(SourceInputsAttenuation!$I$17*SrcDecline!K55)),SourceInputsAttenuation!$E$17) -> 0.003990636903 | M55: 52 | N55: =IF(O$1="Decline",(M55*QsrcLitres)/SourceInputsAttenuation!$C$33,"") -> 0.008584566601 | O55: =IF(O$1="Decline",SourceInputsAttenuation!$E$18*EXP(-1*(SourceInputsAttenuation!$I$18*SrcDecline!N55)),SourceInputsAttenuation!$E$18) -> 0.3989795481 | P55: 52 | Q55: =IF(R$1="Decline",(P55*QsrcLitres)/SourceInputsAttenuation!$C$33,"") -> 0.008584566601 | R55: =IF(R$1="Decline",SourceInputsAttenuation!$E$19*EXP(-1*(SourceInputsAttenuation!$I$19*SrcDecline!Q55)),SourceInputsAttenuation!$E$19) -> 0.1994804371 | S55: 52 | T55: =IF(U$1="Decline",(S55*QsrcLitres)/SourceInputsAttenuation!$C$33,"") -> 0.008584566601 | U55: =IF(U$1="Decline",SourceInputsAttenuation!$E$20*EXP(-1*(SourceInputsAttenuation!$I$20*SrcDecline!T55)),SourceInputsAttenuation!$E$20) -> 0.04991834056
A56: 53 | B56: =IF(C$1="Decline",(A56*QsrcLitres)/(SourceInputsAttenuation!$C$33),"") -> 0.00874965442 | C56: =IF(C$1="Decline",SourceInputsAttenuation!$E$14*EXP(-1*((SourceInputsAttenuation!$I$14)*SrcDecline!B56)),SourceInputsAttenuation!$E$14) -> 0.04996669724 | D56: 53 | E56: =IF(F$1="Decline",(D56*QsrcLitres)/SourceInputsAttenuation!$C$33,"") -> 0.00874965442 | F56: =IF(F$1="Decline",SourceInputsAttenuation!$E$15*EXP(-1*(SourceInputsAttenuation!$I$15*SrcDecline!E56)),SourceInputsAttenuation!$E$15) -> 0.0009985634646 | G56: 53 | H56: =IF(I$1="Decline",(G56*QsrcLitres)/SourceInputsAttenuation!$C$33,"") -> 0.00874965442 | I56: =IF(I$1="Decline",SourceInputsAttenuation!$E$16*EXP(-1*(SourceInputsAttenuation!$I$16*SrcDecline!E56)),SourceInputsAttenuation!$E$16) -> 0.8657529967 | J56: 53 | K56: =IF(L$1="Decline",(J56*QsrcLitres)/SourceInputsAttenuation!$C$33,"") -> 0.00874965442 | L56: =IF(L$1="Decline",SourceInputsAttenuation!$E$17*EXP(-1*(SourceInputsAttenuation!$I$17*SrcDecline!K56)),SourceInputsAttenuation!$E$17) -> 0.003990457058 | M56: 53 | N56: =IF(O$1="Decline",(M56*QsrcLitres)/SourceInputsAttenuation!$C$33,"") -> 0.00874965442 | O56: =IF(O$1="Decline",SourceInputsAttenuation!$E$18*EXP(-1*(SourceInputsAttenuation!$I$18*SrcDecline!N56)),SourceInputsAttenuation!$E$18) -> 0.3989599495 | P56: 53 | Q56: =IF(R$1="Decline",(P56*QsrcLitres)/SourceInputsAttenuation!$C$33,"") -> 0.00874965442 | R56: =IF(R$1="Decline",SourceInputsAttenuation!$E$19*EXP(-1*(SourceInputsAttenuation!$I$19*SrcDecline!Q56)),SourceInputsAttenuation!$E$19) -> 0.1994704587 | S56: 53 | T56: =IF(U$1="Decline",(S56*QsrcLitres)/SourceInputsAttenuation!$C$33,"") -> 0.00874965442 | U56: =IF(U$1="Decline",SourceInputsAttenuation!$E$20*EXP(-1*(SourceInputsAttenuation!$I$20*SrcDecline!T56)),SourceInputsAttenuation!$E$20) -> 0.04991677149
A57: 54 | B57: =IF(C$1="Decline",(A57*QsrcLitres)/(SourceInputsAttenuation!$C$33),"") -> 0.00891474224 | C57: =IF(C$1="Decline",SourceInputsAttenuation!$E$14*EXP(-1*((SourceInputsAttenuation!$I$14)*SrcDecline!B57)),SourceInputsAttenuation!$E$14) -> 0.0499660691 | D57: 54 | E57: =IF(F$1="Decline",(D57*QsrcLitres)/SourceInputsAttenuation!$C$33,"") -> 0.00891474224 | F57: =IF(F$1="Decline",SourceInputsAttenuation!$E$15*EXP(-1*(SourceInputsAttenuation!$I$15*SrcDecline!E57)),SourceInputsAttenuation!$E$15) -> 0.00099853638 | G57: 54 | H57: =IF(I$1="Decline",(G57*QsrcLitres)/SourceInputsAttenuation!$C$33,"") -> 0.00891474224 | I57: =IF(I$1="Decline",SourceInputsAttenuation!$E$16*EXP(-1*(SourceInputsAttenuation!$I$16*SrcDecline!E57)),SourceInputsAttenuation!$E$16) -> 0.8656824539 | J57: 54 | K57: =IF(L$1="Decline",(J57*QsrcLitres)/SourceInputsAttenuation!$C$33,"") -> 0.00891474224 | L57: =IF(L$1="Decline",SourceInputsAttenuation!$E$17*EXP(-1*(SourceInputsAttenuation!$I$17*SrcDecline!K57)),SourceInputsAttenuation!$E$17) -> 0.003990277222 | M57: 54 | N57: =IF(O$1="Decline",(M57*QsrcLitres)/SourceInputsAttenuation!$C$33,"") -> 0.00891474224 | O57: =IF(O$1="Decline",SourceInputsAttenuation!$E$18*EXP(-1*(SourceInputsAttenuation!$I$18*SrcDecline!N57)),SourceInputsAttenuation!$E$18) -> 0.398940352 | P57: 54 | Q57: =IF(R$1="Decline",(P57*QsrcLitres)/SourceInputsAttenuation!$C$33,"") -> 0.00891474224 | R57: =IF(R$1="Decline",SourceInputsAttenuation!$E$19*EXP(-1*(SourceInputsAttenuation!$I$19*SrcDecline!Q57)),SourceInputsAttenuation!$E$19) -> 0.1994604809 | S57: 54 | T57: =IF(U$1="Decline",(S57*QsrcLitres)/SourceInputsAttenuation!$C$33,"") -> 0.00891474224 | U57: =IF(U$1="Decline",SourceInputsAttenuation!$E$20*EXP(-1*(SourceInputsAttenuation!$I$20*SrcDecline!T57)),SourceInputsAttenuation!$E$20) -> 0.04991520247
A58: 55 | B58: =IF(C$1="Decline",(A58*QsrcLitres)/(SourceInputsAttenuation!$C$33),"") -> 0.009079830059 | C58: =IF(C$1="Decline",SourceInputsAttenuation!$E$14*EXP(-1*((SourceInputsAttenuation!$I$14)*SrcDecline!B58)),SourceInputsAttenuation!$E$14) -> 0.04996544097 | D58: 55 | E58: =IF(F$1="Decline",(D58*QsrcLitres)/SourceInputsAttenuation!$C$33,"") -> 0.009079830059 | F58: =IF(F$1="Decline",SourceInputsAttenuation!$E$15*EXP(-1*(SourceInputsAttenuation!$I$15*SrcDecline!E58)),SourceInputsAttenuation!$E$15) -> 0.0009985092961 | G58: 55 | H58: =IF(I$1="Decline",(G58*QsrcLitres)/SourceInputsAttenuation!$C$33,"") -> 0.009079830059 | I58: =IF(I$1="Decline",SourceInputsAttenuation!$E$16*EXP(-1*(SourceInputsAttenuation!$I$16*SrcDecline!E58)),SourceInputsAttenuation!$E$16) -> 0.8656119169 | J58: 55 | K58: =IF(L$1="Decline",(J58*QsrcLitres)/SourceInputsAttenuation!$C$33,"") -> 0.009079830059 | L58: =IF(L$1="Decline",SourceInputsAttenuation!$E$17*EXP(-1*(SourceInputsAttenuation!$I$17*SrcDecline!K58)),SourceInputsAttenuation!$E$17) -> 0.003990097393 | M58: 55 | N58: =IF(O$1="Decline",(M58*QsrcLitres)/SourceInputsAttenuation!$C$33,"") -> 0.009079830059 | O58: =IF(O$1="Decline",SourceInputsAttenuation!$E$18*EXP(-1*(SourceInputsAttenuation!$I$18*SrcDecline!N58)),SourceInputsAttenuation!$E$18) -> 0.3989207553 | P58: 55 | Q58: =IF(R$1="Decline",(P58*QsrcLitres)/SourceInputsAttenuation!$C$33,"") -> 0.009079830059 | R58: =IF(R$1="Decline",SourceInputsAttenuation!$E$19*EXP(-1*(SourceInputsAttenuation!$I$19*SrcDecline!Q58)),SourceInputsAttenuation!$E$19) -> 0.1994505035 | S58: 55 | T58: =IF(U$1="Decline",(S58*QsrcLitres)/SourceInputsAttenuation!$C$33,"") -> 0.009079830059 | U58: =IF(U$1="Decline",SourceInputsAttenuation!$E$20*EXP(-1*(SourceInputsAttenuation!$I$20*SrcDecline!T58)),SourceInputsAttenuation!$E$20) -> 0.04991363351
A59: 56 | B59: =IF(C$1="Decline",(A59*QsrcLitres)/(SourceInputsAttenuation!$C$33),"") -> 0.009244917878 | C59: =IF(C$1="Decline",SourceInputsAttenuation!$E$14*EXP(-1*((SourceInputsAttenuation!$I$14)*SrcDecline!B59)),SourceInputsAttenuation!$E$14) -> 0.04996481285 | D59: 56 | E59: =IF(F$1="Decline",(D59*QsrcLitres)/SourceInputsAttenuation!$C$33,"") -> 0.009244917878 | F59: =IF(F$1="Decline",SourceInputsAttenuation!$E$15*EXP(-1*(SourceInputsAttenuation!$I$15*SrcDecline!E59)),SourceInputsAttenuation!$E$15) -> 0.000998482213 | G59: 56 | H59: =IF(I$1="Decline",(G59*QsrcLitres)/SourceInputsAttenuation!$C$33,"") -> 0.009244917878 | I59: =IF(I$1="Decline",SourceInputsAttenuation!$E$16*EXP(-1*(SourceInputsAttenuation!$I$16*SrcDecline!E59)),SourceInputsAttenuation!$E$16) -> 0.8655413857 | J59: 56 | K59: =IF(L$1="Decline",(J59*QsrcLitres)/SourceInputsAttenuation!$C$33,"") -> 0.009244917878 | L59: =IF(L$1="Decline",SourceInputsAttenuation!$E$17*EXP(-1*(SourceInputsAttenuation!$I$17*SrcDecline!K59)),SourceInputsAttenuation!$E$17) -> 0.003989917573 | M59: 56 | N59: =IF(O$1="Decline",(M59*QsrcLitres)/SourceInputsAttenuation!$C$33,"") -> 0.009244917878 | O59: =IF(O$1="Decline",SourceInputsAttenuation!$E$18*EXP(-1*(SourceInputsAttenuation!$I$18*SrcDecline!N59)),SourceInputsAttenuation!$E$18) -> 0.3989011597 | P59: 56 | Q59: =IF(R$1="Decline",(P59*QsrcLitres)/SourceInputsAttenuation!$C$33,"") -> 0.009244917878 | R59: =IF(R$1="Decline",SourceInputsAttenuation!$E$19*EXP(-1*(SourceInputsAttenuation!$I$19*SrcDecline!Q59)),SourceInputsAttenuation!$E$19) -> 0.1994405267 | S59: 56 | T59: =IF(U$1="Decline",(S59*QsrcLitres)/SourceInputsAttenuation!$C$33,"") -> 0.009244917878 | U59: =IF(U$1="Decline",SourceInputsAttenuation!$E$20*EXP(-1*(SourceInputsAttenuation!$I$20*SrcDecline!T59)),SourceInputsAttenuation!$E$20) -> 0.04991206459
A60: 57 | B60: =IF(C$1="Decline",(A60*QsrcLitres)/(SourceInputsAttenuation!$C$33),"") -> 0.009410005697 | C60: =IF(C$1="Decline",SourceInputsAttenuation!$E$14*EXP(-1*((SourceInputsAttenuation!$I$14)*SrcDecline!B60)),SourceInputsAttenuation!$E$14) -> 0.04996418473 | D60: 57 | E60: =IF(F$1="Decline",(D60*QsrcLitres)/SourceInputsAttenuation!$C$33,"") -> 0.009410005697 | F60: =IF(F$1="Decline",SourceInputsAttenuation!$E$15*EXP(-1*(SourceInputsAttenuation!$I$15*SrcDecline!E60)),SourceInputsAttenuation!$E$15) -> 0.0009984551306 | G60: 57 | H60: =IF(I$1="Decline",(G60*QsrcLitres)/SourceInputsAttenuation!$C$33,"") -> 0.009410005697 | I60: =IF(I$1="Decline",SourceInputsAttenuation!$E$16*EXP(-1*(SourceInputsAttenuation!$I$16*SrcDecline!E60)),SourceInputsAttenuation!$E$16) -> 0.8654708602 | J60: 57 | K60: =IF(L$1="Decline",(J60*QsrcLitres)/SourceInputsAttenuation!$C$33,"") -> 0.009410005697 | L60: =IF(L$1="Decline",SourceInputsAttenuation!$E$17*EXP(-1*(SourceInputsAttenuation!$I$17*SrcDecline!K60)),SourceInputsAttenuation!$E$17) -> 0.003989737761 | M60: 57 | N60: =IF(O$1="Decline",(M60*QsrcLitres)/SourceInputsAttenuation!$C$33,"") -> 0.009410005697 | O60: =IF(O$1="Decline",SourceInputsAttenuation!$E$18*EXP(-1*(SourceInputsAttenuation!$I$18*SrcDecline!N60)),SourceInputsAttenuation!$E$18) -> 0.398881565 | P60: 57 | Q60: =IF(R$1="Decline",(P60*QsrcLitres)/SourceInputsAttenuation!$C$33,"") -> 0.009410005697 | R60: =IF(R$1="Decline",SourceInputsAttenuation!$E$19*EXP(-1*(SourceInputsAttenuation!$I$19*SrcDecline!Q60)),SourceInputsAttenuation!$E$19) -> 0.1994305503 | S60: 57 | T60: =IF(U$1="Decline",(S60*QsrcLitres)/SourceInputsAttenuation!$C$33,"") -> 0.009410005697 | U60: =IF(U$1="Decline",SourceInputsAttenuation!$E$20*EXP(-1*(SourceInputsAttenuation!$I$20*SrcDecline!T60)),SourceInputsAttenuation!$E$20) -> 0.04991049572
A61: 58 | B61: =IF(C$1="Decline",(A61*QsrcLitres)/(SourceInputsAttenuation!$C$33),"") -> 0.009575093517 | C61: =IF(C$1="Decline",SourceInputsAttenuation!$E$14*EXP(-1*((SourceInputsAttenuation!$I$14)*SrcDecline!B61)),SourceInputsAttenuation!$E$14) -> 0.04996355662 | D61: 58 | E61: =IF(F$1="Decline",(D61*QsrcLitres)/SourceInputsAttenuation!$C$33,"") -> 0.009575093517 | F61: =IF(F$1="Decline",SourceInputsAttenuation!$E$15*EXP(-1*(SourceInputsAttenuation!$I$15*SrcDecline!E61)),SourceInputsAttenuation!$E$15) -> 0.0009984280489 | G61: 58 | H61: =IF(I$1="Decline",(G61*QsrcLitres)/SourceInputsAttenuation!$C$33,"") -> 0.009575093517 | I61: =IF(I$1="Decline",SourceInputsAttenuation!$E$16*EXP(-1*(SourceInputsAttenuation!$I$16*SrcDecline!E61)),SourceInputsAttenuation!$E$16) -> 0.8654003404 | J61: 58 | K61: =IF(L$1="Decline",(J61*QsrcLitres)/SourceInputsAttenuation!$C$33,"") -> 0.009575093517 | L61: =IF(L$1="Decline",SourceInputsAttenuation!$E$17*EXP(-1*(SourceInputsAttenuation!$I$17*SrcDecline!K61)),SourceInputsAttenuation!$E$17) -> 0.003989557957 | M61: 58 | N61: =IF(O$1="Decline",(M61*QsrcLitres)/SourceInputsAttenuation!$C$33,"") -> 0.009575093517 | O61: =IF(O$1="Decline",SourceInputsAttenuation!$E$18*EXP(-1*(SourceInputsAttenuation!$I$18*SrcDecline!N61)),SourceInputsAttenuation!$E$18) -> 0.3988619713 | P61: 58 | Q61: =IF(R$1="Decline",(P61*QsrcLitres)/SourceInputsAttenuation!$C$33,"") -> 0.009575093517 | R61: =IF(R$1="Decline",SourceInputsAttenuation!$E$19*EXP(-1*(SourceInputsAttenuation!$I$19*SrcDecline!Q61)),SourceInputsAttenuation!$E$19) -> 0.1994205744 | S61: 58 | T61: =IF(U$1="Decline",(S61*QsrcLitres)/SourceInputsAttenuation!$C$33,"") -> 0.009575093517 | U61: =IF(U$1="Decline",SourceInputsAttenuation!$E$20*EXP(-1*(SourceInputsAttenuation!$I$20*SrcDecline!T61)),SourceInputsAttenuation!$E$20) -> 0.0499089269
A62: 59 | B62: =IF(C$1="Decline",(A62*QsrcLitres)/(SourceInputsAttenuation!$C$33),"") -> 0.009740181336 | C62: =IF(C$1="Decline",SourceInputsAttenuation!$E$14*EXP(-1*((SourceInputsAttenuation!$I$14)*SrcDecline!B62)),SourceInputsAttenuation!$E$14) -> 0.04996292852 | D62: 59 | E62: =IF(F$1="Decline",(D62*QsrcLitres)/SourceInputsAttenuation!$C$33,"") -> 0.009740181336 | F62: =IF(F$1="Decline",SourceInputsAttenuation!$E$15*EXP(-1*(SourceInputsAttenuation!$I$15*SrcDecline!E62)),SourceInputsAttenuation!$E$15) -> 0.000998400968 | G62: 59 | H62: =IF(I$1="Decline",(G62*QsrcLitres)/SourceInputsAttenuation!$C$33,"") -> 0.009740181336 | I62: =IF(I$1="Decline",SourceInputsAttenuation!$E$16*EXP(-1*(SourceInputsAttenuation!$I$16*SrcDecline!E62)),SourceInputsAttenuation!$E$16) -> 0.8653298264 | J62: 59 | K62: =IF(L$1="Decline",(J62*QsrcLitres)/SourceInputsAttenuation!$C$33,"") -> 0.009740181336 | L62: =IF(L$1="Decline",SourceInputsAttenuation!$E$17*EXP(-1*(SourceInputsAttenuation!$I$17*SrcDecline!K62)),SourceInputsAttenuation!$E$17) -> 0.003989378161 | M62: 59 | N62: =IF(O$1="Decline",(M62*QsrcLitres)/SourceInputsAttenuation!$C$33,"") -> 0.009740181336 | O62: =IF(O$1="Decline",SourceInputsAttenuation!$E$18*EXP(-1*(SourceInputsAttenuation!$I$18*SrcDecline!N62)),SourceInputsAttenuation!$E$18) -> 0.3988423785 | P62: 59 | Q62: =IF(R$1="Decline",(P62*QsrcLitres)/SourceInputsAttenuation!$C$33,"") -> 0.009740181336 | R62: =IF(R$1="Decline",SourceInputsAttenuation!$E$19*EXP(-1*(SourceInputsAttenuation!$I$19*SrcDecline!Q62)),SourceInputsAttenuation!$E$19) -> 0.1994105991 | S62: 59 | T62: =IF(U$1="Decline",(S62*QsrcLitres)/SourceInputsAttenuation!$C$33,"") -> 0.009740181336 | U62: =IF(U$1="Decline",SourceInputsAttenuation!$E$20*EXP(-1*(SourceInputsAttenuation!$I$20*SrcDecline!T62)),SourceInputsAttenuation!$E$20) -> 0.04990735813
A63: 60 | B63: =IF(C$1="Decline",(A63*QsrcLitres)/(SourceInputsAttenuation!$C$33),"") -> 0.009905269155 | C63: =IF(C$1="Decline",SourceInputsAttenuation!$E$14*EXP(-1*((SourceInputsAttenuation!$I$14)*SrcDecline!B63)),SourceInputsAttenuation!$E$14) -> 0.04996230043 | D63: 60 | E63: =IF(F$1="Decline",(D63*QsrcLitres)/SourceInputsAttenuation!$C$33,"") -> 0.009905269155 | F63: =IF(F$1="Decline",SourceInputsAttenuation!$E$15*EXP(-1*(SourceInputsAttenuation!$I$15*SrcDecline!E63)),SourceInputsAttenuation!$E$15) -> 0.0009983738878 | G63: 60 | H63: =IF(I$1="Decline",(G63*QsrcLitres)/SourceInputsAttenuation!$C$33,"") -> 0.009905269155 | I63: =IF(I$1="Decline",SourceInputsAttenuation!$E$16*EXP(-1*(SourceInputsAttenuation!$I$16*SrcDecline!E63)),SourceInputsAttenuation!$E$16) -> 0.8652593181 | J63: 60 | K63: =IF(L$1="Decline",(J63*QsrcLitres)/SourceInputsAttenuation!$C$33,"") -> 0.009905269155 | L63: =IF(L$1="Decline",SourceInputsAttenuation!$E$17*EXP(-1*(SourceInputsAttenuation!$I$17*SrcDecline!K63)),SourceInputsAttenuation!$E$17) -> 0.003989198373 | M63: 60 | N63: =IF(O$1="Decline",(M63*QsrcLitres)/SourceInputsAttenuation!$C$33,"") -> 0.009905269155 | O63: =IF(O$1="Decline",SourceInputsAttenuation!$E$18*EXP(-1*(SourceInputsAttenuation!$I$18*SrcDecline!N63)),SourceInputsAttenuation!$E$18) -> 0.3988227867 | P63: 60 | Q63: =IF(R$1="Decline",(P63*QsrcLitres)/SourceInputsAttenuation!$C$33,"") -> 0.009905269155 | R63: =IF(R$1="Decline",SourceInputsAttenuation!$E$19*EXP(-1*(SourceInputsAttenuation!$I$19*SrcDecline!Q63)),SourceInputsAttenuation!$E$19) -> 0.1994006242 | S63: 60 | T63: =IF(U$1="Decline",(S63*QsrcLitres)/SourceInputsAttenuation!$C$33,"") -> 0.009905269155 | U63: =IF(U$1="Decline",SourceInputsAttenuation!$E$20*EXP(-1*(SourceInputsAttenuation!$I$20*SrcDecline!T63)),SourceInputsAttenuation!$E$20) -> 0.04990578941
A64: 61 | B64: =IF(C$1="Decline",(A64*QsrcLitres)/(SourceInputsAttenuation!$C$33),"") -> 0.01007035697 | C64: =IF(C$1="Decline",SourceInputsAttenuation!$E$14*EXP(-1*((SourceInputsAttenuation!$I$14)*SrcDecline!B64)),SourceInputsAttenuation!$E$14) -> 0.04996167234 | D64: 61 | E64: =IF(F$1="Decline",(D64*QsrcLitres)/SourceInputsAttenuation!$C$33,"") -> 0.01007035697 | F64: =IF(F$1="Decline",SourceInputsAttenuation!$E$15*EXP(-1*(SourceInputsAttenuation!$I$15*SrcDecline!E64)),SourceInputsAttenuation!$E$15) -> 0.0009983468084 | G64: 61 | H64: =IF(I$1="Decline",(G64*QsrcLitres)/SourceInputsAttenuation!$C$33,"") -> 0.01007035697 | I64: =IF(I$1="Decline",SourceInputsAttenuation!$E$16*EXP(-1*(SourceInputsAttenuation!$I$16*SrcDecline!E64)),SourceInputsAttenuation!$E$16) -> 0.8651888156 | J64: 61 | K64: =IF(L$1="Decline",(J64*QsrcLitres)/SourceInputsAttenuation!$C$33,"") -> 0.01007035697 | L64: =IF(L$1="Decline",SourceInputsAttenuation!$E$17*EXP(-1*(SourceInputsAttenuation!$I$17*SrcDecline!K64)),SourceInputsAttenuation!$E$17) -> 0.003989018593 | M64: 61 | N64: =IF(O$1="Decline",(M64*QsrcLitres)/SourceInputsAttenuation!$C$33,"") -> 0.01007035697 | O64: =IF(O$1="Decline",SourceInputsAttenuation!$E$18*EXP(-1*(SourceInputsAttenuation!$I$18*SrcDecline!N64)),SourceInputsAttenuation!$E$18) -> 0.3988031959 | P64: 61 | Q64: =IF(R$1="Decline",(P64*QsrcLitres)/SourceInputsAttenuation!$C$33,"") -> 0.01007035697 | R64: =IF(R$1="Decline",SourceInputsAttenuation!$E$19*EXP(-1*(SourceInputsAttenuation!$I$19*SrcDecline!Q64)),SourceInputsAttenuation!$E$19) -> 0.1993906499 | S64: 61 | T64: =IF(U$1="Decline",(S64*QsrcLitres)/SourceInputsAttenuation!$C$33,"") -> 0.01007035697 | U64: =IF(U$1="Decline",SourceInputsAttenuation!$E$20*EXP(-1*(SourceInputsAttenuation!$I$20*SrcDecline!T64)),SourceInputsAttenuation!$E$20) -> 0.04990422074
A65: 62 | B65: =IF(C$1="Decline",(A65*QsrcLitres)/(SourceInputsAttenuation!$C$33),"") -> 0.01023544479 | C65: =IF(C$1="Decline",SourceInputsAttenuation!$E$14*EXP(-1*((SourceInputsAttenuation!$I$14)*SrcDecline!B65)),SourceInputsAttenuation!$E$14) -> 0.04996104426 | D65: 62 | E65: =IF(F$1="Decline",(D65*QsrcLitres)/SourceInputsAttenuation!$C$33,"") -> 0.01023544479 | F65: =IF(F$1="Decline",SourceInputsAttenuation!$E$15*EXP(-1*(SourceInputsAttenuation!$I$15*SrcDecline!E65)),SourceInputsAttenuation!$E$15) -> 0.0009983197297 | G65: 62 | H65: =IF(I$1="Decline",(G65*QsrcLitres)/SourceInputsAttenuation!$C$33,"") -> 0.01023544479 | I65: =IF(I$1="Decline",SourceInputsAttenuation!$E$16*EXP(-1*(SourceInputsAttenuation!$I$16*SrcDecline!E65)),SourceInputsAttenuation!$E$16) -> 0.8651183188 | J65: 62 | K65: =IF(L$1="Decline",(J65*QsrcLitres)/SourceInputsAttenuation!$C$33,"") -> 0.01023544479 | L65: =IF(L$1="Decline",SourceInputsAttenuation!$E$17*EXP(-1*(SourceInputsAttenuation!$I$17*SrcDecline!K65)),SourceInputsAttenuation!$E$17) -> 0.003988838821 | M65: 62 | N65: =IF(O$1="Decline",(M65*QsrcLitres)/SourceInputsAttenuation!$C$33,"") -> 0.01023544479 | O65: =IF(O$1="Decline",SourceInputsAttenuation!$E$18*EXP(-1*(SourceInputsAttenuation!$I$18*SrcDecline!N65)),SourceInputsAttenuation!$E$18) -> 0.398783606 | P65: 62 | Q65: =IF(R$1="Decline",(P65*QsrcLitres)/SourceInputsAttenuation!$C$33,"") -> 0.01023544479 | R65: =IF(R$1="Decline",SourceInputsAttenuation!$E$19*EXP(-1*(SourceInputsAttenuation!$I$19*SrcDecline!Q65)),SourceInputsAttenuation!$E$19) -> 0.199380676 | S65: 62 | T65: =IF(U$1="Decline",(S65*QsrcLitres)/SourceInputsAttenuation!$C$33,"") -> 0.01023544479 | U65: =IF(U$1="Decline",SourceInputsAttenuation!$E$20*EXP(-1*(SourceInputsAttenuation!$I$20*SrcDecline!T65)),SourceInputsAttenuation!$E$20) -> 0.04990265211
A66: 63 | B66: =IF(C$1="Decline",(A66*QsrcLitres)/(SourceInputsAttenuation!$C$33),"") -> 0.01040053261 | C66: =IF(C$1="Decline",SourceInputsAttenuation!$E$14*EXP(-1*((SourceInputsAttenuation!$I$14)*SrcDecline!B66)),SourceInputsAttenuation!$E$14) -> 0.04996041619 | D66: 63 | E66: =IF(F$1="Decline",(D66*QsrcLitres)/SourceInputsAttenuation!$C$33,"") -> 0.01040053261 | F66: =IF(F$1="Decline",SourceInputsAttenuation!$E$15*EXP(-1*(SourceInputsAttenuation!$I$15*SrcDecline!E66)),SourceInputsAttenuation!$E$15) -> 0.0009982926517 | G66: 63 | H66: =IF(I$1="Decline",(G66*QsrcLitres)/SourceInputsAttenuation!$C$33,"") -> 0.01040053261 | I66: =IF(I$1="Decline",SourceInputsAttenuation!$E$16*EXP(-1*(SourceInputsAttenuation!$I$16*SrcDecline!E66)),SourceInputsAttenuation!$E$16) -> 0.8650478278 | J66: 63 | K66: =IF(L$1="Decline",(J66*QsrcLitres)/SourceInputsAttenuation!$C$33,"") -> 0.01040053261 | L66: =IF(L$1="Decline",SourceInputsAttenuation!$E$17*EXP(-1*(SourceInputsAttenuation!$I$17*SrcDecline!K66)),SourceInputsAttenuation!$E$17) -> 0.003988659058 | M66: 63 | N66: =IF(O$1="Decline",(M66*QsrcLitres)/SourceInputsAttenuation!$C$33,"") -> 0.01040053261 | O66: =IF(O$1="Decline",SourceInputsAttenuation!$E$18*EXP(-1*(SourceInputsAttenuation!$I$18*SrcDecline!N66)),SourceInputsAttenuation!$E$18) -> 0.3987640171 | P66: 63 | Q66: =IF(R$1="Decline",(P66*QsrcLitres)/SourceInputsAttenuation!$C$33,"") -> 0.01040053261 | R66: =IF(R$1="Decline",SourceInputsAttenuation!$E$19*EXP(-1*(SourceInputsAttenuation!$I$19*SrcDecline!Q66)),SourceInputsAttenuation!$E$19) -> 0.1993707026 | S66: 63 | T66: =IF(U$1="Decline",(S66*QsrcLitres)/SourceInputsAttenuation!$C$33,"") -> 0.01040053261 | U66: =IF(U$1="Decline",SourceInputsAttenuation!$E$20*EXP(-1*(SourceInputsAttenuation!$I$20*SrcDecline!T66)),SourceInputsAttenuation!$E$20) -> 0.04990108354
A67: 64 | B67: =IF(C$1="Decline",(A67*QsrcLitres)/(SourceInputsAttenuation!$C$33),"") -> 0.01056562043 | C67: =IF(C$1="Decline",SourceInputsAttenuation!$E$14*EXP(-1*((SourceInputsAttenuation!$I$14)*SrcDecline!B67)),SourceInputsAttenuation!$E$14) -> 0.04995978813 | D67: 64 | E67: =IF(F$1="Decline",(D67*QsrcLitres)/SourceInputsAttenuation!$C$33,"") -> 0.01056562043 | F67: =IF(F$1="Decline",SourceInputsAttenuation!$E$15*EXP(-1*(SourceInputsAttenuation!$I$15*SrcDecline!E67)),SourceInputsAttenuation!$E$15) -> 0.0009982655744 | G67: 64 | H67: =IF(I$1="Decline",(G67*QsrcLitres)/SourceInputsAttenuation!$C$33,"") -> 0.01056562043 | I67: =IF(I$1="Decline",SourceInputsAttenuation!$E$16*EXP(-1*(SourceInputsAttenuation!$I$16*SrcDecline!E67)),SourceInputsAttenuation!$E$16) -> 0.8649773425 | J67: 64 | K67: =IF(L$1="Decline",(J67*QsrcLitres)/SourceInputsAttenuation!$C$33,"") -> 0.01056562043 | L67: =IF(L$1="Decline",SourceInputsAttenuation!$E$17*EXP(-1*(SourceInputsAttenuation!$I$17*SrcDecline!K67)),SourceInputsAttenuation!$E$17) -> 0.003988479302 | M67: 64 | N67: =IF(O$1="Decline",(M67*QsrcLitres)/SourceInputsAttenuation!$C$33,"") -> 0.01056562043 | O67: =IF(O$1="Decline",SourceInputsAttenuation!$E$18*EXP(-1*(SourceInputsAttenuation!$I$18*SrcDecline!N67)),SourceInputsAttenuation!$E$18) -> 0.3987444291 | P67: 64 | Q67: =IF(R$1="Decline",(P67*QsrcLitres)/SourceInputsAttenuation!$C$33,"") -> 0.01056562043 | R67: =IF(R$1="Decline",SourceInputsAttenuation!$E$19*EXP(-1*(SourceInputsAttenuation!$I$19*SrcDecline!Q67)),SourceInputsAttenuation!$E$19) -> 0.1993607298 | S67: 64 | T67: =IF(U$1="Decline",(S67*QsrcLitres)/SourceInputsAttenuation!$C$33,"") -> 0.01056562043 | U67: =IF(U$1="Decline",SourceInputsAttenuation!$E$20*EXP(-1*(SourceInputsAttenuation!$I$20*SrcDecline!T67)),SourceInputsAttenuation!$E$20) -> 0.04989951502
A68: 65 | B68: =IF(C$1="Decline",(A68*QsrcLitres)/(SourceInputsAttenuation!$C$33),"") -> 0.01073070825 | C68: =IF(C$1="Decline",SourceInputsAttenuation!$E$14*EXP(-1*((SourceInputsAttenuation!$I$14)*SrcDecline!B68)),SourceInputsAttenuation!$E$14) -> 0.04995916008 | D68: 65 | E68: =IF(F$1="Decline",(D68*QsrcLitres)/SourceInputsAttenuation!$C$33,"") -> 0.01073070825 | F68: =IF(F$1="Decline",SourceInputsAttenuation!$E$15*EXP(-1*(SourceInputsAttenuation!$I$15*SrcDecline!E68)),SourceInputsAttenuation!$E$15) -> 0.0009982384979 | G68: 65 | H68: =IF(I$1="Decline",(G68*QsrcLitres)/SourceInputsAttenuation!$C$33,"") -> 0.01073070825 | I68: =IF(I$1="Decline",SourceInputsAttenuation!$E$16*EXP(-1*(SourceInputsAttenuation!$I$16*SrcDecline!E68)),SourceInputsAttenuation!$E$16) -> 0.864906863 | J68: 65 | K68: =IF(L$1="Decline",(J68*QsrcLitres)/SourceInputsAttenuation!$C$33,"") -> 0.01073070825 | L68: =IF(L$1="Decline",SourceInputsAttenuation!$E$17*EXP(-1*(SourceInputsAttenuation!$I$17*SrcDecline!K68)),SourceInputsAttenuation!$E$17) -> 0.003988299555 | M68: 65 | N68: =IF(O$1="Decline",(M68*QsrcLitres)/SourceInputsAttenuation!$C$33,"") -> 0.01073070825 | O68: =IF(O$1="Decline",SourceInputsAttenuation!$E$18*EXP(-1*(SourceInputsAttenuation!$I$18*SrcDecline!N68)),SourceInputsAttenuation!$E$18) -> 0.3987248421 | P68: 65 | Q68: =IF(R$1="Decline",(P68*QsrcLitres)/SourceInputsAttenuation!$C$33,"") -> 0.01073070825 | R68: =IF(R$1="Decline",SourceInputsAttenuation!$E$19*EXP(-1*(SourceInputsAttenuation!$I$19*SrcDecline!Q68)),SourceInputsAttenuation!$E$19) -> 0.1993507574 | S68: 65 | T68: =IF(U$1="Decline",(S68*QsrcLitres)/SourceInputsAttenuation!$C$33,"") -> 0.01073070825 | U68: =IF(U$1="Decline",SourceInputsAttenuation!$E$20*EXP(-1*(SourceInputsAttenuation!$I$20*SrcDecline!T68)),SourceInputsAttenuation!$E$20) -> 0.04989794654
A69: =IF(A68<1000,A68+1,A68+10) -> 66 | B69: =IF(C$1="Decline",(A69*QsrcLitres)/(SourceInputsAttenuation!$C$33),"") -> 0.01089579607 | C69: =IF(C$1="Decline",SourceInputsAttenuation!$E$14*EXP(-1*((SourceInputsAttenuation!$I$14)*SrcDecline!B69)),SourceInputsAttenuation!$E$14) -> 0.04995853203 | D69: =IF(D68<1000,D68+1,D68+10) -> 66 | E69: =IF(F$1="Decline",(D69*QsrcLitres)/SourceInputsAttenuation!$C$33,"") -> 0.01089579607 | F69: =IF(F$1="Decline",SourceInputsAttenuation!$E$15*EXP(-1*(SourceInputsAttenuation!$I$15*SrcDecline!E69)),SourceInputsAttenuation!$E$15) -> 0.0009982114221 | G69: =IF(G68<1000,G68+1,G68+10) -> 66 | H69: =IF(I$1="Decline",(G69*QsrcLitres)/SourceInputsAttenuation!$C$33,"") -> 0.01089579607 | I69: =IF(I$1="Decline",SourceInputsAttenuation!$E$16*EXP(-1*(SourceInputsAttenuation!$I$16*SrcDecline!E69)),SourceInputsAttenuation!$E$16) -> 0.8648363892 | J69: =IF(J68<1000,J68+1,J68+10) -> 66 | K69: =IF(L$1="Decline",(J69*QsrcLitres)/SourceInputsAttenuation!$C$33,"") -> 0.01089579607 | L69: =IF(L$1="Decline",SourceInputsAttenuation!$E$17*EXP(-1*(SourceInputsAttenuation!$I$17*SrcDecline!K69)),SourceInputsAttenuation!$E$17) -> 0.003988119816 | M69: =IF(M68<1000,M68+1,M68+10) -> 66 | N69: =IF(O$1="Decline",(M69*QsrcLitres)/SourceInputsAttenuation!$C$33,"") -> 0.01089579607 | O69: =IF(O$1="Decline",SourceInputsAttenuation!$E$18*EXP(-1*(SourceInputsAttenuation!$I$18*SrcDecline!N69)),SourceInputsAttenuation!$E$18) -> 0.3987052561 | P69: =IF(P68<1000,P68+1,P68+10) -> 66 | Q69: =IF(R$1="Decline",(P69*QsrcLitres)/SourceInputsAttenuation!$C$33,"") -> 0.01089579607 | R69: =IF(R$1="Decline",SourceInputsAttenuation!$E$19*EXP(-1*(SourceInputsAttenuation!$I$19*SrcDecline!Q69)),SourceInputsAttenuation!$E$19) -> 0.1993407855 | S69: =IF(S68<1000,S68+1,S68+10) -> 66 | T69: =IF(U$1="Decline",(S69*QsrcLitres)/SourceInputsAttenuation!$C$33,"") -> 0.01089579607 | U69: =IF(U$1="Decline",SourceInputsAttenuation!$E$20*EXP(-1*(SourceInputsAttenuation!$I$20*SrcDecline!T69)),SourceInputsAttenuation!$E$20) -> 0.04989637812
A70: 67 | B70: =IF(C$1="Decline",(A70*QsrcLitres)/(SourceInputsAttenuation!$C$33),"") -> 0.01106088389 | C70: =IF(C$1="Decline",SourceInputsAttenuation!$E$14*EXP(-1*((SourceInputsAttenuation!$I$14)*SrcDecline!B70)),SourceInputsAttenuation!$E$14) -> 0.04995790399 | D70: 67 | E70: =IF(F$1="Decline",(D70*QsrcLitres)/SourceInputsAttenuation!$C$33,"") -> 0.01106088389 | F70: =IF(F$1="Decline",SourceInputsAttenuation!$E$15*EXP(-1*(SourceInputsAttenuation!$I$15*SrcDecline!E70)),SourceInputsAttenuation!$E$15) -> 0.0009981843471 | G70: 67 | H70: =IF(I$1="Decline",(G70*QsrcLitres)/SourceInputsAttenuation!$C$33,"") -> 0.01106088389 | I70: =IF(I$1="Decline",SourceInputsAttenuation!$E$16*EXP(-1*(SourceInputsAttenuation!$I$16*SrcDecline!E70)),SourceInputsAttenuation!$E$16) -> 0.8647659211 | J70: 67 | K70: =IF(L$1="Decline",(J70*QsrcLitres)/SourceInputsAttenuation!$C$33,"") -> 0.01106088389 | L70: =IF(L$1="Decline",SourceInputsAttenuation!$E$17*EXP(-1*(SourceInputsAttenuation!$I$17*SrcDecline!K70)),SourceInputsAttenuation!$E$17) -> 0.003987940084 | M70: 67 | N70: =IF(O$1="Decline",(M70*QsrcLitres)/SourceInputsAttenuation!$C$33,"") -> 0.01106088389 | O70: =IF(O$1="Decline",SourceInputsAttenuation!$E$18*EXP(-1*(SourceInputsAttenuation!$I$18*SrcDecline!N70)),SourceInputsAttenuation!$E$18) -> 0.398685671 | P70: 67 | Q70: =IF(R$1="Decline",(P70*QsrcLitres)/SourceInputsAttenuation!$C$33,"") -> 0.01106088389 | R70: =IF(R$1="Decline",SourceInputsAttenuation!$E$19*EXP(-1*(SourceInputsAttenuation!$I$19*SrcDecline!Q70)),SourceInputsAttenuation!$E$19) -> 0.1993308142 | S70: 67 | T70: =IF(U$1="Decline",(S70*QsrcLitres)/SourceInputsAttenuation!$C$33,"") -> 0.01106088389 | U70: =IF(U$1="Decline",SourceInputsAttenuation!$E$20*EXP(-1*(SourceInputsAttenuation!$I$20*SrcDecline!T70)),SourceInputsAttenuation!$E$20) -> 0.04989480974
A71: 68 | B71: =IF(C$1="Decline",(A71*QsrcLitres)/(SourceInputsAttenuation!$C$33),"") -> 0.01122597171 | C71: =IF(C$1="Decline",SourceInputsAttenuation!$E$14*EXP(-1*((SourceInputsAttenuation!$I$14)*SrcDecline!B71)),SourceInputsAttenuation!$E$14) -> 0.04995727596 | D71: 68 | E71: =IF(F$1="Decline",(D71*QsrcLitres)/SourceInputsAttenuation!$C$33,"") -> 0.01122597171 | F71: =IF(F$1="Decline",SourceInputsAttenuation!$E$15*EXP(-1*(SourceInputsAttenuation!$I$15*SrcDecline!E71)),SourceInputsAttenuation!$E$15) -> 0.0009981572728 | G71: 68 | H71: =IF(I$1="Decline",(G71*QsrcLitres)/SourceInputsAttenuation!$C$33,"") -> 0.01122597171 | I71: =IF(I$1="Decline",SourceInputsAttenuation!$E$16*EXP(-1*(SourceInputsAttenuation!$I$16*SrcDecline!E71)),SourceInputsAttenuation!$E$16) -> 0.8646954588 | J71: 68 | K71: =IF(L$1="Decline",(J71*QsrcLitres)/SourceInputsAttenuation!$C$33,"") -> 0.01122597171 | L71: =IF(L$1="Decline",SourceInputsAttenuation!$E$17*EXP(-1*(SourceInputsAttenuation!$I$17*SrcDecline!K71)),SourceInputsAttenuation!$E$17) -> 0.003987760361 | M71: 68 | N71: =IF(O$1="Decline",(M71*QsrcLitres)/SourceInputsAttenuation!$C$33,"") -> 0.01122597171 | O71: =IF(O$1="Decline",SourceInputsAttenuation!$E$18*EXP(-1*(SourceInputsAttenuation!$I$18*SrcDecline!N71)),SourceInputsAttenuation!$E$18) -> 0.3986660869 | P71: 68 | Q71: =IF(R$1="Decline",(P71*QsrcLitres)/SourceInputsAttenuation!$C$33,"") -> 0.01122597171 | R71: =IF(R$1="Decline",SourceInputsAttenuation!$E$19*EXP(-1*(SourceInputsAttenuation!$I$19*SrcDecline!Q71)),SourceInputsAttenuation!$E$19) -> 0.1993208433 | S71: 68 | T71: =IF(U$1="Decline",(S71*QsrcLitres)/SourceInputsAttenuation!$C$33,"") -> 0.01122597171 | U71: =IF(U$1="Decline",SourceInputsAttenuation!$E$20*EXP(-1*(SourceInputsAttenuation!$I$20*SrcDecline!T71)),SourceInputsAttenuation!$E$20) -> 0.04989324142
A72: 69 | B72: =IF(C$1="Decline",(A72*QsrcLitres)/(SourceInputsAttenuation!$C$33),"") -> 0.01139105953 | C72: =IF(C$1="Decline",SourceInputsAttenuation!$E$14*EXP(-1*((SourceInputsAttenuation!$I$14)*SrcDecline!B72)),SourceInputsAttenuation!$E$14) -> 0.04995664794 | D72: 69 | E72: =IF(F$1="Decline",(D72*QsrcLitres)/SourceInputsAttenuation!$C$33,"") -> 0.01139105953 | F72: =IF(F$1="Decline",SourceInputsAttenuation!$E$15*EXP(-1*(SourceInputsAttenuation!$I$15*SrcDecline!E72)),SourceInputsAttenuation!$E$15) -> 0.0009981301992 | G72: 69 | H72: =IF(I$1="Decline",(G72*QsrcLitres)/SourceInputsAttenuation!$C$33,"") -> 0.01139105953 | I72: =IF(I$1="Decline",SourceInputsAttenuation!$E$16*EXP(-1*(SourceInputsAttenuation!$I$16*SrcDecline!E72)),SourceInputsAttenuation!$E$16) -> 0.8646250022 | J72: 69 | K72: =IF(L$1="Decline",(J72*QsrcLitres)/SourceInputsAttenuation!$C$33,"") -> 0.01139105953 | L72: =IF(L$1="Decline",SourceInputsAttenuation!$E$17*EXP(-1*(SourceInputsAttenuation!$I$17*SrcDecline!K72)),SourceInputsAttenuation!$E$17) -> 0.003987580646 | M72: 69 | N72: =IF(O$1="Decline",(M72*QsrcLitres)/SourceInputsAttenuation!$C$33,"") -> 0.01139105953 | O72: =IF(O$1="Decline",SourceInputsAttenuation!$E$18*EXP(-1*(SourceInputsAttenuation!$I$18*SrcDecline!N72)),SourceInputsAttenuation!$E$18) -> 0.3986465038 | P72: 69 | Q72: =IF(R$1="Decline",(P72*QsrcLitres)/SourceInputsAttenuation!$C$33,"") -> 0.01139105953 | R72: =IF(R$1="Decline",SourceInputsAttenuation!$E$19*EXP(-1*(SourceInputsAttenuation!$I$19*SrcDecline!Q72)),SourceInputsAttenuation!$E$19) -> 0.1993108729 | S72: 69 | T72: =IF(U$1="Decline",(S72*QsrcLitres)/SourceInputsAttenuation!$C$33,"") -> 0.01139105953 | U72: =IF(U$1="Decline",SourceInputsAttenuation!$E$20*EXP(-1*(SourceInputsAttenuation!$I$20*SrcDecline!T72)),SourceInputsAttenuation!$E$20) -> 0.04989167314
A73: 70 | B73: =IF(C$1="Decline",(A73*QsrcLitres)/(SourceInputsAttenuation!$C$33),"") -> 0.01155614735 | C73: =IF(C$1="Decline",SourceInputsAttenuation!$E$14*EXP(-1*((SourceInputsAttenuation!$I$14)*SrcDecline!B73)),SourceInputsAttenuation!$E$14) -> 0.04995601993 | D73: 70 | E73: =IF(F$1="Decline",(D73*QsrcLitres)/SourceInputsAttenuation!$C$33,"") -> 0.01155614735 | F73: =IF(F$1="Decline",SourceInputsAttenuation!$E$15*EXP(-1*(SourceInputsAttenuation!$I$15*SrcDecline!E73)),SourceInputsAttenuation!$E$15) -> 0.0009981031263 | G73: 70 | H73: =IF(I$1="Decline",(G73*QsrcLitres)/SourceInputsAttenuation!$C$33,"") -> 0.01155614735 | I73: =IF(I$1="Decline",SourceInputsAttenuation!$E$16*EXP(-1*(SourceInputsAttenuation!$I$16*SrcDecline!E73)),SourceInputsAttenuation!$E$16) -> 0.8645545513 | J73: 70 | K73: =IF(L$1="Decline",(J73*QsrcLitres)/SourceInputsAttenuation!$C$33,"") -> 0.01155614735 | L73: =IF(L$1="Decline",SourceInputsAttenuation!$E$17*EXP(-1*(SourceInputsAttenuation!$I$17*SrcDecline!K73)),SourceInputsAttenuation!$E$17) -> 0.003987400939 | M73: 70 | N73: =IF(O$1="Decline",(M73*QsrcLitres)/SourceInputsAttenuation!$C$33,"") -> 0.01155614735 | O73: =IF(O$1="Decline",SourceInputsAttenuation!$E$18*EXP(-1*(SourceInputsAttenuation!$I$18*SrcDecline!N73)),SourceInputsAttenuation!$E$18) -> 0.3986269216 | P73: 70 | Q73: =IF(R$1="Decline",(P73*QsrcLitres)/SourceInputsAttenuation!$C$33,"") -> 0.01155614735 | R73: =IF(R$1="Decline",SourceInputsAttenuation!$E$19*EXP(-1*(SourceInputsAttenuation!$I$19*SrcDecline!Q73)),SourceInputsAttenuation!$E$19) -> 0.199300903 | S73: 70 | T73: =IF(U$1="Decline",(S73*QsrcLitres)/SourceInputsAttenuation!$C$33,"") -> 0.01155614735 | U73: =IF(U$1="Decline",SourceInputsAttenuation!$E$20*EXP(-1*(SourceInputsAttenuation!$I$20*SrcDecline!T73)),SourceInputsAttenuation!$E$20) -> 0.04989010491
A74: 71 | B74: =IF(C$1="Decline",(A74*QsrcLitres)/(SourceInputsAttenuation!$C$33),"") -> 0.01172123517 | C74: =IF(C$1="Decline",SourceInputsAttenuation!$E$14*EXP(-1*((SourceInputsAttenuation!$I$14)*SrcDecline!B74)),SourceInputsAttenuation!$E$14) -> 0.04995539192 | D74: 71 | E74: =IF(F$1="Decline",(D74*QsrcLitres)/SourceInputsAttenuation!$C$33,"") -> 0.01172123517 | F74: =IF(F$1="Decline",SourceInputsAttenuation!$E$15*EXP(-1*(SourceInputsAttenuation!$I$15*SrcDecline!E74)),SourceInputsAttenuation!$E$15) -> 0.0009980760542 | G74: 71 | H74: =IF(I$1="Decline",(G74*QsrcLitres)/SourceInputsAttenuation!$C$33,"") -> 0.01172123517 | I74: =IF(I$1="Decline",SourceInputsAttenuation!$E$16*EXP(-1*(SourceInputsAttenuation!$I$16*SrcDecline!E74)),SourceInputsAttenuation!$E$16) -> 0.8644841063 | J74: 71 | K74: =IF(L$1="Decline",(J74*QsrcLitres)/SourceInputsAttenuation!$C$33,"") -> 0.01172123517 | L74: =IF(L$1="Decline",SourceInputsAttenuation!$E$17*EXP(-1*(SourceInputsAttenuation!$I$17*SrcDecline!K74)),SourceInputsAttenuation!$E$17) -> 0.003987221241 | M74: 71 | N74: =IF(O$1="Decline",(M74*QsrcLitres)/SourceInputsAttenuation!$C$33,"") -> 0.01172123517 | O74: =IF(O$1="Decline",SourceInputsAttenuation!$E$18*EXP(-1*(SourceInputsAttenuation!$I$18*SrcDecline!N74)),SourceInputsAttenuation!$E$18) -> 0.3986073404 | P74: 71 | Q74: =IF(R$1="Decline",(P74*QsrcLitres)/SourceInputsAttenuation!$C$33,"") -> 0.01172123517 | R74: =IF(R$1="Decline",SourceInputsAttenuation!$E$19*EXP(-1*(SourceInputsAttenuation!$I$19*SrcDecline!Q74)),SourceInputsAttenuation!$E$19) -> 0.1992909337 | S74: 71 | T74: =IF(U$1="Decline",(S74*QsrcLitres)/SourceInputsAttenuation!$C$33,"") -> 0.01172123517 | U74: =IF(U$1="Decline",SourceInputsAttenuation!$E$20*EXP(-1*(SourceInputsAttenuation!$I$20*SrcDecline!T74)),SourceInputsAttenuation!$E$20) -> 0.04988853673
A75: 72 | B75: =IF(C$1="Decline",(A75*QsrcLitres)/(SourceInputsAttenuation!$C$33),"") -> 0.01188632299 | C75: =IF(C$1="Decline",SourceInputsAttenuation!$E$14*EXP(-1*((SourceInputsAttenuation!$I$14)*SrcDecline!B75)),SourceInputsAttenuation!$E$14) -> 0.04995476392 | D75: 72 | E75: =IF(F$1="Decline",(D75*QsrcLitres)/SourceInputsAttenuation!$C$33,"") -> 0.01188632299 | F75: =IF(F$1="Decline",SourceInputsAttenuation!$E$15*EXP(-1*(SourceInputsAttenuation!$I$15*SrcDecline!E75)),SourceInputsAttenuation!$E$15) -> 0.0009980489828 | G75: 72 | H75: =IF(I$1="Decline",(G75*QsrcLitres)/SourceInputsAttenuation!$C$33,"") -> 0.01188632299 | I75: =IF(I$1="Decline",SourceInputsAttenuation!$E$16*EXP(-1*(SourceInputsAttenuation!$I$16*SrcDecline!E75)),SourceInputsAttenuation!$E$16) -> 0.8644136669 | J75: 72 | K75: =IF(L$1="Decline",(J75*QsrcLitres)/SourceInputsAttenuation!$C$33,"") -> 0.01188632299 | L75: =IF(L$1="Decline",SourceInputsAttenuation!$E$17*EXP(-1*(SourceInputsAttenuation!$I$17*SrcDecline!K75)),SourceInputsAttenuation!$E$17) -> 0.00398704155 | M75: 72 | N75: =IF(O$1="Decline",(M75*QsrcLitres)/SourceInputsAttenuation!$C$33,"") -> 0.01188632299 | O75: =IF(O$1="Decline",SourceInputsAttenuation!$E$18*EXP(-1*(SourceInputsAttenuation!$I$18*SrcDecline!N75)),SourceInputsAttenuation!$E$18) -> 0.3985877601 | P75: 72 | Q75: =IF(R$1="Decline",(P75*QsrcLitres)/SourceInputsAttenuation!$C$33,"") -> 0.01188632299 | R75: =IF(R$1="Decline",SourceInputsAttenuation!$E$19*EXP(-1*(SourceInputsAttenuation!$I$19*SrcDecline!Q75)),SourceInputsAttenuation!$E$19) -> 0.1992809648 | S75: 72 | T75: =IF(U$1="Decline",(S75*QsrcLitres)/SourceInputsAttenuation!$C$33,"") -> 0.01188632299 | U75: =IF(U$1="Decline",SourceInputsAttenuation!$E$20*EXP(-1*(SourceInputsAttenuation!$I$20*SrcDecline!T75)),SourceInputsAttenuation!$E$20) -> 0.0498869686
A76: 73 | B76: =IF(C$1="Decline",(A76*QsrcLitres)/(SourceInputsAttenuation!$C$33),"") -> 0.01205141081 | C76: =IF(C$1="Decline",SourceInputsAttenuation!$E$14*EXP(-1*((SourceInputsAttenuation!$I$14)*SrcDecline!B76)),SourceInputsAttenuation!$E$14) -> 0.04995413593 | D76: 73 | E76: =IF(F$1="Decline",(D76*QsrcLitres)/SourceInputsAttenuation!$C$33,"") -> 0.01205141081 | F76: =IF(F$1="Decline",SourceInputsAttenuation!$E$15*EXP(-1*(SourceInputsAttenuation!$I$15*SrcDecline!E76)),SourceInputsAttenuation!$E$15) -> 0.0009980219122 | G76: 73 | H76: =IF(I$1="Decline",(G76*QsrcLitres)/SourceInputsAttenuation!$C$33,"") -> 0.01205141081 | I76: =IF(I$1="Decline",SourceInputsAttenuation!$E$16*EXP(-1*(SourceInputsAttenuation!$I$16*SrcDecline!E76)),SourceInputsAttenuation!$E$16) -> 0.8643432333 | J76: 73 | K76: =IF(L$1="Decline",(J76*QsrcLitres)/SourceInputsAttenuation!$C$33,"") -> 0.01205141081 | L76: =IF(L$1="Decline",SourceInputsAttenuation!$E$17*EXP(-1*(SourceInputsAttenuation!$I$17*SrcDecline!K76)),SourceInputsAttenuation!$E$17) -> 0.003986861867 | M76: 73 | N76: =IF(O$1="Decline",(M76*QsrcLitres)/SourceInputsAttenuation!$C$33,"") -> 0.01205141081 | O76: =IF(O$1="Decline",SourceInputsAttenuation!$E$18*EXP(-1*(SourceInputsAttenuation!$I$18*SrcDecline!N76)),SourceInputsAttenuation!$E$18) -> 0.3985681808 | P76: 73 | Q76: =IF(R$1="Decline",(P76*QsrcLitres)/SourceInputsAttenuation!$C$33,"") -> 0.01205141081 | R76: =IF(R$1="Decline",SourceInputsAttenuation!$E$19*EXP(-1*(SourceInputsAttenuation!$I$19*SrcDecline!Q76)),SourceInputsAttenuation!$E$19) -> 0.1992709964 | S76: 73 | T76: =IF(U$1="Decline",(S76*QsrcLitres)/SourceInputsAttenuation!$C$33,"") -> 0.01205141081 | U76: =IF(U$1="Decline",SourceInputsAttenuation!$E$20*EXP(-1*(SourceInputsAttenuation!$I$20*SrcDecline!T76)),SourceInputsAttenuation!$E$20) -> 0.04988540052
A77: 74 | B77: =IF(C$1="Decline",(A77*QsrcLitres)/(SourceInputsAttenuation!$C$33),"") -> 0.01221649862 | C77: =IF(C$1="Decline",SourceInputsAttenuation!$E$14*EXP(-1*((SourceInputsAttenuation!$I$14)*SrcDecline!B77)),SourceInputsAttenuation!$E$14) -> 0.04995350795 | D77: 74 | E77: =IF(F$1="Decline",(D77*QsrcLitres)/SourceInputsAttenuation!$C$33,"") -> 0.01221649862 | F77: =IF(F$1="Decline",SourceInputsAttenuation!$E$15*EXP(-1*(SourceInputsAttenuation!$I$15*SrcDecline!E77)),SourceInputsAttenuation!$E$15) -> 0.0009979948423 | G77: 74 | H77: =IF(I$1="Decline",(G77*QsrcLitres)/SourceInputsAttenuation!$C$33,"") -> 0.01221649862 | I77: =IF(I$1="Decline",SourceInputsAttenuation!$E$16*EXP(-1*(SourceInputsAttenuation!$I$16*SrcDecline!E77)),SourceInputsAttenuation!$E$16) -> 0.8642728054 | J77: 74 | K77: =IF(L$1="Decline",(J77*QsrcLitres)/SourceInputsAttenuation!$C$33,"") -> 0.01221649862 | L77: =IF(L$1="Decline",SourceInputsAttenuation!$E$17*EXP(-1*(SourceInputsAttenuation!$I$17*SrcDecline!K77)),SourceInputsAttenuation!$E$17) -> 0.003986682193 | M77: 74 | N77: =IF(O$1="Decline",(M77*QsrcLitres)/SourceInputsAttenuation!$C$33,"") -> 0.01221649862 | O77: =IF(O$1="Decline",SourceInputsAttenuation!$E$18*EXP(-1*(SourceInputsAttenuation!$I$18*SrcDecline!N77)),SourceInputsAttenuation!$E$18) -> 0.3985486025 | P77: 74 | Q77: =IF(R$1="Decline",(P77*QsrcLitres)/SourceInputsAttenuation!$C$33,"") -> 0.01221649862 | R77: =IF(R$1="Decline",SourceInputsAttenuation!$E$19*EXP(-1*(SourceInputsAttenuation!$I$19*SrcDecline!Q77)),SourceInputsAttenuation!$E$19) -> 0.1992610285 | S77: 74 | T77: =IF(U$1="Decline",(S77*QsrcLitres)/SourceInputsAttenuation!$C$33,"") -> 0.01221649862 | U77: =IF(U$1="Decline",SourceInputsAttenuation!$E$20*EXP(-1*(SourceInputsAttenuation!$I$20*SrcDecline!T77)),SourceInputsAttenuation!$E$20) -> 0.04988383249
A78: 75 | B78: =IF(C$1="Decline",(A78*QsrcLitres)/(SourceInputsAttenuation!$C$33),"") -> 0.01238158644 | C78: =IF(C$1="Decline",SourceInputsAttenuation!$E$14*EXP(-1*((SourceInputsAttenuation!$I$14)*SrcDecline!B78)),SourceInputsAttenuation!$E$14) -> 0.04995287997 | D78: 75 | E78: =IF(F$1="Decline",(D78*QsrcLitres)/SourceInputsAttenuation!$C$33,"") -> 0.01238158644 | F78: =IF(F$1="Decline",SourceInputsAttenuation!$E$15*EXP(-1*(SourceInputsAttenuation!$I$15*SrcDecline!E78)),SourceInputsAttenuation!$E$15) -> 0.0009979677731 | G78: 75 | H78: =IF(I$1="Decline",(G78*QsrcLitres)/SourceInputsAttenuation!$C$33,"") -> 0.01238158644 | I78: =IF(I$1="Decline",SourceInputsAttenuation!$E$16*EXP(-1*(SourceInputsAttenuation!$I$16*SrcDecline!E78)),SourceInputsAttenuation!$E$16) -> 0.8642023833 | J78: 75 | K78: =IF(L$1="Decline",(J78*QsrcLitres)/SourceInputsAttenuation!$C$33,"") -> 0.01238158644 | L78: =IF(L$1="Decline",SourceInputsAttenuation!$E$17*EXP(-1*(SourceInputsAttenuation!$I$17*SrcDecline!K78)),SourceInputsAttenuation!$E$17) -> 0.003986502527 | M78: 75 | N78: =IF(O$1="Decline",(M78*QsrcLitres)/SourceInputsAttenuation!$C$33,"") -> 0.01238158644 | O78: =IF(O$1="Decline",SourceInputsAttenuation!$E$18*EXP(-1*(SourceInputsAttenuation!$I$18*SrcDecline!N78)),SourceInputsAttenuation!$E$18) -> 0.3985290251 | P78: 75 | Q78: =IF(R$1="Decline",(P78*QsrcLitres)/SourceInputsAttenuation!$C$33,"") -> 0.01238158644 | R78: =IF(R$1="Decline",SourceInputsAttenuation!$E$19*EXP(-1*(SourceInputsAttenuation!$I$19*SrcDecline!Q78)),SourceInputsAttenuation!$E$19) -> 0.1992510612 | S78: 75 | T78: =IF(U$1="Decline",(S78*QsrcLitres)/SourceInputsAttenuation!$C$33,"") -> 0.01238158644 | U78: =IF(U$1="Decline",SourceInputsAttenuation!$E$20*EXP(-1*(SourceInputsAttenuation!$I$20*SrcDecline!T78)),SourceInputsAttenuation!$E$20) -> 0.04988226451
A79: 76 | B79: =IF(C$1="Decline",(A79*QsrcLitres)/(SourceInputsAttenuation!$C$33),"") -> 0.01254667426 | C79: =IF(C$1="Decline",SourceInputsAttenuation!$E$14*EXP(-1*((SourceInputsAttenuation!$I$14)*SrcDecline!B79)),SourceInputsAttenuation!$E$14) -> 0.04995225201 | D79: 76 | E79: =IF(F$1="Decline",(D79*QsrcLitres)/SourceInputsAttenuation!$C$33,"") -> 0.01254667426 | F79: =IF(F$1="Decline",SourceInputsAttenuation!$E$15*EXP(-1*(SourceInputsAttenuation!$I$15*SrcDecline!E79)),SourceInputsAttenuation!$E$15) -> 0.0009979407047 | G79: 76 | H79: =IF(I$1="Decline",(G79*QsrcLitres)/SourceInputsAttenuation!$C$33,"") -> 0.01254667426 | I79: =IF(I$1="Decline",SourceInputsAttenuation!$E$16*EXP(-1*(SourceInputsAttenuation!$I$16*SrcDecline!E79)),SourceInputsAttenuation!$E$16) -> 0.8641319668 | J79: 76 | K79: =IF(L$1="Decline",(J79*QsrcLitres)/SourceInputsAttenuation!$C$33,"") -> 0.01254667426 | L79: =IF(L$1="Decline",SourceInputsAttenuation!$E$17*EXP(-1*(SourceInputsAttenuation!$I$17*SrcDecline!K79)),SourceInputsAttenuation!$E$17) -> 0.003986322868 | M79: 76 | N79: =IF(O$1="Decline",(M79*QsrcLitres)/SourceInputsAttenuation!$C$33,"") -> 0.01254667426 | O79: =IF(O$1="Decline",SourceInputsAttenuation!$E$18*EXP(-1*(SourceInputsAttenuation!$I$18*SrcDecline!N79)),SourceInputsAttenuation!$E$18) -> 0.3985094487 | P79: 76 | Q79: =IF(R$1="Decline",(P79*QsrcLitres)/SourceInputsAttenuation!$C$33,"") -> 0.01254667426 | R79: =IF(R$1="Decline",SourceInputsAttenuation!$E$19*EXP(-1*(SourceInputsAttenuation!$I$19*SrcDecline!Q79)),SourceInputsAttenuation!$E$19) -> 0.1992410943 | S79: 76 | T79: =IF(U$1="Decline",(S79*QsrcLitres)/SourceInputsAttenuation!$C$33,"") -> 0.01254667426 | U79: =IF(U$1="Decline",SourceInputsAttenuation!$E$20*EXP(-1*(SourceInputsAttenuation!$I$20*SrcDecline!T79)),SourceInputsAttenuation!$E$20) -> 0.04988069658
A80: 77 | B80: =IF(C$1="Decline",(A80*QsrcLitres)/(SourceInputsAttenuation!$C$33),"") -> 0.01271176208 | C80: =IF(C$1="Decline",SourceInputsAttenuation!$E$14*EXP(-1*((SourceInputsAttenuation!$I$14)*SrcDecline!B80)),SourceInputsAttenuation!$E$14) -> 0.04995162405 | D80: 77 | E80: =IF(F$1="Decline",(D80*QsrcLitres)/SourceInputsAttenuation!$C$33,"") -> 0.01271176208 | F80: =IF(F$1="Decline",SourceInputsAttenuation!$E$15*EXP(-1*(SourceInputsAttenuation!$I$15*SrcDecline!E80)),SourceInputsAttenuation!$E$15) -> 0.000997913637 | G80: 77 | H80: =IF(I$1="Decline",(G80*QsrcLitres)/SourceInputsAttenuation!$C$33,"") -> 0.01271176208 | I80: =IF(I$1="Decline",SourceInputsAttenuation!$E$16*EXP(-1*(SourceInputsAttenuation!$I$16*SrcDecline!E80)),SourceInputsAttenuation!$E$16) -> 0.8640615562 | J80: 77 | K80: =IF(L$1="Decline",(J80*QsrcLitres)/SourceInputsAttenuation!$C$33,"") -> 0.01271176208 | L80: =IF(L$1="Decline",SourceInputsAttenuation!$E$17*EXP(-1*(SourceInputsAttenuation!$I$17*SrcDecline!K80)),SourceInputsAttenuation!$E$17) -> 0.003986143218 | M80: 77 | N80: =IF(O$1="Decline",(M80*QsrcLitres)/SourceInputsAttenuation!$C$33,"") -> 0.01271176208 | O80: =IF(O$1="Decline",SourceInputsAttenuation!$E$18*EXP(-1*(SourceInputsAttenuation!$I$18*SrcDecline!N80)),SourceInputsAttenuation!$E$18) -> 0.3984898733 | P80: 77 | Q80: =IF(R$1="Decline",(P80*QsrcLitres)/SourceInputsAttenuation!$C$33,"") -> 0.01271176208 | R80: =IF(R$1="Decline",SourceInputsAttenuation!$E$19*EXP(-1*(SourceInputsAttenuation!$I$19*SrcDecline!Q80)),SourceInputsAttenuation!$E$19) -> 0.1992311279 | S80: 77 | T80: =IF(U$1="Decline",(S80*QsrcLitres)/SourceInputsAttenuation!$C$33,"") -> 0.01271176208 | U80: =IF(U$1="Decline",SourceInputsAttenuation!$E$20*EXP(-1*(SourceInputsAttenuation!$I$20*SrcDecline!T80)),SourceInputsAttenuation!$E$20) -> 0.04987912869
A81: 78 | B81: =IF(C$1="Decline",(A81*QsrcLitres)/(SourceInputsAttenuation!$C$33),"") -> 0.0128768499 | C81: =IF(C$1="Decline",SourceInputsAttenuation!$E$14*EXP(-1*((SourceInputsAttenuation!$I$14)*SrcDecline!B81)),SourceInputsAttenuation!$E$14) -> 0.0499509961 | D81: 78 | E81: =IF(F$1="Decline",(D81*QsrcLitres)/SourceInputsAttenuation!$C$33,"") -> 0.0128768499 | F81: =IF(F$1="Decline",SourceInputsAttenuation!$E$15*EXP(-1*(SourceInputsAttenuation!$I$15*SrcDecline!E81)),SourceInputsAttenuation!$E$15) -> 0.00099788657 | G81: 78 | H81: =IF(I$1="Decline",(G81*QsrcLitres)/SourceInputsAttenuation!$C$33,"") -> 0.0128768499 | I81: =IF(I$1="Decline",SourceInputsAttenuation!$E$16*EXP(-1*(SourceInputsAttenuation!$I$16*SrcDecline!E81)),SourceInputsAttenuation!$E$16) -> 0.8639911513 | J81: 78 | K81: =IF(L$1="Decline",(J81*QsrcLitres)/SourceInputsAttenuation!$C$33,"") -> 0.0128768499 | L81: =IF(L$1="Decline",SourceInputsAttenuation!$E$17*EXP(-1*(SourceInputsAttenuation!$I$17*SrcDecline!K81)),SourceInputsAttenuation!$E$17) -> 0.003985963576 | M81: 78 | N81: =IF(O$1="Decline",(M81*QsrcLitres)/SourceInputsAttenuation!$C$33,"") -> 0.0128768499 | O81: =IF(O$1="Decline",SourceInputsAttenuation!$E$18*EXP(-1*(SourceInputsAttenuation!$I$18*SrcDecline!N81)),SourceInputsAttenuation!$E$18) -> 0.3984702988 | P81: 78 | Q81: =IF(R$1="Decline",(P81*QsrcLitres)/SourceInputsAttenuation!$C$33,"") -> 0.0128768499 | R81: =IF(R$1="Decline",SourceInputsAttenuation!$E$19*EXP(-1*(SourceInputsAttenuation!$I$19*SrcDecline!Q81)),SourceInputsAttenuation!$E$19) -> 0.199221162 | S81: 78 | T81: =IF(U$1="Decline",(S81*QsrcLitres)/SourceInputsAttenuation!$C$33,"") -> 0.0128768499 | U81: =IF(U$1="Decline",SourceInputsAttenuation!$E$20*EXP(-1*(SourceInputsAttenuation!$I$20*SrcDecline!T81)),SourceInputsAttenuation!$E$20) -> 0.04987756086
A82: 79 | B82: =IF(C$1="Decline",(A82*QsrcLitres)/(SourceInputsAttenuation!$C$33),"") -> 0.01304193772 | C82: =IF(C$1="Decline",SourceInputsAttenuation!$E$14*EXP(-1*((SourceInputsAttenuation!$I$14)*SrcDecline!B82)),SourceInputsAttenuation!$E$14) -> 0.04995036815 | D82: 79 | E82: =IF(F$1="Decline",(D82*QsrcLitres)/SourceInputsAttenuation!$C$33,"") -> 0.01304193772 | F82: =IF(F$1="Decline",SourceInputsAttenuation!$E$15*EXP(-1*(SourceInputsAttenuation!$I$15*SrcDecline!E82)),SourceInputsAttenuation!$E$15) -> 0.0009978595038 | G82: 79 | H82: =IF(I$1="Decline",(G82*QsrcLitres)/SourceInputsAttenuation!$C$33,"") -> 0.01304193772 | I82: =IF(I$1="Decline",SourceInputsAttenuation!$E$16*EXP(-1*(SourceInputsAttenuation!$I$16*SrcDecline!E82)),SourceInputsAttenuation!$E$16) -> 0.8639207521 | J82: 79 | K82: =IF(L$1="Decline",(J82*QsrcLitres)/SourceInputsAttenuation!$C$33,"") -> 0.01304193772 | L82: =IF(L$1="Decline",SourceInputsAttenuation!$E$17*EXP(-1*(SourceInputsAttenuation!$I$17*SrcDecline!K82)),SourceInputsAttenuation!$E$17) -> 0.003985783942 | M82: 79 | N82: =IF(O$1="Decline",(M82*QsrcLitres)/SourceInputsAttenuation!$C$33,"") -> 0.01304193772 | O82: =IF(O$1="Decline",SourceInputsAttenuation!$E$18*EXP(-1*(SourceInputsAttenuation!$I$18*SrcDecline!N82)),SourceInputsAttenuation!$E$18) -> 0.3984507252 | P82: 79 | Q82: =IF(R$1="Decline",(P82*QsrcLitres)/SourceInputsAttenuation!$C$33,"") -> 0.01304193772 | R82: =IF(R$1="Decline",SourceInputsAttenuation!$E$19*EXP(-1*(SourceInputsAttenuation!$I$19*SrcDecline!Q82)),SourceInputsAttenuation!$E$19) -> 0.1992111966 | S82: 79 | T82: =IF(U$1="Decline",(S82*QsrcLitres)/SourceInputsAttenuation!$C$33,"") -> 0.01304193772 | U82: =IF(U$1="Decline",SourceInputsAttenuation!$E$20*EXP(-1*(SourceInputsAttenuation!$I$20*SrcDecline!T82)),SourceInputsAttenuation!$E$20) -> 0.04987599308
A83: 80 | B83: =IF(C$1="Decline",(A83*QsrcLitres)/(SourceInputsAttenuation!$C$33),"") -> 0.01320702554 | C83: =IF(C$1="Decline",SourceInputsAttenuation!$E$14*EXP(-1*((SourceInputsAttenuation!$I$14)*SrcDecline!B83)),SourceInputsAttenuation!$E$14) -> 0.04994974022 | D83: 80 | E83: =IF(F$1="Decline",(D83*QsrcLitres)/SourceInputsAttenuation!$C$33,"") -> 0.01320702554 | F83: =IF(F$1="Decline",SourceInputsAttenuation!$E$15*EXP(-1*(SourceInputsAttenuation!$I$15*SrcDecline!E83)),SourceInputsAttenuation!$E$15) -> 0.0009978324383 | G83: 80 | H83: =IF(I$1="Decline",(G83*QsrcLitres)/SourceInputsAttenuation!$C$33,"") -> 0.01320702554 | I83: =IF(I$1="Decline",SourceInputsAttenuation!$E$16*EXP(-1*(SourceInputsAttenuation!$I$16*SrcDecline!E83)),SourceInputsAttenuation!$E$16) -> 0.8638503586 | J83: 80 | K83: =IF(L$1="Decline",(J83*QsrcLitres)/SourceInputsAttenuation!$C$33,"") -> 0.01320702554 | L83: =IF(L$1="Decline",SourceInputsAttenuation!$E$17*EXP(-1*(SourceInputsAttenuation!$I$17*SrcDecline!K83)),SourceInputsAttenuation!$E$17) -> 0.003985604316 | M83: 80 | N83: =IF(O$1="Decline",(M83*QsrcLitres)/SourceInputsAttenuation!$C$33,"") -> 0.01320702554 | O83: =IF(O$1="Decline",SourceInputsAttenuation!$E$18*EXP(-1*(SourceInputsAttenuation!$I$18*SrcDecline!N83)),SourceInputsAttenuation!$E$18) -> 0.3984311527 | P83: 80 | Q83: =IF(R$1="Decline",(P83*QsrcLitres)/SourceInputsAttenuation!$C$33,"") -> 0.01320702554 | R83: =IF(R$1="Decline",SourceInputsAttenuation!$E$19*EXP(-1*(SourceInputsAttenuation!$I$19*SrcDecline!Q83)),SourceInputsAttenuation!$E$19) -> 0.1992012317 | S83: 80 | T83: =IF(U$1="Decline",(S83*QsrcLitres)/SourceInputsAttenuation!$C$33,"") -> 0.01320702554 | U83: =IF(U$1="Decline",SourceInputsAttenuation!$E$20*EXP(-1*(SourceInputsAttenuation!$I$20*SrcDecline!T83)),SourceInputsAttenuation!$E$20) -> 0.04987442534
A84: 81 | B84: =IF(C$1="Decline",(A84*QsrcLitres)/(SourceInputsAttenuation!$C$33),"") -> 0.01337211336 | C84: =IF(C$1="Decline",SourceInputsAttenuation!$E$14*EXP(-1*((SourceInputsAttenuation!$I$14)*SrcDecline!B84)),SourceInputsAttenuation!$E$14) -> 0.04994911229 | D84: 81 | E84: =IF(F$1="Decline",(D84*QsrcLitres)/SourceInputsAttenuation!$C$33,"") -> 0.01337211336 | F84: =IF(F$1="Decline",SourceInputsAttenuation!$E$15*EXP(-1*(SourceInputsAttenuation!$I$15*SrcDecline!E84)),SourceInputsAttenuation!$E$15) -> 0.0009978053735 | G84: 81 | H84: =IF(I$1="Decline",(G84*QsrcLitres)/SourceInputsAttenuation!$C$33,"") -> 0.01337211336 | I84: =IF(I$1="Decline",SourceInputsAttenuation!$E$16*EXP(-1*(SourceInputsAttenuation!$I$16*SrcDecline!E84)),SourceInputsAttenuation!$E$16) -> 0.8637799709 | J84: 81 | K84: =IF(L$1="Decline",(J84*QsrcLitres)/SourceInputsAttenuation!$C$33,"") -> 0.01337211336 | L84: =IF(L$1="Decline",SourceInputsAttenuation!$E$17*EXP(-1*(SourceInputsAttenuation!$I$17*SrcDecline!K84)),SourceInputsAttenuation!$E$17) -> 0.003985424698 | M84: 81 | N84: =IF(O$1="Decline",(M84*QsrcLitres)/SourceInputsAttenuation!$C$33,"") -> 0.01337211336 | O84: =IF(O$1="Decline",SourceInputsAttenuation!$E$18*EXP(-1*(SourceInputsAttenuation!$I$18*SrcDecline!N84)),SourceInputsAttenuation!$E$18) -> 0.3984115811 | P84: 81 | Q84: =IF(R$1="Decline",(P84*QsrcLitres)/SourceInputsAttenuation!$C$33,"") -> 0.01337211336 | R84: =IF(R$1="Decline",SourceInputsAttenuation!$E$19*EXP(-1*(SourceInputsAttenuation!$I$19*SrcDecline!Q84)),SourceInputsAttenuation!$E$19) -> 0.1991912673 | S84: 81 | T84: =IF(U$1="Decline",(S84*QsrcLitres)/SourceInputsAttenuation!$C$33,"") -> 0.01337211336 | U84: =IF(U$1="Decline",SourceInputsAttenuation!$E$20*EXP(-1*(SourceInputsAttenuation!$I$20*SrcDecline!T84)),SourceInputsAttenuation!$E$20) -> 0.04987285766
A85: 82 | B85: =IF(C$1="Decline",(A85*QsrcLitres)/(SourceInputsAttenuation!$C$33),"") -> 0.01353720118 | C85: =IF(C$1="Decline",SourceInputsAttenuation!$E$14*EXP(-1*((SourceInputsAttenuation!$I$14)*SrcDecline!B85)),SourceInputsAttenuation!$E$14) -> 0.04994848437 | D85: 82 | E85: =IF(F$1="Decline",(D85*QsrcLitres)/SourceInputsAttenuation!$C$33,"") -> 0.01353720118 | F85: =IF(F$1="Decline",SourceInputsAttenuation!$E$15*EXP(-1*(SourceInputsAttenuation!$I$15*SrcDecline!E85)),SourceInputsAttenuation!$E$15) -> 0.0009977783095 | G85: 82 | H85: =IF(I$1="Decline",(G85*QsrcLitres)/SourceInputsAttenuation!$C$33,"") -> 0.01353720118 | I85: =IF(I$1="Decline",SourceInputsAttenuation!$E$16*EXP(-1*(SourceInputsAttenuation!$I$16*SrcDecline!E85)),SourceInputsAttenuation!$E$16) -> 0.8637095889 | J85: 82 | K85: =IF(L$1="Decline",(J85*QsrcLitres)/SourceInputsAttenuation!$C$33,"") -> 0.01353720118 | L85: =IF(L$1="Decline",SourceInputsAttenuation!$E$17*EXP(-1*(SourceInputsAttenuation!$I$17*SrcDecline!K85)),SourceInputsAttenuation!$E$17) -> 0.003985245089 | M85: 82 | N85: =IF(O$1="Decline",(M85*QsrcLitres)/SourceInputsAttenuation!$C$33,"") -> 0.01353720118 | O85: =IF(O$1="Decline",SourceInputsAttenuation!$E$18*EXP(-1*(SourceInputsAttenuation!$I$18*SrcDecline!N85)),SourceInputsAttenuation!$E$18) -> 0.3983920104 | P85: 82 | Q85: =IF(R$1="Decline",(P85*QsrcLitres)/SourceInputsAttenuation!$C$33,"") -> 0.01353720118 | R85: =IF(R$1="Decline",SourceInputsAttenuation!$E$19*EXP(-1*(SourceInputsAttenuation!$I$19*SrcDecline!Q85)),SourceInputsAttenuation!$E$19) -> 0.1991813035 | S85: 82 | T85: =IF(U$1="Decline",(S85*QsrcLitres)/SourceInputsAttenuation!$C$33,"") -> 0.01353720118 | U85: =IF(U$1="Decline",SourceInputsAttenuation!$E$20*EXP(-1*(SourceInputsAttenuation!$I$20*SrcDecline!T85)),SourceInputsAttenuation!$E$20) -> 0.04987129002
A86: 83 | B86: =IF(C$1="Decline",(A86*QsrcLitres)/(SourceInputsAttenuation!$C$33),"") -> 0.013702289 | C86: =IF(C$1="Decline",SourceInputsAttenuation!$E$14*EXP(-1*((SourceInputsAttenuation!$I$14)*SrcDecline!B86)),SourceInputsAttenuation!$E$14) -> 0.04994785646 | D86: 83 | E86: =IF(F$1="Decline",(D86*QsrcLitres)/SourceInputsAttenuation!$C$33,"") -> 0.013702289 | F86: =IF(F$1="Decline",SourceInputsAttenuation!$E$15*EXP(-1*(SourceInputsAttenuation!$I$15*SrcDecline!E86)),SourceInputsAttenuation!$E$15) -> 0.0009977512462 | G86: 83 | H86: =IF(I$1="Decline",(G86*QsrcLitres)/SourceInputsAttenuation!$C$33,"") -> 0.013702289 | I86: =IF(I$1="Decline",SourceInputsAttenuation!$E$16*EXP(-1*(SourceInputsAttenuation!$I$16*SrcDecline!E86)),SourceInputsAttenuation!$E$16) -> 0.8636392127 | J86: 83 | K86: =IF(L$1="Decline",(J86*QsrcLitres)/SourceInputsAttenuation!$C$33,"") -> 0.013702289 | L86: =IF(L$1="Decline",SourceInputsAttenuation!$E$17*EXP(-1*(SourceInputsAttenuation!$I$17*SrcDecline!K86)),SourceInputsAttenuation!$E$17) -> 0.003985065487 | M86: 83 | N86: =IF(O$1="Decline",(M86*QsrcLitres)/SourceInputsAttenuation!$C$33,"") -> 0.013702289 | O86: =IF(O$1="Decline",SourceInputsAttenuation!$E$18*EXP(-1*(SourceInputsAttenuation!$I$18*SrcDecline!N86)),SourceInputsAttenuation!$E$18) -> 0.3983724408 | P86: 83 | Q86: =IF(R$1="Decline",(P86*QsrcLitres)/SourceInputsAttenuation!$C$33,"") -> 0.013702289 | R86: =IF(R$1="Decline",SourceInputsAttenuation!$E$19*EXP(-1*(SourceInputsAttenuation!$I$19*SrcDecline!Q86)),SourceInputsAttenuation!$E$19) -> 0.1991713401 | S86: 83 | T86: =IF(U$1="Decline",(S86*QsrcLitres)/SourceInputsAttenuation!$C$33,"") -> 0.013702289 | U86: =IF(U$1="Decline",SourceInputsAttenuation!$E$20*EXP(-1*(SourceInputsAttenuation!$I$20*SrcDecline!T86)),SourceInputsAttenuation!$E$20) -> 0.04986972243
A87: 84 | B87: =IF(C$1="Decline",(A87*QsrcLitres)/(SourceInputsAttenuation!$C$33),"") -> 0.01386737682 | C87: =IF(C$1="Decline",SourceInputsAttenuation!$E$14*EXP(-1*((SourceInputsAttenuation!$I$14)*SrcDecline!B87)),SourceInputsAttenuation!$E$14) -> 0.04994722856 | D87: 84 | E87: =IF(F$1="Decline",(D87*QsrcLitres)/SourceInputsAttenuation!$C$33,"") -> 0.01386737682 | F87: =IF(F$1="Decline",SourceInputsAttenuation!$E$15*EXP(-1*(SourceInputsAttenuation!$I$15*SrcDecline!E87)),SourceInputsAttenuation!$E$15) -> 0.0009977241836 | G87: 84 | H87: =IF(I$1="Decline",(G87*QsrcLitres)/SourceInputsAttenuation!$C$33,"") -> 0.01386737682 | I87: =IF(I$1="Decline",SourceInputsAttenuation!$E$16*EXP(-1*(SourceInputsAttenuation!$I$16*SrcDecline!E87)),SourceInputsAttenuation!$E$16) -> 0.8635688421 | J87: 84 | K87: =IF(L$1="Decline",(J87*QsrcLitres)/SourceInputsAttenuation!$C$33,"") -> 0.01386737682 | L87: =IF(L$1="Decline",SourceInputsAttenuation!$E$17*EXP(-1*(SourceInputsAttenuation!$I$17*SrcDecline!K87)),SourceInputsAttenuation!$E$17) -> 0.003984885893 | M87: 84 | N87: =IF(O$1="Decline",(M87*QsrcLitres)/SourceInputsAttenuation!$C$33,"") -> 0.01386737682 | O87: =IF(O$1="Decline",SourceInputsAttenuation!$E$18*EXP(-1*(SourceInputsAttenuation!$I$18*SrcDecline!N87)),SourceInputsAttenuation!$E$18) -> 0.398352872 | P87: 84 | Q87: =IF(R$1="Decline",(P87*QsrcLitres)/SourceInputsAttenuation!$C$33,"") -> 0.01386737682 | R87: =IF(R$1="Decline",SourceInputsAttenuation!$E$19*EXP(-1*(SourceInputsAttenuation!$I$19*SrcDecline!Q87)),SourceInputsAttenuation!$E$19) -> 0.1991613772 | S87: 84 | T87: =IF(U$1="Decline",(S87*QsrcLitres)/SourceInputsAttenuation!$C$33,"") -> 0.01386737682 | U87: =IF(U$1="Decline",SourceInputsAttenuation!$E$20*EXP(-1*(SourceInputsAttenuation!$I$20*SrcDecline!T87)),SourceInputsAttenuation!$E$20) -> 0.04986815489
A88: 85 | B88: =IF(C$1="Decline",(A88*QsrcLitres)/(SourceInputsAttenuation!$C$33),"") -> 0.01403246464 | C88: =IF(C$1="Decline",SourceInputsAttenuation!$E$14*EXP(-1*((SourceInputsAttenuation!$I$14)*SrcDecline!B88)),SourceInputsAttenuation!$E$14) -> 0.04994660066 | D88: 85 | E88: =IF(F$1="Decline",(D88*QsrcLitres)/SourceInputsAttenuation!$C$33,"") -> 0.01403246464 | F88: =IF(F$1="Decline",SourceInputsAttenuation!$E$15*EXP(-1*(SourceInputsAttenuation!$I$15*SrcDecline!E88)),SourceInputsAttenuation!$E$15) -> 0.0009976971218 | G88: 85 | H88: =IF(I$1="Decline",(G88*QsrcLitres)/SourceInputsAttenuation!$C$33,"") -> 0.01403246464 | I88: =IF(I$1="Decline",SourceInputsAttenuation!$E$16*EXP(-1*(SourceInputsAttenuation!$I$16*SrcDecline!E88)),SourceInputsAttenuation!$E$16) -> 0.8634984774 | J88: 85 | K88: =IF(L$1="Decline",(J88*QsrcLitres)/SourceInputsAttenuation!$C$33,"") -> 0.01403246464 | L88: =IF(L$1="Decline",SourceInputsAttenuation!$E$17*EXP(-1*(SourceInputsAttenuation!$I$17*SrcDecline!K88)),SourceInputsAttenuation!$E$17) -> 0.003984706308 | M88: 85 | N88: =IF(O$1="Decline",(M88*QsrcLitres)/SourceInputsAttenuation!$C$33,"") -> 0.01403246464 | O88: =IF(O$1="Decline",SourceInputsAttenuation!$E$18*EXP(-1*(SourceInputsAttenuation!$I$18*SrcDecline!N88)),SourceInputsAttenuation!$E$18) -> 0.3983333043 | P88: 85 | Q88: =IF(R$1="Decline",(P88*QsrcLitres)/SourceInputsAttenuation!$C$33,"") -> 0.01403246464 | R88: =IF(R$1="Decline",SourceInputsAttenuation!$E$19*EXP(-1*(SourceInputsAttenuation!$I$19*SrcDecline!Q88)),SourceInputsAttenuation!$E$19) -> 0.1991514148 | S88: 85 | T88: =IF(U$1="Decline",(S88*QsrcLitres)/SourceInputsAttenuation!$C$33,"") -> 0.01403246464 | U88: =IF(U$1="Decline",SourceInputsAttenuation!$E$20*EXP(-1*(SourceInputsAttenuation!$I$20*SrcDecline!T88)),SourceInputsAttenuation!$E$20) -> 0.04986658741
A89: 86 | B89: =IF(C$1="Decline",(A89*QsrcLitres)/(SourceInputsAttenuation!$C$33),"") -> 0.01419755246 | C89: =IF(C$1="Decline",SourceInputsAttenuation!$E$14*EXP(-1*((SourceInputsAttenuation!$I$14)*SrcDecline!B89)),SourceInputsAttenuation!$E$14) -> 0.04994597277 | D89: 86 | E89: =IF(F$1="Decline",(D89*QsrcLitres)/SourceInputsAttenuation!$C$33,"") -> 0.01419755246 | F89: =IF(F$1="Decline",SourceInputsAttenuation!$E$15*EXP(-1*(SourceInputsAttenuation!$I$15*SrcDecline!E89)),SourceInputsAttenuation!$E$15) -> 0.0009976700607 | G89: 86 | H89: =IF(I$1="Decline",(G89*QsrcLitres)/SourceInputsAttenuation!$C$33,"") -> 0.01419755246 | I89: =IF(I$1="Decline",SourceInputsAttenuation!$E$16*EXP(-1*(SourceInputsAttenuation!$I$16*SrcDecline!E89)),SourceInputsAttenuation!$E$16) -> 0.8634281183 | J89: 86 | K89: =IF(L$1="Decline",(J89*QsrcLitres)/SourceInputsAttenuation!$C$33,"") -> 0.01419755246 | L89: =IF(L$1="Decline",SourceInputsAttenuation!$E$17*EXP(-1*(SourceInputsAttenuation!$I$17*SrcDecline!K89)),SourceInputsAttenuation!$E$17) -> 0.003984526731 | M89: 86 | N89: =IF(O$1="Decline",(M89*QsrcLitres)/SourceInputsAttenuation!$C$33,"") -> 0.01419755246 | O89: =IF(O$1="Decline",SourceInputsAttenuation!$E$18*EXP(-1*(SourceInputsAttenuation!$I$18*SrcDecline!N89)),SourceInputsAttenuation!$E$18) -> 0.3983137375 | P89: 86 | Q89: =IF(R$1="Decline",(P89*QsrcLitres)/SourceInputsAttenuation!$C$33,"") -> 0.01419755246 | R89: =IF(R$1="Decline",SourceInputsAttenuation!$E$19*EXP(-1*(SourceInputsAttenuation!$I$19*SrcDecline!Q89)),SourceInputsAttenuation!$E$19) -> 0.1991414529 | S89: 86 | T89: =IF(U$1="Decline",(S89*QsrcLitres)/SourceInputsAttenuation!$C$33,"") -> 0.01419755246 | U89: =IF(U$1="Decline",SourceInputsAttenuation!$E$20*EXP(-1*(SourceInputsAttenuation!$I$20*SrcDecline!T89)),SourceInputsAttenuation!$E$20) -> 0.04986501997
A90: 87 | B90: =IF(C$1="Decline",(A90*QsrcLitres)/(SourceInputsAttenuation!$C$33),"") -> 0.01436264027 | C90: =IF(C$1="Decline",SourceInputsAttenuation!$E$14*EXP(-1*((SourceInputsAttenuation!$I$14)*SrcDecline!B90)),SourceInputsAttenuation!$E$14) -> 0.04994534489 | D90: 87 | E90: =IF(F$1="Decline",(D90*QsrcLitres)/SourceInputsAttenuation!$C$33,"") -> 0.01436264027 | F90: =IF(F$1="Decline",SourceInputsAttenuation!$E$15*EXP(-1*(SourceInputsAttenuation!$I$15*SrcDecline!E90)),SourceInputsAttenuation!$E$15) -> 0.0009976430003 | G90: 87 | H90: =IF(I$1="Decline",(G90*QsrcLitres)/SourceInputsAttenuation!$C$33,"") -> 0.01436264027 | I90: =IF(I$1="Decline",SourceInputsAttenuation!$E$16*EXP(-1*(SourceInputsAttenuation!$I$16*SrcDecline!E90)),SourceInputsAttenuation!$E$16) -> 0.863357765 | J90: 87 | K90: =IF(L$1="Decline",(J90*QsrcLitres)/SourceInputsAttenuation!$C$33,"") -> 0.01436264027 | L90: =IF(L$1="Decline",SourceInputsAttenuation!$E$17*EXP(-1*(SourceInputsAttenuation!$I$17*SrcDecline!K90)),SourceInputsAttenuation!$E$17) -> 0.003984347161 | M90: 87 | N90: =IF(O$1="Decline",(M90*QsrcLitres)/SourceInputsAttenuation!$C$33,"") -> 0.01436264027 | O90: =IF(O$1="Decline",SourceInputsAttenuation!$E$18*EXP(-1*(SourceInputsAttenuation!$I$18*SrcDecline!N90)),SourceInputsAttenuation!$E$18) -> 0.3982941716 | P90: 87 | Q90: =IF(R$1="Decline",(P90*QsrcLitres)/SourceInputsAttenuation!$C$33,"") -> 0.01436264027 | R90: =IF(R$1="Decline",SourceInputsAttenuation!$E$19*EXP(-1*(SourceInputsAttenuation!$I$19*SrcDecline!Q90)),SourceInputsAttenuation!$E$19) -> 0.1991314915 | S90: 87 | T90: =IF(U$1="Decline",(S90*QsrcLitres)/SourceInputsAttenuation!$C$33,"") -> 0.01436264027 | U90: =IF(U$1="Decline",SourceInputsAttenuation!$E$20*EXP(-1*(SourceInputsAttenuation!$I$20*SrcDecline!T90)),SourceInputsAttenuation!$E$20) -> 0.04986345258
A91: 88 | B91: =IF(C$1="Decline",(A91*QsrcLitres)/(SourceInputsAttenuation!$C$33),"") -> 0.01452772809 | C91: =IF(C$1="Decline",SourceInputsAttenuation!$E$14*EXP(-1*((SourceInputsAttenuation!$I$14)*SrcDecline!B91)),SourceInputsAttenuation!$E$14) -> 0.04994471702 | D91: 88 | E91: =IF(F$1="Decline",(D91*QsrcLitres)/SourceInputsAttenuation!$C$33,"") -> 0.01452772809 | F91: =IF(F$1="Decline",SourceInputsAttenuation!$E$15*EXP(-1*(SourceInputsAttenuation!$I$15*SrcDecline!E91)),SourceInputsAttenuation!$E$15) -> 0.0009976159407 | G91: 88 | H91: =IF(I$1="Decline",(G91*QsrcLitres)/SourceInputsAttenuation!$C$33,"") -> 0.01452772809 | I91: =IF(I$1="Decline",SourceInputsAttenuation!$E$16*EXP(-1*(SourceInputsAttenuation!$I$16*SrcDecline!E91)),SourceInputsAttenuation!$E$16) -> 0.8632874174 | J91: 88 | K91: =IF(L$1="Decline",(J91*QsrcLitres)/SourceInputsAttenuation!$C$33,"") -> 0.01452772809 | L91: =IF(L$1="Decline",SourceInputsAttenuation!$E$17*EXP(-1*(SourceInputsAttenuation!$I$17*SrcDecline!K91)),SourceInputsAttenuation!$E$17) -> 0.0039841676 | M91: 88 | N91: =IF(O$1="Decline",(M91*QsrcLitres)/SourceInputsAttenuation!$C$33,"") -> 0.01452772809 | O91: =IF(O$1="Decline",SourceInputsAttenuation!$E$18*EXP(-1*(SourceInputsAttenuation!$I$18*SrcDecline!N91)),SourceInputsAttenuation!$E$18) -> 0.3982746068 | P91: 88 | Q91: =IF(R$1="Decline",(P91*QsrcLitres)/SourceInputsAttenuation!$C$33,"") -> 0.01452772809 | R91: =IF(R$1="Decline",SourceInputsAttenuation!$E$19*EXP(-1*(SourceInputsAttenuation!$I$19*SrcDecline!Q91)),SourceInputsAttenuation!$E$19) -> 0.1991215306 | S91: 88 | T91: =IF(U$1="Decline",(S91*QsrcLitres)/SourceInputsAttenuation!$C$33,"") -> 0.01452772809 | U91: =IF(U$1="Decline",SourceInputsAttenuation!$E$20*EXP(-1*(SourceInputsAttenuation!$I$20*SrcDecline!T91)),SourceInputsAttenuation!$E$20) -> 0.04986188523
A92: 89 | B92: =IF(C$1="Decline",(A92*QsrcLitres)/(SourceInputsAttenuation!$C$33),"") -> 0.01469281591 | C92: =IF(C$1="Decline",SourceInputsAttenuation!$E$14*EXP(-1*((SourceInputsAttenuation!$I$14)*SrcDecline!B92)),SourceInputsAttenuation!$E$14) -> 0.04994408915 | D92: 89 | E92: =IF(F$1="Decline",(D92*QsrcLitres)/SourceInputsAttenuation!$C$33,"") -> 0.01469281591 | F92: =IF(F$1="Decline",SourceInputsAttenuation!$E$15*EXP(-1*(SourceInputsAttenuation!$I$15*SrcDecline!E92)),SourceInputsAttenuation!$E$15) -> 0.0009975888818 | G92: 89 | H92: =IF(I$1="Decline",(G92*QsrcLitres)/SourceInputsAttenuation!$C$33,"") -> 0.01469281591 | I92: =IF(I$1="Decline",SourceInputsAttenuation!$E$16*EXP(-1*(SourceInputsAttenuation!$I$16*SrcDecline!E92)),SourceInputsAttenuation!$E$16) -> 0.8632170756 | J92: 89 | K92: =IF(L$1="Decline",(J92*QsrcLitres)/SourceInputsAttenuation!$C$33,"") -> 0.01469281591 | L92: =IF(L$1="Decline",SourceInputsAttenuation!$E$17*EXP(-1*(SourceInputsAttenuation!$I$17*SrcDecline!K92)),SourceInputsAttenuation!$E$17) -> 0.003983988047 | M92: 89 | N92: =IF(O$1="Decline",(M92*QsrcLitres)/SourceInputsAttenuation!$C$33,"") -> 0.01469281591 | O92: =IF(O$1="Decline",SourceInputsAttenuation!$E$18*EXP(-1*(SourceInputsAttenuation!$I$18*SrcDecline!N92)),SourceInputsAttenuation!$E$18) -> 0.3982550429 | P92: 89 | Q92: =IF(R$1="Decline",(P92*QsrcLitres)/SourceInputsAttenuation!$C$33,"") -> 0.01469281591 | R92: =IF(R$1="Decline",SourceInputsAttenuation!$E$19*EXP(-1*(SourceInputsAttenuation!$I$19*SrcDecline!Q92)),SourceInputsAttenuation!$E$19) -> 0.1991115702 | S92: 89 | T92: =IF(U$1="Decline",(S92*QsrcLitres)/SourceInputsAttenuation!$C$33,"") -> 0.01469281591 | U92: =IF(U$1="Decline",SourceInputsAttenuation!$E$20*EXP(-1*(SourceInputsAttenuation!$I$20*SrcDecline!T92)),SourceInputsAttenuation!$E$20) -> 0.04986031794
A93: 90 | B93: =IF(C$1="Decline",(A93*QsrcLitres)/(SourceInputsAttenuation!$C$33),"") -> 0.01485790373 | C93: =IF(C$1="Decline",SourceInputsAttenuation!$E$14*EXP(-1*((SourceInputsAttenuation!$I$14)*SrcDecline!B93)),SourceInputsAttenuation!$E$14) -> 0.0499434613 | D93: 90 | E93: =IF(F$1="Decline",(D93*QsrcLitres)/SourceInputsAttenuation!$C$33,"") -> 0.01485790373 | F93: =IF(F$1="Decline",SourceInputsAttenuation!$E$15*EXP(-1*(SourceInputsAttenuation!$I$15*SrcDecline!E93)),SourceInputsAttenuation!$E$15) -> 0.0009975618236 | G93: 90 | H93: =IF(I$1="Decline",(G93*QsrcLitres)/SourceInputsAttenuation!$C$33,"") -> 0.01485790373 | I93: =IF(I$1="Decline",SourceInputsAttenuation!$E$16*EXP(-1*(SourceInputsAttenuation!$I$16*SrcDecline!E93)),SourceInputsAttenuation!$E$16) -> 0.8631467394 | J93: 90 | K93: =IF(L$1="Decline",(J93*QsrcLitres)/SourceInputsAttenuation!$C$33,"") -> 0.01485790373 | L93: =IF(L$1="Decline",SourceInputsAttenuation!$E$17*EXP(-1*(SourceInputsAttenuation!$I$17*SrcDecline!K93)),SourceInputsAttenuation!$E$17) -> 0.003983808502 | M93: 90 | N93: =IF(O$1="Decline",(M93*QsrcLitres)/SourceInputsAttenuation!$C$33,"") -> 0.01485790373 | O93: =IF(O$1="Decline",SourceInputsAttenuation!$E$18*EXP(-1*(SourceInputsAttenuation!$I$18*SrcDecline!N93)),SourceInputsAttenuation!$E$18) -> 0.3982354799 | P93: 90 | Q93: =IF(R$1="Decline",(P93*QsrcLitres)/SourceInputsAttenuation!$C$33,"") -> 0.01485790373 | R93: =IF(R$1="Decline",SourceInputsAttenuation!$E$19*EXP(-1*(SourceInputsAttenuation!$I$19*SrcDecline!Q93)),SourceInputsAttenuation!$E$19) -> 0.1991016103 | S93: 90 | T93: =IF(U$1="Decline",(S93*QsrcLitres)/SourceInputsAttenuation!$C$33,"") -> 0.01485790373 | U93: =IF(U$1="Decline",SourceInputsAttenuation!$E$20*EXP(-1*(SourceInputsAttenuation!$I$20*SrcDecline!T93)),SourceInputsAttenuation!$E$20) -> 0.0498587507
A94: 91 | B94: =IF(C$1="Decline",(A94*QsrcLitres)/(SourceInputsAttenuation!$C$33),"") -> 0.01502299155 | C94: =IF(C$1="Decline",SourceInputsAttenuation!$E$14*EXP(-1*((SourceInputsAttenuation!$I$14)*SrcDecline!B94)),SourceInputsAttenuation!$E$14) -> 0.04994283345 | D94: 91 | E94: =IF(F$1="Decline",(D94*QsrcLitres)/SourceInputsAttenuation!$C$33,"") -> 0.01502299155 | F94: =IF(F$1="Decline",SourceInputsAttenuation!$E$15*EXP(-1*(SourceInputsAttenuation!$I$15*SrcDecline!E94)),SourceInputsAttenuation!$E$15) -> 0.0009975347662 | G94: 91 | H94: =IF(I$1="Decline",(G94*QsrcLitres)/SourceInputsAttenuation!$C$33,"") -> 0.01502299155 | I94: =IF(I$1="Decline",SourceInputsAttenuation!$E$16*EXP(-1*(SourceInputsAttenuation!$I$16*SrcDecline!E94)),SourceInputsAttenuation!$E$16) -> 0.863076409 | J94: 91 | K94: =IF(L$1="Decline",(J94*QsrcLitres)/SourceInputsAttenuation!$C$33,"") -> 0.01502299155 | L94: =IF(L$1="Decline",SourceInputsAttenuation!$E$17*EXP(-1*(SourceInputsAttenuation!$I$17*SrcDecline!K94)),SourceInputsAttenuation!$E$17) -> 0.003983628965 | M94: 91 | N94: =IF(O$1="Decline",(M94*QsrcLitres)/SourceInputsAttenuation!$C$33,"") -> 0.01502299155 | O94: =IF(O$1="Decline",SourceInputsAttenuation!$E$18*EXP(-1*(SourceInputsAttenuation!$I$18*SrcDecline!N94)),SourceInputsAttenuation!$E$18) -> 0.3982159179 | P94: 91 | Q94: =IF(R$1="Decline",(P94*QsrcLitres)/SourceInputsAttenuation!$C$33,"") -> 0.01502299155 | R94: =IF(R$1="Decline",SourceInputsAttenuation!$E$19*EXP(-1*(SourceInputsAttenuation!$I$19*SrcDecline!Q94)),SourceInputsAttenuation!$E$19) -> 0.1990916509 | S94: 91 | T94: =IF(U$1="Decline",(S94*QsrcLitres)/SourceInputsAttenuation!$C$33,"") -> 0.01502299155 | U94: =IF(U$1="Decline",SourceInputsAttenuation!$E$20*EXP(-1*(SourceInputsAttenuation!$I$20*SrcDecline!T94)),SourceInputsAttenuation!$E$20) -> 0.04985718351
A95: 92 | B95: =IF(C$1="Decline",(A95*QsrcLitres)/(SourceInputsAttenuation!$C$33),"") -> 0.01518807937 | C95: =IF(C$1="Decline",SourceInputsAttenuation!$E$14*EXP(-1*((SourceInputsAttenuation!$I$14)*SrcDecline!B95)),SourceInputsAttenuation!$E$14) -> 0.04994220561 | D95: 92 | E95: =IF(F$1="Decline",(D95*QsrcLitres)/SourceInputsAttenuation!$C$33,"") -> 0.01518807937 | F95: =IF(F$1="Decline",SourceInputsAttenuation!$E$15*EXP(-1*(SourceInputsAttenuation!$I$15*SrcDecline!E95)),SourceInputsAttenuation!$E$15) -> 0.0009975077095 | G95: 92 | H95: =IF(I$1="Decline",(G95*QsrcLitres)/SourceInputsAttenuation!$C$33,"") -> 0.01518807937 | I95: =IF(I$1="Decline",SourceInputsAttenuation!$E$16*EXP(-1*(SourceInputsAttenuation!$I$16*SrcDecline!E95)),SourceInputsAttenuation!$E$16) -> 0.8630060844 | J95: 92 | K95: =IF(L$1="Decline",(J95*QsrcLitres)/SourceInputsAttenuation!$C$33,"") -> 0.01518807937 | L95: =IF(L$1="Decline",SourceInputsAttenuation!$E$17*EXP(-1*(SourceInputsAttenuation!$I$17*SrcDecline!K95)),SourceInputsAttenuation!$E$17) -> 0.003983449437 | M95: 92 | N95: =IF(O$1="Decline",(M95*QsrcLitres)/SourceInputsAttenuation!$C$33,"") -> 0.01518807937 | O95: =IF(O$1="Decline",SourceInputsAttenuation!$E$18*EXP(-1*(SourceInputsAttenuation!$I$18*SrcDecline!N95)),SourceInputsAttenuation!$E$18) -> 0.3981963569 | P95: 92 | Q95: =IF(R$1="Decline",(P95*QsrcLitres)/SourceInputsAttenuation!$C$33,"") -> 0.01518807937 | R95: =IF(R$1="Decline",SourceInputsAttenuation!$E$19*EXP(-1*(SourceInputsAttenuation!$I$19*SrcDecline!Q95)),SourceInputsAttenuation!$E$19) -> 0.199081692 | S95: 92 | T95: =IF(U$1="Decline",(S95*QsrcLitres)/SourceInputsAttenuation!$C$33,"") -> 0.01518807937 | U95: =IF(U$1="Decline",SourceInputsAttenuation!$E$20*EXP(-1*(SourceInputsAttenuation!$I$20*SrcDecline!T95)),SourceInputsAttenuation!$E$20) -> 0.04985561636
A96: 93 | B96: =IF(C$1="Decline",(A96*QsrcLitres)/(SourceInputsAttenuation!$C$33),"") -> 0.01535316719 | C96: =IF(C$1="Decline",SourceInputsAttenuation!$E$14*EXP(-1*((SourceInputsAttenuation!$I$14)*SrcDecline!B96)),SourceInputsAttenuation!$E$14) -> 0.04994157778 | D96: 93 | E96: =IF(F$1="Decline",(D96*QsrcLitres)/SourceInputsAttenuation!$C$33,"") -> 0.01535316719 | F96: =IF(F$1="Decline",SourceInputsAttenuation!$E$15*EXP(-1*(SourceInputsAttenuation!$I$15*SrcDecline!E96)),SourceInputsAttenuation!$E$15) -> 0.0009974806535 | G96: 93 | H96: =IF(I$1="Decline",(G96*QsrcLitres)/SourceInputsAttenuation!$C$33,"") -> 0.01535316719 | I96: =IF(I$1="Decline",SourceInputsAttenuation!$E$16*EXP(-1*(SourceInputsAttenuation!$I$16*SrcDecline!E96)),SourceInputsAttenuation!$E$16) -> 0.8629357655 | J96: 93 | K96: =IF(L$1="Decline",(J96*QsrcLitres)/SourceInputsAttenuation!$C$33,"") -> 0.01535316719 | L96: =IF(L$1="Decline",SourceInputsAttenuation!$E$17*EXP(-1*(SourceInputsAttenuation!$I$17*SrcDecline!K96)),SourceInputsAttenuation!$E$17) -> 0.003983269916 | M96: 93 | N96: =IF(O$1="Decline",(M96*QsrcLitres)/SourceInputsAttenuation!$C$33,"") -> 0.01535316719 | O96: =IF(O$1="Decline",SourceInputsAttenuation!$E$18*EXP(-1*(SourceInputsAttenuation!$I$18*SrcDecline!N96)),SourceInputsAttenuation!$E$18) -> 0.3981767968 | P96: 93 | Q96: =IF(R$1="Decline",(P96*QsrcLitres)/SourceInputsAttenuation!$C$33,"") -> 0.01535316719 | R96: =IF(R$1="Decline",SourceInputsAttenuation!$E$19*EXP(-1*(SourceInputsAttenuation!$I$19*SrcDecline!Q96)),SourceInputsAttenuation!$E$19) -> 0.1990717335 | S96: 93 | T96: =IF(U$1="Decline",(S96*QsrcLitres)/SourceInputsAttenuation!$C$33,"") -> 0.01535316719 | U96: =IF(U$1="Decline",SourceInputsAttenuation!$E$20*EXP(-1*(SourceInputsAttenuation!$I$20*SrcDecline!T96)),SourceInputsAttenuation!$E$20) -> 0.04985404927
A97: 94 | B97: =IF(C$1="Decline",(A97*QsrcLitres)/(SourceInputsAttenuation!$C$33),"") -> 0.01551825501 | C97: =IF(C$1="Decline",SourceInputsAttenuation!$E$14*EXP(-1*((SourceInputsAttenuation!$I$14)*SrcDecline!B97)),SourceInputsAttenuation!$E$14) -> 0.04994094995 | D97: 94 | E97: =IF(F$1="Decline",(D97*QsrcLitres)/SourceInputsAttenuation!$C$33,"") -> 0.01551825501 | F97: =IF(F$1="Decline",SourceInputsAttenuation!$E$15*EXP(-1*(SourceInputsAttenuation!$I$15*SrcDecline!E97)),SourceInputsAttenuation!$E$15) -> 0.0009974535983 | G97: 94 | H97: =IF(I$1="Decline",(G97*QsrcLitres)/SourceInputsAttenuation!$C$33,"") -> 0.01551825501 | I97: =IF(I$1="Decline",SourceInputsAttenuation!$E$16*EXP(-1*(SourceInputsAttenuation!$I$16*SrcDecline!E97)),SourceInputsAttenuation!$E$16) -> 0.8628654523 | J97: 94 | K97: =IF(L$1="Decline",(J97*QsrcLitres)/SourceInputsAttenuation!$C$33,"") -> 0.01551825501 | L97: =IF(L$1="Decline",SourceInputsAttenuation!$E$17*EXP(-1*(SourceInputsAttenuation!$I$17*SrcDecline!K97)),SourceInputsAttenuation!$E$17) -> 0.003983090403 | M97: 94 | N97: =IF(O$1="Decline",(M97*QsrcLitres)/SourceInputsAttenuation!$C$33,"") -> 0.01551825501 | O97: =IF(O$1="Decline",SourceInputsAttenuation!$E$18*EXP(-1*(SourceInputsAttenuation!$I$18*SrcDecline!N97)),SourceInputsAttenuation!$E$18) -> 0.3981572377 | P97: 94 | Q97: =IF(R$1="Decline",(P97*QsrcLitres)/SourceInputsAttenuation!$C$33,"") -> 0.01551825501 | R97: =IF(R$1="Decline",SourceInputsAttenuation!$E$19*EXP(-1*(SourceInputsAttenuation!$I$19*SrcDecline!Q97)),SourceInputsAttenuation!$E$19) -> 0.1990617756 | S97: 94 | T97: =IF(U$1="Decline",(S97*QsrcLitres)/SourceInputsAttenuation!$C$33,"") -> 0.01551825501 | U97: =IF(U$1="Decline",SourceInputsAttenuation!$E$20*EXP(-1*(SourceInputsAttenuation!$I$20*SrcDecline!T97)),SourceInputsAttenuation!$E$20) -> 0.04985248222
A98: 95 | B98: =IF(C$1="Decline",(A98*QsrcLitres)/(SourceInputsAttenuation!$C$33),"") -> 0.01568334283 | C98: =IF(C$1="Decline",SourceInputsAttenuation!$E$14*EXP(-1*((SourceInputsAttenuation!$I$14)*SrcDecline!B98)),SourceInputsAttenuation!$E$14) -> 0.04994032213 | D98: 95 | E98: =IF(F$1="Decline",(D98*QsrcLitres)/SourceInputsAttenuation!$C$33,"") -> 0.01568334283 | F98: =IF(F$1="Decline",SourceInputsAttenuation!$E$15*EXP(-1*(SourceInputsAttenuation!$I$15*SrcDecline!E98)),SourceInputsAttenuation!$E$15) -> 0.0009974265438 | G98: 95 | H98: =IF(I$1="Decline",(G98*QsrcLitres)/SourceInputsAttenuation!$C$33,"") -> 0.01568334283 | I98: =IF(I$1="Decline",SourceInputsAttenuation!$E$16*EXP(-1*(SourceInputsAttenuation!$I$16*SrcDecline!E98)),SourceInputsAttenuation!$E$16) -> 0.8627951448 | J98: 95 | K98: =IF(L$1="Decline",(J98*QsrcLitres)/SourceInputsAttenuation!$C$33,"") -> 0.01568334283 | L98: =IF(L$1="Decline",SourceInputsAttenuation!$E$17*EXP(-1*(SourceInputsAttenuation!$I$17*SrcDecline!K98)),SourceInputsAttenuation!$E$17) -> 0.003982910899 | M98: 95 | N98: =IF(O$1="Decline",(M98*QsrcLitres)/SourceInputsAttenuation!$C$33,"") -> 0.01568334283 | O98: =IF(O$1="Decline",SourceInputsAttenuation!$E$18*EXP(-1*(SourceInputsAttenuation!$I$18*SrcDecline!N98)),SourceInputsAttenuation!$E$18) -> 0.3981376796 | P98: 95 | Q98: =IF(R$1="Decline",(P98*QsrcLitres)/SourceInputsAttenuation!$C$33,"") -> 0.01568334283 | R98: =IF(R$1="Decline",SourceInputsAttenuation!$E$19*EXP(-1*(SourceInputsAttenuation!$I$19*SrcDecline!Q98)),SourceInputsAttenuation!$E$19) -> 0.1990518182 | S98: 95 | T98: =IF(U$1="Decline",(S98*QsrcLitres)/SourceInputsAttenuation!$C$33,"") -> 0.01568334283 | U98: =IF(U$1="Decline",SourceInputsAttenuation!$E$20*EXP(-1*(SourceInputsAttenuation!$I$20*SrcDecline!T98)),SourceInputsAttenuation!$E$20) -> 0.04985091523
A99: 96 | B99: =IF(C$1="Decline",(A99*QsrcLitres)/(SourceInputsAttenuation!$C$33),"") -> 0.01584843065 | C99: =IF(C$1="Decline",SourceInputsAttenuation!$E$14*EXP(-1*((SourceInputsAttenuation!$I$14)*SrcDecline!B99)),SourceInputsAttenuation!$E$14) -> 0.04993969433 | D99: 96 | E99: =IF(F$1="Decline",(D99*QsrcLitres)/SourceInputsAttenuation!$C$33,"") -> 0.01584843065 | F99: =IF(F$1="Decline",SourceInputsAttenuation!$E$15*EXP(-1*(SourceInputsAttenuation!$I$15*SrcDecline!E99)),SourceInputsAttenuation!$E$15) -> 0.00099739949 | G99: 96 | H99: =IF(I$1="Decline",(G99*QsrcLitres)/SourceInputsAttenuation!$C$33,"") -> 0.01584843065 | I99: =IF(I$1="Decline",SourceInputsAttenuation!$E$16*EXP(-1*(SourceInputsAttenuation!$I$16*SrcDecline!E99)),SourceInputsAttenuation!$E$16) -> 0.8627248431 | J99: 96 | K99: =IF(L$1="Decline",(J99*QsrcLitres)/SourceInputsAttenuation!$C$33,"") -> 0.01584843065 | L99: =IF(L$1="Decline",SourceInputsAttenuation!$E$17*EXP(-1*(SourceInputsAttenuation!$I$17*SrcDecline!K99)),SourceInputsAttenuation!$E$17) -> 0.003982731402 | M99: 96 | N99: =IF(O$1="Decline",(M99*QsrcLitres)/SourceInputsAttenuation!$C$33,"") -> 0.01584843065 | O99: =IF(O$1="Decline",SourceInputsAttenuation!$E$18*EXP(-1*(SourceInputsAttenuation!$I$18*SrcDecline!N99)),SourceInputsAttenuation!$E$18) -> 0.3981181224 | P99: 96 | Q99: =IF(R$1="Decline",(P99*QsrcLitres)/SourceInputsAttenuation!$C$33,"") -> 0.01584843065 | R99: =IF(R$1="Decline",SourceInputsAttenuation!$E$19*EXP(-1*(SourceInputsAttenuation!$I$19*SrcDecline!Q99)),SourceInputsAttenuation!$E$19) -> 0.1990418613 | S99: 96 | T99: =IF(U$1="Decline",(S99*QsrcLitres)/SourceInputsAttenuation!$C$33,"") -> 0.01584843065 | U99: =IF(U$1="Decline",SourceInputsAttenuation!$E$20*EXP(-1*(SourceInputsAttenuation!$I$20*SrcDecline!T99)),SourceInputsAttenuation!$E$20) -> 0.04984934828
A100: 97 | B100: =IF(C$1="Decline",(A100*QsrcLitres)/(SourceInputsAttenuation!$C$33),"") -> 0.01601351847 | C100: =IF(C$1="Decline",SourceInputsAttenuation!$E$14*EXP(-1*((SourceInputsAttenuation!$I$14)*SrcDecline!B100)),SourceInputsAttenuation!$E$14) -> 0.04993906652 | D100: 97 | E100: =IF(F$1="Decline",(D100*QsrcLitres)/SourceInputsAttenuation!$C$33,"") -> 0.01601351847 | F100: =IF(F$1="Decline",SourceInputsAttenuation!$E$15*EXP(-1*(SourceInputsAttenuation!$I$15*SrcDecline!E100)),SourceInputsAttenuation!$E$15) -> 0.000997372437 | G100: 97 | H100: =IF(I$1="Decline",(G100*QsrcLitres)/SourceInputsAttenuation!$C$33,"") -> 0.01601351847 | I100: =IF(I$1="Decline",SourceInputsAttenuation!$E$16*EXP(-1*(SourceInputsAttenuation!$I$16*SrcDecline!E100)),SourceInputsAttenuation!$E$16) -> 0.862654547 | J100: 97 | K100: =IF(L$1="Decline",(J100*QsrcLitres)/SourceInputsAttenuation!$C$33,"") -> 0.01601351847 | L100: =IF(L$1="Decline",SourceInputsAttenuation!$E$17*EXP(-1*(SourceInputsAttenuation!$I$17*SrcDecline!K100)),SourceInputsAttenuation!$E$17) -> 0.003982551914 | M100: 97 | N100: =IF(O$1="Decline",(M100*QsrcLitres)/SourceInputsAttenuation!$C$33,"") -> 0.01601351847 | O100: =IF(O$1="Decline",SourceInputsAttenuation!$E$18*EXP(-1*(SourceInputsAttenuation!$I$18*SrcDecline!N100)),SourceInputsAttenuation!$E$18) -> 0.3980985662 | P100: 97 | Q100: =IF(R$1="Decline",(P100*QsrcLitres)/SourceInputsAttenuation!$C$33,"") -> 0.01601351847 | R100: =IF(R$1="Decline",SourceInputsAttenuation!$E$19*EXP(-1*(SourceInputsAttenuation!$I$19*SrcDecline!Q100)),SourceInputsAttenuation!$E$19) -> 0.1990319049 | S100: 97 | T100: =IF(U$1="Decline",(S100*QsrcLitres)/SourceInputsAttenuation!$C$33,"") -> 0.01601351847 | U100: =IF(U$1="Decline",SourceInputsAttenuation!$E$20*EXP(-1*(SourceInputsAttenuation!$I$20*SrcDecline!T100)),SourceInputsAttenuation!$E$20) -> 0.04984778138
A101: 98 | B101: =IF(C$1="Decline",(A101*QsrcLitres)/(SourceInputsAttenuation!$C$33),"") -> 0.01617860629 | C101: =IF(C$1="Decline",SourceInputsAttenuation!$E$14*EXP(-1*((SourceInputsAttenuation!$I$14)*SrcDecline!B101)),SourceInputsAttenuation!$E$14) -> 0.04993843873 | D101: 98 | E101: =IF(F$1="Decline",(D101*QsrcLitres)/SourceInputsAttenuation!$C$33,"") -> 0.01617860629 | F101: =IF(F$1="Decline",SourceInputsAttenuation!$E$15*EXP(-1*(SourceInputsAttenuation!$I$15*SrcDecline!E101)),SourceInputsAttenuation!$E$15) -> 0.0009973453847 | G101: 98 | H101: =IF(I$1="Decline",(G101*QsrcLitres)/SourceInputsAttenuation!$C$33,"") -> 0.01617860629 | I101: =IF(I$1="Decline",SourceInputsAttenuation!$E$16*EXP(-1*(SourceInputsAttenuation!$I$16*SrcDecline!E101)),SourceInputsAttenuation!$E$16) -> 0.8625842568 | J101: 98 | K101: =IF(L$1="Decline",(J101*QsrcLitres)/SourceInputsAttenuation!$C$33,"") -> 0.01617860629 | L101: =IF(L$1="Decline",SourceInputsAttenuation!$E$17*EXP(-1*(SourceInputsAttenuation!$I$17*SrcDecline!K101)),SourceInputsAttenuation!$E$17) -> 0.003982372434 | M101: 98 | N101: =IF(O$1="Decline",(M101*QsrcLitres)/SourceInputsAttenuation!$C$33,"") -> 0.01617860629 | O101: =IF(O$1="Decline",SourceInputsAttenuation!$E$18*EXP(-1*(SourceInputsAttenuation!$I$18*SrcDecline!N101)),SourceInputsAttenuation!$E$18) -> 0.3980790109 | P101: 98 | Q101: =IF(R$1="Decline",(P101*QsrcLitres)/SourceInputsAttenuation!$C$33,"") -> 0.01617860629 | R101: =IF(R$1="Decline",SourceInputsAttenuation!$E$19*EXP(-1*(SourceInputsAttenuation!$I$19*SrcDecline!Q101)),SourceInputsAttenuation!$E$19) -> 0.199021949 | S101: 98 | T101: =IF(U$1="Decline",(S101*QsrcLitres)/SourceInputsAttenuation!$C$33,"") -> 0.01617860629 | U101: =IF(U$1="Decline",SourceInputsAttenuation!$E$20*EXP(-1*(SourceInputsAttenuation!$I$20*SrcDecline!T101)),SourceInputsAttenuation!$E$20) -> 0.04984621454
A102: 99 | B102: =IF(C$1="Decline",(A102*QsrcLitres)/(SourceInputsAttenuation!$C$33),"") -> 0.01634369411 | C102: =IF(C$1="Decline",SourceInputsAttenuation!$E$14*EXP(-1*((SourceInputsAttenuation!$I$14)*SrcDecline!B102)),SourceInputsAttenuation!$E$14) -> 0.04993781095 | D102: 99 | E102: =IF(F$1="Decline",(D102*QsrcLitres)/SourceInputsAttenuation!$C$33,"") -> 0.01634369411 | F102: =IF(F$1="Decline",SourceInputsAttenuation!$E$15*EXP(-1*(SourceInputsAttenuation!$I$15*SrcDecline!E102)),SourceInputsAttenuation!$E$15) -> 0.0009973183332 | G102: 99 | H102: =IF(I$1="Decline",(G102*QsrcLitres)/SourceInputsAttenuation!$C$33,"") -> 0.01634369411 | I102: =IF(I$1="Decline",SourceInputsAttenuation!$E$16*EXP(-1*(SourceInputsAttenuation!$I$16*SrcDecline!E102)),SourceInputsAttenuation!$E$16) -> 0.8625139722 | J102: 99 | K102: =IF(L$1="Decline",(J102*QsrcLitres)/SourceInputsAttenuation!$C$33,"") -> 0.01634369411 | L102: =IF(L$1="Decline",SourceInputsAttenuation!$E$17*EXP(-1*(SourceInputsAttenuation!$I$17*SrcDecline!K102)),SourceInputsAttenuation!$E$17) -> 0.003982192962 | M102: 99 | N102: =IF(O$1="Decline",(M102*QsrcLitres)/SourceInputsAttenuation!$C$33,"") -> 0.01634369411 | O102: =IF(O$1="Decline",SourceInputsAttenuation!$E$18*EXP(-1*(SourceInputsAttenuation!$I$18*SrcDecline!N102)),SourceInputsAttenuation!$E$18) -> 0.3980594566 | P102: 99 | Q102: =IF(R$1="Decline",(P102*QsrcLitres)/SourceInputsAttenuation!$C$33,"") -> 0.01634369411 | R102: =IF(R$1="Decline",SourceInputsAttenuation!$E$19*EXP(-1*(SourceInputsAttenuation!$I$19*SrcDecline!Q102)),SourceInputsAttenuation!$E$19) -> 0.1990119936 | S102: 99 | T102: =IF(U$1="Decline",(S102*QsrcLitres)/SourceInputsAttenuation!$C$33,"") -> 0.01634369411 | U102: =IF(U$1="Decline",SourceInputsAttenuation!$E$20*EXP(-1*(SourceInputsAttenuation!$I$20*SrcDecline!T102)),SourceInputsAttenuation!$E$20) -> 0.04984464774
A103: 100 | B103: =IF(C$1="Decline",(A103*QsrcLitres)/(SourceInputsAttenuation!$C$33),"") -> 0.01650878193 | C103: =IF(C$1="Decline",SourceInputsAttenuation!$E$14*EXP(-1*((SourceInputsAttenuation!$I$14)*SrcDecline!B103)),SourceInputsAttenuation!$E$14) -> 0.04993718317 | D103: 100 | E103: =IF(F$1="Decline",(D103*QsrcLitres)/SourceInputsAttenuation!$C$33,"") -> 0.01650878193 | F103: =IF(F$1="Decline",SourceInputsAttenuation!$E$15*EXP(-1*(SourceInputsAttenuation!$I$15*SrcDecline!E103)),SourceInputsAttenuation!$E$15) -> 0.0009972912823 | G103: 100 | H103: =IF(I$1="Decline",(G103*QsrcLitres)/SourceInputsAttenuation!$C$33,"") -> 0.01650878193 | I103: =IF(I$1="Decline",SourceInputsAttenuation!$E$16*EXP(-1*(SourceInputsAttenuation!$I$16*SrcDecline!E103)),SourceInputsAttenuation!$E$16) -> 0.8624436934 | J103: 100 | K103: =IF(L$1="Decline",(J103*QsrcLitres)/SourceInputsAttenuation!$C$33,"") -> 0.01650878193 | L103: =IF(L$1="Decline",SourceInputsAttenuation!$E$17*EXP(-1*(SourceInputsAttenuation!$I$17*SrcDecline!K103)),SourceInputsAttenuation!$E$17) -> 0.003982013498 | M103: 100 | N103: =IF(O$1="Decline",(M103*QsrcLitres)/SourceInputsAttenuation!$C$33,"") -> 0.01650878193 | O103: =IF(O$1="Decline",SourceInputsAttenuation!$E$18*EXP(-1*(SourceInputsAttenuation!$I$18*SrcDecline!N103)),SourceInputsAttenuation!$E$18) -> 0.3980399032 | P103: 100 | Q103: =IF(R$1="Decline",(P103*QsrcLitres)/SourceInputsAttenuation!$C$33,"") -> 0.01650878193 | R103: =IF(R$1="Decline",SourceInputsAttenuation!$E$19*EXP(-1*(SourceInputsAttenuation!$I$19*SrcDecline!Q103)),SourceInputsAttenuation!$E$19) -> 0.1990020386 | S103: 100 | T103: =IF(U$1="Decline",(S103*QsrcLitres)/SourceInputsAttenuation!$C$33,"") -> 0.01650878193 | U103: =IF(U$1="Decline",SourceInputsAttenuation!$E$20*EXP(-1*(SourceInputsAttenuation!$I$20*SrcDecline!T103)),SourceInputsAttenuation!$E$20) -> 0.04984308099
A104: 101 | B104: =IF(C$1="Decline",(A104*QsrcLitres)/(SourceInputsAttenuation!$C$33),"") -> 0.01667386974 | C104: =IF(C$1="Decline",SourceInputsAttenuation!$E$14*EXP(-1*((SourceInputsAttenuation!$I$14)*SrcDecline!B104)),SourceInputsAttenuation!$E$14) -> 0.0499365554 | D104: 101 | E104: =IF(F$1="Decline",(D104*QsrcLitres)/SourceInputsAttenuation!$C$33,"") -> 0.01667386974 | F104: =IF(F$1="Decline",SourceInputsAttenuation!$E$15*EXP(-1*(SourceInputsAttenuation!$I$15*SrcDecline!E104)),SourceInputsAttenuation!$E$15) -> 0.0009972642323 | G104: 101 | H104: =IF(I$1="Decline",(G104*QsrcLitres)/SourceInputsAttenuation!$C$33,"") -> 0.01667386974 | I104: =IF(I$1="Decline",SourceInputsAttenuation!$E$16*EXP(-1*(SourceInputsAttenuation!$I$16*SrcDecline!E104)),SourceInputsAttenuation!$E$16) -> 0.8623734203 | J104: 101 | K104: =IF(L$1="Decline",(J104*QsrcLitres)/SourceInputsAttenuation!$C$33,"") -> 0.01667386974 | L104: =IF(L$1="Decline",SourceInputsAttenuation!$E$17*EXP(-1*(SourceInputsAttenuation!$I$17*SrcDecline!K104)),SourceInputsAttenuation!$E$17) -> 0.003981834042 | M104: 101 | N104: =IF(O$1="Decline",(M104*QsrcLitres)/SourceInputsAttenuation!$C$33,"") -> 0.01667386974 | O104: =IF(O$1="Decline",SourceInputsAttenuation!$E$18*EXP(-1*(SourceInputsAttenuation!$I$18*SrcDecline!N104)),SourceInputsAttenuation!$E$18) -> 0.3980203509 | P104: 101 | Q104: =IF(R$1="Decline",(P104*QsrcLitres)/SourceInputsAttenuation!$C$33,"") -> 0.01667386974 | R104: =IF(R$1="Decline",SourceInputsAttenuation!$E$19*EXP(-1*(SourceInputsAttenuation!$I$19*SrcDecline!Q104)),SourceInputsAttenuation!$E$19) -> 0.1989920842 | S104: 101 | T104: =IF(U$1="Decline",(S104*QsrcLitres)/SourceInputsAttenuation!$C$33,"") -> 0.01667386974 | U104: =IF(U$1="Decline",SourceInputsAttenuation!$E$20*EXP(-1*(SourceInputsAttenuation!$I$20*SrcDecline!T104)),SourceInputsAttenuation!$E$20) -> 0.04984151429
A105: 102 | B105: =IF(C$1="Decline",(A105*QsrcLitres)/(SourceInputsAttenuation!$C$33),"") -> 0.01683895756 | C105: =IF(C$1="Decline",SourceInputsAttenuation!$E$14*EXP(-1*((SourceInputsAttenuation!$I$14)*SrcDecline!B105)),SourceInputsAttenuation!$E$14) -> 0.04993592764 | D105: 102 | E105: =IF(F$1="Decline",(D105*QsrcLitres)/SourceInputsAttenuation!$C$33,"") -> 0.01683895756 | F105: =IF(F$1="Decline",SourceInputsAttenuation!$E$15*EXP(-1*(SourceInputsAttenuation!$I$15*SrcDecline!E105)),SourceInputsAttenuation!$E$15) -> 0.0009972371829 | G105: 102 | H105: =IF(I$1="Decline",(G105*QsrcLitres)/SourceInputsAttenuation!$C$33,"") -> 0.01683895756 | I105: =IF(I$1="Decline",SourceInputsAttenuation!$E$16*EXP(-1*(SourceInputsAttenuation!$I$16*SrcDecline!E105)),SourceInputsAttenuation!$E$16) -> 0.8623031529 | J105: 102 | K105: =IF(L$1="Decline",(J105*QsrcLitres)/SourceInputsAttenuation!$C$33,"") -> 0.01683895756 | L105: =IF(L$1="Decline",SourceInputsAttenuation!$E$17*EXP(-1*(SourceInputsAttenuation!$I$17*SrcDecline!K105)),SourceInputsAttenuation!$E$17) -> 0.003981654594 | M105: 102 | N105: =IF(O$1="Decline",(M105*QsrcLitres)/SourceInputsAttenuation!$C$33,"") -> 0.01683895756 | O105: =IF(O$1="Decline",SourceInputsAttenuation!$E$18*EXP(-1*(SourceInputsAttenuation!$I$18*SrcDecline!N105)),SourceInputsAttenuation!$E$18) -> 0.3980007994 | P105: 102 | Q105: =IF(R$1="Decline",(P105*QsrcLitres)/SourceInputsAttenuation!$C$33,"") -> 0.01683895756 | R105: =IF(R$1="Decline",SourceInputsAttenuation!$E$19*EXP(-1*(SourceInputsAttenuation!$I$19*SrcDecline!Q105)),SourceInputsAttenuation!$E$19) -> 0.1989821303 | S105: 102 | T105: =IF(U$1="Decline",(S105*QsrcLitres)/SourceInputsAttenuation!$C$33,"") -> 0.01683895756 | U105: =IF(U$1="Decline",SourceInputsAttenuation!$E$20*EXP(-1*(SourceInputsAttenuation!$I$20*SrcDecline!T105)),SourceInputsAttenuation!$E$20) -> 0.04983994763
A106: 103 | B106: =IF(C$1="Decline",(A106*QsrcLitres)/(SourceInputsAttenuation!$C$33),"") -> 0.01700404538 | C106: =IF(C$1="Decline",SourceInputsAttenuation!$E$14*EXP(-1*((SourceInputsAttenuation!$I$14)*SrcDecline!B106)),SourceInputsAttenuation!$E$14) -> 0.04993529988 | D106: 103 | E106: =IF(F$1="Decline",(D106*QsrcLitres)/SourceInputsAttenuation!$C$33,"") -> 0.01700404538 | F106: =IF(F$1="Decline",SourceInputsAttenuation!$E$15*EXP(-1*(SourceInputsAttenuation!$I$15*SrcDecline!E106)),SourceInputsAttenuation!$E$15) -> 0.0009972101343 | G106: 103 | H106: =IF(I$1="Decline",(G106*QsrcLitres)/SourceInputsAttenuation!$C$33,"") -> 0.01700404538 | I106: =IF(I$1="Decline",SourceInputsAttenuation!$E$16*EXP(-1*(SourceInputsAttenuation!$I$16*SrcDecline!E106)),SourceInputsAttenuation!$E$16) -> 0.8622328912 | J106: 103 | K106: =IF(L$1="Decline",(J106*QsrcLitres)/SourceInputsAttenuation!$C$33,"") -> 0.01700404538 | L106: =IF(L$1="Decline",SourceInputsAttenuation!$E$17*EXP(-1*(SourceInputsAttenuation!$I$17*SrcDecline!K106)),SourceInputsAttenuation!$E$17) -> 0.003981475154 | M106: 103 | N106: =IF(O$1="Decline",(M106*QsrcLitres)/SourceInputsAttenuation!$C$33,"") -> 0.01700404538 | O106: =IF(O$1="Decline",SourceInputsAttenuation!$E$18*EXP(-1*(SourceInputsAttenuation!$I$18*SrcDecline!N106)),SourceInputsAttenuation!$E$18) -> 0.397981249 | P106: 103 | Q106: =IF(R$1="Decline",(P106*QsrcLitres)/SourceInputsAttenuation!$C$33,"") -> 0.01700404538 | R106: =IF(R$1="Decline",SourceInputsAttenuation!$E$19*EXP(-1*(SourceInputsAttenuation!$I$19*SrcDecline!Q106)),SourceInputsAttenuation!$E$19) -> 0.1989721768 | S106: 103 | T106: =IF(U$1="Decline",(S106*QsrcLitres)/SourceInputsAttenuation!$C$33,"") -> 0.01700404538 | U106: =IF(U$1="Decline",SourceInputsAttenuation!$E$20*EXP(-1*(SourceInputsAttenuation!$I$20*SrcDecline!T106)),SourceInputsAttenuation!$E$20) -> 0.04983838103
A107: 104 | B107: =IF(C$1="Decline",(A107*QsrcLitres)/(SourceInputsAttenuation!$C$33),"") -> 0.0171691332 | C107: =IF(C$1="Decline",SourceInputsAttenuation!$E$14*EXP(-1*((SourceInputsAttenuation!$I$14)*SrcDecline!B107)),SourceInputsAttenuation!$E$14) -> 0.04993467214 | D107: 104 | E107: =IF(F$1="Decline",(D107*QsrcLitres)/SourceInputsAttenuation!$C$33,"") -> 0.0171691332 | F107: =IF(F$1="Decline",SourceInputsAttenuation!$E$15*EXP(-1*(SourceInputsAttenuation!$I$15*SrcDecline!E107)),SourceInputsAttenuation!$E$15) -> 0.0009971830864 | G107: 104 | H107: =IF(I$1="Decline",(G107*QsrcLitres)/SourceInputsAttenuation!$C$33,"") -> 0.0171691332 | I107: =IF(I$1="Decline",SourceInputsAttenuation!$E$16*EXP(-1*(SourceInputsAttenuation!$I$16*SrcDecline!E107)),SourceInputsAttenuation!$E$16) -> 0.8621626353 | J107: 104 | K107: =IF(L$1="Decline",(J107*QsrcLitres)/SourceInputsAttenuation!$C$33,"") -> 0.0171691332 | L107: =IF(L$1="Decline",SourceInputsAttenuation!$E$17*EXP(-1*(SourceInputsAttenuation!$I$17*SrcDecline!K107)),SourceInputsAttenuation!$E$17) -> 0.003981295722 | M107: 104 | N107: =IF(O$1="Decline",(M107*QsrcLitres)/SourceInputsAttenuation!$C$33,"") -> 0.0171691332 | O107: =IF(O$1="Decline",SourceInputsAttenuation!$E$18*EXP(-1*(SourceInputsAttenuation!$I$18*SrcDecline!N107)),SourceInputsAttenuation!$E$18) -> 0.3979616995 | P107: 104 | Q107: =IF(R$1="Decline",(P107*QsrcLitres)/SourceInputsAttenuation!$C$33,"") -> 0.0171691332 | R107: =IF(R$1="Decline",SourceInputsAttenuation!$E$19*EXP(-1*(SourceInputsAttenuation!$I$19*SrcDecline!Q107)),SourceInputsAttenuation!$E$19) -> 0.1989622239 | S107: 104 | T107: =IF(U$1="Decline",(S107*QsrcLitres)/SourceInputsAttenuation!$C$33,"") -> 0.0171691332 | U107: =IF(U$1="Decline",SourceInputsAttenuation!$E$20*EXP(-1*(SourceInputsAttenuation!$I$20*SrcDecline!T107)),SourceInputsAttenuation!$E$20) -> 0.04983681448
A108: 105 | B108: =IF(C$1="Decline",(A108*QsrcLitres)/(SourceInputsAttenuation!$C$33),"") -> 0.01733422102 | C108: =IF(C$1="Decline",SourceInputsAttenuation!$E$14*EXP(-1*((SourceInputsAttenuation!$I$14)*SrcDecline!B108)),SourceInputsAttenuation!$E$14) -> 0.0499340444 | D108: 105 | E108: =IF(F$1="Decline",(D108*QsrcLitres)/SourceInputsAttenuation!$C$33,"") -> 0.01733422102 | F108: =IF(F$1="Decline",SourceInputsAttenuation!$E$15*EXP(-1*(SourceInputsAttenuation!$I$15*SrcDecline!E108)),SourceInputsAttenuation!$E$15) -> 0.0009971560392 | G108: 105 | H108: =IF(I$1="Decline",(G108*QsrcLitres)/SourceInputsAttenuation!$C$33,"") -> 0.01733422102 | I108: =IF(I$1="Decline",SourceInputsAttenuation!$E$16*EXP(-1*(SourceInputsAttenuation!$I$16*SrcDecline!E108)),SourceInputsAttenuation!$E$16) -> 0.8620923851 | J108: 105 | K108: =IF(L$1="Decline",(J108*QsrcLitres)/SourceInputsAttenuation!$C$33,"") -> 0.01733422102 | L108: =IF(L$1="Decline",SourceInputsAttenuation!$E$17*EXP(-1*(SourceInputsAttenuation!$I$17*SrcDecline!K108)),SourceInputsAttenuation!$E$17) -> 0.003981116299 | M108: 105 | N108: =IF(O$1="Decline",(M108*QsrcLitres)/SourceInputsAttenuation!$C$33,"") -> 0.01733422102 | O108: =IF(O$1="Decline",SourceInputsAttenuation!$E$18*EXP(-1*(SourceInputsAttenuation!$I$18*SrcDecline!N108)),SourceInputsAttenuation!$E$18) -> 0.3979421509 | P108: 105 | Q108: =IF(R$1="Decline",(P108*QsrcLitres)/SourceInputsAttenuation!$C$33,"") -> 0.01733422102 | R108: =IF(R$1="Decline",SourceInputsAttenuation!$E$19*EXP(-1*(SourceInputsAttenuation!$I$19*SrcDecline!Q108)),SourceInputsAttenuation!$E$19) -> 0.1989522715 | S108: 105 | T108: =IF(U$1="Decline",(S108*QsrcLitres)/SourceInputsAttenuation!$C$33,"") -> 0.01733422102 | U108: =IF(U$1="Decline",SourceInputsAttenuation!$E$20*EXP(-1*(SourceInputsAttenuation!$I$20*SrcDecline!T108)),SourceInputsAttenuation!$E$20) -> 0.04983524798
A109: 106 | B109: =IF(C$1="Decline",(A109*QsrcLitres)/(SourceInputsAttenuation!$C$33),"") -> 0.01749930884 | C109: =IF(C$1="Decline",SourceInputsAttenuation!$E$14*EXP(-1*((SourceInputsAttenuation!$I$14)*SrcDecline!B109)),SourceInputsAttenuation!$E$14) -> 0.04993341667 | D109: 106 | E109: =IF(F$1="Decline",(D109*QsrcLitres)/SourceInputsAttenuation!$C$33,"") -> 0.01749930884 | F109: =IF(F$1="Decline",SourceInputsAttenuation!$E$15*EXP(-1*(SourceInputsAttenuation!$I$15*SrcDecline!E109)),SourceInputsAttenuation!$E$15) -> 0.0009971289928 | G109: 106 | H109: =IF(I$1="Decline",(G109*QsrcLitres)/SourceInputsAttenuation!$C$33,"") -> 0.01749930884 | I109: =IF(I$1="Decline",SourceInputsAttenuation!$E$16*EXP(-1*(SourceInputsAttenuation!$I$16*SrcDecline!E109)),SourceInputsAttenuation!$E$16) -> 0.8620221406 | J109: 106 | K109: =IF(L$1="Decline",(J109*QsrcLitres)/SourceInputsAttenuation!$C$33,"") -> 0.01749930884 | L109: =IF(L$1="Decline",SourceInputsAttenuation!$E$17*EXP(-1*(SourceInputsAttenuation!$I$17*SrcDecline!K109)),SourceInputsAttenuation!$E$17) -> 0.003980936883 | M109: 106 | N109: =IF(O$1="Decline",(M109*QsrcLitres)/SourceInputsAttenuation!$C$33,"") -> 0.01749930884 | O109: =IF(O$1="Decline",SourceInputsAttenuation!$E$18*EXP(-1*(SourceInputsAttenuation!$I$18*SrcDecline!N109)),SourceInputsAttenuation!$E$18) -> 0.3979226033 | P109: 106 | Q109: =IF(R$1="Decline",(P109*QsrcLitres)/SourceInputsAttenuation!$C$33,"") -> 0.01749930884 | R109: =IF(R$1="Decline",SourceInputsAttenuation!$E$19*EXP(-1*(SourceInputsAttenuation!$I$19*SrcDecline!Q109)),SourceInputsAttenuation!$E$19) -> 0.1989423195 | S109: 106 | T109: =IF(U$1="Decline",(S109*QsrcLitres)/SourceInputsAttenuation!$C$33,"") -> 0.01749930884 | U109: =IF(U$1="Decline",SourceInputsAttenuation!$E$20*EXP(-1*(SourceInputsAttenuation!$I$20*SrcDecline!T109)),SourceInputsAttenuation!$E$20) -> 0.04983368152
A110: 107 | B110: =IF(C$1="Decline",(A110*QsrcLitres)/(SourceInputsAttenuation!$C$33),"") -> 0.01766439666 | C110: =IF(C$1="Decline",SourceInputsAttenuation!$E$14*EXP(-1*((SourceInputsAttenuation!$I$14)*SrcDecline!B110)),SourceInputsAttenuation!$E$14) -> 0.04993278895 | D110: 107 | E110: =IF(F$1="Decline",(D110*QsrcLitres)/SourceInputsAttenuation!$C$33,"") -> 0.01766439666 | F110: =IF(F$1="Decline",SourceInputsAttenuation!$E$15*EXP(-1*(SourceInputsAttenuation!$I$15*SrcDecline!E110)),SourceInputsAttenuation!$E$15) -> 0.0009971019471 | G110: 107 | H110: =IF(I$1="Decline",(G110*QsrcLitres)/SourceInputsAttenuation!$C$33,"") -> 0.01766439666 | I110: =IF(I$1="Decline",SourceInputsAttenuation!$E$16*EXP(-1*(SourceInputsAttenuation!$I$16*SrcDecline!E110)),SourceInputsAttenuation!$E$16) -> 0.8619519019 | J110: 107 | K110: =IF(L$1="Decline",(J110*QsrcLitres)/SourceInputsAttenuation!$C$33,"") -> 0.01766439666 | L110: =IF(L$1="Decline",SourceInputsAttenuation!$E$17*EXP(-1*(SourceInputsAttenuation!$I$17*SrcDecline!K110)),SourceInputsAttenuation!$E$17) -> 0.003980757476 | M110: 107 | N110: =IF(O$1="Decline",(M110*QsrcLitres)/SourceInputsAttenuation!$C$33,"") -> 0.01766439666 | O110: =IF(O$1="Decline",SourceInputsAttenuation!$E$18*EXP(-1*(SourceInputsAttenuation!$I$18*SrcDecline!N110)),SourceInputsAttenuation!$E$18) -> 0.3979030567 | P110: 107 | Q110: =IF(R$1="Decline",(P110*QsrcLitres)/SourceInputsAttenuation!$C$33,"") -> 0.01766439666 | R110: =IF(R$1="Decline",SourceInputsAttenuation!$E$19*EXP(-1*(SourceInputsAttenuation!$I$19*SrcDecline!Q110)),SourceInputsAttenuation!$E$19) -> 0.1989323681 | S110: 107 | T110: =IF(U$1="Decline",(S110*QsrcLitres)/SourceInputsAttenuation!$C$33,"") -> 0.01766439666 | U110: =IF(U$1="Decline",SourceInputsAttenuation!$E$20*EXP(-1*(SourceInputsAttenuation!$I$20*SrcDecline!T110)),SourceInputsAttenuation!$E$20) -> 0.04983211512
A111: 108 | B111: =IF(C$1="Decline",(A111*QsrcLitres)/(SourceInputsAttenuation!$C$33),"") -> 0.01782948448 | C111: =IF(C$1="Decline",SourceInputsAttenuation!$E$14*EXP(-1*((SourceInputsAttenuation!$I$14)*SrcDecline!B111)),SourceInputsAttenuation!$E$14) -> 0.04993216123 | D111: 108 | E111: =IF(F$1="Decline",(D111*QsrcLitres)/SourceInputsAttenuation!$C$33,"") -> 0.01782948448 | F111: =IF(F$1="Decline",SourceInputsAttenuation!$E$15*EXP(-1*(SourceInputsAttenuation!$I$15*SrcDecline!E111)),SourceInputsAttenuation!$E$15) -> 0.0009970749022 | G111: 108 | H111: =IF(I$1="Decline",(G111*QsrcLitres)/SourceInputsAttenuation!$C$33,"") -> 0.01782948448 | I111: =IF(I$1="Decline",SourceInputsAttenuation!$E$16*EXP(-1*(SourceInputsAttenuation!$I$16*SrcDecline!E111)),SourceInputsAttenuation!$E$16) -> 0.8618816689 | J111: 108 | K111: =IF(L$1="Decline",(J111*QsrcLitres)/SourceInputsAttenuation!$C$33,"") -> 0.01782948448 | L111: =IF(L$1="Decline",SourceInputsAttenuation!$E$17*EXP(-1*(SourceInputsAttenuation!$I$17*SrcDecline!K111)),SourceInputsAttenuation!$E$17) -> 0.003980578076 | M111: 108 | N111: =IF(O$1="Decline",(M111*QsrcLitres)/SourceInputsAttenuation!$C$33,"") -> 0.01782948448 | O111: =IF(O$1="Decline",SourceInputsAttenuation!$E$18*EXP(-1*(SourceInputsAttenuation!$I$18*SrcDecline!N111)),SourceInputsAttenuation!$E$18) -> 0.3978835111 | P111: 108 | Q111: =IF(R$1="Decline",(P111*QsrcLitres)/SourceInputsAttenuation!$C$33,"") -> 0.01782948448 | R111: =IF(R$1="Decline",SourceInputsAttenuation!$E$19*EXP(-1*(SourceInputsAttenuation!$I$19*SrcDecline!Q111)),SourceInputsAttenuation!$E$19) -> 0.1989224172 | S111: 108 | T111: =IF(U$1="Decline",(S111*QsrcLitres)/SourceInputsAttenuation!$C$33,"") -> 0.01782948448 | U111: =IF(U$1="Decline",SourceInputsAttenuation!$E$20*EXP(-1*(SourceInputsAttenuation!$I$20*SrcDecline!T111)),SourceInputsAttenuation!$E$20) -> 0.04983054876
A112: 109 | B112: =IF(C$1="Decline",(A112*QsrcLitres)/(SourceInputsAttenuation!$C$33),"") -> 0.0179945723 | C112: =IF(C$1="Decline",SourceInputsAttenuation!$E$14*EXP(-1*((SourceInputsAttenuation!$I$14)*SrcDecline!B112)),SourceInputsAttenuation!$E$14) -> 0.04993153353 | D112: 109 | E112: =IF(F$1="Decline",(D112*QsrcLitres)/SourceInputsAttenuation!$C$33,"") -> 0.0179945723 | F112: =IF(F$1="Decline",SourceInputsAttenuation!$E$15*EXP(-1*(SourceInputsAttenuation!$I$15*SrcDecline!E112)),SourceInputsAttenuation!$E$15) -> 0.0009970478579 | G112: 109 | H112: =IF(I$1="Decline",(G112*QsrcLitres)/SourceInputsAttenuation!$C$33,"") -> 0.0179945723 | I112: =IF(I$1="Decline",SourceInputsAttenuation!$E$16*EXP(-1*(SourceInputsAttenuation!$I$16*SrcDecline!E112)),SourceInputsAttenuation!$E$16) -> 0.8618114415 | J112: 109 | K112: =IF(L$1="Decline",(J112*QsrcLitres)/SourceInputsAttenuation!$C$33,"") -> 0.0179945723 | L112: =IF(L$1="Decline",SourceInputsAttenuation!$E$17*EXP(-1*(SourceInputsAttenuation!$I$17*SrcDecline!K112)),SourceInputsAttenuation!$E$17) -> 0.003980398685 | M112: 109 | N112: =IF(O$1="Decline",(M112*QsrcLitres)/SourceInputsAttenuation!$C$33,"") -> 0.0179945723 | O112: =IF(O$1="Decline",SourceInputsAttenuation!$E$18*EXP(-1*(SourceInputsAttenuation!$I$18*SrcDecline!N112)),SourceInputsAttenuation!$E$18) -> 0.3978639664 | P112: 109 | Q112: =IF(R$1="Decline",(P112*QsrcLitres)/SourceInputsAttenuation!$C$33,"") -> 0.0179945723 | R112: =IF(R$1="Decline",SourceInputsAttenuation!$E$19*EXP(-1*(SourceInputsAttenuation!$I$19*SrcDecline!Q112)),SourceInputsAttenuation!$E$19) -> 0.1989124667 | S112: 109 | T112: =IF(U$1="Decline",(S112*QsrcLitres)/SourceInputsAttenuation!$C$33,"") -> 0.0179945723 | U112: =IF(U$1="Decline",SourceInputsAttenuation!$E$20*EXP(-1*(SourceInputsAttenuation!$I$20*SrcDecline!T112)),SourceInputsAttenuation!$E$20) -> 0.04982898245
A113: 110 | B113: =IF(C$1="Decline",(A113*QsrcLitres)/(SourceInputsAttenuation!$C$33),"") -> 0.01815966012 | C113: =IF(C$1="Decline",SourceInputsAttenuation!$E$14*EXP(-1*((SourceInputsAttenuation!$I$14)*SrcDecline!B113)),SourceInputsAttenuation!$E$14) -> 0.04993090583 | D113: 110 | E113: =IF(F$1="Decline",(D113*QsrcLitres)/SourceInputsAttenuation!$C$33,"") -> 0.01815966012 | F113: =IF(F$1="Decline",SourceInputsAttenuation!$E$15*EXP(-1*(SourceInputsAttenuation!$I$15*SrcDecline!E113)),SourceInputsAttenuation!$E$15) -> 0.0009970208144 | G113: 110 | H113: =IF(I$1="Decline",(G113*QsrcLitres)/SourceInputsAttenuation!$C$33,"") -> 0.01815966012 | I113: =IF(I$1="Decline",SourceInputsAttenuation!$E$16*EXP(-1*(SourceInputsAttenuation!$I$16*SrcDecline!E113)),SourceInputsAttenuation!$E$16) -> 0.86174122 | J113: 110 | K113: =IF(L$1="Decline",(J113*QsrcLitres)/SourceInputsAttenuation!$C$33,"") -> 0.01815966012 | L113: =IF(L$1="Decline",SourceInputsAttenuation!$E$17*EXP(-1*(SourceInputsAttenuation!$I$17*SrcDecline!K113)),SourceInputsAttenuation!$E$17) -> 0.003980219302 | M113: 110 | N113: =IF(O$1="Decline",(M113*QsrcLitres)/SourceInputsAttenuation!$C$33,"") -> 0.01815966012 | O113: =IF(O$1="Decline",SourceInputsAttenuation!$E$18*EXP(-1*(SourceInputsAttenuation!$I$18*SrcDecline!N113)),SourceInputsAttenuation!$E$18) -> 0.3978444226 | P113: 110 | Q113: =IF(R$1="Decline",(P113*QsrcLitres)/SourceInputsAttenuation!$C$33,"") -> 0.01815966012 | R113: =IF(R$1="Decline",SourceInputsAttenuation!$E$19*EXP(-1*(SourceInputsAttenuation!$I$19*SrcDecline!Q113)),SourceInputsAttenuation!$E$19) -> 0.1989025168 | S113: 110 | T113: =IF(U$1="Decline",(S113*QsrcLitres)/SourceInputsAttenuation!$C$33,"") -> 0.01815966012 | U113: =IF(U$1="Decline",SourceInputsAttenuation!$E$20*EXP(-1*(SourceInputsAttenuation!$I$20*SrcDecline!T113)),SourceInputsAttenuation!$E$20) -> 0.0498274162
A114: 111 | B114: =IF(C$1="Decline",(A114*QsrcLitres)/(SourceInputsAttenuation!$C$33),"") -> 0.01832474794 | C114: =IF(C$1="Decline",SourceInputsAttenuation!$E$14*EXP(-1*((SourceInputsAttenuation!$I$14)*SrcDecline!B114)),SourceInputsAttenuation!$E$14) -> 0.04993027814 | D114: 111 | E114: =IF(F$1="Decline",(D114*QsrcLitres)/SourceInputsAttenuation!$C$33,"") -> 0.01832474794 | F114: =IF(F$1="Decline",SourceInputsAttenuation!$E$15*EXP(-1*(SourceInputsAttenuation!$I$15*SrcDecline!E114)),SourceInputsAttenuation!$E$15) -> 0.0009969937717 | G114: 111 | H114: =IF(I$1="Decline",(G114*QsrcLitres)/SourceInputsAttenuation!$C$33,"") -> 0.01832474794 | I114: =IF(I$1="Decline",SourceInputsAttenuation!$E$16*EXP(-1*(SourceInputsAttenuation!$I$16*SrcDecline!E114)),SourceInputsAttenuation!$E$16) -> 0.8616710041 | J114: 111 | K114: =IF(L$1="Decline",(J114*QsrcLitres)/SourceInputsAttenuation!$C$33,"") -> 0.01832474794 | L114: =IF(L$1="Decline",SourceInputsAttenuation!$E$17*EXP(-1*(SourceInputsAttenuation!$I$17*SrcDecline!K114)),SourceInputsAttenuation!$E$17) -> 0.003980039927 | M114: 111 | N114: =IF(O$1="Decline",(M114*QsrcLitres)/SourceInputsAttenuation!$C$33,"") -> 0.01832474794 | O114: =IF(O$1="Decline",SourceInputsAttenuation!$E$18*EXP(-1*(SourceInputsAttenuation!$I$18*SrcDecline!N114)),SourceInputsAttenuation!$E$18) -> 0.3978248798 | P114: 111 | Q114: =IF(R$1="Decline",(P114*QsrcLitres)/SourceInputsAttenuation!$C$33,"") -> 0.01832474794 | R114: =IF(R$1="Decline",SourceInputsAttenuation!$E$19*EXP(-1*(SourceInputsAttenuation!$I$19*SrcDecline!Q114)),SourceInputsAttenuation!$E$19) -> 0.1988925673 | S114: 111 | T114: =IF(U$1="Decline",(S114*QsrcLitres)/SourceInputsAttenuation!$C$33,"") -> 0.01832474794 | U114: =IF(U$1="Decline",SourceInputsAttenuation!$E$20*EXP(-1*(SourceInputsAttenuation!$I$20*SrcDecline!T114)),SourceInputsAttenuation!$E$20) -> 0.04982584999
A115: 112 | B115: =IF(C$1="Decline",(A115*QsrcLitres)/(SourceInputsAttenuation!$C$33),"") -> 0.01848983576 | C115: =IF(C$1="Decline",SourceInputsAttenuation!$E$14*EXP(-1*((SourceInputsAttenuation!$I$14)*SrcDecline!B115)),SourceInputsAttenuation!$E$14) -> 0.04992965045 | D115: 112 | E115: =IF(F$1="Decline",(D115*QsrcLitres)/SourceInputsAttenuation!$C$33,"") -> 0.01848983576 | F115: =IF(F$1="Decline",SourceInputsAttenuation!$E$15*EXP(-1*(SourceInputsAttenuation!$I$15*SrcDecline!E115)),SourceInputsAttenuation!$E$15) -> 0.0009969667297 | G115: 112 | H115: =IF(I$1="Decline",(G115*QsrcLitres)/SourceInputsAttenuation!$C$33,"") -> 0.01848983576 | I115: =IF(I$1="Decline",SourceInputsAttenuation!$E$16*EXP(-1*(SourceInputsAttenuation!$I$16*SrcDecline!E115)),SourceInputsAttenuation!$E$16) -> 0.8616007939 | J115: 112 | K115: =IF(L$1="Decline",(J115*QsrcLitres)/SourceInputsAttenuation!$C$33,"") -> 0.01848983576 | L115: =IF(L$1="Decline",SourceInputsAttenuation!$E$17*EXP(-1*(SourceInputsAttenuation!$I$17*SrcDecline!K115)),SourceInputsAttenuation!$E$17) -> 0.00397986056 | M115: 112 | N115: =IF(O$1="Decline",(M115*QsrcLitres)/SourceInputsAttenuation!$C$33,"") -> 0.01848983576 | O115: =IF(O$1="Decline",SourceInputsAttenuation!$E$18*EXP(-1*(SourceInputsAttenuation!$I$18*SrcDecline!N115)),SourceInputsAttenuation!$E$18) -> 0.397805338 | P115: 112 | Q115: =IF(R$1="Decline",(P115*QsrcLitres)/SourceInputsAttenuation!$C$33,"") -> 0.01848983576 | R115: =IF(R$1="Decline",SourceInputsAttenuation!$E$19*EXP(-1*(SourceInputsAttenuation!$I$19*SrcDecline!Q115)),SourceInputsAttenuation!$E$19) -> 0.1988826184 | S115: 112 | T115: =IF(U$1="Decline",(S115*QsrcLitres)/SourceInputsAttenuation!$C$33,"") -> 0.01848983576 | U115: =IF(U$1="Decline",SourceInputsAttenuation!$E$20*EXP(-1*(SourceInputsAttenuation!$I$20*SrcDecline!T115)),SourceInputsAttenuation!$E$20) -> 0.04982428383
A116: 113 | B116: =IF(C$1="Decline",(A116*QsrcLitres)/(SourceInputsAttenuation!$C$33),"") -> 0.01865492358 | C116: =IF(C$1="Decline",SourceInputsAttenuation!$E$14*EXP(-1*((SourceInputsAttenuation!$I$14)*SrcDecline!B116)),SourceInputsAttenuation!$E$14) -> 0.04992902278 | D116: 113 | E116: =IF(F$1="Decline",(D116*QsrcLitres)/SourceInputsAttenuation!$C$33,"") -> 0.01865492358 | F116: =IF(F$1="Decline",SourceInputsAttenuation!$E$15*EXP(-1*(SourceInputsAttenuation!$I$15*SrcDecline!E116)),SourceInputsAttenuation!$E$15) -> 0.0009969396884 | G116: 113 | H116: =IF(I$1="Decline",(G116*QsrcLitres)/SourceInputsAttenuation!$C$33,"") -> 0.01865492358 | I116: =IF(I$1="Decline",SourceInputsAttenuation!$E$16*EXP(-1*(SourceInputsAttenuation!$I$16*SrcDecline!E116)),SourceInputsAttenuation!$E$16) -> 0.8615305895 | J116: 113 | K116: =IF(L$1="Decline",(J116*QsrcLitres)/SourceInputsAttenuation!$C$33,"") -> 0.01865492358 | L116: =IF(L$1="Decline",SourceInputsAttenuation!$E$17*EXP(-1*(SourceInputsAttenuation!$I$17*SrcDecline!K116)),SourceInputsAttenuation!$E$17) -> 0.003979681201 | M116: 113 | N116: =IF(O$1="Decline",(M116*QsrcLitres)/SourceInputsAttenuation!$C$33,"") -> 0.01865492358 | O116: =IF(O$1="Decline",SourceInputsAttenuation!$E$18*EXP(-1*(SourceInputsAttenuation!$I$18*SrcDecline!N116)),SourceInputsAttenuation!$E$18) -> 0.3977857971 | P116: 113 | Q116: =IF(R$1="Decline",(P116*QsrcLitres)/SourceInputsAttenuation!$C$33,"") -> 0.01865492358 | R116: =IF(R$1="Decline",SourceInputsAttenuation!$E$19*EXP(-1*(SourceInputsAttenuation!$I$19*SrcDecline!Q116)),SourceInputsAttenuation!$E$19) -> 0.1988726699 | S116: 113 | T116: =IF(U$1="Decline",(S116*QsrcLitres)/SourceInputsAttenuation!$C$33,"") -> 0.01865492358 | U116: =IF(U$1="Decline",SourceInputsAttenuation!$E$20*EXP(-1*(SourceInputsAttenuation!$I$20*SrcDecline!T116)),SourceInputsAttenuation!$E$20) -> 0.04982271772
A117: 114 | B117: =IF(C$1="Decline",(A117*QsrcLitres)/(SourceInputsAttenuation!$C$33),"") -> 0.01882001139 | C117: =IF(C$1="Decline",SourceInputsAttenuation!$E$14*EXP(-1*((SourceInputsAttenuation!$I$14)*SrcDecline!B117)),SourceInputsAttenuation!$E$14) -> 0.04992839511 | D117: 114 | E117: =IF(F$1="Decline",(D117*QsrcLitres)/SourceInputsAttenuation!$C$33,"") -> 0.01882001139 | F117: =IF(F$1="Decline",SourceInputsAttenuation!$E$15*EXP(-1*(SourceInputsAttenuation!$I$15*SrcDecline!E117)),SourceInputsAttenuation!$E$15) -> 0.0009969126478 | G117: 114 | H117: =IF(I$1="Decline",(G117*QsrcLitres)/SourceInputsAttenuation!$C$33,"") -> 0.01882001139 | I117: =IF(I$1="Decline",SourceInputsAttenuation!$E$16*EXP(-1*(SourceInputsAttenuation!$I$16*SrcDecline!E117)),SourceInputsAttenuation!$E$16) -> 0.8614603908 | J117: 114 | K117: =IF(L$1="Decline",(J117*QsrcLitres)/SourceInputsAttenuation!$C$33,"") -> 0.01882001139 | L117: =IF(L$1="Decline",SourceInputsAttenuation!$E$17*EXP(-1*(SourceInputsAttenuation!$I$17*SrcDecline!K117)),SourceInputsAttenuation!$E$17) -> 0.00397950185 | M117: 114 | N117: =IF(O$1="Decline",(M117*QsrcLitres)/SourceInputsAttenuation!$C$33,"") -> 0.01882001139 | O117: =IF(O$1="Decline",SourceInputsAttenuation!$E$18*EXP(-1*(SourceInputsAttenuation!$I$18*SrcDecline!N117)),SourceInputsAttenuation!$E$18) -> 0.3977662572 | P117: 114 | Q117: =IF(R$1="Decline",(P117*QsrcLitres)/SourceInputsAttenuation!$C$33,"") -> 0.01882001139 | R117: =IF(R$1="Decline",SourceInputsAttenuation!$E$19*EXP(-1*(SourceInputsAttenuation!$I$19*SrcDecline!Q117)),SourceInputsAttenuation!$E$19) -> 0.198862722 | S117: 114 | T117: =IF(U$1="Decline",(S117*QsrcLitres)/SourceInputsAttenuation!$C$33,"") -> 0.01882001139 | U117: =IF(U$1="Decline",SourceInputsAttenuation!$E$20*EXP(-1*(SourceInputsAttenuation!$I$20*SrcDecline!T117)),SourceInputsAttenuation!$E$20) -> 0.04982115166
A118: 115 | B118: =IF(C$1="Decline",(A118*QsrcLitres)/(SourceInputsAttenuation!$C$33),"") -> 0.01898509921 | C118: =IF(C$1="Decline",SourceInputsAttenuation!$E$14*EXP(-1*((SourceInputsAttenuation!$I$14)*SrcDecline!B118)),SourceInputsAttenuation!$E$14) -> 0.04992776745 | D118: 115 | E118: =IF(F$1="Decline",(D118*QsrcLitres)/SourceInputsAttenuation!$C$33,"") -> 0.01898509921 | F118: =IF(F$1="Decline",SourceInputsAttenuation!$E$15*EXP(-1*(SourceInputsAttenuation!$I$15*SrcDecline!E118)),SourceInputsAttenuation!$E$15) -> 0.000996885608 | G118: 115 | H118: =IF(I$1="Decline",(G118*QsrcLitres)/SourceInputsAttenuation!$C$33,"") -> 0.01898509921 | I118: =IF(I$1="Decline",SourceInputsAttenuation!$E$16*EXP(-1*(SourceInputsAttenuation!$I$16*SrcDecline!E118)),SourceInputsAttenuation!$E$16) -> 0.8613901978 | J118: 115 | K118: =IF(L$1="Decline",(J118*QsrcLitres)/SourceInputsAttenuation!$C$33,"") -> 0.01898509921 | L118: =IF(L$1="Decline",SourceInputsAttenuation!$E$17*EXP(-1*(SourceInputsAttenuation!$I$17*SrcDecline!K118)),SourceInputsAttenuation!$E$17) -> 0.003979322507 | M118: 115 | N118: =IF(O$1="Decline",(M118*QsrcLitres)/SourceInputsAttenuation!$C$33,"") -> 0.01898509921 | O118: =IF(O$1="Decline",SourceInputsAttenuation!$E$18*EXP(-1*(SourceInputsAttenuation!$I$18*SrcDecline!N118)),SourceInputsAttenuation!$E$18) -> 0.3977467183 | P118: 115 | Q118: =IF(R$1="Decline",(P118*QsrcLitres)/SourceInputsAttenuation!$C$33,"") -> 0.01898509921 | R118: =IF(R$1="Decline",SourceInputsAttenuation!$E$19*EXP(-1*(SourceInputsAttenuation!$I$19*SrcDecline!Q118)),SourceInputsAttenuation!$E$19) -> 0.1988527745 | S118: 115 | T118: =IF(U$1="Decline",(S118*QsrcLitres)/SourceInputsAttenuation!$C$33,"") -> 0.01898509921 | U118: =IF(U$1="Decline",SourceInputsAttenuation!$E$20*EXP(-1*(SourceInputsAttenuation!$I$20*SrcDecline!T118)),SourceInputsAttenuation!$E$20) -> 0.04981958565
A119: 116 | B119: =IF(C$1="Decline",(A119*QsrcLitres)/(SourceInputsAttenuation!$C$33),"") -> 0.01915018703 | C119: =IF(C$1="Decline",SourceInputsAttenuation!$E$14*EXP(-1*((SourceInputsAttenuation!$I$14)*SrcDecline!B119)),SourceInputsAttenuation!$E$14) -> 0.0499271398 | D119: 116 | E119: =IF(F$1="Decline",(D119*QsrcLitres)/SourceInputsAttenuation!$C$33,"") -> 0.01915018703 | F119: =IF(F$1="Decline",SourceInputsAttenuation!$E$15*EXP(-1*(SourceInputsAttenuation!$I$15*SrcDecline!E119)),SourceInputsAttenuation!$E$15) -> 0.0009968585689 | G119: 116 | H119: =IF(I$1="Decline",(G119*QsrcLitres)/SourceInputsAttenuation!$C$33,"") -> 0.01915018703 | I119: =IF(I$1="Decline",SourceInputsAttenuation!$E$16*EXP(-1*(SourceInputsAttenuation!$I$16*SrcDecline!E119)),SourceInputsAttenuation!$E$16) -> 0.8613200106 | J119: 116 | K119: =IF(L$1="Decline",(J119*QsrcLitres)/SourceInputsAttenuation!$C$33,"") -> 0.01915018703 | L119: =IF(L$1="Decline",SourceInputsAttenuation!$E$17*EXP(-1*(SourceInputsAttenuation!$I$17*SrcDecline!K119)),SourceInputsAttenuation!$E$17) -> 0.003979143172 | M119: 116 | N119: =IF(O$1="Decline",(M119*QsrcLitres)/SourceInputsAttenuation!$C$33,"") -> 0.01915018703 | O119: =IF(O$1="Decline",SourceInputsAttenuation!$E$18*EXP(-1*(SourceInputsAttenuation!$I$18*SrcDecline!N119)),SourceInputsAttenuation!$E$18) -> 0.3977271803 | P119: 116 | Q119: =IF(R$1="Decline",(P119*QsrcLitres)/SourceInputsAttenuation!$C$33,"") -> 0.01915018703 | R119: =IF(R$1="Decline",SourceInputsAttenuation!$E$19*EXP(-1*(SourceInputsAttenuation!$I$19*SrcDecline!Q119)),SourceInputsAttenuation!$E$19) -> 0.1988428276 | S119: 116 | T119: =IF(U$1="Decline",(S119*QsrcLitres)/SourceInputsAttenuation!$C$33,"") -> 0.01915018703 | U119: =IF(U$1="Decline",SourceInputsAttenuation!$E$20*EXP(-1*(SourceInputsAttenuation!$I$20*SrcDecline!T119)),SourceInputsAttenuation!$E$20) -> 0.04981801969
A120: 117 | B120: =IF(C$1="Decline",(A120*QsrcLitres)/(SourceInputsAttenuation!$C$33),"") -> 0.01931527485 | C120: =IF(C$1="Decline",SourceInputsAttenuation!$E$14*EXP(-1*((SourceInputsAttenuation!$I$14)*SrcDecline!B120)),SourceInputsAttenuation!$E$14) -> 0.04992651216 | D120: 117 | E120: =IF(F$1="Decline",(D120*QsrcLitres)/SourceInputsAttenuation!$C$33,"") -> 0.01931527485 | F120: =IF(F$1="Decline",SourceInputsAttenuation!$E$15*EXP(-1*(SourceInputsAttenuation!$I$15*SrcDecline!E120)),SourceInputsAttenuation!$E$15) -> 0.0009968315306 | G120: 117 | H120: =IF(I$1="Decline",(G120*QsrcLitres)/SourceInputsAttenuation!$C$33,"") -> 0.01931527485 | I120: =IF(I$1="Decline",SourceInputsAttenuation!$E$16*EXP(-1*(SourceInputsAttenuation!$I$16*SrcDecline!E120)),SourceInputsAttenuation!$E$16) -> 0.861249829 | J120: 117 | K120: =IF(L$1="Decline",(J120*QsrcLitres)/SourceInputsAttenuation!$C$33,"") -> 0.01931527485 | L120: =IF(L$1="Decline",SourceInputsAttenuation!$E$17*EXP(-1*(SourceInputsAttenuation!$I$17*SrcDecline!K120)),SourceInputsAttenuation!$E$17) -> 0.003978963846 | M120: 117 | N120: =IF(O$1="Decline",(M120*QsrcLitres)/SourceInputsAttenuation!$C$33,"") -> 0.01931527485 | O120: =IF(O$1="Decline",SourceInputsAttenuation!$E$18*EXP(-1*(SourceInputsAttenuation!$I$18*SrcDecline!N120)),SourceInputsAttenuation!$E$18) -> 0.3977076433 | P120: 117 | Q120: =IF(R$1="Decline",(P120*QsrcLitres)/SourceInputsAttenuation!$C$33,"") -> 0.01931527485 | R120: =IF(R$1="Decline",SourceInputsAttenuation!$E$19*EXP(-1*(SourceInputsAttenuation!$I$19*SrcDecline!Q120)),SourceInputsAttenuation!$E$19) -> 0.1988328811 | S120: 117 | T120: =IF(U$1="Decline",(S120*QsrcLitres)/SourceInputsAttenuation!$C$33,"") -> 0.01931527485 | U120: =IF(U$1="Decline",SourceInputsAttenuation!$E$20*EXP(-1*(SourceInputsAttenuation!$I$20*SrcDecline!T120)),SourceInputsAttenuation!$E$20) -> 0.04981645377
A121: 118 | B121: =IF(C$1="Decline",(A121*QsrcLitres)/(SourceInputsAttenuation!$C$33),"") -> 0.01948036267 | C121: =IF(C$1="Decline",SourceInputsAttenuation!$E$14*EXP(-1*((SourceInputsAttenuation!$I$14)*SrcDecline!B121)),SourceInputsAttenuation!$E$14) -> 0.04992588452 | D121: 118 | E121: =IF(F$1="Decline",(D121*QsrcLitres)/SourceInputsAttenuation!$C$33,"") -> 0.01948036267 | F121: =IF(F$1="Decline",SourceInputsAttenuation!$E$15*EXP(-1*(SourceInputsAttenuation!$I$15*SrcDecline!E121)),SourceInputsAttenuation!$E$15) -> 0.0009968044929 | G121: 118 | H121: =IF(I$1="Decline",(G121*QsrcLitres)/SourceInputsAttenuation!$C$33,"") -> 0.01948036267 | I121: =IF(I$1="Decline",SourceInputsAttenuation!$E$16*EXP(-1*(SourceInputsAttenuation!$I$16*SrcDecline!E121)),SourceInputsAttenuation!$E$16) -> 0.8611796532 | J121: 118 | K121: =IF(L$1="Decline",(J121*QsrcLitres)/SourceInputsAttenuation!$C$33,"") -> 0.01948036267 | L121: =IF(L$1="Decline",SourceInputsAttenuation!$E$17*EXP(-1*(SourceInputsAttenuation!$I$17*SrcDecline!K121)),SourceInputsAttenuation!$E$17) -> 0.003978784527 | M121: 118 | N121: =IF(O$1="Decline",(M121*QsrcLitres)/SourceInputsAttenuation!$C$33,"") -> 0.01948036267 | O121: =IF(O$1="Decline",SourceInputsAttenuation!$E$18*EXP(-1*(SourceInputsAttenuation!$I$18*SrcDecline!N121)),SourceInputsAttenuation!$E$18) -> 0.3976881072 | P121: 118 | Q121: =IF(R$1="Decline",(P121*QsrcLitres)/SourceInputsAttenuation!$C$33,"") -> 0.01948036267 | R121: =IF(R$1="Decline",SourceInputsAttenuation!$E$19*EXP(-1*(SourceInputsAttenuation!$I$19*SrcDecline!Q121)),SourceInputsAttenuation!$E$19) -> 0.1988229351 | S121: 118 | T121: =IF(U$1="Decline",(S121*QsrcLitres)/SourceInputsAttenuation!$C$33,"") -> 0.01948036267 | U121: =IF(U$1="Decline",SourceInputsAttenuation!$E$20*EXP(-1*(SourceInputsAttenuation!$I$20*SrcDecline!T121)),SourceInputsAttenuation!$E$20) -> 0.04981488791
A122: 119 | B122: =IF(C$1="Decline",(A122*QsrcLitres)/(SourceInputsAttenuation!$C$33),"") -> 0.01964545049 | C122: =IF(C$1="Decline",SourceInputsAttenuation!$E$14*EXP(-1*((SourceInputsAttenuation!$I$14)*SrcDecline!B122)),SourceInputsAttenuation!$E$14) -> 0.0499252569 | D122: 119 | E122: =IF(F$1="Decline",(D122*QsrcLitres)/SourceInputsAttenuation!$C$33,"") -> 0.01964545049 | F122: =IF(F$1="Decline",SourceInputsAttenuation!$E$15*EXP(-1*(SourceInputsAttenuation!$I$15*SrcDecline!E122)),SourceInputsAttenuation!$E$15) -> 0.0009967774561 | G122: 119 | H122: =IF(I$1="Decline",(G122*QsrcLitres)/SourceInputsAttenuation!$C$33,"") -> 0.01964545049 | I122: =IF(I$1="Decline",SourceInputsAttenuation!$E$16*EXP(-1*(SourceInputsAttenuation!$I$16*SrcDecline!E122)),SourceInputsAttenuation!$E$16) -> 0.8611094831 | J122: 119 | K122: =IF(L$1="Decline",(J122*QsrcLitres)/SourceInputsAttenuation!$C$33,"") -> 0.01964545049 | L122: =IF(L$1="Decline",SourceInputsAttenuation!$E$17*EXP(-1*(SourceInputsAttenuation!$I$17*SrcDecline!K122)),SourceInputsAttenuation!$E$17) -> 0.003978605217 | M122: 119 | N122: =IF(O$1="Decline",(M122*QsrcLitres)/SourceInputsAttenuation!$C$33,"") -> 0.01964545049 | O122: =IF(O$1="Decline",SourceInputsAttenuation!$E$18*EXP(-1*(SourceInputsAttenuation!$I$18*SrcDecline!N122)),SourceInputsAttenuation!$E$18) -> 0.3976685721 | P122: 119 | Q122: =IF(R$1="Decline",(P122*QsrcLitres)/SourceInputsAttenuation!$C$33,"") -> 0.01964545049 | R122: =IF(R$1="Decline",SourceInputsAttenuation!$E$19*EXP(-1*(SourceInputsAttenuation!$I$19*SrcDecline!Q122)),SourceInputsAttenuation!$E$19) -> 0.1988129897 | S122: 119 | T122: =IF(U$1="Decline",(S122*QsrcLitres)/SourceInputsAttenuation!$C$33,"") -> 0.01964545049 | U122: =IF(U$1="Decline",SourceInputsAttenuation!$E$20*EXP(-1*(SourceInputsAttenuation!$I$20*SrcDecline!T122)),SourceInputsAttenuation!$E$20) -> 0.04981332209
A123: 120 | B123: =IF(C$1="Decline",(A123*QsrcLitres)/(SourceInputsAttenuation!$C$33),"") -> 0.01981053831 | C123: =IF(C$1="Decline",SourceInputsAttenuation!$E$14*EXP(-1*((SourceInputsAttenuation!$I$14)*SrcDecline!B123)),SourceInputsAttenuation!$E$14) -> 0.04992462928 | D123: 120 | E123: =IF(F$1="Decline",(D123*QsrcLitres)/SourceInputsAttenuation!$C$33,"") -> 0.01981053831 | F123: =IF(F$1="Decline",SourceInputsAttenuation!$E$15*EXP(-1*(SourceInputsAttenuation!$I$15*SrcDecline!E123)),SourceInputsAttenuation!$E$15) -> 0.0009967504199 | G123: 120 | H123: =IF(I$1="Decline",(G123*QsrcLitres)/SourceInputsAttenuation!$C$33,"") -> 0.01981053831 | I123: =IF(I$1="Decline",SourceInputsAttenuation!$E$16*EXP(-1*(SourceInputsAttenuation!$I$16*SrcDecline!E123)),SourceInputsAttenuation!$E$16) -> 0.8610393187 | J123: 120 | K123: =IF(L$1="Decline",(J123*QsrcLitres)/SourceInputsAttenuation!$C$33,"") -> 0.01981053831 | L123: =IF(L$1="Decline",SourceInputsAttenuation!$E$17*EXP(-1*(SourceInputsAttenuation!$I$17*SrcDecline!K123)),SourceInputsAttenuation!$E$17) -> 0.003978425914 | M123: 120 | N123: =IF(O$1="Decline",(M123*QsrcLitres)/SourceInputsAttenuation!$C$33,"") -> 0.01981053831 | O123: =IF(O$1="Decline",SourceInputsAttenuation!$E$18*EXP(-1*(SourceInputsAttenuation!$I$18*SrcDecline!N123)),SourceInputsAttenuation!$E$18) -> 0.397649038 | P123: 120 | Q123: =IF(R$1="Decline",(P123*QsrcLitres)/SourceInputsAttenuation!$C$33,"") -> 0.01981053831 | R123: =IF(R$1="Decline",SourceInputsAttenuation!$E$19*EXP(-1*(SourceInputsAttenuation!$I$19*SrcDecline!Q123)),SourceInputsAttenuation!$E$19) -> 0.1988030447 | S123: 120 | T123: =IF(U$1="Decline",(S123*QsrcLitres)/SourceInputsAttenuation!$C$33,"") -> 0.01981053831 | U123: =IF(U$1="Decline",SourceInputsAttenuation!$E$20*EXP(-1*(SourceInputsAttenuation!$I$20*SrcDecline!T123)),SourceInputsAttenuation!$E$20) -> 0.04981175633
A124: 121 | B124: =IF(C$1="Decline",(A124*QsrcLitres)/(SourceInputsAttenuation!$C$33),"") -> 0.01997562613 | C124: =IF(C$1="Decline",SourceInputsAttenuation!$E$14*EXP(-1*((SourceInputsAttenuation!$I$14)*SrcDecline!B124)),SourceInputsAttenuation!$E$14) -> 0.04992400166 | D124: 121 | E124: =IF(F$1="Decline",(D124*QsrcLitres)/SourceInputsAttenuation!$C$33,"") -> 0.01997562613 | F124: =IF(F$1="Decline",SourceInputsAttenuation!$E$15*EXP(-1*(SourceInputsAttenuation!$I$15*SrcDecline!E124)),SourceInputsAttenuation!$E$15) -> 0.0009967233845 | G124: 121 | H124: =IF(I$1="Decline",(G124*QsrcLitres)/SourceInputsAttenuation!$C$33,"") -> 0.01997562613 | I124: =IF(I$1="Decline",SourceInputsAttenuation!$E$16*EXP(-1*(SourceInputsAttenuation!$I$16*SrcDecline!E124)),SourceInputsAttenuation!$E$16) -> 0.86096916 | J124: 121 | K124: =IF(L$1="Decline",(J124*QsrcLitres)/SourceInputsAttenuation!$C$33,"") -> 0.01997562613 | L124: =IF(L$1="Decline",SourceInputsAttenuation!$E$17*EXP(-1*(SourceInputsAttenuation!$I$17*SrcDecline!K124)),SourceInputsAttenuation!$E$17) -> 0.00397824662 | M124: 121 | N124: =IF(O$1="Decline",(M124*QsrcLitres)/SourceInputsAttenuation!$C$33,"") -> 0.01997562613 | O124: =IF(O$1="Decline",SourceInputsAttenuation!$E$18*EXP(-1*(SourceInputsAttenuation!$I$18*SrcDecline!N124)),SourceInputsAttenuation!$E$18) -> 0.3976295048 | P124: 121 | Q124: =IF(R$1="Decline",(P124*QsrcLitres)/SourceInputsAttenuation!$C$33,"") -> 0.01997562613 | R124: =IF(R$1="Decline",SourceInputsAttenuation!$E$19*EXP(-1*(SourceInputsAttenuation!$I$19*SrcDecline!Q124)),SourceInputsAttenuation!$E$19) -> 0.1987931002 | S124: 121 | T124: =IF(U$1="Decline",(S124*QsrcLitres)/SourceInputsAttenuation!$C$33,"") -> 0.01997562613 | U124: =IF(U$1="Decline",SourceInputsAttenuation!$E$20*EXP(-1*(SourceInputsAttenuation!$I$20*SrcDecline!T124)),SourceInputsAttenuation!$E$20) -> 0.04981019061
A125: 122 | B125: =IF(C$1="Decline",(A125*QsrcLitres)/(SourceInputsAttenuation!$C$33),"") -> 0.02014071395 | C125: =IF(C$1="Decline",SourceInputsAttenuation!$E$14*EXP(-1*((SourceInputsAttenuation!$I$14)*SrcDecline!B125)),SourceInputsAttenuation!$E$14) -> 0.04992337406 | D125: 122 | E125: =IF(F$1="Decline",(D125*QsrcLitres)/SourceInputsAttenuation!$C$33,"") -> 0.02014071395 | F125: =IF(F$1="Decline",SourceInputsAttenuation!$E$15*EXP(-1*(SourceInputsAttenuation!$I$15*SrcDecline!E125)),SourceInputsAttenuation!$E$15) -> 0.0009966963498 | G125: 122 | H125: =IF(I$1="Decline",(G125*QsrcLitres)/SourceInputsAttenuation!$C$33,"") -> 0.02014071395 | I125: =IF(I$1="Decline",SourceInputsAttenuation!$E$16*EXP(-1*(SourceInputsAttenuation!$I$16*SrcDecline!E125)),SourceInputsAttenuation!$E$16) -> 0.8608990071 | J125: 122 | K125: =IF(L$1="Decline",(J125*QsrcLitres)/SourceInputsAttenuation!$C$33,"") -> 0.02014071395 | L125: =IF(L$1="Decline",SourceInputsAttenuation!$E$17*EXP(-1*(SourceInputsAttenuation!$I$17*SrcDecline!K125)),SourceInputsAttenuation!$E$17) -> 0.003978067334 | M125: 122 | N125: =IF(O$1="Decline",(M125*QsrcLitres)/SourceInputsAttenuation!$C$33,"") -> 0.02014071395 | O125: =IF(O$1="Decline",SourceInputsAttenuation!$E$18*EXP(-1*(SourceInputsAttenuation!$I$18*SrcDecline!N125)),SourceInputsAttenuation!$E$18) -> 0.3976099726 | P125: 122 | Q125: =IF(R$1="Decline",(P125*QsrcLitres)/SourceInputsAttenuation!$C$33,"") -> 0.02014071395 | R125: =IF(R$1="Decline",SourceInputsAttenuation!$E$19*EXP(-1*(SourceInputsAttenuation!$I$19*SrcDecline!Q125)),SourceInputsAttenuation!$E$19) -> 0.1987831563 | S125: 122 | T125: =IF(U$1="Decline",(S125*QsrcLitres)/SourceInputsAttenuation!$C$33,"") -> 0.02014071395 | U125: =IF(U$1="Decline",SourceInputsAttenuation!$E$20*EXP(-1*(SourceInputsAttenuation!$I$20*SrcDecline!T125)),SourceInputsAttenuation!$E$20) -> 0.04980862495
A126: 123 | B126: =IF(C$1="Decline",(A126*QsrcLitres)/(SourceInputsAttenuation!$C$33),"") -> 0.02030580177 | C126: =IF(C$1="Decline",SourceInputsAttenuation!$E$14*EXP(-1*((SourceInputsAttenuation!$I$14)*SrcDecline!B126)),SourceInputsAttenuation!$E$14) -> 0.04992274646 | D126: 123 | E126: =IF(F$1="Decline",(D126*QsrcLitres)/SourceInputsAttenuation!$C$33,"") -> 0.02030580177 | F126: =IF(F$1="Decline",SourceInputsAttenuation!$E$15*EXP(-1*(SourceInputsAttenuation!$I$15*SrcDecline!E126)),SourceInputsAttenuation!$E$15) -> 0.0009966693158 | G126: 123 | H126: =IF(I$1="Decline",(G126*QsrcLitres)/SourceInputsAttenuation!$C$33,"") -> 0.02030580177 | I126: =IF(I$1="Decline",SourceInputsAttenuation!$E$16*EXP(-1*(SourceInputsAttenuation!$I$16*SrcDecline!E126)),SourceInputsAttenuation!$E$16) -> 0.8608288598 | J126: 123 | K126: =IF(L$1="Decline",(J126*QsrcLitres)/SourceInputsAttenuation!$C$33,"") -> 0.02030580177 | L126: =IF(L$1="Decline",SourceInputsAttenuation!$E$17*EXP(-1*(SourceInputsAttenuation!$I$17*SrcDecline!K126)),SourceInputsAttenuation!$E$17) -> 0.003977888056 | M126: 123 | N126: =IF(O$1="Decline",(M126*QsrcLitres)/SourceInputsAttenuation!$C$33,"") -> 0.02030580177 | O126: =IF(O$1="Decline",SourceInputsAttenuation!$E$18*EXP(-1*(SourceInputsAttenuation!$I$18*SrcDecline!N126)),SourceInputsAttenuation!$E$18) -> 0.3975904413 | P126: 123 | Q126: =IF(R$1="Decline",(P126*QsrcLitres)/SourceInputsAttenuation!$C$33,"") -> 0.02030580177 | R126: =IF(R$1="Decline",SourceInputsAttenuation!$E$19*EXP(-1*(SourceInputsAttenuation!$I$19*SrcDecline!Q126)),SourceInputsAttenuation!$E$19) -> 0.1987732128 | S126: 123 | T126: =IF(U$1="Decline",(S126*QsrcLitres)/SourceInputsAttenuation!$C$33,"") -> 0.02030580177 | U126: =IF(U$1="Decline",SourceInputsAttenuation!$E$20*EXP(-1*(SourceInputsAttenuation!$I$20*SrcDecline!T126)),SourceInputsAttenuation!$E$20) -> 0.04980705933
A127: 124 | B127: =IF(C$1="Decline",(A127*QsrcLitres)/(SourceInputsAttenuation!$C$33),"") -> 0.02047088959 | C127: =IF(C$1="Decline",SourceInputsAttenuation!$E$14*EXP(-1*((SourceInputsAttenuation!$I$14)*SrcDecline!B127)),SourceInputsAttenuation!$E$14) -> 0.04992211888 | D127: 124 | E127: =IF(F$1="Decline",(D127*QsrcLitres)/SourceInputsAttenuation!$C$33,"") -> 0.02047088959 | F127: =IF(F$1="Decline",SourceInputsAttenuation!$E$15*EXP(-1*(SourceInputsAttenuation!$I$15*SrcDecline!E127)),SourceInputsAttenuation!$E$15) -> 0.0009966422826 | G127: 124 | H127: =IF(I$1="Decline",(G127*QsrcLitres)/SourceInputsAttenuation!$C$33,"") -> 0.02047088959 | I127: =IF(I$1="Decline",SourceInputsAttenuation!$E$16*EXP(-1*(SourceInputsAttenuation!$I$16*SrcDecline!E127)),SourceInputsAttenuation!$E$16) -> 0.8607587183 | J127: 124 | K127: =IF(L$1="Decline",(J127*QsrcLitres)/SourceInputsAttenuation!$C$33,"") -> 0.02047088959 | L127: =IF(L$1="Decline",SourceInputsAttenuation!$E$17*EXP(-1*(SourceInputsAttenuation!$I$17*SrcDecline!K127)),SourceInputsAttenuation!$E$17) -> 0.003977708786 | M127: 124 | N127: =IF(O$1="Decline",(M127*QsrcLitres)/SourceInputsAttenuation!$C$33,"") -> 0.02047088959 | O127: =IF(O$1="Decline",SourceInputsAttenuation!$E$18*EXP(-1*(SourceInputsAttenuation!$I$18*SrcDecline!N127)),SourceInputsAttenuation!$E$18) -> 0.397570911 | P127: 124 | Q127: =IF(R$1="Decline",(P127*QsrcLitres)/SourceInputsAttenuation!$C$33,"") -> 0.02047088959 | R127: =IF(R$1="Decline",SourceInputsAttenuation!$E$19*EXP(-1*(SourceInputsAttenuation!$I$19*SrcDecline!Q127)),SourceInputsAttenuation!$E$19) -> 0.1987632698 | S127: 124 | T127: =IF(U$1="Decline",(S127*QsrcLitres)/SourceInputsAttenuation!$C$33,"") -> 0.02047088959 | U127: =IF(U$1="Decline",SourceInputsAttenuation!$E$20*EXP(-1*(SourceInputsAttenuation!$I$20*SrcDecline!T127)),SourceInputsAttenuation!$E$20) -> 0.04980549376
A128: 125 | B128: =IF(C$1="Decline",(A128*QsrcLitres)/(SourceInputsAttenuation!$C$33),"") -> 0.02063597741 | C128: =IF(C$1="Decline",SourceInputsAttenuation!$E$14*EXP(-1*((SourceInputsAttenuation!$I$14)*SrcDecline!B128)),SourceInputsAttenuation!$E$14) -> 0.0499214913 | D128: 125 | E128: =IF(F$1="Decline",(D128*QsrcLitres)/SourceInputsAttenuation!$C$33,"") -> 0.02063597741 | F128: =IF(F$1="Decline",SourceInputsAttenuation!$E$15*EXP(-1*(SourceInputsAttenuation!$I$15*SrcDecline!E128)),SourceInputsAttenuation!$E$15) -> 0.0009966152501 | G128: 125 | H128: =IF(I$1="Decline",(G128*QsrcLitres)/SourceInputsAttenuation!$C$33,"") -> 0.02063597741 | I128: =IF(I$1="Decline",SourceInputsAttenuation!$E$16*EXP(-1*(SourceInputsAttenuation!$I$16*SrcDecline!E128)),SourceInputsAttenuation!$E$16) -> 0.8606885825 | J128: 125 | K128: =IF(L$1="Decline",(J128*QsrcLitres)/SourceInputsAttenuation!$C$33,"") -> 0.02063597741 | L128: =IF(L$1="Decline",SourceInputsAttenuation!$E$17*EXP(-1*(SourceInputsAttenuation!$I$17*SrcDecline!K128)),SourceInputsAttenuation!$E$17) -> 0.003977529524 | M128: 125 | N128: =IF(O$1="Decline",(M128*QsrcLitres)/SourceInputsAttenuation!$C$33,"") -> 0.02063597741 | O128: =IF(O$1="Decline",SourceInputsAttenuation!$E$18*EXP(-1*(SourceInputsAttenuation!$I$18*SrcDecline!N128)),SourceInputsAttenuation!$E$18) -> 0.3975513817 | P128: 125 | Q128: =IF(R$1="Decline",(P128*QsrcLitres)/SourceInputsAttenuation!$C$33,"") -> 0.02063597741 | R128: =IF(R$1="Decline",SourceInputsAttenuation!$E$19*EXP(-1*(SourceInputsAttenuation!$I$19*SrcDecline!Q128)),SourceInputsAttenuation!$E$19) -> 0.1987533273 | S128: 125 | T128: =IF(U$1="Decline",(S128*QsrcLitres)/SourceInputsAttenuation!$C$33,"") -> 0.02063597741 | U128: =IF(U$1="Decline",SourceInputsAttenuation!$E$20*EXP(-1*(SourceInputsAttenuation!$I$20*SrcDecline!T128)),SourceInputsAttenuation!$E$20) -> 0.04980392824
A129: 126 | B129: =IF(C$1="Decline",(A129*QsrcLitres)/(SourceInputsAttenuation!$C$33),"") -> 0.02080106523 | C129: =IF(C$1="Decline",SourceInputsAttenuation!$E$14*EXP(-1*((SourceInputsAttenuation!$I$14)*SrcDecline!B129)),SourceInputsAttenuation!$E$14) -> 0.04992086372 | D129: 126 | E129: =IF(F$1="Decline",(D129*QsrcLitres)/SourceInputsAttenuation!$C$33,"") -> 0.02080106523 | F129: =IF(F$1="Decline",SourceInputsAttenuation!$E$15*EXP(-1*(SourceInputsAttenuation!$I$15*SrcDecline!E129)),SourceInputsAttenuation!$E$15) -> 0.0009965882184 | G129: 126 | H129: =IF(I$1="Decline",(G129*QsrcLitres)/SourceInputsAttenuation!$C$33,"") -> 0.02080106523 | I129: =IF(I$1="Decline",SourceInputsAttenuation!$E$16*EXP(-1*(SourceInputsAttenuation!$I$16*SrcDecline!E129)),SourceInputsAttenuation!$E$16) -> 0.8606184524 | J129: 126 | K129: =IF(L$1="Decline",(J129*QsrcLitres)/SourceInputsAttenuation!$C$33,"") -> 0.02080106523 | L129: =IF(L$1="Decline",SourceInputsAttenuation!$E$17*EXP(-1*(SourceInputsAttenuation!$I$17*SrcDecline!K129)),SourceInputsAttenuation!$E$17) -> 0.00397735027 | M129: 126 | N129: =IF(O$1="Decline",(M129*QsrcLitres)/SourceInputsAttenuation!$C$33,"") -> 0.02080106523 | O129: =IF(O$1="Decline",SourceInputsAttenuation!$E$18*EXP(-1*(SourceInputsAttenuation!$I$18*SrcDecline!N129)),SourceInputsAttenuation!$E$18) -> 0.3975318533 | P129: 126 | Q129: =IF(R$1="Decline",(P129*QsrcLitres)/SourceInputsAttenuation!$C$33,"") -> 0.02080106523 | R129: =IF(R$1="Decline",SourceInputsAttenuation!$E$19*EXP(-1*(SourceInputsAttenuation!$I$19*SrcDecline!Q129)),SourceInputsAttenuation!$E$19) -> 0.1987433853 | S129: 126 | T129: =IF(U$1="Decline",(S129*QsrcLitres)/SourceInputsAttenuation!$C$33,"") -> 0.02080106523 | U129: =IF(U$1="Decline",SourceInputsAttenuation!$E$20*EXP(-1*(SourceInputsAttenuation!$I$20*SrcDecline!T129)),SourceInputsAttenuation!$E$20) -> 0.04980236277
A130: 127 | B130: =IF(C$1="Decline",(A130*QsrcLitres)/(SourceInputsAttenuation!$C$33),"") -> 0.02096615304 | C130: =IF(C$1="Decline",SourceInputsAttenuation!$E$14*EXP(-1*((SourceInputsAttenuation!$I$14)*SrcDecline!B130)),SourceInputsAttenuation!$E$14) -> 0.04992023616 | D130: 127 | E130: =IF(F$1="Decline",(D130*QsrcLitres)/SourceInputsAttenuation!$C$33,"") -> 0.02096615304 | F130: =IF(F$1="Decline",SourceInputsAttenuation!$E$15*EXP(-1*(SourceInputsAttenuation!$I$15*SrcDecline!E130)),SourceInputsAttenuation!$E$15) -> 0.0009965611874 | G130: 127 | H130: =IF(I$1="Decline",(G130*QsrcLitres)/SourceInputsAttenuation!$C$33,"") -> 0.02096615304 | I130: =IF(I$1="Decline",SourceInputsAttenuation!$E$16*EXP(-1*(SourceInputsAttenuation!$I$16*SrcDecline!E130)),SourceInputsAttenuation!$E$16) -> 0.860548328 | J130: 127 | K130: =IF(L$1="Decline",(J130*QsrcLitres)/SourceInputsAttenuation!$C$33,"") -> 0.02096615304 | L130: =IF(L$1="Decline",SourceInputsAttenuation!$E$17*EXP(-1*(SourceInputsAttenuation!$I$17*SrcDecline!K130)),SourceInputsAttenuation!$E$17) -> 0.003977171024 | M130: 127 | N130: =IF(O$1="Decline",(M130*QsrcLitres)/SourceInputsAttenuation!$C$33,"") -> 0.02096615304 | O130: =IF(O$1="Decline",SourceInputsAttenuation!$E$18*EXP(-1*(SourceInputsAttenuation!$I$18*SrcDecline!N130)),SourceInputsAttenuation!$E$18) -> 0.3975123258 | P130: 127 | Q130: =IF(R$1="Decline",(P130*QsrcLitres)/SourceInputsAttenuation!$C$33,"") -> 0.02096615304 | R130: =IF(R$1="Decline",SourceInputsAttenuation!$E$19*EXP(-1*(SourceInputsAttenuation!$I$19*SrcDecline!Q130)),SourceInputsAttenuation!$E$19) -> 0.1987334439 | S130: 127 | T130: =IF(U$1="Decline",(S130*QsrcLitres)/SourceInputsAttenuation!$C$33,"") -> 0.02096615304 | U130: =IF(U$1="Decline",SourceInputsAttenuation!$E$20*EXP(-1*(SourceInputsAttenuation!$I$20*SrcDecline!T130)),SourceInputsAttenuation!$E$20) -> 0.04980079735
A131: 128 | B131: =IF(C$1="Decline",(A131*QsrcLitres)/(SourceInputsAttenuation!$C$33),"") -> 0.02113124086 | C131: =IF(C$1="Decline",SourceInputsAttenuation!$E$14*EXP(-1*((SourceInputsAttenuation!$I$14)*SrcDecline!B131)),SourceInputsAttenuation!$E$14) -> 0.0499196086 | D131: 128 | E131: =IF(F$1="Decline",(D131*QsrcLitres)/SourceInputsAttenuation!$C$33,"") -> 0.02113124086 | F131: =IF(F$1="Decline",SourceInputsAttenuation!$E$15*EXP(-1*(SourceInputsAttenuation!$I$15*SrcDecline!E131)),SourceInputsAttenuation!$E$15) -> 0.0009965341571 | G131: 128 | H131: =IF(I$1="Decline",(G131*QsrcLitres)/SourceInputsAttenuation!$C$33,"") -> 0.02113124086 | I131: =IF(I$1="Decline",SourceInputsAttenuation!$E$16*EXP(-1*(SourceInputsAttenuation!$I$16*SrcDecline!E131)),SourceInputsAttenuation!$E$16) -> 0.8604782094 | J131: 128 | K131: =IF(L$1="Decline",(J131*QsrcLitres)/SourceInputsAttenuation!$C$33,"") -> 0.02113124086 | L131: =IF(L$1="Decline",SourceInputsAttenuation!$E$17*EXP(-1*(SourceInputsAttenuation!$I$17*SrcDecline!K131)),SourceInputsAttenuation!$E$17) -> 0.003976991786 | M131: 128 | N131: =IF(O$1="Decline",(M131*QsrcLitres)/SourceInputsAttenuation!$C$33,"") -> 0.02113124086 | O131: =IF(O$1="Decline",SourceInputsAttenuation!$E$18*EXP(-1*(SourceInputsAttenuation!$I$18*SrcDecline!N131)),SourceInputsAttenuation!$E$18) -> 0.3974927994 | P131: 128 | Q131: =IF(R$1="Decline",(P131*QsrcLitres)/SourceInputsAttenuation!$C$33,"") -> 0.02113124086 | R131: =IF(R$1="Decline",SourceInputsAttenuation!$E$19*EXP(-1*(SourceInputsAttenuation!$I$19*SrcDecline!Q131)),SourceInputsAttenuation!$E$19) -> 0.1987235029 | S131: 128 | T131: =IF(U$1="Decline",(S131*QsrcLitres)/SourceInputsAttenuation!$C$33,"") -> 0.02113124086 | U131: =IF(U$1="Decline",SourceInputsAttenuation!$E$20*EXP(-1*(SourceInputsAttenuation!$I$20*SrcDecline!T131)),SourceInputsAttenuation!$E$20) -> 0.04979923198
A132: 129 | B132: =IF(C$1="Decline",(A132*QsrcLitres)/(SourceInputsAttenuation!$C$33),"") -> 0.02129632868 | C132: =IF(C$1="Decline",SourceInputsAttenuation!$E$14*EXP(-1*((SourceInputsAttenuation!$I$14)*SrcDecline!B132)),SourceInputsAttenuation!$E$14) -> 0.04991898105 | D132: 129 | E132: =IF(F$1="Decline",(D132*QsrcLitres)/SourceInputsAttenuation!$C$33,"") -> 0.02129632868 | F132: =IF(F$1="Decline",SourceInputsAttenuation!$E$15*EXP(-1*(SourceInputsAttenuation!$I$15*SrcDecline!E132)),SourceInputsAttenuation!$E$15) -> 0.0009965071275 | G132: 129 | H132: =IF(I$1="Decline",(G132*QsrcLitres)/SourceInputsAttenuation!$C$33,"") -> 0.02129632868 | I132: =IF(I$1="Decline",SourceInputsAttenuation!$E$16*EXP(-1*(SourceInputsAttenuation!$I$16*SrcDecline!E132)),SourceInputsAttenuation!$E$16) -> 0.8604080964 | J132: 129 | K132: =IF(L$1="Decline",(J132*QsrcLitres)/SourceInputsAttenuation!$C$33,"") -> 0.02129632868 | L132: =IF(L$1="Decline",SourceInputsAttenuation!$E$17*EXP(-1*(SourceInputsAttenuation!$I$17*SrcDecline!K132)),SourceInputsAttenuation!$E$17) -> 0.003976812556 | M132: 129 | N132: =IF(O$1="Decline",(M132*QsrcLitres)/SourceInputsAttenuation!$C$33,"") -> 0.02129632868 | O132: =IF(O$1="Decline",SourceInputsAttenuation!$E$18*EXP(-1*(SourceInputsAttenuation!$I$18*SrcDecline!N132)),SourceInputsAttenuation!$E$18) -> 0.3974732739 | P132: 129 | Q132: =IF(R$1="Decline",(P132*QsrcLitres)/SourceInputsAttenuation!$C$33,"") -> 0.02129632868 | R132: =IF(R$1="Decline",SourceInputsAttenuation!$E$19*EXP(-1*(SourceInputsAttenuation!$I$19*SrcDecline!Q132)),SourceInputsAttenuation!$E$19) -> 0.1987135624 | S132: 129 | T132: =IF(U$1="Decline",(S132*QsrcLitres)/SourceInputsAttenuation!$C$33,"") -> 0.02129632868 | U132: =IF(U$1="Decline",SourceInputsAttenuation!$E$20*EXP(-1*(SourceInputsAttenuation!$I$20*SrcDecline!T132)),SourceInputsAttenuation!$E$20) -> 0.04979766666
A133: =IF(A132<1000,A132+1,A132+10) -> 130 | B133: =IF(C$1="Decline",(A133*QsrcLitres)/(SourceInputsAttenuation!$C$33),"") -> 0.0214614165 | C133: =IF(C$1="Decline",SourceInputsAttenuation!$E$14*EXP(-1*((SourceInputsAttenuation!$I$14)*SrcDecline!B133)),SourceInputsAttenuation!$E$14) -> 0.04991835351 | D133: =IF(D132<1000,D132+1,D132+10) -> 130 | E133: =IF(F$1="Decline",(D133*QsrcLitres)/SourceInputsAttenuation!$C$33,"") -> 0.0214614165 | F133: =IF(F$1="Decline",SourceInputsAttenuation!$E$15*EXP(-1*(SourceInputsAttenuation!$I$15*SrcDecline!E133)),SourceInputsAttenuation!$E$15) -> 0.0009964800987 | G133: =IF(G132<1000,G132+1,G132+10) -> 130 | H133: =IF(I$1="Decline",(G133*QsrcLitres)/SourceInputsAttenuation!$C$33,"") -> 0.0214614165 | I133: =IF(I$1="Decline",SourceInputsAttenuation!$E$16*EXP(-1*(SourceInputsAttenuation!$I$16*SrcDecline!E133)),SourceInputsAttenuation!$E$16) -> 0.8603379892 | J133: =IF(J132<1000,J132+1,J132+10) -> 130 | K133: =IF(L$1="Decline",(J133*QsrcLitres)/SourceInputsAttenuation!$C$33,"") -> 0.0214614165 | L133: =IF(L$1="Decline",SourceInputsAttenuation!$E$17*EXP(-1*(SourceInputsAttenuation!$I$17*SrcDecline!K133)),SourceInputsAttenuation!$E$17) -> 0.003976633335 | M133: =IF(M132<1000,M132+1,M132+10) -> 130 | N133: =IF(O$1="Decline",(M133*QsrcLitres)/SourceInputsAttenuation!$C$33,"") -> 0.0214614165 | O133: =IF(O$1="Decline",SourceInputsAttenuation!$E$18*EXP(-1*(SourceInputsAttenuation!$I$18*SrcDecline!N133)),SourceInputsAttenuation!$E$18) -> 0.3974537493 | P133: =IF(P132<1000,P132+1,P132+10) -> 130 | Q133: =IF(R$1="Decline",(P133*QsrcLitres)/SourceInputsAttenuation!$C$33,"") -> 0.0214614165 | R133: =IF(R$1="Decline",SourceInputsAttenuation!$E$19*EXP(-1*(SourceInputsAttenuation!$I$19*SrcDecline!Q133)),SourceInputsAttenuation!$E$19) -> 0.1987036224 | S133: =IF(S132<1000,S132+1,S132+10) -> 130 | T133: =IF(U$1="Decline",(S133*QsrcLitres)/SourceInputsAttenuation!$C$33,"") -> 0.0214614165 | U133: =IF(U$1="Decline",SourceInputsAttenuation!$E$20*EXP(-1*(SourceInputsAttenuation!$I$20*SrcDecline!T133)),SourceInputsAttenuation!$E$20) -> 0.04979610138
A134: 131 | B134: =IF(C$1="Decline",(A134*QsrcLitres)/(SourceInputsAttenuation!$C$33),"") -> 0.02162650432 | C134: =IF(C$1="Decline",SourceInputsAttenuation!$E$14*EXP(-1*((SourceInputsAttenuation!$I$14)*SrcDecline!B134)),SourceInputsAttenuation!$E$14) -> 0.04991772598 | D134: 131 | E134: =IF(F$1="Decline",(D134*QsrcLitres)/SourceInputsAttenuation!$C$33,"") -> 0.02162650432 | F134: =IF(F$1="Decline",SourceInputsAttenuation!$E$15*EXP(-1*(SourceInputsAttenuation!$I$15*SrcDecline!E134)),SourceInputsAttenuation!$E$15) -> 0.0009964530706 | G134: 131 | H134: =IF(I$1="Decline",(G134*QsrcLitres)/SourceInputsAttenuation!$C$33,"") -> 0.02162650432 | I134: =IF(I$1="Decline",SourceInputsAttenuation!$E$16*EXP(-1*(SourceInputsAttenuation!$I$16*SrcDecline!E134)),SourceInputsAttenuation!$E$16) -> 0.8602678877 | J134: 131 | K134: =IF(L$1="Decline",(J134*QsrcLitres)/SourceInputsAttenuation!$C$33,"") -> 0.02162650432 | L134: =IF(L$1="Decline",SourceInputsAttenuation!$E$17*EXP(-1*(SourceInputsAttenuation!$I$17*SrcDecline!K134)),SourceInputsAttenuation!$E$17) -> 0.003976454121 | M134: 131 | N134: =IF(O$1="Decline",(M134*QsrcLitres)/SourceInputsAttenuation!$C$33,"") -> 0.02162650432 | O134: =IF(O$1="Decline",SourceInputsAttenuation!$E$18*EXP(-1*(SourceInputsAttenuation!$I$18*SrcDecline!N134)),SourceInputsAttenuation!$E$18) -> 0.3974342257 | P134: 131 | Q134: =IF(R$1="Decline",(P134*QsrcLitres)/SourceInputsAttenuation!$C$33,"") -> 0.02162650432 | R134: =IF(R$1="Decline",SourceInputsAttenuation!$E$19*EXP(-1*(SourceInputsAttenuation!$I$19*SrcDecline!Q134)),SourceInputsAttenuation!$E$19) -> 0.1986936829 | S134: 131 | T134: =IF(U$1="Decline",(S134*QsrcLitres)/SourceInputsAttenuation!$C$33,"") -> 0.02162650432 | U134: =IF(U$1="Decline",SourceInputsAttenuation!$E$20*EXP(-1*(SourceInputsAttenuation!$I$20*SrcDecline!T134)),SourceInputsAttenuation!$E$20) -> 0.04979453616
A135: 132 | B135: =IF(C$1="Decline",(A135*QsrcLitres)/(SourceInputsAttenuation!$C$33),"") -> 0.02179159214 | C135: =IF(C$1="Decline",SourceInputsAttenuation!$E$14*EXP(-1*((SourceInputsAttenuation!$I$14)*SrcDecline!B135)),SourceInputsAttenuation!$E$14) -> 0.04991709845 | D135: 132 | E135: =IF(F$1="Decline",(D135*QsrcLitres)/SourceInputsAttenuation!$C$33,"") -> 0.02179159214 | F135: =IF(F$1="Decline",SourceInputsAttenuation!$E$15*EXP(-1*(SourceInputsAttenuation!$I$15*SrcDecline!E135)),SourceInputsAttenuation!$E$15) -> 0.0009964260433 | G135: 132 | H135: =IF(I$1="Decline",(G135*QsrcLitres)/SourceInputsAttenuation!$C$33,"") -> 0.02179159214 | I135: =IF(I$1="Decline",SourceInputsAttenuation!$E$16*EXP(-1*(SourceInputsAttenuation!$I$16*SrcDecline!E135)),SourceInputsAttenuation!$E$16) -> 0.8601977918 | J135: 132 | K135: =IF(L$1="Decline",(J135*QsrcLitres)/SourceInputsAttenuation!$C$33,"") -> 0.02179159214 | L135: =IF(L$1="Decline",SourceInputsAttenuation!$E$17*EXP(-1*(SourceInputsAttenuation!$I$17*SrcDecline!K135)),SourceInputsAttenuation!$E$17) -> 0.003976274916 | M135: 132 | N135: =IF(O$1="Decline",(M135*QsrcLitres)/SourceInputsAttenuation!$C$33,"") -> 0.02179159214 | O135: =IF(O$1="Decline",SourceInputsAttenuation!$E$18*EXP(-1*(SourceInputsAttenuation!$I$18*SrcDecline!N135)),SourceInputsAttenuation!$E$18) -> 0.3974147031 | P135: 132 | Q135: =IF(R$1="Decline",(P135*QsrcLitres)/SourceInputsAttenuation!$C$33,"") -> 0.02179159214 | R135: =IF(R$1="Decline",SourceInputsAttenuation!$E$19*EXP(-1*(SourceInputsAttenuation!$I$19*SrcDecline!Q135)),SourceInputsAttenuation!$E$19) -> 0.1986837439 | S135: 132 | T135: =IF(U$1="Decline",(S135*QsrcLitres)/SourceInputsAttenuation!$C$33,"") -> 0.02179159214 | U135: =IF(U$1="Decline",SourceInputsAttenuation!$E$20*EXP(-1*(SourceInputsAttenuation!$I$20*SrcDecline!T135)),SourceInputsAttenuation!$E$20) -> 0.04979297099
A136: 133 | B136: =IF(C$1="Decline",(A136*QsrcLitres)/(SourceInputsAttenuation!$C$33),"") -> 0.02195667996 | C136: =IF(C$1="Decline",SourceInputsAttenuation!$E$14*EXP(-1*((SourceInputsAttenuation!$I$14)*SrcDecline!B136)),SourceInputsAttenuation!$E$14) -> 0.04991647094 | D136: 133 | E136: =IF(F$1="Decline",(D136*QsrcLitres)/SourceInputsAttenuation!$C$33,"") -> 0.02195667996 | F136: =IF(F$1="Decline",SourceInputsAttenuation!$E$15*EXP(-1*(SourceInputsAttenuation!$I$15*SrcDecline!E136)),SourceInputsAttenuation!$E$15) -> 0.0009963990166 | G136: 133 | H136: =IF(I$1="Decline",(G136*QsrcLitres)/SourceInputsAttenuation!$C$33,"") -> 0.02195667996 | I136: =IF(I$1="Decline",SourceInputsAttenuation!$E$16*EXP(-1*(SourceInputsAttenuation!$I$16*SrcDecline!E136)),SourceInputsAttenuation!$E$16) -> 0.8601277017 | J136: 133 | K136: =IF(L$1="Decline",(J136*QsrcLitres)/SourceInputsAttenuation!$C$33,"") -> 0.02195667996 | L136: =IF(L$1="Decline",SourceInputsAttenuation!$E$17*EXP(-1*(SourceInputsAttenuation!$I$17*SrcDecline!K136)),SourceInputsAttenuation!$E$17) -> 0.003976095719 | M136: 133 | N136: =IF(O$1="Decline",(M136*QsrcLitres)/SourceInputsAttenuation!$C$33,"") -> 0.02195667996 | O136: =IF(O$1="Decline",SourceInputsAttenuation!$E$18*EXP(-1*(SourceInputsAttenuation!$I$18*SrcDecline!N136)),SourceInputsAttenuation!$E$18) -> 0.3973951814 | P136: 133 | Q136: =IF(R$1="Decline",(P136*QsrcLitres)/SourceInputsAttenuation!$C$33,"") -> 0.02195667996 | R136: =IF(R$1="Decline",SourceInputsAttenuation!$E$19*EXP(-1*(SourceInputsAttenuation!$I$19*SrcDecline!Q136)),SourceInputsAttenuation!$E$19) -> 0.1986738054 | S136: 133 | T136: =IF(U$1="Decline",(S136*QsrcLitres)/SourceInputsAttenuation!$C$33,"") -> 0.02195667996 | U136: =IF(U$1="Decline",SourceInputsAttenuation!$E$20*EXP(-1*(SourceInputsAttenuation!$I$20*SrcDecline!T136)),SourceInputsAttenuation!$E$20) -> 0.04979140586
A137: 134 | B137: =IF(C$1="Decline",(A137*QsrcLitres)/(SourceInputsAttenuation!$C$33),"") -> 0.02212176778 | C137: =IF(C$1="Decline",SourceInputsAttenuation!$E$14*EXP(-1*((SourceInputsAttenuation!$I$14)*SrcDecline!B137)),SourceInputsAttenuation!$E$14) -> 0.04991584343 | D137: 134 | E137: =IF(F$1="Decline",(D137*QsrcLitres)/SourceInputsAttenuation!$C$33,"") -> 0.02212176778 | F137: =IF(F$1="Decline",SourceInputsAttenuation!$E$15*EXP(-1*(SourceInputsAttenuation!$I$15*SrcDecline!E137)),SourceInputsAttenuation!$E$15) -> 0.0009963719907 | G137: 134 | H137: =IF(I$1="Decline",(G137*QsrcLitres)/SourceInputsAttenuation!$C$33,"") -> 0.02212176778 | I137: =IF(I$1="Decline",SourceInputsAttenuation!$E$16*EXP(-1*(SourceInputsAttenuation!$I$16*SrcDecline!E137)),SourceInputsAttenuation!$E$16) -> 0.8600576173 | J137: 134 | K137: =IF(L$1="Decline",(J137*QsrcLitres)/SourceInputsAttenuation!$C$33,"") -> 0.02212176778 | L137: =IF(L$1="Decline",SourceInputsAttenuation!$E$17*EXP(-1*(SourceInputsAttenuation!$I$17*SrcDecline!K137)),SourceInputsAttenuation!$E$17) -> 0.003975916529 | M137: 134 | N137: =IF(O$1="Decline",(M137*QsrcLitres)/SourceInputsAttenuation!$C$33,"") -> 0.02212176778 | O137: =IF(O$1="Decline",SourceInputsAttenuation!$E$18*EXP(-1*(SourceInputsAttenuation!$I$18*SrcDecline!N137)),SourceInputsAttenuation!$E$18) -> 0.3973756607 | P137: 134 | Q137: =IF(R$1="Decline",(P137*QsrcLitres)/SourceInputsAttenuation!$C$33,"") -> 0.02212176778 | R137: =IF(R$1="Decline",SourceInputsAttenuation!$E$19*EXP(-1*(SourceInputsAttenuation!$I$19*SrcDecline!Q137)),SourceInputsAttenuation!$E$19) -> 0.1986638674 | S137: 134 | T137: =IF(U$1="Decline",(S137*QsrcLitres)/SourceInputsAttenuation!$C$33,"") -> 0.02212176778 | U137: =IF(U$1="Decline",SourceInputsAttenuation!$E$20*EXP(-1*(SourceInputsAttenuation!$I$20*SrcDecline!T137)),SourceInputsAttenuation!$E$20) -> 0.04978984078
A138: 135 | B138: =IF(C$1="Decline",(A138*QsrcLitres)/(SourceInputsAttenuation!$C$33),"") -> 0.0222868556 | C138: =IF(C$1="Decline",SourceInputsAttenuation!$E$14*EXP(-1*((SourceInputsAttenuation!$I$14)*SrcDecline!B138)),SourceInputsAttenuation!$E$14) -> 0.04991521593 | D138: 135 | E138: =IF(F$1="Decline",(D138*QsrcLitres)/SourceInputsAttenuation!$C$33,"") -> 0.0222868556 | F138: =IF(F$1="Decline",SourceInputsAttenuation!$E$15*EXP(-1*(SourceInputsAttenuation!$I$15*SrcDecline!E138)),SourceInputsAttenuation!$E$15) -> 0.0009963449656 | G138: 135 | H138: =IF(I$1="Decline",(G138*QsrcLitres)/SourceInputsAttenuation!$C$33,"") -> 0.0222868556 | I138: =IF(I$1="Decline",SourceInputsAttenuation!$E$16*EXP(-1*(SourceInputsAttenuation!$I$16*SrcDecline!E138)),SourceInputsAttenuation!$E$16) -> 0.8599875387 | J138: 135 | K138: =IF(L$1="Decline",(J138*QsrcLitres)/SourceInputsAttenuation!$C$33,"") -> 0.0222868556 | L138: =IF(L$1="Decline",SourceInputsAttenuation!$E$17*EXP(-1*(SourceInputsAttenuation!$I$17*SrcDecline!K138)),SourceInputsAttenuation!$E$17) -> 0.003975737348 | M138: 135 | N138: =IF(O$1="Decline",(M138*QsrcLitres)/SourceInputsAttenuation!$C$33,"") -> 0.0222868556 | O138: =IF(O$1="Decline",SourceInputsAttenuation!$E$18*EXP(-1*(SourceInputsAttenuation!$I$18*SrcDecline!N138)),SourceInputsAttenuation!$E$18) -> 0.397356141 | P138: 135 | Q138: =IF(R$1="Decline",(P138*QsrcLitres)/SourceInputsAttenuation!$C$33,"") -> 0.0222868556 | R138: =IF(R$1="Decline",SourceInputsAttenuation!$E$19*EXP(-1*(SourceInputsAttenuation!$I$19*SrcDecline!Q138)),SourceInputsAttenuation!$E$19) -> 0.1986539299 | S138: 135 | T138: =IF(U$1="Decline",(S138*QsrcLitres)/SourceInputsAttenuation!$C$33,"") -> 0.0222868556 | U138: =IF(U$1="Decline",SourceInputsAttenuation!$E$20*EXP(-1*(SourceInputsAttenuation!$I$20*SrcDecline!T138)),SourceInputsAttenuation!$E$20) -> 0.04978827576
A139: 136 | B139: =IF(C$1="Decline",(A139*QsrcLitres)/(SourceInputsAttenuation!$C$33),"") -> 0.02245194342 | C139: =IF(C$1="Decline",SourceInputsAttenuation!$E$14*EXP(-1*((SourceInputsAttenuation!$I$14)*SrcDecline!B139)),SourceInputsAttenuation!$E$14) -> 0.04991458843 | D139: 136 | E139: =IF(F$1="Decline",(D139*QsrcLitres)/SourceInputsAttenuation!$C$33,"") -> 0.02245194342 | F139: =IF(F$1="Decline",SourceInputsAttenuation!$E$15*EXP(-1*(SourceInputsAttenuation!$I$15*SrcDecline!E139)),SourceInputsAttenuation!$E$15) -> 0.0009963179412 | G139: 136 | H139: =IF(I$1="Decline",(G139*QsrcLitres)/SourceInputsAttenuation!$C$33,"") -> 0.02245194342 | I139: =IF(I$1="Decline",SourceInputsAttenuation!$E$16*EXP(-1*(SourceInputsAttenuation!$I$16*SrcDecline!E139)),SourceInputsAttenuation!$E$16) -> 0.8599174657 | J139: 136 | K139: =IF(L$1="Decline",(J139*QsrcLitres)/SourceInputsAttenuation!$C$33,"") -> 0.02245194342 | L139: =IF(L$1="Decline",SourceInputsAttenuation!$E$17*EXP(-1*(SourceInputsAttenuation!$I$17*SrcDecline!K139)),SourceInputsAttenuation!$E$17) -> 0.003975558175 | M139: 136 | N139: =IF(O$1="Decline",(M139*QsrcLitres)/SourceInputsAttenuation!$C$33,"") -> 0.02245194342 | O139: =IF(O$1="Decline",SourceInputsAttenuation!$E$18*EXP(-1*(SourceInputsAttenuation!$I$18*SrcDecline!N139)),SourceInputsAttenuation!$E$18) -> 0.3973366222 | P139: 136 | Q139: =IF(R$1="Decline",(P139*QsrcLitres)/SourceInputsAttenuation!$C$33,"") -> 0.02245194342 | R139: =IF(R$1="Decline",SourceInputsAttenuation!$E$19*EXP(-1*(SourceInputsAttenuation!$I$19*SrcDecline!Q139)),SourceInputsAttenuation!$E$19) -> 0.1986439929 | S139: 136 | T139: =IF(U$1="Decline",(S139*QsrcLitres)/SourceInputsAttenuation!$C$33,"") -> 0.02245194342 | U139: =IF(U$1="Decline",SourceInputsAttenuation!$E$20*EXP(-1*(SourceInputsAttenuation!$I$20*SrcDecline!T139)),SourceInputsAttenuation!$E$20) -> 0.04978671078
A140: 137 | B140: =IF(C$1="Decline",(A140*QsrcLitres)/(SourceInputsAttenuation!$C$33),"") -> 0.02261703124 | C140: =IF(C$1="Decline",SourceInputsAttenuation!$E$14*EXP(-1*((SourceInputsAttenuation!$I$14)*SrcDecline!B140)),SourceInputsAttenuation!$E$14) -> 0.04991396095 | D140: 137 | E140: =IF(F$1="Decline",(D140*QsrcLitres)/SourceInputsAttenuation!$C$33,"") -> 0.02261703124 | F140: =IF(F$1="Decline",SourceInputsAttenuation!$E$15*EXP(-1*(SourceInputsAttenuation!$I$15*SrcDecline!E140)),SourceInputsAttenuation!$E$15) -> 0.0009962909175 | G140: 137 | H140: =IF(I$1="Decline",(G140*QsrcLitres)/SourceInputsAttenuation!$C$33,"") -> 0.02261703124 | I140: =IF(I$1="Decline",SourceInputsAttenuation!$E$16*EXP(-1*(SourceInputsAttenuation!$I$16*SrcDecline!E140)),SourceInputsAttenuation!$E$16) -> 0.8598473984 | J140: 137 | K140: =IF(L$1="Decline",(J140*QsrcLitres)/SourceInputsAttenuation!$C$33,"") -> 0.02261703124 | L140: =IF(L$1="Decline",SourceInputsAttenuation!$E$17*EXP(-1*(SourceInputsAttenuation!$I$17*SrcDecline!K140)),SourceInputsAttenuation!$E$17) -> 0.00397537901 | M140: 137 | N140: =IF(O$1="Decline",(M140*QsrcLitres)/SourceInputsAttenuation!$C$33,"") -> 0.02261703124 | O140: =IF(O$1="Decline",SourceInputsAttenuation!$E$18*EXP(-1*(SourceInputsAttenuation!$I$18*SrcDecline!N140)),SourceInputsAttenuation!$E$18) -> 0.3973171043 | P140: 137 | Q140: =IF(R$1="Decline",(P140*QsrcLitres)/SourceInputsAttenuation!$C$33,"") -> 0.02261703124 | R140: =IF(R$1="Decline",SourceInputsAttenuation!$E$19*EXP(-1*(SourceInputsAttenuation!$I$19*SrcDecline!Q140)),SourceInputsAttenuation!$E$19) -> 0.1986340563 | S140: 137 | T140: =IF(U$1="Decline",(S140*QsrcLitres)/SourceInputsAttenuation!$C$33,"") -> 0.02261703124 | U140: =IF(U$1="Decline",SourceInputsAttenuation!$E$20*EXP(-1*(SourceInputsAttenuation!$I$20*SrcDecline!T140)),SourceInputsAttenuation!$E$20) -> 0.04978514585
A141: 138 | B141: =IF(C$1="Decline",(A141*QsrcLitres)/(SourceInputsAttenuation!$C$33),"") -> 0.02278211906 | C141: =IF(C$1="Decline",SourceInputsAttenuation!$E$14*EXP(-1*((SourceInputsAttenuation!$I$14)*SrcDecline!B141)),SourceInputsAttenuation!$E$14) -> 0.04991333347 | D141: 138 | E141: =IF(F$1="Decline",(D141*QsrcLitres)/SourceInputsAttenuation!$C$33,"") -> 0.02278211906 | F141: =IF(F$1="Decline",SourceInputsAttenuation!$E$15*EXP(-1*(SourceInputsAttenuation!$I$15*SrcDecline!E141)),SourceInputsAttenuation!$E$15) -> 0.0009962638945 | G141: 138 | H141: =IF(I$1="Decline",(G141*QsrcLitres)/SourceInputsAttenuation!$C$33,"") -> 0.02278211906 | I141: =IF(I$1="Decline",SourceInputsAttenuation!$E$16*EXP(-1*(SourceInputsAttenuation!$I$16*SrcDecline!E141)),SourceInputsAttenuation!$E$16) -> 0.8597773369 | J141: 138 | K141: =IF(L$1="Decline",(J141*QsrcLitres)/SourceInputsAttenuation!$C$33,"") -> 0.02278211906 | L141: =IF(L$1="Decline",SourceInputsAttenuation!$E$17*EXP(-1*(SourceInputsAttenuation!$I$17*SrcDecline!K141)),SourceInputsAttenuation!$E$17) -> 0.003975199853 | M141: 138 | N141: =IF(O$1="Decline",(M141*QsrcLitres)/SourceInputsAttenuation!$C$33,"") -> 0.02278211906 | O141: =IF(O$1="Decline",SourceInputsAttenuation!$E$18*EXP(-1*(SourceInputsAttenuation!$I$18*SrcDecline!N141)),SourceInputsAttenuation!$E$18) -> 0.3972975874 | P141: 138 | Q141: =IF(R$1="Decline",(P141*QsrcLitres)/SourceInputsAttenuation!$C$33,"") -> 0.02278211906 | R141: =IF(R$1="Decline",SourceInputsAttenuation!$E$19*EXP(-1*(SourceInputsAttenuation!$I$19*SrcDecline!Q141)),SourceInputsAttenuation!$E$19) -> 0.1986241203 | S141: 138 | T141: =IF(U$1="Decline",(S141*QsrcLitres)/SourceInputsAttenuation!$C$33,"") -> 0.02278211906 | U141: =IF(U$1="Decline",SourceInputsAttenuation!$E$20*EXP(-1*(SourceInputsAttenuation!$I$20*SrcDecline!T141)),SourceInputsAttenuation!$E$20) -> 0.04978358097
A142: 139 | B142: =IF(C$1="Decline",(A142*QsrcLitres)/(SourceInputsAttenuation!$C$33),"") -> 0.02294720688 | C142: =IF(C$1="Decline",SourceInputsAttenuation!$E$14*EXP(-1*((SourceInputsAttenuation!$I$14)*SrcDecline!B142)),SourceInputsAttenuation!$E$14) -> 0.049912706 | D142: 139 | E142: =IF(F$1="Decline",(D142*QsrcLitres)/SourceInputsAttenuation!$C$33,"") -> 0.02294720688 | F142: =IF(F$1="Decline",SourceInputsAttenuation!$E$15*EXP(-1*(SourceInputsAttenuation!$I$15*SrcDecline!E142)),SourceInputsAttenuation!$E$15) -> 0.0009962368723 | G142: 139 | H142: =IF(I$1="Decline",(G142*QsrcLitres)/SourceInputsAttenuation!$C$33,"") -> 0.02294720688 | I142: =IF(I$1="Decline",SourceInputsAttenuation!$E$16*EXP(-1*(SourceInputsAttenuation!$I$16*SrcDecline!E142)),SourceInputsAttenuation!$E$16) -> 0.859707281 | J142: 139 | K142: =IF(L$1="Decline",(J142*QsrcLitres)/SourceInputsAttenuation!$C$33,"") -> 0.02294720688 | L142: =IF(L$1="Decline",SourceInputsAttenuation!$E$17*EXP(-1*(SourceInputsAttenuation!$I$17*SrcDecline!K142)),SourceInputsAttenuation!$E$17) -> 0.003975020704 | M142: 139 | N142: =IF(O$1="Decline",(M142*QsrcLitres)/SourceInputsAttenuation!$C$33,"") -> 0.02294720688 | O142: =IF(O$1="Decline",SourceInputsAttenuation!$E$18*EXP(-1*(SourceInputsAttenuation!$I$18*SrcDecline!N142)),SourceInputsAttenuation!$E$18) -> 0.3972780715 | P142: 139 | Q142: =IF(R$1="Decline",(P142*QsrcLitres)/SourceInputsAttenuation!$C$33,"") -> 0.02294720688 | R142: =IF(R$1="Decline",SourceInputsAttenuation!$E$19*EXP(-1*(SourceInputsAttenuation!$I$19*SrcDecline!Q142)),SourceInputsAttenuation!$E$19) -> 0.1986141848 | S142: 139 | T142: =IF(U$1="Decline",(S142*QsrcLitres)/SourceInputsAttenuation!$C$33,"") -> 0.02294720688 | U142: =IF(U$1="Decline",SourceInputsAttenuation!$E$20*EXP(-1*(SourceInputsAttenuation!$I$20*SrcDecline!T142)),SourceInputsAttenuation!$E$20) -> 0.04978201614
A143: 140 | B143: =IF(C$1="Decline",(A143*QsrcLitres)/(SourceInputsAttenuation!$C$33),"") -> 0.0231122947 | C143: =IF(C$1="Decline",SourceInputsAttenuation!$E$14*EXP(-1*((SourceInputsAttenuation!$I$14)*SrcDecline!B143)),SourceInputsAttenuation!$E$14) -> 0.04991207854 | D143: 140 | E143: =IF(F$1="Decline",(D143*QsrcLitres)/SourceInputsAttenuation!$C$33,"") -> 0.0231122947 | F143: =IF(F$1="Decline",SourceInputsAttenuation!$E$15*EXP(-1*(SourceInputsAttenuation!$I$15*SrcDecline!E143)),SourceInputsAttenuation!$E$15) -> 0.0009962098508 | G143: 140 | H143: =IF(I$1="Decline",(G143*QsrcLitres)/SourceInputsAttenuation!$C$33,"") -> 0.0231122947 | I143: =IF(I$1="Decline",SourceInputsAttenuation!$E$16*EXP(-1*(SourceInputsAttenuation!$I$16*SrcDecline!E143)),SourceInputsAttenuation!$E$16) -> 0.8596372309 | J143: 140 | K143: =IF(L$1="Decline",(J143*QsrcLitres)/SourceInputsAttenuation!$C$33,"") -> 0.0231122947 | L143: =IF(L$1="Decline",SourceInputsAttenuation!$E$17*EXP(-1*(SourceInputsAttenuation!$I$17*SrcDecline!K143)),SourceInputsAttenuation!$E$17) -> 0.003974841563 | M143: 140 | N143: =IF(O$1="Decline",(M143*QsrcLitres)/SourceInputsAttenuation!$C$33,"") -> 0.0231122947 | O143: =IF(O$1="Decline",SourceInputsAttenuation!$E$18*EXP(-1*(SourceInputsAttenuation!$I$18*SrcDecline!N143)),SourceInputsAttenuation!$E$18) -> 0.3972585566 | P143: 140 | Q143: =IF(R$1="Decline",(P143*QsrcLitres)/SourceInputsAttenuation!$C$33,"") -> 0.0231122947 | R143: =IF(R$1="Decline",SourceInputsAttenuation!$E$19*EXP(-1*(SourceInputsAttenuation!$I$19*SrcDecline!Q143)),SourceInputsAttenuation!$E$19) -> 0.1986042498 | S143: 140 | T143: =IF(U$1="Decline",(S143*QsrcLitres)/SourceInputsAttenuation!$C$33,"") -> 0.0231122947 | U143: =IF(U$1="Decline",SourceInputsAttenuation!$E$20*EXP(-1*(SourceInputsAttenuation!$I$20*SrcDecline!T143)),SourceInputsAttenuation!$E$20) -> 0.04978045136
A144: 141 | B144: =IF(C$1="Decline",(A144*QsrcLitres)/(SourceInputsAttenuation!$C$33),"") -> 0.02327738251 | C144: =IF(C$1="Decline",SourceInputsAttenuation!$E$14*EXP(-1*((SourceInputsAttenuation!$I$14)*SrcDecline!B144)),SourceInputsAttenuation!$E$14) -> 0.04991145108 | D144: 141 | E144: =IF(F$1="Decline",(D144*QsrcLitres)/SourceInputsAttenuation!$C$33,"") -> 0.02327738251 | F144: =IF(F$1="Decline",SourceInputsAttenuation!$E$15*EXP(-1*(SourceInputsAttenuation!$I$15*SrcDecline!E144)),SourceInputsAttenuation!$E$15) -> 0.00099618283 | G144: 141 | H144: =IF(I$1="Decline",(G144*QsrcLitres)/SourceInputsAttenuation!$C$33,"") -> 0.02327738251 | I144: =IF(I$1="Decline",SourceInputsAttenuation!$E$16*EXP(-1*(SourceInputsAttenuation!$I$16*SrcDecline!E144)),SourceInputsAttenuation!$E$16) -> 0.8595671865 | J144: 141 | K144: =IF(L$1="Decline",(J144*QsrcLitres)/SourceInputsAttenuation!$C$33,"") -> 0.02327738251 | L144: =IF(L$1="Decline",SourceInputsAttenuation!$E$17*EXP(-1*(SourceInputsAttenuation!$I$17*SrcDecline!K144)),SourceInputsAttenuation!$E$17) -> 0.00397466243 | M144: 141 | N144: =IF(O$1="Decline",(M144*QsrcLitres)/SourceInputsAttenuation!$C$33,"") -> 0.02327738251 | O144: =IF(O$1="Decline",SourceInputsAttenuation!$E$18*EXP(-1*(SourceInputsAttenuation!$I$18*SrcDecline!N144)),SourceInputsAttenuation!$E$18) -> 0.3972390426 | P144: 141 | Q144: =IF(R$1="Decline",(P144*QsrcLitres)/SourceInputsAttenuation!$C$33,"") -> 0.02327738251 | R144: =IF(R$1="Decline",SourceInputsAttenuation!$E$19*EXP(-1*(SourceInputsAttenuation!$I$19*SrcDecline!Q144)),SourceInputsAttenuation!$E$19) -> 0.1985943152 | S144: 141 | T144: =IF(U$1="Decline",(S144*QsrcLitres)/SourceInputsAttenuation!$C$33,"") -> 0.02327738251 | U144: =IF(U$1="Decline",SourceInputsAttenuation!$E$20*EXP(-1*(SourceInputsAttenuation!$I$20*SrcDecline!T144)),SourceInputsAttenuation!$E$20) -> 0.04977888663
A145: 142 | B145: =IF(C$1="Decline",(A145*QsrcLitres)/(SourceInputsAttenuation!$C$33),"") -> 0.02344247033 | C145: =IF(C$1="Decline",SourceInputsAttenuation!$E$14*EXP(-1*((SourceInputsAttenuation!$I$14)*SrcDecline!B145)),SourceInputsAttenuation!$E$14) -> 0.04991082364 | D145: 142 | E145: =IF(F$1="Decline",(D145*QsrcLitres)/SourceInputsAttenuation!$C$33,"") -> 0.02344247033 | F145: =IF(F$1="Decline",SourceInputsAttenuation!$E$15*EXP(-1*(SourceInputsAttenuation!$I$15*SrcDecline!E145)),SourceInputsAttenuation!$E$15) -> 0.00099615581 | G145: 142 | H145: =IF(I$1="Decline",(G145*QsrcLitres)/SourceInputsAttenuation!$C$33,"") -> 0.02344247033 | I145: =IF(I$1="Decline",SourceInputsAttenuation!$E$16*EXP(-1*(SourceInputsAttenuation!$I$16*SrcDecline!E145)),SourceInputsAttenuation!$E$16) -> 0.8594971477 | J145: 142 | K145: =IF(L$1="Decline",(J145*QsrcLitres)/SourceInputsAttenuation!$C$33,"") -> 0.02344247033 | L145: =IF(L$1="Decline",SourceInputsAttenuation!$E$17*EXP(-1*(SourceInputsAttenuation!$I$17*SrcDecline!K145)),SourceInputsAttenuation!$E$17) -> 0.003974483306 | M145: 142 | N145: =IF(O$1="Decline",(M145*QsrcLitres)/SourceInputsAttenuation!$C$33,"") -> 0.02344247033 | O145: =IF(O$1="Decline",SourceInputsAttenuation!$E$18*EXP(-1*(SourceInputsAttenuation!$I$18*SrcDecline!N145)),SourceInputsAttenuation!$E$18) -> 0.3972195295 | P145: 142 | Q145: =IF(R$1="Decline",(P145*QsrcLitres)/SourceInputsAttenuation!$C$33,"") -> 0.02344247033 | R145: =IF(R$1="Decline",SourceInputsAttenuation!$E$19*EXP(-1*(SourceInputsAttenuation!$I$19*SrcDecline!Q145)),SourceInputsAttenuation!$E$19) -> 0.1985843812 | S145: 142 | T145: =IF(U$1="Decline",(S145*QsrcLitres)/SourceInputsAttenuation!$C$33,"") -> 0.02344247033 | U145: =IF(U$1="Decline",SourceInputsAttenuation!$E$20*EXP(-1*(SourceInputsAttenuation!$I$20*SrcDecline!T145)),SourceInputsAttenuation!$E$20) -> 0.04977732194
A146: 143 | B146: =IF(C$1="Decline",(A146*QsrcLitres)/(SourceInputsAttenuation!$C$33),"") -> 0.02360755815 | C146: =IF(C$1="Decline",SourceInputsAttenuation!$E$14*EXP(-1*((SourceInputsAttenuation!$I$14)*SrcDecline!B146)),SourceInputsAttenuation!$E$14) -> 0.0499101962 | D146: 143 | E146: =IF(F$1="Decline",(D146*QsrcLitres)/SourceInputsAttenuation!$C$33,"") -> 0.02360755815 | F146: =IF(F$1="Decline",SourceInputsAttenuation!$E$15*EXP(-1*(SourceInputsAttenuation!$I$15*SrcDecline!E146)),SourceInputsAttenuation!$E$15) -> 0.0009961287907 | G146: 143 | H146: =IF(I$1="Decline",(G146*QsrcLitres)/SourceInputsAttenuation!$C$33,"") -> 0.02360755815 | I146: =IF(I$1="Decline",SourceInputsAttenuation!$E$16*EXP(-1*(SourceInputsAttenuation!$I$16*SrcDecline!E146)),SourceInputsAttenuation!$E$16) -> 0.8594271147 | J146: 143 | K146: =IF(L$1="Decline",(J146*QsrcLitres)/SourceInputsAttenuation!$C$33,"") -> 0.02360755815 | L146: =IF(L$1="Decline",SourceInputsAttenuation!$E$17*EXP(-1*(SourceInputsAttenuation!$I$17*SrcDecline!K146)),SourceInputsAttenuation!$E$17) -> 0.003974304189 | M146: 143 | N146: =IF(O$1="Decline",(M146*QsrcLitres)/SourceInputsAttenuation!$C$33,"") -> 0.02360755815 | O146: =IF(O$1="Decline",SourceInputsAttenuation!$E$18*EXP(-1*(SourceInputsAttenuation!$I$18*SrcDecline!N146)),SourceInputsAttenuation!$E$18) -> 0.3972000174 | P146: 143 | Q146: =IF(R$1="Decline",(P146*QsrcLitres)/SourceInputsAttenuation!$C$33,"") -> 0.02360755815 | R146: =IF(R$1="Decline",SourceInputsAttenuation!$E$19*EXP(-1*(SourceInputsAttenuation!$I$19*SrcDecline!Q146)),SourceInputsAttenuation!$E$19) -> 0.1985744477 | S146: 143 | T146: =IF(U$1="Decline",(S146*QsrcLitres)/SourceInputsAttenuation!$C$33,"") -> 0.02360755815 | U146: =IF(U$1="Decline",SourceInputsAttenuation!$E$20*EXP(-1*(SourceInputsAttenuation!$I$20*SrcDecline!T146)),SourceInputsAttenuation!$E$20) -> 0.04977575731
